Workbook

Sheet Cover
A2: Long Duration Electricity Storage Cap and Floor Financial Model (LDES CFFM)
A3: Regime design model
A4: LDES_CFFM_v2.12.xlsm
A5: DISCLAIMER: | C5: This model has been developed to allow Ofgem to estimate the likely levels of the cap and floor for a given LDES project, for window 1 only, based on the decisions made in the LDES Financial Framework. It has also been developed to allow Project developers to understand how decisions around the regime design will feed through into the calculation of the initial cap and floor levels. However, developers should not rely on this model as a a definitive indication of the cap and floor, given that many of the relevant inputs are subject to finalisation at Final Investment Decision or Post Construction Review stage. In the event of any inconsistency between this model and a Project's licence, the licence conditions will take precedence.
C6: For guidance on the use of the LDES CFFM, please refer to the LDES CFFM Handbook (LDES CFFMH).
C7: The LDES CFFM should not be used for anything other than its intended purpose.
A8: Model key
A9: Sample | C9: Calculated value
A10: Sample | C10: Formula changes in cells to the right
A11: Sample | C11: Import from other sheet
A12: Sample | C12: Export to other sheet
A13: Sample | C13: Import from & export to other sheet
A14: Sample | C14: Developer inputs
A15: Sample | C15: Developer inputs from data submission form (DSF)
A16: Sample | C16: Ofgem default assumption (can be replaced by developer)
A17: Sample | C17: Ofgem inputs
A18: Sample | C18: Notes and instructions
A19: Sample | C19: Cell intentionally blank
C20: Rows added to accommodate project-finance related inputs and calculations
A21: Contents
A22: Cover | C22: Model key and content directory
A23: Version Control | C23: Version control and log of changes
A24: Inputs | C24: Input data
A25: Data Sources | C25: Sources of input data
A26: Pre Op RAV | C26: Pre-operational RAV balances and project-finance eligible costs
A27: Finance | C27: Interest during construction, transaction costs, project-finance debt service
A28: Op RAV | C28: Operational RAV balances, return on RAV and RAV depreciation
A29: Allowances Cap | C29: Cap allowances (excluding tax) and annuitisation
A30: Allowances Floor | C30: Floor allowances (excluding tax) and annuitisation
A31: Tax Deductions | C31: Tax calculations
A32: Tax Cap | C32: Tax allowances at cap and annuitisation
A33: Tax Floor | C33: Tax allowances at floor and annuitisation
A34: Cap Floor Levels | C34: Cap and Floor values
A35: Future Cashflows | C35: Future cashflows for residual value
A36: Control
C37: This button should be pressed once all input data has been entered. This deals with the model circularity for the interest calculation. Keep pressing the button until circularity check shows TRUE. If check says FALSE then keep pressing button. For full functionality of this button the file should be opened and used via the Excel desktop app.
A38: Checks
A39: Senior debt drawdown profile | C39: =Inputs!I83 -> TRUE
A40: Depreciation | C40: =Op_Rav!I28 -> TRUE
A41: Debt tenor and tail | C41: =Inputs!I160 -> TRUE
A42: Circularity check | C42: =Pre_Op_RAV!I57 -> TRUE
A43: End of sheet

Sheet Version_Control
A1: Version control
A2: Version number | B2: File pathname | C2: Based on version | D2: Author or editor | E2: Date | F2: Description of changes | G2: Rationale for changes | H2: Location of changes | I2: Impact of changes on outputs | J2: Quality assurance performed? By? | K2: Comments on QA performed
A4: 1 | C4: N/a | D4: CEPA | E4: 2025-06-13 | F4: N/a | G4: N/a | H4: N/a | I4: N/a | J4: CEPA
A5: 2 | C5: 1 | D5: CEPA | E5: 2025-08-01 | F5: Changed from 40 year to 50 year time period, hid empty rows to reduce blank space within model, added macro for circularity management, minor issues related to incorrect namings fixed, circularity check added to front page, added senior debt profile check, changes all numbers to 2 decimal places, added input charaterisation by colour to better define inputs, added more data validation checks into the model, added more granularity to ACOD inputs. | G5: Based on Feedback from GAD | H5: Throughout model | I5: None | J5: CEPA
A6: 2.1 | C6: 2 | D6: CEPA | E6: 2025-08-20 | F6: Changed location of macro, updated circularity check to TRUE and FALSE, updated referencing in Finance sheet from Op_Rav to Pre_OP_RAV, changed IDC incentive amount from 0.15 to 0.25, changed model time period from 50 years to 80 years. | G6: Based on further feedback from GAD | H6: Throughout model | I6: None | J6: CEPA
A7: 2.2 | C7: 2 | D7: CEPA | E7: 2025-08-21 | F7: Removal of IDC delay incentive penalty | G7: Outcome of PoCo meeting | H7: Removal of rows in Input and update to cell reference in Finance tab
A8: 2.3 | C8: 2.2 | D8: CEPA | E8: 2025-08-27 | F8: Removal of IDC incentive references from Data_Sources sheet, Modification to debt tenor check to make it debt tenor + debt tail <= end date - start of operations | G8: Feedback from GAD | H8: Inputs and Data_Sources tab
A9: 2.4 | C9: 2.3 | D9: CEPA | E9: 2025-09-03 | F9: Update to colour coding of inputs to identify developer inputs from the DSF, addition of named ranges for some inputs and outputs. Updated transaction costs calculation to prevent negative transaction costs when project gears up | G9: Feedback from Ofgem Transaction costs calc updated in response to feedback from GAD and subsequent discussions with Ofgem | H9: Inputs, Data_Sources and Cap_Floor_Levels Finance tab | I9: None
A10: 2.5 | C10: 2.4 | D10: CEPA | E10: 2025-09-04 | F10: Updated names of developer inputs to be better align with Ofgems terms, added a separate row for post debt repayment flag to be used instead of the debt tail flag for the ACOD floor for the post debt repayment period | G10: Feedback from Ofgem | H10: Inputs, Allowance_Floor
A11: 2.6 | C11: 2.5 | D11: CEPA | E11: 2025-09-10 | F11: Labelling issues in output sheet for outturn inflation fixed. Labelling issues for post debt repayment period Addition of multiple tax pools to align with Ofgem's feedback. Additional inputs for the multiple tax pools and update to the data sources tab based on the additional inputs. Also updated the logic for tax losses in the tax floor and tax cap tabs | G11: Feedback from Ofgem and GAD | H11: Inputs Rows 176-202, Data_Sources 130-156, Tax_Deductions 33-131, Tax_Cap and Tax_Floor
A12: 2.7 | C12: 2.6 | D12: CEPA | E12: 2025-09-11 | F12: Correction to floor rate of return calculation to extend over full modelling period, return to debt tail over post debt repayment period and removal of post debt repayment period flag, Corrections to tax calculations, update to 4% for deferred revenue expenditure rate | G12: Ofgem feedback | H12: Inputs, Allowances_Floor I84
A13: 2.9 | C13: 2.7 | D13: CEPA | E13: 2025-09-26 | F13: Updated to some colour coding of ofgem inputs to align with published Ofgem assumptions, update of Floor rate and IDC rate. Further documentation updates. | G13: GAD Feedback | H13: Inputs | I13: None
A14: 2.10 | C14: 2.9 | D14: CEPA | E14: 2025-10-01 | F14: Updated colour coding of decommissioning costs. Addition of further error traps and validation checks
A15: 2.11 | C15: 2.1 | D15: CEPA | E15: 2025-10-02 | F15: Updated Disclaimer on cover page, locked ofgem inputs, extra validation on floor rate
A16: 2.12 | C16: 2.11 | D16: CEPA | E16: 2025-10-03 | F16: Updated cell references in data sources sheet Updated cell colour coding of developer inputs Development & pre- operational costs updated to £m nominal | H16: Data_Sources, Inputs, Pre_Op_RAV

Sheet Inputs
A1: Inputs | H1: Licence
E2: Parameter | G2: Units | H2: Terminology | I2: Constant | K2: Annual values
B4: Base year price term
E6: Base year price term | G6: =$I$6 -> £m 2024 prices | I6: £m 2024 prices
B8: Variables set after financial close
C10: Actual values
E12: Year commencing | K12: =$I$149 -> 2025-01-01 | L12: =+K13+1 -> 2026-01-01 | M12: 2027-01-01 | N12: 2028-01-01 | O12: 2029-01-01 | P12: 2030-01-01 | Q12: 2031-01-01 | R12: 2032-01-01 | S12: 2033-01-01 | T12: 2034-01-01 | U12: 2035-01-01 | V12: 2036-01-01 | W12: 2037-01-01 | X12: 2038-01-01 | Y12: 2039-01-01 | Z12: 2040-01-01 | AA12: 2041-01-01 | AB12: 2042-01-01 | AC12: 2043-01-01 | AD12: 2044-01-01 | AE12: 2045-01-01 | AF12: 2046-01-01 | AG12: 2047-01-01 | AH12: 2048-01-01 | AI12: 2049-01-01 | AJ12: 2050-01-01 | AK12: 2051-01-01 | AL12: 2052-01-01 | AM12: 2053-01-01 | AN12: 2054-01-01 | AO12: 2055-01-01 | AP12: 2056-01-01 | AQ12: 2057-01-01 | AR12: 2058-01-01 | AS12: 2059-01-01 | AT12: 2060-01-01 | AU12: 2061-01-01 | AV12: 2062-01-01 | AW12: 2063-01-01 | AX12: 2064-01-01 | AY12: =+AX13+1 -> 2065-01-01 | AZ12: 2066-01-01 | BA12: =+AZ13+1 -> 2067-01-01 | BB12: =+BA13+1 -> 2068-01-01 | BC12: =+BB13+1 -> 2069-01-01 | BD12: =+BC13+1 -> 2070-01-01 | BE12: =+BD13+1 -> 2071-01-01 | BF12: =+BE13+1 -> 2072-01-01 | BG12: =+BF13+1 -> 2073-01-01 | BH12: =+BG13+1 -> 2074-01-01 | BI12: =+BH13+1 -> 2075-01-01 | BJ12: =+BI13+1 -> 2076-01-01 | BK12: =+BJ13+1 -> 2077-01-01 | BL12: =+BK13+1 -> 2078-01-01 | BM12: =+BL13+1 -> 2079-01-01 | BN12: =+BM13+1 -> 2080-01-01 | BO12: =+BN13+1 -> 2081-01-01 | BP12: =+BO13+1 -> 2082-01-01 | BQ12: =+BP13+1 -> 2083-01-01 | BR12: =+BQ13+1 -> 2084-01-01 | BS12: =+BR13+1 -> 2085-01-01 | BT12: =+BS13+1 -> 2086-01-01 | BU12: =+BT13+1 -> 2087-01-01 | BV12: =+BU13+1 -> 2088-01-01 | BW12: =+BV13+1 -> 2089-01-01 | BX12: =+BW13+1 -> 2090-01-01 | BY12: =+BX13+1 -> 2091-01-01 | BZ12: =+BY13+1 -> 2092-01-01 | CA12: =+BZ13+1 -> 2093-01-01 | CB12: =+CA13+1 -> 2094-01-01 | CC12: =+CB13+1 -> 2095-01-01 | CD12: =+CC13+1 -> 2096-01-01 | CE12: =+CD13+1 -> 2097-01-01 | CF12: =+CE13+1 -> 2098-01-01 | CG12: =+CF13+1 -> 2099-01-01 | CH12: =+CG13+1 -> 2100-01-01 | CI12: =+CH13+1 -> 2101-01-01 | CJ12: =+CI13+1 -> 2102-01-01 | CK12: =+CJ13+1 -> 2103-01-01 | CL12: =+CK13+1 -> 2104-01-01
E13: Year ending | K13: =EOMONTH(K12,11) -> 2025-12-31 | L13: =DATE(YEAR(K13) + 1, MONTH(K13), DAY(K13)) -> 2026-12-31 | M13: 2027-12-31 | N13: 2028-12-31 | O13: 2029-12-31 | P13: 2030-12-31 | Q13: 2031-12-31 | R13: 2032-12-31 | S13: 2033-12-31 | T13: 2034-12-31 | U13: 2035-12-31 | V13: 2036-12-31 | W13: 2037-12-31 | X13: 2038-12-31 | Y13: 2039-12-31 | Z13: 2040-12-31 | AA13: 2041-12-31 | AB13: 2042-12-31 | AC13: 2043-12-31 | AD13: 2044-12-31 | AE13: 2045-12-31 | AF13: 2046-12-31 | AG13: 2047-12-31 | AH13: 2048-12-31 | AI13: 2049-12-31 | AJ13: 2050-12-31 | AK13: 2051-12-31 | AL13: 2052-12-31 | AM13: 2053-12-31 | AN13: 2054-12-31 | AO13: 2055-12-31 | AP13: 2056-12-31 | AQ13: 2057-12-31 | AR13: 2058-12-31 | AS13: 2059-12-31 | AT13: 2060-12-31 | AU13: 2061-12-31 | AV13: 2062-12-31 | AW13: 2063-12-31 | AX13: 2064-12-31 | AY13: 2065-12-31 | AZ13: 2066-12-31 | BA13: 2067-12-31 | BB13: =DATE(YEAR(BA13) + 1, MONTH(BA13), DAY(BA13)) -> 2068-12-31 | BC13: =DATE(YEAR(BB13) + 1, MONTH(BB13), DAY(BB13)) -> 2069-12-31 | BD13: =DATE(YEAR(BC13) + 1, MONTH(BC13), DAY(BC13)) -> 2070-12-31 | BE13: =DATE(YEAR(BD13) + 1, MONTH(BD13), DAY(BD13)) -> 2071-12-31 | BF13: =DATE(YEAR(BE13) + 1, MONTH(BE13), DAY(BE13)) -> 2072-12-31 | BG13: =DATE(YEAR(BF13) + 1, MONTH(BF13), DAY(BF13)) -> 2073-12-31 | BH13: =DATE(YEAR(BG13) + 1, MONTH(BG13), DAY(BG13)) -> 2074-12-31 | BI13: =DATE(YEAR(BH13) + 1, MONTH(BH13), DAY(BH13)) -> 2075-12-31 | BJ13: =DATE(YEAR(BI13) + 1, MONTH(BI13), DAY(BI13)) -> 2076-12-31 | BK13: =DATE(YEAR(BJ13) + 1, MONTH(BJ13), DAY(BJ13)) -> 2077-12-31 | BL13: =DATE(YEAR(BK13) + 1, MONTH(BK13), DAY(BK13)) -> 2078-12-31 | BM13: =DATE(YEAR(BL13) + 1, MONTH(BL13), DAY(BL13)) -> 2079-12-31 | BN13: =DATE(YEAR(BM13) + 1, MONTH(BM13), DAY(BM13)) -> 2080-12-31 | BO13: =DATE(YEAR(BN13) + 1, MONTH(BN13), DAY(BN13)) -> 2081-12-31 | BP13: =DATE(YEAR(BO13) + 1, MONTH(BO13), DAY(BO13)) -> 2082-12-31 | BQ13: =DATE(YEAR(BP13) + 1, MONTH(BP13), DAY(BP13)) -> 2083-12-31 | BR13: =DATE(YEAR(BQ13) + 1, MONTH(BQ13), DAY(BQ13)) -> 2084-12-31 | BS13: =DATE(YEAR(BR13) + 1, MONTH(BR13), DAY(BR13)) -> 2085-12-31 | BT13: =DATE(YEAR(BS13) + 1, MONTH(BS13), DAY(BS13)) -> 2086-12-31 | BU13: =DATE(YEAR(BT13) + 1, MONTH(BT13), DAY(BT13)) -> 2087-12-31 | BV13: =DATE(YEAR(BU13) + 1, MONTH(BU13), DAY(BU13)) -> 2088-12-31 | BW13: =DATE(YEAR(BV13) + 1, MONTH(BV13), DAY(BV13)) -> 2089-12-31 | BX13: =DATE(YEAR(BW13) + 1, MONTH(BW13), DAY(BW13)) -> 2090-12-31 | BY13: =DATE(YEAR(BX13) + 1, MONTH(BX13), DAY(BX13)) -> 2091-12-31 | BZ13: =DATE(YEAR(BY13) + 1, MONTH(BY13), DAY(BY13)) -> 2092-12-31 | CA13: =DATE(YEAR(BZ13) + 1, MONTH(BZ13), DAY(BZ13)) -> 2093-12-31 | CB13: =DATE(YEAR(CA13) + 1, MONTH(CA13), DAY(CA13)) -> 2094-12-31 | CC13: =DATE(YEAR(CB13) + 1, MONTH(CB13), DAY(CB13)) -> 2095-12-31 | CD13: =DATE(YEAR(CC13) + 1, MONTH(CC13), DAY(CC13)) -> 2096-12-31 | CE13: =DATE(YEAR(CD13) + 1, MONTH(CD13), DAY(CD13)) -> 2097-12-31 | CF13: =DATE(YEAR(CE13) + 1, MONTH(CE13), DAY(CE13)) -> 2098-12-31 | CG13: =DATE(YEAR(CF13) + 1, MONTH(CF13), DAY(CF13)) -> 2099-12-31 | CH13: =DATE(YEAR(CG13) + 1, MONTH(CG13), DAY(CG13)) -> 2100-12-31 | CI13: =DATE(YEAR(CH13) + 1, MONTH(CH13), DAY(CH13)) -> 2101-12-31 | CJ13: =DATE(YEAR(CI13) + 1, MONTH(CI13), DAY(CI13)) -> 2102-12-31 | CK13: =DATE(YEAR(CJ13) + 1, MONTH(CJ13), DAY(CJ13)) -> 2103-12-31 | CL13: =DATE(YEAR(CK13) + 1, MONTH(CK13), DAY(CK13)) -> 2104-12-31
E15: Development expenditure (Devex) | G15: £m nominal prices | K15: 20 | L15: 5 | M15: 0 | N15: 0 | O15: 0 | P15: 0 | Q15: 0 | R15: 0 | S15: 0 | T15: 0 | U15: 0 | V15: 0 | W15: 0 | X15: 0 | Y15: 0 | Z15: 0 | AA15: 0 | AB15: 0 | AC15: 0 | AD15: 0 | AE15: 0 | AF15: 0 | AG15: 0 | AH15: 0 | AI15: 0 | AJ15: 0 | AK15: 0 | AL15: 0 | AM15: 0 | AN15: 0 | AO15: 0 | AP15: 0 | AQ15: 0 | AR15: 0 | AS15: 0 | AT15: 0 | AU15: 0 | AV15: 0 | AW15: 0 | AX15: 0 | AY15: 0 | AZ15: 0 | BA15: 0 | BB15: 0 | BC15: 0 | BD15: 0 | BE15: 0 | BF15: 0 | BG15: 0 | BH15: 0 | BI15: 0 | BJ15: 0 | BK15: 0 | BL15: 0 | BM15: 0 | BN15: 0 | BO15: 0 | BP15: 0 | BQ15: 0 | BR15: 0 | BS15: 0 | BT15: 0 | BU15: 0 | BV15: 0 | BW15: 0 | BX15: 0 | BY15: 0 | BZ15: 0 | CA15: 0 | CB15: 0 | CC15: 0 | CD15: 0 | CE15: 0 | CF15: 0 | CG15: 0 | CH15: 0 | CI15: 0 | CJ15: 0 | CK15: 0 | CL15: 0
E16: Capital expenditure (Capex) | G16: £m nominal prices | L16: 200 | M16: 190 | N16: 130 | O16: 5 | P16: 0 | Q16: 0 | R16: 0 | S16: 0 | T16: 0 | U16: 0 | V16: 0 | W16: 0 | X16: 0 | Y16: 0 | Z16: 0 | AA16: 0 | AB16: 0 | AC16: 0 | AD16: 0 | AE16: 0 | AF16: 0 | AG16: 0 | AH16: 0 | AI16: 0 | AJ16: 0 | AK16: 0 | AL16: 0 | AM16: 0 | AN16: 0 | AO16: 0 | AP16: 0 | AQ16: 0 | AR16: 0 | AS16: 0 | AT16: 0 | AU16: 0 | AV16: 0 | AW16: 0 | AX16: 0 | AY16: 0 | AZ16: 0 | BA16: 0 | BB16: 0 | BC16: 0 | BD16: 0 | BE16: 0 | BF16: 0 | BG16: 0 | BH16: 0 | BI16: 0 | BJ16: 0 | BK16: 0 | BL16: 0 | BM16: 0 | BN16: 0 | BO16: 0 | BP16: 0 | BQ16: 0 | BR16: 0 | BS16: 0 | BT16: 0 | BU16: 0 | BV16: 0 | BW16: 0 | BX16: 0 | BY16: 0 | BZ16: 0 | CA16: 0 | CB16: 0 | CC16: 0 | CD16: 0 | CE16: 0 | CF16: 0 | CG16: 0 | CH16: 0 | CI16: 0 | CJ16: 0 | CK16: 0 | CL16: 0
E17: Spares | G17: £m nominal prices | L17: 1 | M17: 1 | N17: 1 | O17: 1 | P17: 0 | Q17: 0 | R17: 0 | S17: 0 | T17: 0 | U17: 0 | V17: 0 | W17: 0 | X17: 0 | Y17: 0 | Z17: 0 | AA17: 0 | AB17: 0 | AC17: 0 | AD17: 0 | AE17: 0 | AF17: 0 | AG17: 0 | AH17: 0 | AI17: 0 | AJ17: 0 | AK17: 0 | AL17: 0 | AM17: 0 | AN17: 0 | AO17: 0 | AP17: 0 | AQ17: 0 | AR17: 0 | AS17: 0 | AT17: 0 | AU17: 0 | AV17: 0 | AW17: 0 | AX17: 0 | AY17: 0 | AZ17: 0 | BA17: 0 | BB17: 0 | BC17: 0 | BD17: 0 | BE17: 0 | BF17: 0 | BG17: 0 | BH17: 0 | BI17: 0 | BJ17: 0 | BK17: 0 | BL17: 0 | BM17: 0 | BN17: 0 | BO17: 0 | BP17: 0 | BQ17: 0 | BR17: 0 | BS17: 0 | BT17: 0 | BU17: 0 | BV17: 0 | BW17: 0 | BX17: 0 | BY17: 0 | BZ17: 0 | CA17: 0 | CB17: 0 | CC17: 0 | CD17: 0 | CE17: 0 | CF17: 0 | CG17: 0 | CH17: 0 | CI17: 0 | CJ17: 0 | CK17: 0 | CL17: 0
E19: Base year UK CPIH inflation index value (L522) | G19: Jan 2015 = 100 | H19: UK CPIH index 2024 | I19: 132.9
E21: Expected UK CPIH Inflation | K21: 0.02 | L21: 0.02 | M21: 0.02 | N21: 0.02 | O21: 0.02 | P21: 0.02 | Q21: 0.02 | R21: 0.02 | S21: 0.02 | T21: 0.02 | U21: 0.02 | V21: 0.02 | W21: 0.02 | X21: 0.02 | Y21: 0.02 | Z21: 0.02 | AA21: 0.02 | AB21: 0.02 | AC21: 0.02 | AD21: 0.02 | AE21: 0.02 | AF21: 0.02 | AG21: 0.02 | AH21: 0.02 | AI21: 0.02 | AJ21: 0.02 | AK21: 0.02 | AL21: 0.02 | AM21: 0.02 | AN21: 0.02 | AO21: 0.02 | AP21: 0.02 | AQ21: 0.02 | AR21: 0.02 | AS21: 0.02 | AT21: 0.02 | AU21: 0.02 | AV21: 0.02 | AW21: 0.02 | AX21: 0.02 | AY21: 0.02 | AZ21: 0.02 | BA21: 0.02 | BB21: 0.02 | BC21: 0.02 | BD21: 0.02 | BE21: 0.02 | BF21: 0.02 | BG21: 0.02 | BH21: 0.02 | BI21: 0.02 | BJ21: 0.02 | BK21: 0.02 | BL21: 0.02 | BM21: 0.02 | BN21: 0.02 | BO21: 0.02 | BP21: 0.02 | BQ21: 0.02 | BR21: 0.02 | BS21: 0.02 | BT21: 0.02 | BU21: 0.02 | BV21: 0.02 | BW21: 0.02 | BX21: 0.02 | BY21: 0.02 | BZ21: 0.02 | CA21: 0.02 | CB21: 0.02 | CC21: 0.02 | CD21: 0.02 | CE21: 0.02 | CF21: 0.02 | CG21: 0.02 | CH21: 0.02 | CI21: 0.02 | CJ21: 0.02 | CK21: 0.02 | CL21: 0.02
E22: 12 month average UK CPIH inflation index value | G22: =G19 -> Jan 2015 = 100 | H22: UK CPIH index | K22: =I19*(1+K21) -> 135.558 | L22: =K22*(1+L21) -> 138.26916 | M22: =L22*(1+M21) -> 141.0345432 | N22: 143.8552341 | O22: 146.7323387 | P22: =O22*(1+P21) -> 149.6669855 | Q22: =P22*(1+Q21) -> 152.6603252 | R22: 155.7135317 | S22: =R22*(1+S21) -> 158.8278024 | T22: =S22*(1+T21) -> 162.0043584 | U22: 165.2444456 | V22: =U22*(1+V21) -> 168.5493345 | W22: =V22*(1+W21) -> 171.9203212 | X22: 175.3587276 | Y22: =X22*(1+Y21) -> 178.8659022 | Z22: 182.4432202 | AA22: =Z22*(1+AA21) -> 186.0920846 | AB22: =AA22*(1+AB21) -> 189.8139263 | AC22: =AB22*(1+AC21) -> 193.6102048 | AD22: =AC22*(1+AD21) -> 197.4824089 | AE22: =AD22*(1+AE21) -> 201.4320571 | AF22: =AE22*(1+AF21) -> 205.4606982 | AG22: =AF22*(1+AG21) -> 209.5699122 | AH22: =AG22*(1+AH21) -> 213.7613105 | AI22: =AH22*(1+AI21) -> 218.0365367 | AJ22: =AI22*(1+AJ21) -> 222.3972674 | AK22: =AJ22*(1+AK21) -> 226.8452127 | AL22: =AK22*(1+AL21) -> 231.382117 | AM22: =AL22*(1+AM21) -> 236.0097593 | AN22: 240.7299545 | AO22: =AN22*(1+AO21) -> 245.5445536 | AP22: =AO22*(1+AP21) -> 250.4554447 | AQ22: =AP22*(1+AQ21) -> 255.4645536 | AR22: =AQ22*(1+AR21) -> 260.5738447 | AS22: =AR22*(1+AS21) -> 265.7853215 | AT22: =AS22*(1+AT21) -> 271.101028 | AU22: =AT22*(1+AU21) -> 276.5230485 | AV22: =AU22*(1+AV21) -> 282.0535095 | AW22: =AV22*(1+AW21) -> 287.6945797 | AX22: =AW22*(1+AX21) -> 293.4484713 | AY22: =AX22*(1+AY21) -> 299.3174407 | AZ22: =AY22*(1+AZ21) -> 305.3037895 | BA22: =AZ22*(1+BA21) -> 311.4098653 | BB22: =BA22*(1+BB21) -> 317.6380626 | BC22: =BB22*(1+BC21) -> 323.9908239 | BD22: =BC22*(1+BD21) -> 330.4706404 | BE22: =BD22*(1+BE21) -> 337.0800532 | BF22: =BE22*(1+BF21) -> 343.8216542 | BG22: =BF22*(1+BG21) -> 350.6980873 | BH22: =BG22*(1+BH21) -> 357.7120491 | BI22: =BH22*(1+BI21) -> 364.86629 | BJ22: =BI22*(1+BJ21) -> 372.1636158 | BK22: =BJ22*(1+BK21) -> 379.6068882 | BL22: =BK22*(1+BL21) -> 387.1990259 | BM22: =BL22*(1+BM21) -> 394.9430064 | BN22: =BM22*(1+BN21) -> 402.8418666 | BO22: =BN22*(1+BO21) -> 410.8987039 | BP22: =BO22*(1+BP21) -> 419.116678 | BQ22: =BP22*(1+BQ21) -> 427.4990115 | BR22: =BQ22*(1+BR21) -> 436.0489918 | BS22: =BR22*(1+BS21) -> 444.7699716 | BT22: =BS22*(1+BT21) -> 453.665371 | BU22: =BT22*(1+BU21) -> 462.7386785 | BV22: =BU22*(1+BV21) -> 471.993452 | BW22: =BV22*(1+BW21) -> 481.4333211 | BX22: =BW22*(1+BX21) -> 491.0619875 | BY22: =BX22*(1+BY21) -> 500.8832272 | BZ22: =BY22*(1+BZ21) -> 510.9008918 | CA22: =BZ22*(1+CA21) -> 521.1189096 | CB22: =CA22*(1+CB21) -> 531.5412878 | CC22: =CB22*(1+CC21) -> 542.1721136 | CD22: =CC22*(1+CD21) -> 553.0155558 | CE22: =CD22*(1+CE21) -> 564.075867 | CF22: =CE22*(1+CF21) -> 575.3573843 | CG22: =CF22*(1+CG21) -> 586.864532 | CH22: =CG22*(1+CH21) -> 598.6018226 | CI22: =CH22*(1+CI21) -> 610.5738591 | CJ22: =CI22*(1+CJ21) -> 622.7853363 | CK22: =CJ22*(1+CK21) -> 635.241043 | CL22: =CK22*(1+CL21) -> 647.9458638
E23: Indexation factor | H23: CPIt | K23: =K22/$I$19 -> 1.02 | L23: =L22/$I$19 -> 1.0404 | M23: 1.061208 | N23: 1.08243216 | O23: 1.104080803 | P23: 1.126162419 | Q23: 1.148685668 | R23: 1.171659381 | S23: 1.195092569 | T23: 1.21899442 | U23: 1.243374308 | V23: 1.268241795 | W23: 1.29360663 | X23: 1.319478763 | Y23: 1.345868338 | Z23: 1.372785705 | AA23: 1.400241419 | AB23: 1.428246248 | AC23: 1.456811173 | AD23: 1.485947396 | AE23: 1.515666344 | AF23: 1.545979671 | AG23: 1.576899264 | AH23: 1.608437249 | AI23: 1.640605994 | AJ23: 1.673418114 | AK23: 1.706886477 | AL23: 1.741024206 | AM23: 1.77584469 | AN23: 1.811361584 | AO23: 1.847588816 | AP23: 1.884540592 | AQ23: 1.922231404 | AR23: 1.960676032 | AS23: 1.999889553 | AT23: 2.039887344 | AU23: 2.080685091 | AV23: 2.122298792 | AW23: 2.164744768 | AX23: 2.208039664 | AY23: 2.252200457 | AZ23: 2.297244466 | BA23: 2.343189355 | BB23: 2.390053142 | BC23: 2.437854205 | BD23: 2.486611289 | BE23: 2.536343515 | BF23: 2.587070385 | BG23: 2.638811793 | BH23: 2.691588029 | BI23: =BI22/$I$19 -> 2.74541979 | BJ23: 2.800328185 | BK23: 2.856334749 | BL23: 2.913461444 | BM23: 2.971730673 | BN23: 3.031165286 | BO23: 3.091788592 | BP23: 3.153624364 | BQ23: 3.216696851 | BR23: 3.281030788 | BS23: 3.346651404 | BT23: 3.413584432 | BU23: 3.481856121 | BV23: 3.551493243 | BW23: 3.622523108 | BX23: 3.69497357 | BY23: 3.768873042 | BZ23: 3.844250503 | CA23: 3.921135513 | CB23: 3.999558223 | CC23: 4.079549387 | CD23: 4.161140375 | CE23: 4.244363183 | CF23: 4.329250446 | CG23: 4.415835455 | CH23: 4.504152164 | CI23: 4.594235208 | CJ23: 4.686119912 | CK23: 4.77984231 | CL23: 4.875439156
E26: =E15 -> Development expenditure (Devex) | G26: =$I$6 -> £m 2024 prices | K26: =K15/K$23 -> 19.60784314 | L26: 4.805843906 | M26: 0 | N26: 0 | O26: 0 | P26: 0 | Q26: 0 | R26: 0 | S26: 0 | T26: 0 | U26: 0 | V26: 0 | W26: 0 | X26: 0 | Y26: 0 | Z26: 0 | AA26: 0 | AB26: 0 | AC26: 0 | AD26: 0 | AE26: 0 | AF26: 0 | AG26: 0 | AH26: 0 | AI26: 0 | AJ26: 0 | AK26: 0 | AL26: 0 | AM26: 0 | AN26: 0 | AO26: 0 | AP26: 0 | AQ26: =AQ15/AQ$23 -> 0 | AR26: 0 | AS26: 0 | AT26: 0 | AU26: 0 | AV26: 0 | AW26: 0 | AX26: 0 | AY26: 0 | AZ26: 0 | BA26: 0 | BB26: 0 | BC26: 0 | BD26: 0 | BE26: 0 | BF26: 0 | BG26: 0 | BH26: 0 | BI26: 0 | BJ26: 0 | BK26: 0 | BL26: 0 | BM26: 0 | BN26: 0 | BO26: 0 | BP26: 0 | BQ26: 0 | BR26: 0 | BS26: 0 | BT26: 0 | BU26: 0 | BV26: 0 | BW26: =BW15/BW$23 -> 0 | BX26: 0 | BY26: 0 | BZ26: 0 | CA26: 0 | CB26: 0 | CC26: 0 | CD26: 0 | CE26: 0 | CF26: 0 | CG26: 0 | CH26: 0 | CI26: 0 | CJ26: 0 | CK26: 0 | CL26: 0
E27: =E16 -> Capital expenditure (Capex) | G27: =$I$6 -> £m 2024 prices | K27: =K16/K$23 -> 0 | L27: 192.2337562 | M27: 179.0412436 | N27: 120.0999054 | O27: 4.528654049 | P27: 0 | Q27: 0 | R27: 0 | S27: 0 | T27: 0 | U27: 0 | V27: 0 | W27: 0 | X27: 0 | Y27: 0 | Z27: 0 | AA27: 0 | AB27: 0 | AC27: 0 | AD27: 0 | AE27: 0 | AF27: 0 | AG27: 0 | AH27: 0 | AI27: 0 | AJ27: 0 | AK27: 0 | AL27: 0 | AM27: 0 | AN27: 0 | AO27: 0 | AP27: 0 | AQ27: =AQ16/AQ$23 -> 0 | AR27: 0 | AS27: 0 | AT27: 0 | AU27: 0 | AV27: 0 | AW27: 0 | AX27: 0 | AY27: 0 | AZ27: 0 | BA27: 0 | BB27: 0 | BC27: 0 | BD27: 0 | BE27: 0 | BF27: 0 | BG27: 0 | BH27: 0 | BI27: 0 | BJ27: 0 | BK27: 0 | BL27: 0 | BM27: 0 | BN27: 0 | BO27: 0 | BP27: 0 | BQ27: 0 | BR27: 0 | BS27: 0 | BT27: 0 | BU27: 0 | BV27: 0 | BW27: =BW16/BW$23 -> 0 | BX27: 0 | BY27: 0 | BZ27: 0 | CA27: 0 | CB27: 0 | CC27: 0 | CD27: 0 | CE27: 0 | CF27: 0 | CG27: 0 | CH27: 0 | CI27: 0 | CJ27: 0 | CK27: 0 | CL27: 0
E28: =E17 -> Spares | G28: =$I$6 -> £m 2024 prices | K28: =K17/K$23 -> 0 | L28: 0.9611687812 | M28: 0.9423223345 | N28: 0.923845426 | O28: 0.9057308098 | P28: 0 | Q28: 0 | R28: 0 | S28: 0 | T28: 0 | U28: 0 | V28: 0 | W28: 0 | X28: 0 | Y28: 0 | Z28: 0 | AA28: 0 | AB28: 0 | AC28: 0 | AD28: 0 | AE28: 0 | AF28: 0 | AG28: 0 | AH28: 0 | AI28: 0 | AJ28: 0 | AK28: 0 | AL28: 0 | AM28: 0 | AN28: 0 | AO28: 0 | AP28: 0 | AQ28: =AQ17/AQ$23 -> 0 | AR28: 0 | AS28: 0 | AT28: 0 | AU28: 0 | AV28: 0 | AW28: 0 | AX28: 0 | AY28: 0 | AZ28: 0 | BA28: 0 | BB28: 0 | BC28: 0 | BD28: 0 | BE28: 0 | BF28: 0 | BG28: 0 | BH28: 0 | BI28: 0 | BJ28: 0 | BK28: 0 | BL28: 0 | BM28: 0 | BN28: 0 | BO28: 0 | BP28: 0 | BQ28: 0 | BR28: 0 | BS28: 0 | BT28: 0 | BU28: 0 | BV28: 0 | BW28: =BW17/BW$23 -> 0 | BX28: 0 | BY28: 0 | BZ28: 0 | CA28: 0 | CB28: 0 | CC28: 0 | CD28: 0 | CE28: 0 | CF28: 0 | CG28: 0 | CH28: 0 | CI28: 0 | CJ28: 0 | CK28: 0 | CL28: 0
E29: Residual value at end of regime | G29: =$I$6 -> £m 2024 prices | I29: 0
C31: Ex-ante allowances for the operational period
E33: Operational Year | K33: Year 1 | L33: Year 2 | M33: Year 3 | N33: Year 4 | O33: Year 5 | P33: Year 6 | Q33: Year 7 | R33: Year 8 | S33: Year 9 | T33: Year 10 | U33: Year 11 | V33: Year 12 | W33: Year 13 | X33: Year 14 | Y33: Year 15 | Z33: Year 16 | AA33: Year 17 | AB33: Year 18 | AC33: Year 19 | AD33: Year 20 | AE33: Year 21 | AF33: Year 22 | AG33: Year 23 | AH33: Year 24 | AI33: Year 25 | AJ33: Year 26 | AK33: Year 27 | AL33: Year 28 | AM33: Year 29 | AN33: Year 30 | AO33: Year 31 | AP33: Year 32 | AQ33: Year 33 | AR33: Year 34 | AS33: Year 35 | AT33: Year 36 | AU33: Year 37 | AV33: Year 38 | AW33: Year 39 | AX33: Year 40 | AY33: Year 41 | AZ33: Year 42 | BA33: Year 43 | BB33: Year 44 | BC33: Year 45 | BD33: Year 46 | BE33: Year 47 | BF33: Year 48 | BG33: Year 49 | BH33: Year 50 | BI33: Year 51 | BJ33: Year 52 | BK33: Year 53 | BL33: Year 54 | BM33: Year 55 | BN33: Year 56 | BO33: Year 57 | BP33: Year 58 | BQ33: Year 59 | BR33: Year 60 | BS33: Year 61 | BT33: Year 62 | BU33: Year 63 | BV33: Year 64 | BW33: Year 65 | BX33: Year 66 | BY33: Year 67 | BZ33: Year 68 | CA33: Year 69 | CB33: Year 70 | CC33: Year 71 | CD33: Year 72 | CE33: Year 73 | CF33: Year 74 | CG33: Year 75 | CH33: Year 76 | CI33: Year 77 | CJ33: Year 78 | CK33: Year 79 | CL33: Year 80
E35: Replacement expenditure (Repex) | G35: =$I$6 -> £m 2024 prices | K35: 0 | L35: 0 | M35: 0 | N35: 0 | O35: 0 | P35: 0 | Q35: 0 | R35: 0.7063614317 | S35: 0.378627939 | T35: 0.1951618379 | U35: 0.3824021009 | V35: 0.7580386598 | W35: 1.395212062 | X35: 0.2911608513 | Y35: 0.2902041345 | Z35: 1.617107557 | AA35: 0.2902041345 | AB35: 0.2911608513 | AC35: 0.2902041345 | AD35: 0.3370832587 | AE35: 0.8556237755 | AF35: 1.040354887 | AG35: 0.2902041345 | AH35: 0.3246459401 | AI35: 1.0106119
E36: Decommissioning baseline | G36: =$I$6 -> £m 2024 prices | K36: 0 | L36: 0 | M36: 0 | N36: 0 | O36: 0 | P36: 0 | Q36: 0 | R36: 0 | S36: 0 | T36: 0 | U36: 0 | V36: 0 | W36: 0 | X36: 0 | Y36: 0 | Z36: 0 | AA36: 0 | AB36: 0 | AC36: 0 | AD36: 0 | AE36: 0 | AF36: 0 | AG36: 0 | AH36: 0 | AI36: 69.33701103
E37: Controllable Opex | G37: =$I$6 -> £m 2024 prices | K37: 8 | L37: 8 | M37: 8 | N37: 8 | O37: 8 | P37: 8 | Q37: 8 | R37: 8 | S37: 8 | T37: 8 | U37: 8 | V37: 8 | W37: 8 | X37: 8 | Y37: 8 | Z37: 8 | AA37: 8 | AB37: 8 | AC37: 8 | AD37: 8 | AE37: 8 | AF37: 8 | AG37: 8 | AH37: 8 | AI37: 8
E38: Non-controllable Opex baseline | G38: =$I$6 -> £m 2024 prices | K38: 0 | L38: 0 | M38: 0 | N38: 0 | O38: 0 | P38: 0 | Q38: 0 | R38: 0 | S38: 0 | T38: 0 | U38: 0 | V38: 0 | W38: 0 | X38: 0 | Y38: 0 | Z38: 0 | AA38: 0 | AB38: 0 | AC38: 0 | AD38: 0 | AE38: 0 | AF38: 0 | AG38: 0 | AH38: 0 | AI38: 0
B40: Variables set at financial close
C42: Finance
E44: Cap return rate | G44: real annual % | I44: 0.0748
E45: Floor return rate | G45: real annual % | I45: 0.0447
E46: Cost of debt (for tax) | G46: real annual % | I46: =I45 -> 0.0447
E48: Administrative interest during construction (IDC) rate | G48: real annual % | I48: 0.0603
E50: Pre-operational notional gearing | G50: % | I50: 0.375
E51: Operational notional gearing | G51: % | I51: 0.5
E53: Equity transaction costs | G53: % | I53: 0.05
E54: Debt transaction costs | G54: % | I54: 0.025
C56: Actual cost of debt (inputs are not the exact project values, selected to generate the exact actual floor level determined in the project finance financial model)
E58: General financing inputs
E60: Project finance key input: senior debt amount or gearing | G60: 1: Amount (£m) 2: Gearing (%) | I60: 1
E61: Project finance senior debt amount (input if 1; empty if 2) | G61: £m nominal prices | I61: 500
E62: Project finance actual gearing (input if 2; empty if 1) | G62: % | I62: 0.8
E64: Proportion of debt fixed-rate | G64: % | I64: 1
E66: Senior Debt tenor | G66: full years | I66: 25
E67: Senior Debt tail requirement | G67: full years | I67: 2
E68: DSCR sizing | G68: DSCRx | I68: 1.2
E70: Fixed rate - Construction | G70: nominal % | I70: 0.04
E71: Fixed rate - Operation | G71: nominal % | I71: 0.04
E73: Senior Debt construction margin | G73: nominal % | I73: 0.018
E74: of which: swap margin | G74: nominal % | I74: 0.002
E75: Senior Debt upfront fee | G75: nominal % | I75: 0.015
E76: Senior Debt commitment fee | G76: % of applicable margin | I76: 0.35
E78: Senior Debt drawdown year | G78: Year | K78: 1 | L78: 2 | M78: 3 | N78: 4 | O78: 5 | P78: 6 | Q78: 7 | R78: 8 | S78: 9 | T78: 10
E79: Senior Debt drawdown profile | G79: % | K79: 0.25 | L79: 0.3 | M79: 0.3 | N79: 0.15 | O79: 0 | P79: 0 | Q79: 0 | R79: 0 | S79: 0 | T79: 0
E81: Final year of Senior Debt drawdown | G81: Year | I81: =LOOKUP(2,1/($K$79:$T$79<>0),$K$78:$T$78) -> 4
E82: Senior Debt drawndown before transfer to operations | G82: check | I82: =SUM(Flag_DebtDrawdown)>=I81 -> TRUE
E83: Senior Debt drawdown profile ≤ 100% | G83: check | I83: =SUM(K79:T79)<=1 -> TRUE
E85: Debt service
E87: Debt Service Reserve Facility/Account amount | G87: £m nominal prices | I87: 50
E88: Debt Service Reserve Facility upfront fee | G88: nominal % | I88: 0.015
E89: Debt Service Reserve Facility construction margin | G89: nominal % | I89: 0.018
E90: Debt Service Reserve Facility commitment fee | G90: % of applicable margin | I90: 0.35
E92: Cap and floor liquidity facility
E94: Cap and Floor Liquidity Facility amount | G94: £m nominal prices | I94: 30
E95: Cap and Floor Liquidity Facility average outstanding loan | G95: £m nominal prices | I95: 5
E96: Cap and Floor Liquidity Facility upfront fee | G96: nominal % | I96: 0.015
E97: Cap and Floor Liquidity Facility construction margin | G97: nominal % | I97: 0.018
E98: Cap and Floor Liquidity Facility commitment fee | G98: % of applicable margin | I98: 0.35
E100: Standby debt facility
E102: Standby Debt Facility amount | G102: £m nominal prices | I102: 40
E103: Standby Debt Facility upfront fee | G103: nominal % | I103: 0.015
E104: Standby Debt Facility construction margin | G104: nominal % | I104: 0.0162
E105: Standby Debt Facility commitment fee | G105: % of applicable margin | I105: 0.35
E107: VAT facility
E109: VAT Facility amount | G109: £m nominal prices | I109: 10
E110: VAT Facility average outstanding loan | G110: £m nominal prices | I110: 5
E111: VAT Facility upfront fee | G111: nominal % | I111: 0.011
E112: VAT Facility construction margin | G112: nominal % | I112: 0.011
E113: VAT Facility commitment fee | G113: % of applicable margin | I113: 0.35
E115: Other facilities
E117: Other Facilities amount | G117: £m nominal prices | I117: 0
E118: Other Facilities upfront fee | G118: nominal % | I118: 0
E119: Other Facilities construction margin | G119: nominal % | I119: 0
E120: Other Facilities commitment fee | G120: % of applicable margin | I120: 0
E122: Switches and flags
E124: Debt Service Reserve: Facility or Account | G124: 1: DSRF 2: DSRA | I124: 1
E125: Switch for transaction costs in taxes | G125: 1: notional costs 2: actual costs | I125: 2
E127: Year commencing | K127: =$I$149 -> 2025-01-01 | L127: =+K128+1 -> 2026-01-01 | M127: 2027-01-01 | N127: 2028-01-01 | O127: 2029-01-01 | P127: 2030-01-01 | Q127: 2031-01-01 | R127: 2032-01-01 | S127: 2033-01-01 | T127: 2034-01-01 | U127: 2035-01-01 | V127: 2036-01-01 | W127: 2037-01-01 | X127: 2038-01-01 | Y127: 2039-01-01 | Z127: 2040-01-01 | AA127: 2041-01-01 | AB127: 2042-01-01 | AC127: 2043-01-01 | AD127: 2044-01-01 | AE127: 2045-01-01 | AF127: 2046-01-01 | AG127: 2047-01-01 | AH127: 2048-01-01 | AI127: 2049-01-01 | AJ127: 2050-01-01 | AK127: 2051-01-01 | AL127: 2052-01-01 | AM127: 2053-01-01 | AN127: 2054-01-01 | AO127: 2055-01-01 | AP127: 2056-01-01 | AQ127: 2057-01-01 | AR127: 2058-01-01 | AS127: 2059-01-01 | AT127: 2060-01-01 | AU127: 2061-01-01 | AV127: 2062-01-01 | AW127: 2063-01-01 | AX127: 2064-01-01 | AY127: =+AX128+1 -> 2065-01-01 | AZ127: =+AY128+1 -> 2066-01-01 | BA127: =+AZ128+1 -> 2067-01-01 | BB127: =+BA128+1 -> 2068-01-01 | BC127: =+BB128+1 -> 2069-01-01 | BD127: =+BC128+1 -> 2070-01-01 | BE127: =+BD128+1 -> 2071-01-01 | BF127: =+BE128+1 -> 2072-01-01 | BG127: =+BF128+1 -> 2073-01-01 | BH127: =+BG128+1 -> 2074-01-01 | BI127: =+BH128+1 -> 2075-01-01 | BJ127: =+BI128+1 -> 2076-01-01 | BK127: =+BJ128+1 -> 2077-01-01 | BL127: =+BK128+1 -> 2078-01-01 | BM127: =+BL128+1 -> 2079-01-01 | BN127: =+BM128+1 -> 2080-01-01 | BO127: =+BN128+1 -> 2081-01-01 | BP127: =+BO128+1 -> 2082-01-01 | BQ127: =+BP128+1 -> 2083-01-01 | BR127: =+BQ128+1 -> 2084-01-01 | BS127: =+BR128+1 -> 2085-01-01 | BT127: =+BS128+1 -> 2086-01-01 | BU127: =+BT128+1 -> 2087-01-01 | BV127: =+BU128+1 -> 2088-01-01 | BW127: =+BV128+1 -> 2089-01-01 | BX127: =+BW128+1 -> 2090-01-01 | BY127: =+BX128+1 -> 2091-01-01 | BZ127: =+BY128+1 -> 2092-01-01 | CA127: =+BZ128+1 -> 2093-01-01 | CB127: =+CA128+1 -> 2094-01-01 | CC127: =+CB128+1 -> 2095-01-01 | CD127: =+CC128+1 -> 2096-01-01 | CE127: =+CD128+1 -> 2097-01-01 | CF127: =+CE128+1 -> 2098-01-01 | CG127: =+CF128+1 -> 2099-01-01 | CH127: =+CG128+1 -> 2100-01-01 | CI127: =+CH128+1 -> 2101-01-01 | CJ127: =+CI128+1 -> 2102-01-01 | CK127: =+CJ128+1 -> 2103-01-01 | CL127: =+CK128+1 -> 2104-01-01
E128: Year ending | K128: =EOMONTH(K127,11) -> 2025-12-31 | L128: =DATE(YEAR(K128) + 1, MONTH(K128), DAY(K128)) -> 2026-12-31 | M128: 2027-12-31 | N128: 2028-12-31 | O128: 2029-12-31 | P128: 2030-12-31 | Q128: 2031-12-31 | R128: 2032-12-31 | S128: 2033-12-31 | T128: 2034-12-31 | U128: 2035-12-31 | V128: 2036-12-31 | W128: 2037-12-31 | X128: 2038-12-31 | Y128: 2039-12-31 | Z128: 2040-12-31 | AA128: 2041-12-31 | AB128: 2042-12-31 | AC128: 2043-12-31 | AD128: 2044-12-31 | AE128: 2045-12-31 | AF128: 2046-12-31 | AG128: 2047-12-31 | AH128: 2048-12-31 | AI128: 2049-12-31 | AJ128: 2050-12-31 | AK128: 2051-12-31 | AL128: 2052-12-31 | AM128: 2053-12-31 | AN128: 2054-12-31 | AO128: 2055-12-31 | AP128: 2056-12-31 | AQ128: 2057-12-31 | AR128: 2058-12-31 | AS128: 2059-12-31 | AT128: 2060-12-31 | AU128: 2061-12-31 | AV128: 2062-12-31 | AW128: 2063-12-31 | AX128: 2064-12-31 | AY128: =DATE(YEAR(AX128) + 1, MONTH(AX128), DAY(AX128)) -> 2065-12-31 | AZ128: =DATE(YEAR(AY128) + 1, MONTH(AY128), DAY(AY128)) -> 2066-12-31 | BA128: =DATE(YEAR(AZ128) + 1, MONTH(AZ128), DAY(AZ128)) -> 2067-12-31 | BB128: =DATE(YEAR(BA128) + 1, MONTH(BA128), DAY(BA128)) -> 2068-12-31 | BC128: =DATE(YEAR(BB128) + 1, MONTH(BB128), DAY(BB128)) -> 2069-12-31 | BD128: =DATE(YEAR(BC128) + 1, MONTH(BC128), DAY(BC128)) -> 2070-12-31 | BE128: =DATE(YEAR(BD128) + 1, MONTH(BD128), DAY(BD128)) -> 2071-12-31 | BF128: =DATE(YEAR(BE128) + 1, MONTH(BE128), DAY(BE128)) -> 2072-12-31 | BG128: =DATE(YEAR(BF128) + 1, MONTH(BF128), DAY(BF128)) -> 2073-12-31 | BH128: =DATE(YEAR(BG128) + 1, MONTH(BG128), DAY(BG128)) -> 2074-12-31 | BI128: =DATE(YEAR(BH128) + 1, MONTH(BH128), DAY(BH128)) -> 2075-12-31 | BJ128: =DATE(YEAR(BI128) + 1, MONTH(BI128), DAY(BI128)) -> 2076-12-31 | BK128: =DATE(YEAR(BJ128) + 1, MONTH(BJ128), DAY(BJ128)) -> 2077-12-31 | BL128: =DATE(YEAR(BK128) + 1, MONTH(BK128), DAY(BK128)) -> 2078-12-31 | BM128: =DATE(YEAR(BL128) + 1, MONTH(BL128), DAY(BL128)) -> 2079-12-31 | BN128: =DATE(YEAR(BM128) + 1, MONTH(BM128), DAY(BM128)) -> 2080-12-31 | BO128: =DATE(YEAR(BN128) + 1, MONTH(BN128), DAY(BN128)) -> 2081-12-31 | BP128: =DATE(YEAR(BO128) + 1, MONTH(BO128), DAY(BO128)) -> 2082-12-31 | BQ128: =DATE(YEAR(BP128) + 1, MONTH(BP128), DAY(BP128)) -> 2083-12-31 | BR128: =DATE(YEAR(BQ128) + 1, MONTH(BQ128), DAY(BQ128)) -> 2084-12-31 | BS128: =DATE(YEAR(BR128) + 1, MONTH(BR128), DAY(BR128)) -> 2085-12-31 | BT128: =DATE(YEAR(BS128) + 1, MONTH(BS128), DAY(BS128)) -> 2086-12-31 | BU128: =DATE(YEAR(BT128) + 1, MONTH(BT128), DAY(BT128)) -> 2087-12-31 | BV128: =DATE(YEAR(BU128) + 1, MONTH(BU128), DAY(BU128)) -> 2088-12-31 | BW128: =DATE(YEAR(BV128) + 1, MONTH(BV128), DAY(BV128)) -> 2089-12-31 | BX128: =DATE(YEAR(BW128) + 1, MONTH(BW128), DAY(BW128)) -> 2090-12-31 | BY128: =DATE(YEAR(BX128) + 1, MONTH(BX128), DAY(BX128)) -> 2091-12-31 | BZ128: =DATE(YEAR(BY128) + 1, MONTH(BY128), DAY(BY128)) -> 2092-12-31 | CA128: =DATE(YEAR(BZ128) + 1, MONTH(BZ128), DAY(BZ128)) -> 2093-12-31 | CB128: =DATE(YEAR(CA128) + 1, MONTH(CA128), DAY(CA128)) -> 2094-12-31 | CC128: =DATE(YEAR(CB128) + 1, MONTH(CB128), DAY(CB128)) -> 2095-12-31 | CD128: =DATE(YEAR(CC128) + 1, MONTH(CC128), DAY(CC128)) -> 2096-12-31 | CE128: =DATE(YEAR(CD128) + 1, MONTH(CD128), DAY(CD128)) -> 2097-12-31 | CF128: =DATE(YEAR(CE128) + 1, MONTH(CE128), DAY(CE128)) -> 2098-12-31 | CG128: =DATE(YEAR(CF128) + 1, MONTH(CF128), DAY(CF128)) -> 2099-12-31 | CH128: =DATE(YEAR(CG128) + 1, MONTH(CG128), DAY(CG128)) -> 2100-12-31 | CI128: =DATE(YEAR(CH128) + 1, MONTH(CH128), DAY(CH128)) -> 2101-12-31 | CJ128: =DATE(YEAR(CI128) + 1, MONTH(CI128), DAY(CI128)) -> 2102-12-31 | CK128: =DATE(YEAR(CJ128) + 1, MONTH(CJ128), DAY(CJ128)) -> 2103-12-31 | CL128: =DATE(YEAR(CK128) + 1, MONTH(CK128), DAY(CK128)) -> 2104-12-31
E130: Debt repayment schedule and operating margins
E132: Senior Debt repayment year | G132: Year | K132: =K174 -> 0 | L132: 0 | M132: 0 | N132: 0 | O132: 0 | P132: 0 | Q132: 1 | R132: 2 | S132: 3 | T132: 4 | U132: 5 | V132: 6 | W132: 7 | X132: 8 | Y132: 9 | Z132: 10 | AA132: 11 | AB132: 12 | AC132: 13 | AD132: 14 | AE132: 15 | AF132: 16 | AG132: 17 | AH132: 18 | AI132: 19 | AJ132: 20 | AK132: 21 | AL132: 22 | AM132: 23 | AN132: 24 | AO132: 25 | AP132: 0 | AQ132: 0 | AR132: 0 | AS132: 0 | AT132: 0 | AU132: 0 | AV132: 0 | AW132: 0 | AX132: 0 | AY132: 0 | AZ132: 0 | BA132: 0 | BB132: 0 | BC132: 0 | BD132: 0 | BE132: 0 | BF132: 0 | BG132: 0 | BH132: 0 | BI132: =BI174 -> 0 | BJ132: 0 | BK132: 0 | BL132: 0 | BM132: 0 | BN132: 0 | BO132: 0 | BP132: 0 | BQ132: 0 | BR132: 0 | BS132: 0 | BT132: 0 | BU132: 0 | BV132: 0 | BW132: 0 | BX132: 0 | BY132: 0 | BZ132: 0 | CA132: 0 | CB132: 0 | CC132: 0 | CD132: 0 | CE132: 0 | CF132: 0 | CG132: 0 | CH132: 0 | CI132: 0 | CJ132: 0 | CK132: 0 | CL132: 0
E133: Senior Debt repayment profile | G133: % | P133: 0.04 | Q133: 0.04 | R133: 0.04 | S133: 0.04 | T133: 0.04 | U133: 0.04 | V133: 0.04 | W133: 0.04 | X133: 0.04 | Y133: 0.04 | Z133: 0.04 | AA133: 0.04 | AB133: 0.04 | AC133: 0.04 | AD133: 0.04 | AE133: 0.04 | AF133: 0.04 | AG133: 0.04 | AH133: 0.04 | AI133: 0.04 | AJ133: 0.04 | AK133: 0.04 | AL133: 0.04 | AM133: 0.04 | AN133: 0.04
E135: Senior Debt operation margin (including swap margin) | G135: nominal % | O135: 0.024 | P135: 0.024 | Q135: 0.024 | R135: 0.024 | S135: 0.024 | T135: 0.024 | U135: 0.024 | V135: 0.024 | W135: 0.024 | X135: 0.024 | Y135: 0.024 | Z135: 0.024 | AA135: 0.024 | AB135: 0.024 | AC135: 0.024 | AD135: 0.024 | AE135: 0.024 | AF135: 0.024 | AG135: 0.024 | AH135: 0.024 | AI135: 0.024 | AJ135: 0.024 | AK135: 0.024 | AL135: 0.024 | AM135: 0.024 | AN135: 0.024
E136: Debt Service Reserve Facility operation margin | G136: nominal % | O136: 0.024 | P136: 0.024 | Q136: 0.024 | R136: 0.024 | S136: 0.024 | T136: 0.024 | U136: 0.024 | V136: 0.024 | W136: 0.024 | X136: 0.024 | Y136: 0.024 | Z136: 0.024 | AA136: 0.024 | AB136: 0.024 | AC136: 0.024 | AD136: 0.024 | AE136: 0.024 | AF136: 0.024 | AG136: 0.024 | AH136: 0.024 | AI136: 0.024 | AJ136: 0.024 | AK136: 0.024 | AL136: 0.024 | AM136: 0.024 | AN136: 0.024
E137: Cap and Floor Liquidity Facility operation margin | G137: nominal % | O137: 0.024 | P137: 0.024 | Q137: 0.024 | R137: 0.024 | S137: 0.024 | T137: 0.024 | U137: 0.024 | V137: 0.024 | W137: 0.024 | X137: 0.024 | Y137: 0.024 | Z137: 0.024 | AA137: 0.024 | AB137: 0.024 | AC137: 0.024 | AD137: 0.024 | AE137: 0.024 | AF137: 0.024 | AG137: 0.024 | AH137: 0.024 | AI137: 0.024 | AJ137: 0.024 | AK137: 0.024 | AL137: 0.024 | AM137: 0.024 | AN137: 0.024
E138: Standby Debt Facility operation margin | G138: nominal % | O138: 0.024 | P138: 0.024 | Q138: 0.024 | R138: 0.024 | S138: 0.024 | T138: 0.024 | U138: 0.024 | V138: 0.024 | W138: 0.024 | X138: 0.024 | Y138: 0.024 | Z138: 0.024 | AA138: 0.024 | AB138: 0.024 | AC138: 0.024 | AD138: 0.024 | AE138: 0.024 | AF138: 0.024 | AG138: 0.024 | AH138: 0.024 | AI138: 0.024 | AJ138: 0.024 | AK138: 0.024 | AL138: 0.024 | AM138: 0.024 | AN138: 0.024
E139: VAT Facility operation margin | G139: nominal % | O139: 0.024 | P139: 0.024 | Q139: 0.024 | R139: 0.024 | S139: 0.024 | T139: 0.024 | U139: 0.024 | V139: 0.024 | W139: 0.024 | X139: 0.024 | Y139: 0.024 | Z139: 0.024 | AA139: 0.024 | AB139: 0.024 | AC139: 0.024 | AD139: 0.024 | AE139: 0.024 | AF139: 0.024 | AG139: 0.024 | AH139: 0.024 | AI139: 0.024 | AJ139: 0.024 | AK139: 0.024 | AL139: 0.024 | AM139: 0.024 | AN139: 0.024
E140: Other facilities operation margin | G140: nominal % | O140: 0.013 | P140: 0.013 | Q140: 0.013 | R140: 0.013 | S140: 0.013 | T140: 0.013 | U140: 0.013 | V140: 0.013 | W140: 0.013 | X140: 0.013 | Y140: 0.013 | Z140: 0.013 | AA140: 0.013 | AB140: 0.013 | AC140: 0.013 | AD140: 0.013 | AE140: 0.013 | AF140: 0.013 | AG140: 0.013 | AH140: 0.013 | AI140: 0.013 | AJ140: 0.013 | AK140: 0.013 | AL140: 0.013 | AM140: 0.013 | AN140: 0.013
C142: Model operation
E144: Year commencing | K144: =$I$149 -> 2025-01-01 | L144: =+K145+1 -> 2026-01-01 | M144: 2027-01-01 | N144: 2028-01-01 | O144: 2029-01-01 | P144: 2030-01-01 | Q144: 2031-01-01 | R144: 2032-01-01 | S144: 2033-01-01 | T144: 2034-01-01 | U144: 2035-01-01 | V144: 2036-01-01 | W144: 2037-01-01 | X144: 2038-01-01 | Y144: 2039-01-01 | Z144: 2040-01-01 | AA144: 2041-01-01 | AB144: 2042-01-01 | AC144: 2043-01-01 | AD144: 2044-01-01 | AE144: 2045-01-01 | AF144: 2046-01-01 | AG144: 2047-01-01 | AH144: 2048-01-01 | AI144: 2049-01-01 | AJ144: 2050-01-01 | AK144: 2051-01-01 | AL144: 2052-01-01 | AM144: 2053-01-01 | AN144: 2054-01-01 | AO144: 2055-01-01 | AP144: 2056-01-01 | AQ144: 2057-01-01 | AR144: 2058-01-01 | AS144: 2059-01-01 | AT144: 2060-01-01 | AU144: 2061-01-01 | AV144: 2062-01-01 | AW144: 2063-01-01 | AX144: 2064-01-01 | AY144: =+AX145+1 -> 2065-01-01 | AZ144: =+AY145+1 -> 2066-01-01 | BA144: =+AZ145+1 -> 2067-01-01 | BB144: =+BA145+1 -> 2068-01-01 | BC144: =+BB145+1 -> 2069-01-01 | BD144: =+BC145+1 -> 2070-01-01 | BE144: =+BD145+1 -> 2071-01-01 | BF144: =+BE145+1 -> 2072-01-01 | BG144: =+BF145+1 -> 2073-01-01 | BH144: =+BG145+1 -> 2074-01-01 | BI144: =+BH145+1 -> 2075-01-01 | BJ144: =+BI145+1 -> 2076-01-01 | BK144: =+BJ145+1 -> 2077-01-01 | BL144: =+BK145+1 -> 2078-01-01 | BM144: =+BL145+1 -> 2079-01-01 | BN144: =+BM145+1 -> 2080-01-01 | BO144: =+BN145+1 -> 2081-01-01 | BP144: =+BO145+1 -> 2082-01-01 | BQ144: =+BP145+1 -> 2083-01-01 | BR144: =+BQ145+1 -> 2084-01-01 | BS144: =+BR145+1 -> 2085-01-01 | BT144: =+BS145+1 -> 2086-01-01 | BU144: =+BT145+1 -> 2087-01-01 | BV144: =+BU145+1 -> 2088-01-01 | BW144: =+BV145+1 -> 2089-01-01 | BX144: =+BW145+1 -> 2090-01-01 | BY144: =+BX145+1 -> 2091-01-01 | BZ144: =+BY145+1 -> 2092-01-01 | CA144: =+BZ145+1 -> 2093-01-01 | CB144: =+CA145+1 -> 2094-01-01 | CC144: =+CB145+1 -> 2095-01-01 | CD144: =+CC145+1 -> 2096-01-01 | CE144: =+CD145+1 -> 2097-01-01 | CF144: =+CE145+1 -> 2098-01-01 | CG144: =+CF145+1 -> 2099-01-01 | CH144: =+CG145+1 -> 2100-01-01 | CI144: =+CH145+1 -> 2101-01-01 | CJ144: =+CI145+1 -> 2102-01-01 | CK144: =+CJ145+1 -> 2103-01-01 | CL144: =+CK145+1 -> 2104-01-01
E145: Year ending | K145: =EOMONTH(K144,11) -> 2025-12-31 | L145: =DATE(YEAR(K145) + 1, MONTH(K145), DAY(K145)) -> 2026-12-31 | M145: 2027-12-31 | N145: 2028-12-31 | O145: 2029-12-31 | P145: 2030-12-31 | Q145: 2031-12-31 | R145: 2032-12-31 | S145: 2033-12-31 | T145: 2034-12-31 | U145: 2035-12-31 | V145: 2036-12-31 | W145: 2037-12-31 | X145: 2038-12-31 | Y145: 2039-12-31 | Z145: 2040-12-31 | AA145: 2041-12-31 | AB145: 2042-12-31 | AC145: 2043-12-31 | AD145: 2044-12-31 | AE145: 2045-12-31 | AF145: 2046-12-31 | AG145: 2047-12-31 | AH145: 2048-12-31 | AI145: 2049-12-31 | AJ145: 2050-12-31 | AK145: 2051-12-31 | AL145: 2052-12-31 | AM145: 2053-12-31 | AN145: 2054-12-31 | AO145: 2055-12-31 | AP145: 2056-12-31 | AQ145: 2057-12-31 | AR145: 2058-12-31 | AS145: 2059-12-31 | AT145: 2060-12-31 | AU145: 2061-12-31 | AV145: 2062-12-31 | AW145: 2063-12-31 | AX145: 2064-12-31 | AY145: =DATE(YEAR(AX145) + 1, MONTH(AX145), DAY(AX145)) -> 2065-12-31 | AZ145: =DATE(YEAR(AY145) + 1, MONTH(AY145), DAY(AY145)) -> 2066-12-31 | BA145: =DATE(YEAR(AZ145) + 1, MONTH(AZ145), DAY(AZ145)) -> 2067-12-31 | BB145: =DATE(YEAR(BA145) + 1, MONTH(BA145), DAY(BA145)) -> 2068-12-31 | BC145: =DATE(YEAR(BB145) + 1, MONTH(BB145), DAY(BB145)) -> 2069-12-31 | BD145: =DATE(YEAR(BC145) + 1, MONTH(BC145), DAY(BC145)) -> 2070-12-31 | BE145: =DATE(YEAR(BD145) + 1, MONTH(BD145), DAY(BD145)) -> 2071-12-31 | BF145: =DATE(YEAR(BE145) + 1, MONTH(BE145), DAY(BE145)) -> 2072-12-31 | BG145: =DATE(YEAR(BF145) + 1, MONTH(BF145), DAY(BF145)) -> 2073-12-31 | BH145: =DATE(YEAR(BG145) + 1, MONTH(BG145), DAY(BG145)) -> 2074-12-31 | BI145: =DATE(YEAR(BH145) + 1, MONTH(BH145), DAY(BH145)) -> 2075-12-31 | BJ145: =DATE(YEAR(BI145) + 1, MONTH(BI145), DAY(BI145)) -> 2076-12-31 | BK145: =DATE(YEAR(BJ145) + 1, MONTH(BJ145), DAY(BJ145)) -> 2077-12-31 | BL145: =DATE(YEAR(BK145) + 1, MONTH(BK145), DAY(BK145)) -> 2078-12-31 | BM145: =DATE(YEAR(BL145) + 1, MONTH(BL145), DAY(BL145)) -> 2079-12-31 | BN145: =DATE(YEAR(BM145) + 1, MONTH(BM145), DAY(BM145)) -> 2080-12-31 | BO145: =DATE(YEAR(BN145) + 1, MONTH(BN145), DAY(BN145)) -> 2081-12-31 | BP145: =DATE(YEAR(BO145) + 1, MONTH(BO145), DAY(BO145)) -> 2082-12-31 | BQ145: =DATE(YEAR(BP145) + 1, MONTH(BP145), DAY(BP145)) -> 2083-12-31 | BR145: =DATE(YEAR(BQ145) + 1, MONTH(BQ145), DAY(BQ145)) -> 2084-12-31 | BS145: =DATE(YEAR(BR145) + 1, MONTH(BR145), DAY(BR145)) -> 2085-12-31 | BT145: =DATE(YEAR(BS145) + 1, MONTH(BS145), DAY(BS145)) -> 2086-12-31 | BU145: =DATE(YEAR(BT145) + 1, MONTH(BT145), DAY(BT145)) -> 2087-12-31 | BV145: =DATE(YEAR(BU145) + 1, MONTH(BU145), DAY(BU145)) -> 2088-12-31 | BW145: =DATE(YEAR(BV145) + 1, MONTH(BV145), DAY(BV145)) -> 2089-12-31 | BX145: =DATE(YEAR(BW145) + 1, MONTH(BW145), DAY(BW145)) -> 2090-12-31 | BY145: =DATE(YEAR(BX145) + 1, MONTH(BX145), DAY(BX145)) -> 2091-12-31 | BZ145: =DATE(YEAR(BY145) + 1, MONTH(BY145), DAY(BY145)) -> 2092-12-31 | CA145: =DATE(YEAR(BZ145) + 1, MONTH(BZ145), DAY(BZ145)) -> 2093-12-31 | CB145: =DATE(YEAR(CA145) + 1, MONTH(CA145), DAY(CA145)) -> 2094-12-31 | CC145: =DATE(YEAR(CB145) + 1, MONTH(CB145), DAY(CB145)) -> 2095-12-31 | CD145: =DATE(YEAR(CC145) + 1, MONTH(CC145), DAY(CC145)) -> 2096-12-31 | CE145: =DATE(YEAR(CD145) + 1, MONTH(CD145), DAY(CD145)) -> 2097-12-31 | CF145: =DATE(YEAR(CE145) + 1, MONTH(CE145), DAY(CE145)) -> 2098-12-31 | CG145: =DATE(YEAR(CF145) + 1, MONTH(CF145), DAY(CF145)) -> 2099-12-31 | CH145: =DATE(YEAR(CG145) + 1, MONTH(CG145), DAY(CG145)) -> 2100-12-31 | CI145: =DATE(YEAR(CH145) + 1, MONTH(CH145), DAY(CH145)) -> 2101-12-31 | CJ145: =DATE(YEAR(CI145) + 1, MONTH(CI145), DAY(CI145)) -> 2102-12-31 | CK145: =DATE(YEAR(CJ145) + 1, MONTH(CJ145), DAY(CJ145)) -> 2103-12-31 | CL145: =DATE(YEAR(CK145) + 1, MONTH(CK145), DAY(CK145)) -> 2104-12-31
E147: Partial inflation indexation switch | G147: Yes No | I147: No
E149: Model start date | G149: date | I149: 2025-01-01
E150: Regime start date | G150: date | I150: 2029-01-01
E151: End date for IDC | G151: date | I151: 2028-12-31
E152: Planned start of operations | G152: date | I152: 2029-01-01
E153: Actual start of operations | G153: date | I153: 2031-01-01
E154: Delivery years behind or ahead of schedule | G154: full years | I154: =_xlfn.IFS(I153>I152,DATEDIF(I152,I153,"y"),I152>I153,DATEDIF(I153,I152,"y")*(-1),I152=I153,0) -> 2
E155: Regime end date | G155: date | I155: =DATE(YEAR($I$150)+I158,MONTH($I$150),DAY($I$150))-1 -> 2058-12-31
E156: Debt end date | G156: date | I156: =EOMONTH(I153-1,I66*12) -> 2055-12-31
E157: Debt tail end date | G157: date | I157: =MIN(EOMONTH(I153-1,(I66+I67)*12),I155) -> 2057-12-31
E158: Regime duration | G158: full years | I158: 30
E160: Debt tenor + debt tail <= (Regime end date - Start of operations) | G160: check | I160: =(I66+I67)<=ROUND((I155-I153)/365.25,0) -> TRUE
E162: Days in year | G162: days | K162: =K$145-K$144+1 -> 365 | L162: 365 | M162: 365 | N162: 366 | O162: 365 | P162: 365 | Q162: 365 | R162: 366 | S162: 365 | T162: 365 | U162: 365 | V162: 366 | W162: 365 | X162: 365 | Y162: 365 | Z162: 366 | AA162: 365 | AB162: 365 | AC162: 365 | AD162: 366 | AE162: 365 | AF162: 365 | AG162: 365 | AH162: 366 | AI162: 365 | AJ162: 365 | AK162: 365 | AL162: 366 | AM162: 365 | AN162: 365 | AO162: 365 | AP162: 366 | AQ162: 365 | AR162: 365 | AS162: 365 | AT162: 366 | AU162: 365 | AV162: 365 | AW162: 365 | AX162: 366 | AY162: 365 | AZ162: 365 | BA162: 365 | BB162: 366 | BC162: 365 | BD162: 365 | BE162: 365 | BF162: 366 | BG162: 365 | BH162: 365 | BI162: 365 | BJ162: 366 | BK162: 365 | BL162: 365 | BM162: 365 | BN162: 366 | BO162: 365 | BP162: 365 | BQ162: 365 | BR162: 366 | BS162: 365 | BT162: 365 | BU162: 365 | BV162: 366 | BW162: =BW$145-BW$144+1 -> 365 | BX162: 365 | BY162: 365 | BZ162: 366 | CA162: 365 | CB162: 365 | CC162: 365 | CD162: 366 | CE162: 365 | CF162: 365 | CG162: 365 | CH162: 365 | CI162: 365 | CJ162: 365 | CK162: 365 | CL162: 366
E163: IDC flag | G163: flag | K163: =IF($I$151>=K$145,1,IF($I$151>=K$144,($I$151-K$144+1)/K$162,0)) -> 1 | L163: 1 | M163: 1 | N163: 1 | O163: 0 | P163: 0 | Q163: 0 | R163: 0 | S163: 0 | T163: 0 | U163: 0 | V163: 0 | W163: 0 | X163: 0 | Y163: 0 | Z163: 0 | AA163: 0 | AB163: 0 | AC163: 0 | AD163: 0 | AE163: 0 | AF163: 0 | AG163: 0 | AH163: 0 | AI163: 0 | AJ163: 0 | AK163: 0 | AL163: 0 | AM163: 0 | AN163: 0 | AO163: 0 | AP163: 0 | AQ163: =IF($I$151>=AQ$145,1,IF($I$151>=AQ$144,($I$151-AQ$144+1)/AQ$162,0)) -> 0 | AR163: 0 | AS163: 0 | AT163: 0 | AU163: 0 | AV163: 0 | AW163: 0 | AX163: 0 | AY163: 0 | AZ163: 0 | BA163: 0 | BB163: 0 | BC163: 0 | BD163: 0 | BE163: 0 | BF163: 0 | BG163: 0 | BH163: 0 | BI163: 0 | BJ163: 0 | BK163: 0 | BL163: 0 | BM163: 0 | BN163: 0 | BO163: 0 | BP163: 0 | BQ163: 0 | BR163: 0 | BS163: 0 | BT163: 0 | BU163: 0 | BV163: 0 | BW163: =IF($I$151>=BW$145,1,IF($I$151>=BW$144,($I$151-BW$144+1)/BW$162,0)) -> 0 | BX163: 0 | BY163: 0 | BZ163: 0 | CA163: 0 | CB163: 0 | CC163: 0 | CD163: 0 | CE163: 0 | CF163: 0 | CG163: 0 | CH163: 0 | CI163: 0 | CJ163: 0 | CK163: 0 | CL163: 0
E164: Post-IDC and pre-operations flag | G164: flag | K164: =IF(OR(K163=1,K165=1),0,IF($I$153<K144,0,IF($I$153<K145,($I$153-(MAX($I$151+1,K144)))/K162,MIN(1,(K145-$I$151)/K162)))) -> 0 | L164: 0 | M164: 0 | N164: 0 | O164: 1 | P164: 1 | Q164: 0 | R164: 0 | S164: 0 | T164: 0 | U164: 0 | V164: 0 | W164: 0 | X164: 0 | Y164: 0 | Z164: 0 | AA164: 0 | AB164: 0 | AC164: 0 | AD164: 0 | AE164: 0 | AF164: 0 | AG164: 0 | AH164: 0 | AI164: 0 | AJ164: 0 | AK164: 0 | AL164: 0 | AM164: 0 | AN164: 0 | AO164: 0 | AP164: 0 | AQ164: =IF(OR(AQ163=1,AQ165=1),0,IF($I$153<AQ144,0,IF($I$153<AQ145,($I$153-(MAX($I$151+1,AQ144)))/AQ162,MIN(1,(AQ145-$I$151)/AQ162)))) -> 0 | AR164: 0 | AS164: 0 | AT164: 0 | AU164: 0 | AV164: 0 | AW164: 0 | AX164: 0 | AY164: 0 | AZ164: 0 | BA164: 0 | BB164: 0 | BC164: 0 | BD164: 0 | BE164: 0 | BF164: 0 | BG164: 0 | BH164: 0 | BI164: 0 | BJ164: 0 | BK164: 0 | BL164: 0 | BM164: 0 | BN164: 0 | BO164: 0 | BP164: 0 | BQ164: 0 | BR164: 0 | BS164: 0 | BT164: 0 | BU164: 0 | BV164: 0 | BW164: =IF(OR(BW163=1,BW165=1),0,IF($I$153<BW144,0,IF($I$153<BW145,($I$153-(MAX($I$151+1,BW144)))/BW162,MIN(1,(BW145-$I$151)/BW162)))) -> 0 | BX164: 0 | BY164: 0 | BZ164: 0 | CA164: 0 | CB164: 0 | CC164: 0 | CD164: 0 | CE164: 0 | CF164: 0 | CG164: 0 | CH164: 0 | CI164: 0 | CJ164: 0 | CK164: 0 | CL164: 0
E165: Operations flag | G165: flag | K165: =IF(OR($I$153>K$145,$I$155<K$144),0,IF($I$153>=K$144,(K$145-$I$153+1)/K$162,IF($I$155<=K$145,($I$155-K$144+1)/K$162,1))) -> 0 | L165: 0 | M165: 0 | N165: 0 | O165: 0 | P165: 0 | Q165: 1 | R165: 1 | S165: 1 | T165: 1 | U165: 1 | V165: 1 | W165: 1 | X165: 1 | Y165: 1 | Z165: 1 | AA165: 1 | AB165: 1 | AC165: 1 | AD165: 1 | AE165: 1 | AF165: 1 | AG165: 1 | AH165: 1 | AI165: 1 | AJ165: 1 | AK165: 1 | AL165: 1 | AM165: 1 | AN165: 1 | AO165: 1 | AP165: 1 | AQ165: =IF(OR($I$153>AQ$145,$I$155<AQ$144),0,IF($I$153>=AQ$144,(AQ$145-$I$153+1)/AQ$162,IF($I$155<=AQ$145,($I$155-AQ$144+1)/AQ$162,1))) -> 1 | AR165: 1 | AS165: 0 | AT165: 0 | AU165: 0 | AV165: 0 | AW165: 0 | AX165: 0 | AY165: 0 | AZ165: 0 | BA165: 0 | BB165: 0 | BC165: 0 | BD165: 0 | BE165: 0 | BF165: 0 | BG165: 0 | BH165: 0 | BI165: 0 | BJ165: 0 | BK165: 0 | BL165: 0 | BM165: 0 | BN165: 0 | BO165: 0 | BP165: 0 | BQ165: 0 | BR165: 0 | BS165: 0 | BT165: 0 | BU165: 0 | BV165: 0 | BW165: =IF(OR($I$153>BW$145,$I$155<BW$144),0,IF($I$153>=BW$144,(BW$145-$I$153+1)/BW$162,IF($I$155<=BW$145,($I$155-BW$144+1)/BW$162,1))) -> 0 | BX165: 0 | BY165: 0 | BZ165: 0 | CA165: 0 | CB165: 0 | CC165: 0 | CD165: 0 | CE165: 0 | CF165: 0 | CG165: 0 | CH165: 0 | CI165: 0 | CJ165: 0 | CK165: 0 | CL165: 0
E166: Regime flag | G166: flag | K166: =IF(OR($I$150>K$145,$I$155<K$144),0,IF($I$150>=K$144,(K$145-$I$150+1)/K$162,IF($I$155<=K$145,($I$155-K$144+1)/K$162,1))) -> 0 | L166: 0 | M166: 0 | N166: 0 | O166: 1 | P166: 1 | Q166: 1 | R166: 1 | S166: 1 | T166: 1 | U166: 1 | V166: 1 | W166: 1 | X166: 1 | Y166: 1 | Z166: 1 | AA166: 1 | AB166: 1 | AC166: 1 | AD166: 1 | AE166: 1 | AF166: 1 | AG166: 1 | AH166: 1 | AI166: 1 | AJ166: 1 | AK166: 1 | AL166: 1 | AM166: 1 | AN166: 1 | AO166: 1 | AP166: 1 | AQ166: =IF(OR($I$150>AQ$145,$I$155<AQ$144),0,IF($I$150>=AQ$144,(AQ$145-$I$150+1)/AQ$162,IF($I$155<=AQ$145,($I$155-AQ$144+1)/AQ$162,1))) -> 1 | AR166: 1 | AS166: 0 | AT166: 0 | AU166: 0 | AV166: 0 | AW166: 0 | AX166: 0 | AY166: 0 | AZ166: 0 | BA166: 0 | BB166: 0 | BC166: 0 | BD166: 0 | BE166: 0 | BF166: 0 | BG166: 0 | BH166: 0 | BI166: 0 | BJ166: 0 | BK166: 0 | BL166: 0 | BM166: 0 | BN166: 0 | BO166: 0 | BP166: 0 | BQ166: 0 | BR166: 0 | BS166: 0 | BT166: 0 | BU166: 0 | BV166: 0 | BW166: =IF(OR($I$150>BW$145,$I$155<BW$144),0,IF($I$150>=BW$144,(BW$145-$I$150+1)/BW$162,IF($I$155<=BW$145,($I$155-BW$144+1)/BW$162,1))) -> 0 | BX166: 0 | BY166: 0 | BZ166: 0 | CA166: 0 | CB166: 0 | CC166: 0 | CD166: 0 | CE166: 0 | CF166: 0 | CG166: 0 | CH166: 0 | CI166: 0 | CJ166: 0 | CK166: 0 | CL166: 0
E167: Regime years | G167: count | K167: =ROUNDUP(SUM($K$166:K166)*(K166<>0),0) -> 0 | L167: =ROUNDUP(SUM($K$166:L166)*(L166<>0),0) -> 0 | M167: =ROUNDUP(SUM($K$166:M166)*(M166<>0),0) -> 0 | N167: =ROUNDUP(SUM($K$166:N166)*(N166<>0),0) -> 0 | O167: =ROUNDUP(SUM($K$166:O166)*(O166<>0),0) -> 1 | P167: =ROUNDUP(SUM($K$166:P166)*(P166<>0),0) -> 2 | Q167: =ROUNDUP(SUM($K$166:Q166)*(Q166<>0),0) -> 3 | R167: =ROUNDUP(SUM($K$166:R166)*(R166<>0),0) -> 4 | S167: =ROUNDUP(SUM($K$166:S166)*(S166<>0),0) -> 5 | T167: =ROUNDUP(SUM($K$166:T166)*(T166<>0),0) -> 6 | U167: =ROUNDUP(SUM($K$166:U166)*(U166<>0),0) -> 7 | V167: =ROUNDUP(SUM($K$166:V166)*(V166<>0),0) -> 8 | W167: =ROUNDUP(SUM($K$166:W166)*(W166<>0),0) -> 9 | X167: =ROUNDUP(SUM($K$166:X166)*(X166<>0),0) -> 10 | Y167: =ROUNDUP(SUM($K$166:Y166)*(Y166<>0),0) -> 11 | Z167: =ROUNDUP(SUM($K$166:Z166)*(Z166<>0),0) -> 12 | AA167: =ROUNDUP(SUM($K$166:AA166)*(AA166<>0),0) -> 13 | AB167: =ROUNDUP(SUM($K$166:AB166)*(AB166<>0),0) -> 14 | AC167: =ROUNDUP(SUM($K$166:AC166)*(AC166<>0),0) -> 15 | AD167: =ROUNDUP(SUM($K$166:AD166)*(AD166<>0),0) -> 16 | AE167: =ROUNDUP(SUM($K$166:AE166)*(AE166<>0),0) -> 17 | AF167: =ROUNDUP(SUM($K$166:AF166)*(AF166<>0),0) -> 18 | AG167: =ROUNDUP(SUM($K$166:AG166)*(AG166<>0),0) -> 19 | AH167: =ROUNDUP(SUM($K$166:AH166)*(AH166<>0),0) -> 20 | AI167: =ROUNDUP(SUM($K$166:AI166)*(AI166<>0),0) -> 21 | AJ167: =ROUNDUP(SUM($K$166:AJ166)*(AJ166<>0),0) -> 22 | AK167: =ROUNDUP(SUM($K$166:AK166)*(AK166<>0),0) -> 23 | AL167: =ROUNDUP(SUM($K$166:AL166)*(AL166<>0),0) -> 24 | AM167: =ROUNDUP(SUM($K$166:AM166)*(AM166<>0),0) -> 25 | AN167: =ROUNDUP(SUM($K$166:AN166)*(AN166<>0),0) -> 26 | AO167: =ROUNDUP(SUM($K$166:AO166)*(AO166<>0),0) -> 27 | AP167: =ROUNDUP(SUM($K$166:AP166)*(AP166<>0),0) -> 28 | AQ167: =ROUNDUP(SUM($K$166:AQ166)*(AQ166<>0),0) -> 29 | AR167: =ROUNDUP(SUM($K$166:AR166)*(AR166<>0),0) -> 30 | AS167: =ROUNDUP(SUM($K$166:AS166)*(AS166<>0),0) -> 0 | AT167: =ROUNDUP(SUM($K$166:AT166)*(AT166<>0),0) -> 0 | AU167: =ROUNDUP(SUM($K$166:AU166)*(AU166<>0),0) -> 0 | AV167: =ROUNDUP(SUM($K$166:AV166)*(AV166<>0),0) -> 0 | AW167: =ROUNDUP(SUM($K$166:AW166)*(AW166<>0),0) -> 0 | AX167: =ROUNDUP(SUM($K$166:AX166)*(AX166<>0),0) -> 0 | AY167: =ROUNDUP(SUM($K$166:AY166)*(AY166<>0),0) -> 0 | AZ167: =ROUNDUP(SUM($K$166:AZ166)*(AZ166<>0),0) -> 0 | BA167: =ROUNDUP(SUM($K$166:BA166)*(BA166<>0),0) -> 0 | BB167: =ROUNDUP(SUM($K$166:BB166)*(BB166<>0),0) -> 0 | BC167: =ROUNDUP(SUM($K$166:BC166)*(BC166<>0),0) -> 0 | BD167: =ROUNDUP(SUM($K$166:BD166)*(BD166<>0),0) -> 0 | BE167: =ROUNDUP(SUM($K$166:BE166)*(BE166<>0),0) -> 0 | BF167: =ROUNDUP(SUM($K$166:BF166)*(BF166<>0),0) -> 0 | BG167: =ROUNDUP(SUM($K$166:BG166)*(BG166<>0),0) -> 0 | BH167: =ROUNDUP(SUM($K$166:BH166)*(BH166<>0),0) -> 0 | BI167: =ROUNDUP(SUM($K$166:BI166)*(BI166<>0),0) -> 0 | BJ167: =ROUNDUP(SUM($K$166:BJ166)*(BJ166<>0),0) -> 0 | BK167: =ROUNDUP(SUM($K$166:BK166)*(BK166<>0),0) -> 0 | BL167: =ROUNDUP(SUM($K$166:BL166)*(BL166<>0),0) -> 0 | BM167: =ROUNDUP(SUM($K$166:BM166)*(BM166<>0),0) -> 0 | BN167: =ROUNDUP(SUM($K$166:BN166)*(BN166<>0),0) -> 0 | BO167: =ROUNDUP(SUM($K$166:BO166)*(BO166<>0),0) -> 0 | BP167: =ROUNDUP(SUM($K$166:BP166)*(BP166<>0),0) -> 0 | BQ167: =ROUNDUP(SUM($K$166:BQ166)*(BQ166<>0),0) -> 0 | BR167: =ROUNDUP(SUM($K$166:BR166)*(BR166<>0),0) -> 0 | BS167: =ROUNDUP(SUM($K$166:BS166)*(BS166<>0),0) -> 0 | BT167: =ROUNDUP(SUM($K$166:BT166)*(BT166<>0),0) -> 0 | BU167: =ROUNDUP(SUM($K$166:BU166)*(BU166<>0),0) -> 0 | BV167: =ROUNDUP(SUM($K$166:BV166)*(BV166<>0),0) -> 0 | BW167: =ROUNDUP(SUM($K$166:BW166)*(BW166<>0),0) -> 0 | BX167: =ROUNDUP(SUM($K$166:BX166)*(BX166<>0),0) -> 0 | BY167: =ROUNDUP(SUM($K$166:BY166)*(BY166<>0),0) -> 0 | BZ167: =ROUNDUP(SUM($K$166:BZ166)*(BZ166<>0),0) -> 0 | CA167: =ROUNDUP(SUM($K$166:CA166)*(CA166<>0),0) -> 0 | CB167: =ROUNDUP(SUM($K$166:CB166)*(CB166<>0),0) -> 0 | CC167: =ROUNDUP(SUM($K$166:CC166)*(CC166<>0),0) -> 0 | CD167: =ROUNDUP(SUM($K$166:CD166)*(CD166<>0),0) -> 0 | CE167: =ROUNDUP(SUM($K$166:CE166)*(CE166<>0),0) -> 0 | CF167: =ROUNDUP(SUM($K$166:CF166)*(CF166<>0),0) -> 0 | CG167: =ROUNDUP(SUM($K$166:CG166)*(CG166<>0),0) -> 0 | CH167: =ROUNDUP(SUM($K$166:CH166)*(CH166<>0),0) -> 0 | CI167: =ROUNDUP(SUM($K$166:CI166)*(CI166<>0),0) -> 0 | CJ167: =ROUNDUP(SUM($K$166:CJ166)*(CJ166<>0),0) -> 0 | CK167: =ROUNDUP(SUM($K$166:CK166)*(CK166<>0),0) -> 0 | CL167: =ROUNDUP(SUM($K$166:CL166)*(CL166<>0),0) -> 0
E168: Transfer construction to operations flag - Notional | G168: flag | K168: =IF(AND(SUM(K26:K28)<>0,SUM(L26:$CM28)=0),1,0) -> 0 | L168: =IF(AND(SUM(L26:L28)<>0,SUM(M26:$CM28)=0),1,0) -> 0 | M168: =IF(AND(SUM(M26:M28)<>0,SUM(N26:$CM28)=0),1,0) -> 0 | N168: =IF(AND(SUM(N26:N28)<>0,SUM(O26:$CM28)=0),1,0) -> 0 | O168: =IF(AND(SUM(O26:O28)<>0,SUM(P26:$CM28)=0),1,0) -> 1 | P168: =IF(AND(SUM(P26:P28)<>0,SUM(Q26:$CM28)=0),1,0) -> 0 | Q168: =IF(AND(SUM(Q26:Q28)<>0,SUM(R26:$CM28)=0),1,0) -> 0 | R168: =IF(AND(SUM(R26:R28)<>0,SUM(S26:$CM28)=0),1,0) -> 0 | S168: =IF(AND(SUM(S26:S28)<>0,SUM(T26:$CM28)=0),1,0) -> 0 | T168: =IF(AND(SUM(T26:T28)<>0,SUM(U26:$CM28)=0),1,0) -> 0 | U168: =IF(AND(SUM(U26:U28)<>0,SUM(V26:$CM28)=0),1,0) -> 0 | V168: =IF(AND(SUM(V26:V28)<>0,SUM(W26:$CM28)=0),1,0) -> 0 | W168: =IF(AND(SUM(W26:W28)<>0,SUM(X26:$CM28)=0),1,0) -> 0 | X168: =IF(AND(SUM(X26:X28)<>0,SUM(Y26:$CM28)=0),1,0) -> 0 | Y168: =IF(AND(SUM(Y26:Y28)<>0,SUM(Z26:$CM28)=0),1,0) -> 0 | Z168: =IF(AND(SUM(Z26:Z28)<>0,SUM(AA26:$CM28)=0),1,0) -> 0 | AA168: =IF(AND(SUM(AA26:AA28)<>0,SUM(AB26:$CM28)=0),1,0) -> 0 | AB168: =IF(AND(SUM(AB26:AB28)<>0,SUM(AC26:$CM28)=0),1,0) -> 0 | AC168: =IF(AND(SUM(AC26:AC28)<>0,SUM(AD26:$CM28)=0),1,0) -> 0 | AD168: =IF(AND(SUM(AD26:AD28)<>0,SUM(AE26:$CM28)=0),1,0) -> 0 | AE168: =IF(AND(SUM(AE26:AE28)<>0,SUM(AF26:$CM28)=0),1,0) -> 0 | AF168: =IF(AND(SUM(AF26:AF28)<>0,SUM(AG26:$CM28)=0),1,0) -> 0 | AG168: =IF(AND(SUM(AG26:AG28)<>0,SUM(AH26:$CM28)=0),1,0) -> 0 | AH168: =IF(AND(SUM(AH26:AH28)<>0,SUM(AI26:$CM28)=0),1,0) -> 0 | AI168: =IF(AND(SUM(AI26:AI28)<>0,SUM(AJ26:$CM28)=0),1,0) -> 0 | AJ168: =IF(AND(SUM(AJ26:AJ28)<>0,SUM(AK26:$CM28)=0),1,0) -> 0 | AK168: =IF(AND(SUM(AK26:AK28)<>0,SUM(AL26:$CM28)=0),1,0) -> 0 | AL168: =IF(AND(SUM(AL26:AL28)<>0,SUM(AM26:$CM28)=0),1,0) -> 0 | AM168: =IF(AND(SUM(AM26:AM28)<>0,SUM(AN26:$CM28)=0),1,0) -> 0 | AN168: =IF(AND(SUM(AN26:AN28)<>0,SUM(AO26:$CM28)=0),1,0) -> 0 | AO168: =IF(AND(SUM(AO26:AO28)<>0,SUM(AP26:$CM28)=0),1,0) -> 0 | AP168: =IF(AND(SUM(AP26:AP28)<>0,SUM(AQ26:$CM28)=0),1,0) -> 0 | AQ168: =IF(AND(SUM(AQ26:AQ28)<>0,SUM(AR26:$CM28)=0),1,0) -> 0 | AR168: =IF(AND(SUM(AR26:AR28)<>0,SUM(AS26:$CM28)=0),1,0) -> 0 | AS168: =IF(AND(SUM(AS26:AS28)<>0,SUM(AT26:$CM28)=0),1,0) -> 0 | AT168: =IF(AND(SUM(AT26:AT28)<>0,SUM(AU26:$CM28)=0),1,0) -> 0 | AU168: =IF(AND(SUM(AU26:AU28)<>0,SUM(AV26:$CM28)=0),1,0) -> 0 | AV168: =IF(AND(SUM(AV26:AV28)<>0,SUM(AW26:$CM28)=0),1,0) -> 0 | AW168: =IF(AND(SUM(AW26:AW28)<>0,SUM(AX26:$CM28)=0),1,0) -> 0 | AX168: =IF(AND(SUM(AX26:AX28)<>0,SUM(CM26:$CM28)=0),1,0) -> 0 | AY168: =IF(AND(SUM(AY26:AY28)<>0,SUM($CM26:CN28)=0),1,0) -> 0 | AZ168: =IF(AND(SUM(AZ26:AZ28)<>0,SUM($CM26:CO28)=0),1,0) -> 0 | BA168: =IF(AND(SUM(BA26:BA28)<>0,SUM($CM26:CP28)=0),1,0) -> 0 | BB168: =IF(AND(SUM(BB26:BB28)<>0,SUM($CM26:CQ28)=0),1,0) -> 0 | BC168: =IF(AND(SUM(BC26:BC28)<>0,SUM($CM26:CR28)=0),1,0) -> 0 | BD168: =IF(AND(SUM(BD26:BD28)<>0,SUM($CM26:CS28)=0),1,0) -> 0 | BE168: =IF(AND(SUM(BE26:BE28)<>0,SUM($CM26:CT28)=0),1,0) -> 0 | BF168: =IF(AND(SUM(BF26:BF28)<>0,SUM($CM26:CU28)=0),1,0) -> 0 | BG168: =IF(AND(SUM(BG26:BG28)<>0,SUM($CM26:CV28)=0),1,0) -> 0 | BH168: =IF(AND(SUM(BH26:BH28)<>0,SUM($CM26:CW28)=0),1,0) -> 0 | BI168: =IF(AND(SUM(BI26:BI28)<>0,SUM($CM26:CX28)=0),1,0) -> 0 | BJ168: =IF(AND(SUM(BJ26:BJ28)<>0,SUM($CM26:CY28)=0),1,0) -> 0 | BK168: =IF(AND(SUM(BK26:BK28)<>0,SUM($CM26:CZ28)=0),1,0) -> 0 | BL168: =IF(AND(SUM(BL26:BL28)<>0,SUM($CM26:DA28)=0),1,0) -> 0 | BM168: =IF(AND(SUM(BM26:BM28)<>0,SUM($CM26:DB28)=0),1,0) -> 0 | BN168: =IF(AND(SUM(BN26:BN28)<>0,SUM($CM26:DC28)=0),1,0) -> 0 | BO168: =IF(AND(SUM(BO26:BO28)<>0,SUM($CM26:DD28)=0),1,0) -> 0 | BP168: =IF(AND(SUM(BP26:BP28)<>0,SUM($CM26:DE28)=0),1,0) -> 0 | BQ168: =IF(AND(SUM(BQ26:BQ28)<>0,SUM($CM26:DF28)=0),1,0) -> 0 | BR168: =IF(AND(SUM(BR26:BR28)<>0,SUM($CM26:DG28)=0),1,0) -> 0 | BS168: =IF(AND(SUM(BS26:BS28)<>0,SUM($CM26:DH28)=0),1,0) -> 0 | BT168: =IF(AND(SUM(BT26:BT28)<>0,SUM($CM26:DI28)=0),1,0) -> 0 | BU168: =IF(AND(SUM(BU26:BU28)<>0,SUM($CM26:DJ28)=0),1,0) -> 0 | BV168: =IF(AND(SUM(BV26:BV28)<>0,SUM($CM26:DK28)=0),1,0) -> 0 | BW168: =IF(AND(SUM(BW26:BW28)<>0,SUM($CM26:DL28)=0),1,0) -> 0 | BX168: =IF(AND(SUM(BX26:BX28)<>0,SUM($CM26:DM28)=0),1,0) -> 0 | BY168: =IF(AND(SUM(BY26:BY28)<>0,SUM($CM26:DN28)=0),1,0) -> 0 | BZ168: =IF(AND(SUM(BZ26:BZ28)<>0,SUM($CM26:DO28)=0),1,0) -> 0 | CA168: =IF(AND(SUM(CA26:CA28)<>0,SUM($CM26:DP28)=0),1,0) -> 0 | CB168: =IF(AND(SUM(CB26:CB28)<>0,SUM($CM26:DQ28)=0),1,0) -> 0 | CC168: =IF(AND(SUM(CC26:CC28)<>0,SUM($CM26:DR28)=0),1,0) -> 0 | CD168: =IF(AND(SUM(CD26:CD28)<>0,SUM($CM26:DS28)=0),1,0) -> 0 | CE168: =IF(AND(SUM(CE26:CE28)<>0,SUM($CM26:DT28)=0),1,0) -> 0 | CF168: =IF(AND(SUM(CF26:CF28)<>0,SUM($CM26:DU28)=0),1,0) -> 0 | CG168: =IF(AND(SUM(CG26:CG28)<>0,SUM($CM26:DV28)=0),1,0) -> 0 | CH168: =IF(AND(SUM(CH26:CH28)<>0,SUM($CM26:DW28)=0),1,0) -> 0 | CI168: =IF(AND(SUM(CI26:CI28)<>0,SUM($CM26:DX28)=0),1,0) -> 0 | CJ168: =IF(AND(SUM(CJ26:CJ28)<>0,SUM($CM26:DY28)=0),1,0) -> 0 | CK168: =IF(AND(SUM(CK26:CK28)<>0,SUM($CM26:DZ28)=0),1,0) -> 0 | CL168: =IF(AND(SUM(CL26:CL28)<>0,SUM($CM26:EA28)=0),1,0) -> 0
E169: Transfer construction to operations flag - ACOD | G169: flag | H169: ` | K169: =IF(AND($I$153<=K$145,$I$153>=K$144),1,0) -> 0 | L169: 0 | M169: 0 | N169: 0 | O169: 0 | P169: 0 | Q169: 1 | R169: 0 | S169: 0 | T169: 0 | U169: 0 | V169: 0 | W169: 0 | X169: 0 | Y169: 0 | Z169: 0 | AA169: 0 | AB169: 0 | AC169: 0 | AD169: 0 | AE169: 0 | AF169: 0 | AG169: 0 | AH169: 0 | AI169: 0 | AJ169: 0 | AK169: 0 | AL169: 0 | AM169: 0 | AN169: 0 | AO169: 0 | AP169: 0 | AQ169: =IF(AND($I$153<=AQ$145,$I$153>=AQ$144),1,0) -> 0 | AR169: 0 | AS169: 0 | AT169: 0 | AU169: 0 | AV169: 0 | AW169: 0 | AX169: 0 | AY169: 0 | AZ169: 0 | BA169: 0 | BB169: 0 | BC169: 0 | BD169: 0 | BE169: 0 | BF169: 0 | BG169: 0 | BH169: 0 | BI169: 0 | BJ169: 0 | BK169: 0 | BL169: 0 | BM169: 0 | BN169: 0 | BO169: 0 | BP169: 0 | BQ169: 0 | BR169: 0 | BS169: 0 | BT169: 0 | BU169: 0 | BV169: 0 | BW169: =IF(AND($I$153<=BW$145,$I$153>=BW$144),1,0) -> 0 | BX169: 0 | BY169: 0 | BZ169: 0 | CA169: 0 | CB169: 0 | CC169: 0 | CD169: 0 | CE169: 0 | CF169: 0 | CG169: 0 | CH169: 0 | CI169: 0 | CJ169: 0 | CK169: 0 | CL169: 0
E170: Initial transaction costs flag | G170: flag | K170: =IF(AND(SUM($J27:K27)=0,L27>0),1,0) -> 1 | L170: =IF(AND(SUM($J27:L27)=0,M27>0),1,0) -> 0 | M170: =IF(AND(SUM($J27:M27)=0,N27>0),1,0) -> 0 | N170: =IF(AND(SUM($J27:N27)=0,O27>0),1,0) -> 0 | O170: =IF(AND(SUM($J27:O27)=0,P27>0),1,0) -> 0 | P170: =IF(AND(SUM($J27:P27)=0,Q27>0),1,0) -> 0 | Q170: =IF(AND(SUM($J27:Q27)=0,R27>0),1,0) -> 0 | R170: =IF(AND(SUM($J27:R27)=0,S27>0),1,0) -> 0 | S170: =IF(AND(SUM($J27:S27)=0,T27>0),1,0) -> 0 | T170: =IF(AND(SUM($J27:T27)=0,U27>0),1,0) -> 0 | U170: =IF(AND(SUM($J27:U27)=0,V27>0),1,0) -> 0 | V170: =IF(AND(SUM($J27:V27)=0,W27>0),1,0) -> 0 | W170: =IF(AND(SUM($J27:W27)=0,X27>0),1,0) -> 0 | X170: =IF(AND(SUM($J27:X27)=0,Y27>0),1,0) -> 0 | Y170: =IF(AND(SUM($J27:Y27)=0,Z27>0),1,0) -> 0 | Z170: =IF(AND(SUM($J27:Z27)=0,AA27>0),1,0) -> 0 | AA170: =IF(AND(SUM($J27:AA27)=0,AB27>0),1,0) -> 0 | AB170: =IF(AND(SUM($J27:AB27)=0,AC27>0),1,0) -> 0 | AC170: =IF(AND(SUM($J27:AC27)=0,AD27>0),1,0) -> 0 | AD170: =IF(AND(SUM($J27:AD27)=0,AE27>0),1,0) -> 0 | AE170: =IF(AND(SUM($J27:AE27)=0,AF27>0),1,0) -> 0 | AF170: =IF(AND(SUM($J27:AF27)=0,AG27>0),1,0) -> 0 | AG170: =IF(AND(SUM($J27:AG27)=0,AH27>0),1,0) -> 0 | AH170: =IF(AND(SUM($J27:AH27)=0,AI27>0),1,0) -> 0 | AI170: =IF(AND(SUM($J27:AI27)=0,AJ27>0),1,0) -> 0 | AJ170: =IF(AND(SUM($J27:AJ27)=0,AK27>0),1,0) -> 0 | AK170: =IF(AND(SUM($J27:AK27)=0,AL27>0),1,0) -> 0 | AL170: =IF(AND(SUM($J27:AL27)=0,AM27>0),1,0) -> 0 | AM170: =IF(AND(SUM($J27:AM27)=0,AN27>0),1,0) -> 0 | AN170: =IF(AND(SUM($J27:AN27)=0,AO27>0),1,0) -> 0 | AO170: =IF(AND(SUM($J27:AO27)=0,AP27>0),1,0) -> 0 | AP170: =IF(AND(SUM($J27:AP27)=0,AQ27>0),1,0) -> 0 | AQ170: =IF(AND(SUM($J27:AQ27)=0,AR27>0),1,0) -> 0 | AR170: =IF(AND(SUM($J27:AR27)=0,AS27>0),1,0) -> 0 | AS170: =IF(AND(SUM($J27:AS27)=0,AT27>0),1,0) -> 0 | AT170: =IF(AND(SUM($J27:AT27)=0,AU27>0),1,0) -> 0 | AU170: =IF(AND(SUM($J27:AU27)=0,AV27>0),1,0) -> 0 | AV170: =IF(AND(SUM($J27:AV27)=0,AW27>0),1,0) -> 0 | AW170: =IF(AND(SUM($J27:AW27)=0,AX27>0),1,0) -> 0 | AX170: =IF(AND(SUM($J27:AX27)=0,CM27>0),1,0) -> 0 | AY170: =IF(AND(SUM($J27:AY27)=0,CN27>0),1,0) -> 0 | AZ170: =IF(AND(SUM($J27:AZ27)=0,CO27>0),1,0) -> 0 | BA170: =IF(AND(SUM($J27:BA27)=0,CP27>0),1,0) -> 0 | BB170: =IF(AND(SUM($J27:BB27)=0,CQ27>0),1,0) -> 0 | BC170: =IF(AND(SUM($J27:BC27)=0,CR27>0),1,0) -> 0 | BD170: =IF(AND(SUM($J27:BD27)=0,CS27>0),1,0) -> 0 | BE170: =IF(AND(SUM($J27:BE27)=0,CT27>0),1,0) -> 0 | BF170: =IF(AND(SUM($J27:BF27)=0,CU27>0),1,0) -> 0 | BG170: =IF(AND(SUM($J27:BG27)=0,CV27>0),1,0) -> 0 | BH170: =IF(AND(SUM($J27:BH27)=0,CW27>0),1,0) -> 0 | BI170: =IF(AND(SUM($J27:BI27)=0,CX27>0),1,0) -> 0 | BJ170: =IF(AND(SUM($J27:BJ27)=0,CY27>0),1,0) -> 0 | BK170: =IF(AND(SUM($J27:BK27)=0,CZ27>0),1,0) -> 0 | BL170: =IF(AND(SUM($J27:BL27)=0,DA27>0),1,0) -> 0 | BM170: =IF(AND(SUM($J27:BM27)=0,DB27>0),1,0) -> 0 | BN170: =IF(AND(SUM($J27:BN27)=0,DC27>0),1,0) -> 0 | BO170: =IF(AND(SUM($J27:BO27)=0,DD27>0),1,0) -> 0 | BP170: =IF(AND(SUM($J27:BP27)=0,DE27>0),1,0) -> 0 | BQ170: =IF(AND(SUM($J27:BQ27)=0,DF27>0),1,0) -> 0 | BR170: =IF(AND(SUM($J27:BR27)=0,DG27>0),1,0) -> 0 | BS170: =IF(AND(SUM($J27:BS27)=0,DH27>0),1,0) -> 0 | BT170: =IF(AND(SUM($J27:BT27)=0,DI27>0),1,0) -> 0 | BU170: =IF(AND(SUM($J27:BU27)=0,DJ27>0),1,0) -> 0 | BV170: =IF(AND(SUM($J27:BV27)=0,DK27>0),1,0) -> 0 | BW170: =IF(AND(SUM($J27:BW27)=0,DL27>0),1,0) -> 0 | BX170: =IF(AND(SUM($J27:BX27)=0,DM27>0),1,0) -> 0 | BY170: =IF(AND(SUM($J27:BY27)=0,DN27>0),1,0) -> 0 | BZ170: =IF(AND(SUM($J27:BZ27)=0,DO27>0),1,0) -> 0 | CA170: =IF(AND(SUM($J27:CA27)=0,DP27>0),1,0) -> 0 | CB170: =IF(AND(SUM($J27:CB27)=0,DQ27>0),1,0) -> 0 | CC170: =IF(AND(SUM($J27:CC27)=0,DR27>0),1,0) -> 0 | CD170: =IF(AND(SUM($J27:CD27)=0,DS27>0),1,0) -> 0 | CE170: =IF(AND(SUM($J27:CE27)=0,DT27>0),1,0) -> 0 | CF170: =IF(AND(SUM($J27:CF27)=0,DU27>0),1,0) -> 0 | CG170: =IF(AND(SUM($J27:CG27)=0,DV27>0),1,0) -> 0 | CH170: =IF(AND(SUM($J27:CH27)=0,DW27>0),1,0) -> 0 | CI170: =IF(AND(SUM($J27:CI27)=0,DX27>0),1,0) -> 0 | CJ170: =IF(AND(SUM($J27:CJ27)=0,DY27>0),1,0) -> 0 | CK170: =IF(AND(SUM($J27:CK27)=0,DZ27>0),1,0) -> 0 | CL170: =IF(AND(SUM($J27:CL27)=0,EA27>0),1,0) -> 0
E171: Financial close flag | G171: flag | K171: =IF(AND(SUM($J27:J27)=0,K27>0),1,0) -> 0 | L171: =IF(AND(SUM($J27:K27)=0,L27>0),1,0) -> 1 | M171: =IF(AND(SUM($J27:L27)=0,M27>0),1,0) -> 0 | N171: =IF(AND(SUM($J27:M27)=0,N27>0),1,0) -> 0 | O171: =IF(AND(SUM($J27:N27)=0,O27>0),1,0) -> 0 | P171: =IF(AND(SUM($J27:O27)=0,P27>0),1,0) -> 0 | Q171: =IF(AND(SUM($J27:P27)=0,Q27>0),1,0) -> 0 | R171: =IF(AND(SUM($J27:Q27)=0,R27>0),1,0) -> 0 | S171: =IF(AND(SUM($J27:R27)=0,S27>0),1,0) -> 0 | T171: =IF(AND(SUM($J27:S27)=0,T27>0),1,0) -> 0 | U171: =IF(AND(SUM($J27:T27)=0,U27>0),1,0) -> 0 | V171: =IF(AND(SUM($J27:U27)=0,V27>0),1,0) -> 0 | W171: =IF(AND(SUM($J27:V27)=0,W27>0),1,0) -> 0 | X171: =IF(AND(SUM($J27:W27)=0,X27>0),1,0) -> 0 | Y171: =IF(AND(SUM($J27:X27)=0,Y27>0),1,0) -> 0 | Z171: =IF(AND(SUM($J27:Y27)=0,Z27>0),1,0) -> 0 | AA171: =IF(AND(SUM($J27:Z27)=0,AA27>0),1,0) -> 0 | AB171: =IF(AND(SUM($J27:AA27)=0,AB27>0),1,0) -> 0 | AC171: =IF(AND(SUM($J27:AB27)=0,AC27>0),1,0) -> 0 | AD171: =IF(AND(SUM($J27:AC27)=0,AD27>0),1,0) -> 0 | AE171: =IF(AND(SUM($J27:AD27)=0,AE27>0),1,0) -> 0 | AF171: =IF(AND(SUM($J27:AE27)=0,AF27>0),1,0) -> 0 | AG171: =IF(AND(SUM($J27:AF27)=0,AG27>0),1,0) -> 0 | AH171: =IF(AND(SUM($J27:AG27)=0,AH27>0),1,0) -> 0 | AI171: =IF(AND(SUM($J27:AH27)=0,AI27>0),1,0) -> 0 | AJ171: =IF(AND(SUM($J27:AI27)=0,AJ27>0),1,0) -> 0 | AK171: =IF(AND(SUM($J27:AJ27)=0,AK27>0),1,0) -> 0 | AL171: =IF(AND(SUM($J27:AK27)=0,AL27>0),1,0) -> 0 | AM171: =IF(AND(SUM($J27:AL27)=0,AM27>0),1,0) -> 0 | AN171: =IF(AND(SUM($J27:AM27)=0,AN27>0),1,0) -> 0 | AO171: =IF(AND(SUM($J27:AN27)=0,AO27>0),1,0) -> 0 | AP171: =IF(AND(SUM($J27:AO27)=0,AP27>0),1,0) -> 0 | AQ171: =IF(AND(SUM($J27:AP27)=0,AQ27>0),1,0) -> 0 | AR171: =IF(AND(SUM($J27:AQ27)=0,AR27>0),1,0) -> 0 | AS171: =IF(AND(SUM($J27:AR27)=0,AS27>0),1,0) -> 0 | AT171: =IF(AND(SUM($J27:AS27)=0,AT27>0),1,0) -> 0 | AU171: =IF(AND(SUM($J27:AT27)=0,AU27>0),1,0) -> 0 | AV171: =IF(AND(SUM($J27:AU27)=0,AV27>0),1,0) -> 0 | AW171: =IF(AND(SUM($J27:AV27)=0,AW27>0),1,0) -> 0 | AX171: =IF(AND(SUM($J27:AW27)=0,AX27>0),1,0) -> 0 | AY171: =IF(AND(SUM($J27:AX27)=0,AY27>0),1,0) -> 0 | AZ171: =IF(AND(SUM($J27:AY27)=0,AZ27>0),1,0) -> 0 | BA171: =IF(AND(SUM($J27:AZ27)=0,BA27>0),1,0) -> 0 | BB171: =IF(AND(SUM($J27:BA27)=0,BB27>0),1,0) -> 0 | BC171: =IF(AND(SUM($J27:BB27)=0,BC27>0),1,0) -> 0 | BD171: =IF(AND(SUM($J27:BC27)=0,BD27>0),1,0) -> 0 | BE171: =IF(AND(SUM($J27:BD27)=0,BE27>0),1,0) -> 0 | BF171: =IF(AND(SUM($J27:BE27)=0,BF27>0),1,0) -> 0 | BG171: =IF(AND(SUM($J27:BF27)=0,BG27>0),1,0) -> 0 | BH171: =IF(AND(SUM($J27:BG27)=0,BH27>0),1,0) -> 0 | BI171: =IF(AND(SUM($J27:BH27)=0,BI27>0),1,0) -> 0 | BJ171: =IF(AND(SUM($J27:BI27)=0,BJ27>0),1,0) -> 0 | BK171: =IF(AND(SUM($J27:BJ27)=0,BK27>0),1,0) -> 0 | BL171: =IF(AND(SUM($J27:BK27)=0,BL27>0),1,0) -> 0 | BM171: =IF(AND(SUM($J27:BL27)=0,BM27>0),1,0) -> 0 | BN171: =IF(AND(SUM($J27:BM27)=0,BN27>0),1,0) -> 0 | BO171: =IF(AND(SUM($J27:BN27)=0,BO27>0),1,0) -> 0 | BP171: =IF(AND(SUM($J27:BO27)=0,BP27>0),1,0) -> 0 | BQ171: =IF(AND(SUM($J27:BP27)=0,BQ27>0),1,0) -> 0 | BR171: =IF(AND(SUM($J27:BQ27)=0,BR27>0),1,0) -> 0 | BS171: =IF(AND(SUM($J27:BR27)=0,BS27>0),1,0) -> 0 | BT171: =IF(AND(SUM($J27:BS27)=0,BT27>0),1,0) -> 0 | BU171: =IF(AND(SUM($J27:BT27)=0,BU27>0),1,0) -> 0 | BV171: =IF(AND(SUM($J27:BU27)=0,BV27>0),1,0) -> 0 | BW171: =IF(AND(SUM($J27:BV27)=0,BW27>0),1,0) -> 0 | BX171: =IF(AND(SUM($J27:BW27)=0,BX27>0),1,0) -> 0 | BY171: =IF(AND(SUM($J27:BX27)=0,BY27>0),1,0) -> 0 | BZ171: =IF(AND(SUM($J27:BY27)=0,BZ27>0),1,0) -> 0 | CA171: =IF(AND(SUM($J27:BZ27)=0,CA27>0),1,0) -> 0 | CB171: =IF(AND(SUM($J27:CA27)=0,CB27>0),1,0) -> 0 | CC171: =IF(AND(SUM($J27:CB27)=0,CC27>0),1,0) -> 0 | CD171: =IF(AND(SUM($J27:CC27)=0,CD27>0),1,0) -> 0 | CE171: =IF(AND(SUM($J27:CD27)=0,CE27>0),1,0) -> 0 | CF171: =IF(AND(SUM($J27:CE27)=0,CF27>0),1,0) -> 0 | CG171: =IF(AND(SUM($J27:CF27)=0,CG27>0),1,0) -> 0 | CH171: =IF(AND(SUM($J27:CG27)=0,CH27>0),1,0) -> 0 | CI171: =IF(AND(SUM($J27:CH27)=0,CI27>0),1,0) -> 0 | CJ171: =IF(AND(SUM($J27:CI27)=0,CJ27>0),1,0) -> 0 | CK171: =IF(AND(SUM($J27:CJ27)=0,CK27>0),1,0) -> 0 | CL171: =IF(AND(SUM($J27:CK27)=0,CL27>0),1,0) -> 0
E172: Debt drawdown flag | G172: flag | K172: =(SUM($J$171:K171)>=1)*(SUM($J$169:K169)<1) -> 0 | L172: =(SUM($J$171:L171)>=1)*(SUM($J$169:L169)<1) -> 1 | M172: =(SUM($J$171:M171)>=1)*(SUM($J$169:M169)<1) -> 1 | N172: =(SUM($J$171:N171)>=1)*(SUM($J$169:N169)<1) -> 1 | O172: =(SUM($J$171:O171)>=1)*(SUM($J$169:O169)<1) -> 1 | P172: =(SUM($J$171:P171)>=1)*(SUM($J$169:P169)<1) -> 1 | Q172: =(SUM($J$171:Q171)>=1)*(SUM($J$169:Q169)<1) -> 0 | R172: =(SUM($J$171:R171)>=1)*(SUM($J$169:R169)<1) -> 0 | S172: =(SUM($J$171:S171)>=1)*(SUM($J$169:S169)<1) -> 0 | T172: =(SUM($J$171:T171)>=1)*(SUM($J$169:T169)<1) -> 0 | U172: =(SUM($J$171:U171)>=1)*(SUM($J$169:U169)<1) -> 0 | V172: =(SUM($J$171:V171)>=1)*(SUM($J$169:V169)<1) -> 0 | W172: =(SUM($J$171:W171)>=1)*(SUM($J$169:W169)<1) -> 0 | X172: =(SUM($J$171:X171)>=1)*(SUM($J$169:X169)<1) -> 0 | Y172: =(SUM($J$171:Y171)>=1)*(SUM($J$169:Y169)<1) -> 0 | Z172: =(SUM($J$171:Z171)>=1)*(SUM($J$169:Z169)<1) -> 0 | AA172: =(SUM($J$171:AA171)>=1)*(SUM($J$169:AA169)<1) -> 0 | AB172: =(SUM($J$171:AB171)>=1)*(SUM($J$169:AB169)<1) -> 0 | AC172: =(SUM($J$171:AC171)>=1)*(SUM($J$169:AC169)<1) -> 0 | AD172: =(SUM($J$171:AD171)>=1)*(SUM($J$169:AD169)<1) -> 0 | AE172: =(SUM($J$171:AE171)>=1)*(SUM($J$169:AE169)<1) -> 0 | AF172: =(SUM($J$171:AF171)>=1)*(SUM($J$169:AF169)<1) -> 0 | AG172: =(SUM($J$171:AG171)>=1)*(SUM($J$169:AG169)<1) -> 0 | AH172: =(SUM($J$171:AH171)>=1)*(SUM($J$169:AH169)<1) -> 0 | AI172: =(SUM($J$171:AI171)>=1)*(SUM($J$169:AI169)<1) -> 0 | AJ172: =(SUM($J$171:AJ171)>=1)*(SUM($J$169:AJ169)<1) -> 0 | AK172: =(SUM($J$171:AK171)>=1)*(SUM($J$169:AK169)<1) -> 0 | AL172: =(SUM($J$171:AL171)>=1)*(SUM($J$169:AL169)<1) -> 0 | AM172: =(SUM($J$171:AM171)>=1)*(SUM($J$169:AM169)<1) -> 0 | AN172: =(SUM($J$171:AN171)>=1)*(SUM($J$169:AN169)<1) -> 0 | AO172: =(SUM($J$171:AO171)>=1)*(SUM($J$169:AO169)<1) -> 0 | AP172: =(SUM($J$171:AP171)>=1)*(SUM($J$169:AP169)<1) -> 0 | AQ172: =(SUM($J$171:AQ171)>=1)*(SUM($J$169:AQ169)<1) -> 0 | AR172: =(SUM($J$171:AR171)>=1)*(SUM($J$169:AR169)<1) -> 0 | AS172: =(SUM($J$171:AS171)>=1)*(SUM($J$169:AS169)<1) -> 0 | AT172: =(SUM($J$171:AT171)>=1)*(SUM($J$169:AT169)<1) -> 0 | AU172: =(SUM($J$171:AU171)>=1)*(SUM($J$169:AU169)<1) -> 0 | AV172: =(SUM($J$171:AV171)>=1)*(SUM($J$169:AV169)<1) -> 0 | AW172: =(SUM($J$171:AW171)>=1)*(SUM($J$169:AW169)<1) -> 0 | AX172: =(SUM($J$171:AX171)>=1)*(SUM($J$169:AX169)<1) -> 0 | AY172: =(SUM($J$171:AY171)>=1)*(SUM($J$169:AY169)<1) -> 0 | AZ172: =(SUM($J$171:AZ171)>=1)*(SUM($J$169:AZ169)<1) -> 0 | BA172: =(SUM($J$171:BA171)>=1)*(SUM($J$169:BA169)<1) -> 0 | BB172: =(SUM($J$171:BB171)>=1)*(SUM($J$169:BB169)<1) -> 0 | BC172: =(SUM($J$171:BC171)>=1)*(SUM($J$169:BC169)<1) -> 0 | BD172: =(SUM($J$171:BD171)>=1)*(SUM($J$169:BD169)<1) -> 0 | BE172: =(SUM($J$171:BE171)>=1)*(SUM($J$169:BE169)<1) -> 0 | BF172: =(SUM($J$171:BF171)>=1)*(SUM($J$169:BF169)<1) -> 0 | BG172: =(SUM($J$171:BG171)>=1)*(SUM($J$169:BG169)<1) -> 0 | BH172: =(SUM($J$171:BH171)>=1)*(SUM($J$169:BH169)<1) -> 0 | BI172: =(SUM($J$171:BI171)>=1)*(SUM($J$169:BI169)<1) -> 0 | BJ172: =(SUM($J$171:BJ171)>=1)*(SUM($J$169:BJ169)<1) -> 0 | BK172: =(SUM($J$171:BK171)>=1)*(SUM($J$169:BK169)<1) -> 0 | BL172: =(SUM($J$171:BL171)>=1)*(SUM($J$169:BL169)<1) -> 0 | BM172: =(SUM($J$171:BM171)>=1)*(SUM($J$169:BM169)<1) -> 0 | BN172: =(SUM($J$171:BN171)>=1)*(SUM($J$169:BN169)<1) -> 0 | BO172: =(SUM($J$171:BO171)>=1)*(SUM($J$169:BO169)<1) -> 0 | BP172: =(SUM($J$171:BP171)>=1)*(SUM($J$169:BP169)<1) -> 0 | BQ172: =(SUM($J$171:BQ171)>=1)*(SUM($J$169:BQ169)<1) -> 0 | BR172: =(SUM($J$171:BR171)>=1)*(SUM($J$169:BR169)<1) -> 0 | BS172: =(SUM($J$171:BS171)>=1)*(SUM($J$169:BS169)<1) -> 0 | BT172: =(SUM($J$171:BT171)>=1)*(SUM($J$169:BT169)<1) -> 0 | BU172: =(SUM($J$171:BU171)>=1)*(SUM($J$169:BU169)<1) -> 0 | BV172: =(SUM($J$171:BV171)>=1)*(SUM($J$169:BV169)<1) -> 0 | BW172: =(SUM($J$171:BW171)>=1)*(SUM($J$169:BW169)<1) -> 0 | BX172: =(SUM($J$171:BX171)>=1)*(SUM($J$169:BX169)<1) -> 0 | BY172: =(SUM($J$171:BY171)>=1)*(SUM($J$169:BY169)<1) -> 0 | BZ172: =(SUM($J$171:BZ171)>=1)*(SUM($J$169:BZ169)<1) -> 0 | CA172: =(SUM($J$171:CA171)>=1)*(SUM($J$169:CA169)<1) -> 0 | CB172: =(SUM($J$171:CB171)>=1)*(SUM($J$169:CB169)<1) -> 0 | CC172: =(SUM($J$171:CC171)>=1)*(SUM($J$169:CC169)<1) -> 0 | CD172: =(SUM($J$171:CD171)>=1)*(SUM($J$169:CD169)<1) -> 0 | CE172: =(SUM($J$171:CE171)>=1)*(SUM($J$169:CE169)<1) -> 0 | CF172: =(SUM($J$171:CF171)>=1)*(SUM($J$169:CF169)<1) -> 0 | CG172: =(SUM($J$171:CG171)>=1)*(SUM($J$169:CG169)<1) -> 0 | CH172: =(SUM($J$171:CH171)>=1)*(SUM($J$169:CH169)<1) -> 0 | CI172: =(SUM($J$171:CI171)>=1)*(SUM($J$169:CI169)<1) -> 0 | CJ172: =(SUM($J$171:CJ171)>=1)*(SUM($J$169:CJ169)<1) -> 0 | CK172: =(SUM($J$171:CK171)>=1)*(SUM($J$169:CK169)<1) -> 0 | CL172: =(SUM($J$171:CL171)>=1)*(SUM($J$169:CL169)<1) -> 0
E173: Debt repayment flag | G173: flag | K173: =IF(OR($I$153>K$145,$I$156<K$144),0,IF($I$153>=K$144,(K$145-$I$153+1)/K$162,IF($I$156<=K$145,($I$156-K$144+1)/K$162,1))) -> 0 | L173: 0 | M173: 0 | N173: 0 | O173: 0 | P173: 0 | Q173: 1 | R173: 1 | S173: 1 | T173: 1 | U173: 1 | V173: 1 | W173: 1 | X173: 1 | Y173: 1 | Z173: 1 | AA173: 1 | AB173: 1 | AC173: 1 | AD173: 1 | AE173: 1 | AF173: 1 | AG173: 1 | AH173: 1 | AI173: 1 | AJ173: 1 | AK173: 1 | AL173: 1 | AM173: 1 | AN173: 1 | AO173: 1 | AP173: 0 | AQ173: =IF(OR($I$153>AQ$145,$I$156<AQ$144),0,IF($I$153>=AQ$144,(AQ$145-$I$153+1)/AQ$162,IF($I$156<=AQ$145,($I$156-AQ$144+1)/AQ$162,1))) -> 0 | AR173: 0 | AS173: 0 | AT173: 0 | AU173: 0 | AV173: 0 | AW173: 0 | AX173: 0 | AY173: 0 | AZ173: 0 | BA173: 0 | BB173: 0 | BC173: 0 | BD173: 0 | BE173: 0 | BF173: 0 | BG173: 0 | BH173: 0 | BI173: 0 | BJ173: 0 | BK173: 0 | BL173: 0 | BM173: 0 | BN173: 0 | BO173: 0 | BP173: 0 | BQ173: 0 | BR173: 0 | BS173: 0 | BT173: 0 | BU173: 0 | BV173: 0 | BW173: =IF(OR($I$153>BW$145,$I$156<BW$144),0,IF($I$153>=BW$144,(BW$145-$I$153+1)/BW$162,IF($I$156<=BW$145,($I$156-BW$144+1)/BW$162,1))) -> 0 | BX173: 0 | BY173: 0 | BZ173: 0 | CA173: 0 | CB173: 0 | CC173: 0 | CD173: 0 | CE173: 0 | CF173: 0 | CG173: 0 | CH173: 0 | CI173: 0 | CJ173: 0 | CK173: 0 | CL173: 0
E174: Debt repayment years | G174: count | K174: =SUM($K$173:K173)*(K173<>0) -> 0 | L174: =SUM($K$173:L173)*(L173<>0) -> 0 | M174: =SUM($K$173:M173)*(M173<>0) -> 0 | N174: =SUM($K$173:N173)*(N173<>0) -> 0 | O174: =SUM($K$173:O173)*(O173<>0) -> 0 | P174: =SUM($K$173:P173)*(P173<>0) -> 0 | Q174: =SUM($K$173:Q173)*(Q173<>0) -> 1 | R174: =SUM($K$173:R173)*(R173<>0) -> 2 | S174: =SUM($K$173:S173)*(S173<>0) -> 3 | T174: =SUM($K$173:T173)*(T173<>0) -> 4 | U174: =SUM($K$173:U173)*(U173<>0) -> 5 | V174: =SUM($K$173:V173)*(V173<>0) -> 6 | W174: =SUM($K$173:W173)*(W173<>0) -> 7 | X174: =SUM($K$173:X173)*(X173<>0) -> 8 | Y174: =SUM($K$173:Y173)*(Y173<>0) -> 9 | Z174: =SUM($K$173:Z173)*(Z173<>0) -> 10 | AA174: =SUM($K$173:AA173)*(AA173<>0) -> 11 | AB174: =SUM($K$173:AB173)*(AB173<>0) -> 12 | AC174: =SUM($K$173:AC173)*(AC173<>0) -> 13 | AD174: =SUM($K$173:AD173)*(AD173<>0) -> 14 | AE174: =SUM($K$173:AE173)*(AE173<>0) -> 15 | AF174: =SUM($K$173:AF173)*(AF173<>0) -> 16 | AG174: =SUM($K$173:AG173)*(AG173<>0) -> 17 | AH174: =SUM($K$173:AH173)*(AH173<>0) -> 18 | AI174: =SUM($K$173:AI173)*(AI173<>0) -> 19 | AJ174: =SUM($K$173:AJ173)*(AJ173<>0) -> 20 | AK174: =SUM($K$173:AK173)*(AK173<>0) -> 21 | AL174: =SUM($K$173:AL173)*(AL173<>0) -> 22 | AM174: =SUM($K$173:AM173)*(AM173<>0) -> 23 | AN174: =SUM($K$173:AN173)*(AN173<>0) -> 24 | AO174: =SUM($K$173:AO173)*(AO173<>0) -> 25 | AP174: =SUM($K$173:AP173)*(AP173<>0) -> 0 | AQ174: =SUM($K$173:AQ173)*(AQ173<>0) -> 0 | AR174: =SUM($K$173:AR173)*(AR173<>0) -> 0 | AS174: =SUM($K$173:AS173)*(AS173<>0) -> 0 | AT174: =SUM($K$173:AT173)*(AT173<>0) -> 0 | AU174: =SUM($K$173:AU173)*(AU173<>0) -> 0 | AV174: =SUM($K$173:AV173)*(AV173<>0) -> 0 | AW174: =SUM($K$173:AW173)*(AW173<>0) -> 0 | AX174: =SUM($K$173:AX173)*(AX173<>0) -> 0 | AY174: =SUM($K$173:AY173)*(AY173<>0) -> 0 | AZ174: =SUM($K$173:AZ173)*(AZ173<>0) -> 0 | BA174: =SUM($K$173:BA173)*(BA173<>0) -> 0 | BB174: =SUM($K$173:BB173)*(BB173<>0) -> 0 | BC174: =SUM($K$173:BC173)*(BC173<>0) -> 0 | BD174: =SUM($K$173:BD173)*(BD173<>0) -> 0 | BE174: =SUM($K$173:BE173)*(BE173<>0) -> 0 | BF174: =SUM($K$173:BF173)*(BF173<>0) -> 0 | BG174: =SUM($K$173:BG173)*(BG173<>0) -> 0 | BH174: =SUM($K$173:BH173)*(BH173<>0) -> 0 | BI174: =SUM($K$173:BI173)*(BI173<>0) -> 0 | BJ174: =SUM($K$173:BJ173)*(BJ173<>0) -> 0 | BK174: =SUM($K$173:BK173)*(BK173<>0) -> 0 | BL174: =SUM($K$173:BL173)*(BL173<>0) -> 0 | BM174: =SUM($K$173:BM173)*(BM173<>0) -> 0 | BN174: =SUM($K$173:BN173)*(BN173<>0) -> 0 | BO174: =SUM($K$173:BO173)*(BO173<>0) -> 0 | BP174: =SUM($K$173:BP173)*(BP173<>0) -> 0 | BQ174: =SUM($K$173:BQ173)*(BQ173<>0) -> 0 | BR174: =SUM($K$173:BR173)*(BR173<>0) -> 0 | BS174: =SUM($K$173:BS173)*(BS173<>0) -> 0 | BT174: =SUM($K$173:BT173)*(BT173<>0) -> 0 | BU174: =SUM($K$173:BU173)*(BU173<>0) -> 0 | BV174: =SUM($K$173:BV173)*(BV173<>0) -> 0 | BW174: =SUM($K$173:BW173)*(BW173<>0) -> 0 | BX174: =SUM($K$173:BX173)*(BX173<>0) -> 0 | BY174: =SUM($K$173:BY173)*(BY173<>0) -> 0 | BZ174: =SUM($K$173:BZ173)*(BZ173<>0) -> 0 | CA174: =SUM($K$173:CA173)*(CA173<>0) -> 0 | CB174: =SUM($K$173:CB173)*(CB173<>0) -> 0 | CC174: =SUM($K$173:CC173)*(CC173<>0) -> 0 | CD174: =SUM($K$173:CD173)*(CD173<>0) -> 0 | CE174: =SUM($K$173:CE173)*(CE173<>0) -> 0 | CF174: =SUM($K$173:CF173)*(CF173<>0) -> 0 | CG174: =SUM($K$173:CG173)*(CG173<>0) -> 0 | CH174: =SUM($K$173:CH173)*(CH173<>0) -> 0 | CI174: =SUM($K$173:CI173)*(CI173<>0) -> 0 | CJ174: =SUM($K$173:CJ173)*(CJ173<>0) -> 0 | CK174: =SUM($K$173:CK173)*(CK173<>0) -> 0 | CL174: =SUM($K$173:CL173)*(CL173<>0) -> 0
E175: Debt tail flag | G175: flag | K175: =IF(OR($I$153>K$145,$I$157<K$144),0,IF($I$153>=K$144,(K$145-$I$153+1)/K$162,IF($I$157<=K$145,($I$157-K$144+1)/K$162,1)))-K173 -> 0 | L175: =IF(OR($I$153>L$145,$I$157<L$144),0,IF($I$153>=L$144,(L$145-$I$153+1)/L$162,IF($I$157<=L$145,($I$157-L$144+1)/L$162,1)))-L173 -> 0 | M175: 0 | N175: 0 | O175: 0 | P175: 0 | Q175: 0 | R175: 0 | S175: 0 | T175: 0 | U175: 0 | V175: 0 | W175: 0 | X175: 0 | Y175: 0 | Z175: 0 | AA175: 0 | AB175: 0 | AC175: 0 | AD175: 0 | AE175: 0 | AF175: 0 | AG175: 0 | AH175: 0 | AI175: 0 | AJ175: 0 | AK175: 0 | AL175: 0 | AM175: 0 | AN175: 0 | AO175: 0 | AP175: 1 | AQ175: =IF(OR($I$153>AQ$145,$I$157<AQ$144),0,IF($I$153>=AQ$144,(AQ$145-$I$153+1)/AQ$162,IF($I$157<=AQ$145,($I$157-AQ$144+1)/AQ$162,1)))-AQ173 -> 1 | AR175: 0 | AS175: 0 | AT175: 0 | AU175: 0 | AV175: 0 | AW175: 0 | AX175: 0 | AY175: 0 | AZ175: 0 | BA175: 0 | BB175: 0 | BC175: 0 | BD175: 0 | BE175: 0 | BF175: 0 | BG175: 0 | BH175: 0 | BI175: 0 | BJ175: 0 | BK175: 0 | BL175: 0 | BM175: 0 | BN175: 0 | BO175: 0 | BP175: 0 | BQ175: 0 | BR175: 0 | BS175: 0 | BT175: 0 | BU175: 0 | BV175: 0 | BW175: =IF(OR($I$153>BW$145,$I$157<BW$144),0,IF($I$153>=BW$144,(BW$145-$I$153+1)/BW$162,IF($I$157<=BW$145,($I$157-BW$144+1)/BW$162,1)))-BW173 -> 0 | BX175: 0 | BY175: 0 | BZ175: 0 | CA175: 0 | CB175: 0 | CC175: 0 | CD175: 0 | CE175: 0 | CF175: 0 | CG175: 0 | CH175: 0 | CI175: 0 | CJ175: 0 | CK175: 0 | CL175: 0
C177: Tax - Tax rates and capital allowance pools
E179: Operational Year | K179: Year 1 | L179: Year 2 | M179: Year 3 | N179: Year 4 | O179: Year 5 | P179: Year 6 | Q179: Year 7 | R179: Year 8 | S179: Year 9 | T179: Year 10 | U179: Year 11 | V179: Year 12 | W179: Year 13 | X179: Year 14 | Y179: Year 15 | Z179: Year 16 | AA179: Year 17 | AB179: Year 18 | AC179: Year 19 | AD179: Year 20 | AE179: Year 21 | AF179: Year 22 | AG179: Year 23 | AH179: Year 24 | AI179: Year 25 | AJ179: Year 26 | AK179: Year 27 | AL179: Year 28 | AM179: Year 29 | AN179: Year 30 | AO179: Year 31 | AP179: Year 32 | AQ179: Year 33 | AR179: Year 34 | AS179: Year 35 | AT179: Year 36 | AU179: Year 37 | AV179: Year 38 | AW179: Year 39 | AX179: Year 40 | AY179: Year 41 | AZ179: Year 42 | BA179: Year 43 | BB179: Year 44 | BC179: Year 45 | BD179: Year 46 | BE179: Year 47 | BF179: Year 48 | BG179: Year 49 | BH179: Year 50 | BI179: Year 51 | BJ179: Year 52 | BK179: Year 53 | BL179: Year 54 | BM179: Year 55 | BN179: Year 56 | BO179: Year 57 | BP179: Year 58 | BQ179: Year 59 | BR179: Year 60 | BS179: Year 61 | BT179: Year 62 | BU179: Year 63 | BV179: Year 64 | BW179: Year 65 | BX179: Year 66 | BY179: Year 67 | BZ179: Year 68 | CA179: Year 69 | CB179: Year 70 | CC179: Year 71 | CD179: Year 72 | CE179: Year 73 | CF179: Year 74 | CG179: Year 75 | CH179: Year 76 | CI179: Year 77 | CJ179: Year 78 | CK179: Year 79 | CL179: Year 80
E181: Allocation of Opening RAV to "General" tax pool | G181: % | I181: 0.25
E182: Allocation of Opening RAV to "Special Rate" tax pool | G182: % | I182: 0.25
E183: Allocation of Opening RAV to "Structures and Buildings" tax pool | G183: % | I183: 0.25
E184: Allocation of Opening RAV to "Deferred Revenue" tax pool | G184: % | I184: 0.05
E185: Allocation of Opening RAV to "Non-Qualifying" tax pool | G185: % | I185: =1-SUM(I181:I184) -> 0.2
E187: Capital pool used for replacement expenditure (repex) | G187: Capital pool | I187: General
E189: Corporation tax rate | G189: % | K189: 0.25 | L189: 0.25 | M189: 0.25 | N189: 0.25 | O189: 0.25 | P189: 0.25 | Q189: 0.25 | R189: 0.25 | S189: 0.25 | T189: 0.25 | U189: 0.25 | V189: 0.25 | W189: 0.25 | X189: 0.25 | Y189: 0.25 | Z189: 0.25 | AA189: 0.25 | AB189: 0.25 | AC189: 0.25 | AD189: 0.25 | AE189: 0.25 | AF189: 0.25 | AG189: 0.25 | AH189: 0.25 | AI189: 0.25 | AJ189: 0.25 | AK189: 0.25 | AL189: 0.25 | AM189: 0.25 | AN189: 0.25 | AO189: 0.25 | AP189: 0.25 | AQ189: 0.25 | AR189: 0.25 | AS189: 0.25 | AT189: 0.25 | AU189: 0.25 | AV189: 0.25 | AW189: 0.25 | AX189: 0.25 | AY189: 0.25 | AZ189: 0.25 | BA189: 0.25 | BB189: 0.25 | BC189: 0.25 | BD189: 0.25 | BE189: 0.25 | BF189: 0.25 | BG189: 0.25 | BH189: 0.25 | BI189: 0.25 | BJ189: 0.25 | BK189: 0.25 | BL189: 0.25 | BM189: 0.25 | BN189: 0.25 | BO189: 0.25 | BP189: 0.25 | BQ189: 0.25 | BR189: 0.25 | BS189: 0.25 | BT189: 0.25 | BU189: 0.25 | BV189: 0.25 | BW189: 0.25 | BX189: 0.25 | BY189: 0.25 | BZ189: 0.25 | CA189: 0.25 | CB189: 0.25 | CC189: 0.25 | CD189: 0.25 | CE189: 0.25 | CF189: 0.25 | CG189: 0.25 | CH189: 0.25 | CI189: 0.25 | CJ189: 0.25 | CK189: 0.25 | CL189: 0.25
E190: General pool capital allowance rate | G190: % | K190: 0.18 | L190: 0.18 | M190: 0.18 | N190: 0.18 | O190: 0.18 | P190: 0.18 | Q190: 0.18 | R190: 0.18 | S190: 0.18 | T190: 0.18 | U190: 0.18 | V190: 0.18 | W190: 0.18 | X190: 0.18 | Y190: 0.18 | Z190: 0.18 | AA190: 0.18 | AB190: 0.18 | AC190: 0.18 | AD190: 0.18 | AE190: 0.18 | AF190: 0.18 | AG190: 0.18 | AH190: 0.18 | AI190: 0.18 | AJ190: 0.18 | AK190: 0.18 | AL190: 0.18 | AM190: 0.18 | AN190: 0.18 | AO190: 0.18 | AP190: 0.18 | AQ190: 0.18 | AR190: 0.18 | AS190: 0.18 | AT190: 0.18 | AU190: 0.18 | AV190: 0.18 | AW190: 0.18 | AX190: 0.18 | AY190: 0.18 | AZ190: 0.18 | BA190: 0.18 | BB190: 0.18 | BC190: 0.18 | BD190: 0.18 | BE190: 0.18 | BF190: 0.18 | BG190: 0.18 | BH190: 0.18 | BI190: 0.18 | BJ190: 0.18 | BK190: 0.18 | BL190: 0.18 | BM190: 0.18 | BN190: 0.18 | BO190: 0.18 | BP190: 0.18 | BQ190: 0.18 | BR190: 0.18 | BS190: 0.18 | BT190: 0.18 | BU190: 0.18 | BV190: 0.18 | BW190: 0.18 | BX190: 0.18 | BY190: 0.18 | BZ190: 0.18 | CA190: 0.18 | CB190: 0.18 | CC190: 0.18 | CD190: 0.18 | CE190: 0.18 | CF190: 0.18 | CG190: 0.18 | CH190: 0.18 | CI190: 0.18 | CJ190: 0.18 | CK190: 0.18 | CL190: 0.18
E191: Special Rates capital allowance rate | G191: % | K191: 0.06 | L191: 0.06 | M191: 0.06 | N191: 0.06 | O191: 0.06 | P191: 0.06 | Q191: 0.06 | R191: 0.06 | S191: 0.06 | T191: 0.06 | U191: 0.06 | V191: 0.06 | W191: 0.06 | X191: 0.06 | Y191: 0.06 | Z191: 0.06 | AA191: 0.06 | AB191: 0.06 | AC191: 0.06 | AD191: 0.06 | AE191: 0.06 | AF191: 0.06 | AG191: 0.06 | AH191: 0.06 | AI191: 0.06 | AJ191: 0.06 | AK191: 0.06 | AL191: 0.06 | AM191: 0.06 | AN191: 0.06 | AO191: 0.06 | AP191: 0.06 | AQ191: 0.06 | AR191: 0.06 | AS191: 0.06 | AT191: 0.06 | AU191: 0.06 | AV191: 0.06 | AW191: 0.06 | AX191: 0.06 | AY191: 0.06 | AZ191: 0.06 | BA191: 0.06 | BB191: 0.06 | BC191: 0.06 | BD191: 0.06 | BE191: 0.06 | BF191: 0.06 | BG191: 0.06 | BH191: 0.06 | BI191: 0.06 | BJ191: 0.06 | BK191: 0.06 | BL191: 0.06 | BM191: 0.06 | BN191: 0.06 | BO191: 0.06 | BP191: 0.06 | BQ191: 0.06 | BR191: 0.06 | BS191: 0.06 | BT191: 0.06 | BU191: 0.06 | BV191: 0.06 | BW191: 0.06 | BX191: 0.06 | BY191: 0.06 | BZ191: 0.06 | CA191: 0.06 | CB191: 0.06 | CC191: 0.06 | CD191: 0.06 | CE191: 0.06 | CF191: 0.06 | CG191: 0.06 | CH191: 0.06 | CI191: 0.06 | CJ191: 0.06 | CK191: 0.06 | CL191: 0.06
E192: Structures and buildings capital allowance rate | G192: % | K192: 0.03 | L192: 0.03 | M192: 0.03 | N192: 0.03 | O192: 0.03 | P192: 0.03 | Q192: 0.03 | R192: 0.03 | S192: 0.03 | T192: 0.03 | U192: 0.03 | V192: 0.03 | W192: 0.03 | X192: 0.03 | Y192: 0.03 | Z192: 0.03 | AA192: 0.03 | AB192: 0.03 | AC192: 0.03 | AD192: 0.03 | AE192: 0.03 | AF192: 0.03 | AG192: 0.03 | AH192: 0.03 | AI192: 0.03 | AJ192: 0.03 | AK192: 0.03 | AL192: 0.03 | AM192: 0.03 | AN192: 0.03 | AO192: 0.03 | AP192: 0.03 | AQ192: 0.03 | AR192: 0.03 | AS192: 0.03 | AT192: 0.03 | AU192: 0.03 | AV192: 0.03 | AW192: 0.03 | AX192: 0.03 | AY192: 0.03 | AZ192: 0.03 | BA192: 0.03 | BB192: 0.03 | BC192: 0.03 | BD192: 0.03 | BE192: 0.03 | BF192: 0.03 | BG192: 0.03 | BH192: 0.03 | BI192: 0.03 | BJ192: 0.03 | BK192: 0.03 | BL192: 0.03 | BM192: 0.03 | BN192: 0.03 | BO192: 0.03 | BP192: 0.03 | BQ192: 0.03 | BR192: 0.03 | BS192: 0.03 | BT192: 0.03 | BU192: 0.03 | BV192: 0.03 | BW192: 0.03 | BX192: 0.03 | BY192: 0.03 | BZ192: 0.03 | CA192: 0.03 | CB192: 0.03 | CC192: 0.03 | CD192: 0.03 | CE192: 0.03 | CF192: 0.03 | CG192: 0.03 | CH192: 0.03 | CI192: 0.03 | CJ192: 0.03 | CK192: 0.03 | CL192: 0.03
E193: Deferred Revenue Expenditure capital allowance rate | G193: % | K193: 0.04 | L193: 0.04 | M193: 0.04 | N193: 0.04 | O193: 0.04 | P193: 0.04 | Q193: 0.04 | R193: 0.04 | S193: 0.04 | T193: 0.04 | U193: 0.04 | V193: 0.04 | W193: 0.04 | X193: 0.04 | Y193: 0.04 | Z193: 0.04 | AA193: 0.04 | AB193: 0.04 | AC193: 0.04 | AD193: 0.04 | AE193: 0.04 | AF193: 0.04 | AG193: 0.04 | AH193: 0.04 | AI193: 0.04 | AJ193: 0.04 | AK193: 0.04 | AL193: 0.04 | AM193: 0.04 | AN193: 0.04 | AO193: 0.04 | AP193: 0.04 | AQ193: 0.04 | AR193: 0.04 | AS193: 0.04 | AT193: 0.04 | AU193: 0.04 | AV193: 0.04 | AW193: 0.04 | AX193: 0.04 | AY193: 0.04 | AZ193: 0.04 | BA193: 0.04 | BB193: 0.04 | BC193: 0.04 | BD193: 0.04 | BE193: 0.04 | BF193: 0.04 | BG193: 0.04 | BH193: 0.04 | BI193: 0.04 | BJ193: 0.04 | BK193: 0.04 | BL193: 0.04 | BM193: 0.04 | BN193: 0.04 | BO193: 0.04 | BP193: 0.04 | BQ193: 0.04 | BR193: 0.04 | BS193: 0.04 | BT193: 0.04 | BU193: 0.04 | BV193: 0.04 | BW193: 0.04 | BX193: 0.04 | BY193: 0.04 | BZ193: 0.04 | CA193: 0.04 | CB193: 0.04 | CC193: 0.04 | CD193: 0.04 | CE193: 0.04 | CF193: 0.04 | CG193: 0.04 | CH193: 0.04 | CI193: 0.04 | CJ193: 0.04 | CK193: 0.04 | CL193: 0.04
E195: General pool additions first year allowance | G195: % | I195: 1
E196: Special rate pool additions first year allowance | G196: % | I196: 0.5
E198: General pool additions qualifying for first year allowance | G198: % | I198: 1
E199: Special rate pool additions qualifying for first year allowance | G199: % | I199: 1
E201: De-minimis threshold for carried forward tax losses | G201: £m nominal | I201: 5
E202: Proportion of profits that can be offset by carried forward tax losses | G202: % | I202: 0.5
C204: Tax - inflation
E206: Regime year | K206: =K167 -> 0 | L206: 0 | M206: 0 | N206: 0 | O206: =O167 -> 1 | P206: 2 | Q206: 3 | R206: 4 | S206: 5 | T206: 6 | U206: 7 | V206: 8 | W206: 9 | X206: 10 | Y206: 11 | Z206: 12 | AA206: 13 | AB206: 14 | AC206: 15 | AD206: 16 | AE206: 17 | AF206: 18 | AG206: 19 | AH206: 20 | AI206: 21 | AJ206: 22 | AK206: 23 | AL206: 24 | AM206: 25 | AN206: 26 | AO206: 27 | AP206: 28 | AQ206: 29 | AR206: 30 | AS206: 0 | AT206: 0 | AU206: 0 | AV206: 0 | AW206: 0 | AX206: 0 | AY206: 0 | AZ206: 0 | BA206: 0 | BB206: 0 | BC206: 0 | BD206: 0 | BE206: 0 | BF206: 0 | BG206: 0 | BH206: 0 | BI206: =BI167 -> 0 | BJ206: 0 | BK206: 0 | BL206: 0 | BM206: 0 | BN206: 0 | BO206: 0 | BP206: 0 | BQ206: 0 | BR206: 0 | BS206: 0 | BT206: 0 | BU206: 0 | BV206: 0 | BW206: 0 | BX206: 0 | BY206: 0 | BZ206: 0 | CA206: 0 | CB206: 0 | CC206: 0 | CD206: 0 | CE206: 0 | CF206: 0 | CG206: 0 | CH206: 0 | CI206: 0 | CJ206: 0 | CK206: 0 | CL206: 0
E207: Expected UK CPIH Inflation | K207: =K21 -> 0.02 | L207: =L21 -> 0.02 | M207: 0.02 | N207: 0.02 | O207: 0.02 | P207: 0.02 | Q207: 0.02 | R207: 0.02 | S207: 0.02 | T207: 0.02 | U207: 0.02 | V207: 0.02 | W207: 0.02 | X207: 0.02 | Y207: 0.02 | Z207: 0.02 | AA207: 0.02 | AB207: 0.02 | AC207: 0.02 | AD207: 0.02 | AE207: 0.02 | AF207: 0.02 | AG207: 0.02 | AH207: 0.02 | AI207: 0.02 | AJ207: 0.02 | AK207: 0.02 | AL207: 0.02 | AM207: 0.02 | AN207: 0.02 | AO207: 0.02 | AP207: 0.02 | AQ207: 0.02 | AR207: 0.02 | AS207: 0.02 | AT207: 0.02 | AU207: 0.02 | AV207: 0.02 | AW207: 0.02 | AX207: 0.02 | AY207: 0.02 | AZ207: 0.02 | BA207: 0.02 | BB207: 0.02 | BC207: 0.02 | BD207: 0.02 | BE207: 0.02 | BF207: 0.02 | BG207: 0.02 | BH207: 0.02 | BI207: 0.02 | BJ207: 0.02 | BK207: 0.02 | BL207: 0.02 | BM207: 0.02 | BN207: 0.02 | BO207: 0.02 | BP207: 0.02 | BQ207: 0.02 | BR207: 0.02 | BS207: 0.02 | BT207: 0.02 | BU207: 0.02 | BV207: 0.02 | BW207: 0.02 | BX207: =BX21 -> 0.02 | BY207: 0.02 | BZ207: 0.02 | CA207: 0.02 | CB207: 0.02 | CC207: 0.02 | CD207: 0.02 | CE207: 0.02 | CF207: 0.02 | CG207: 0.02 | CH207: 0.02 | CI207: 0.02 | CJ207: 0.02 | CK207: 0.02 | CL207: 0.02
E209: Long-term expected UK CPIH inflation | G209: % | I209: 0.02
E210: Start of price base year | G210: date | I210: 2024-01-01
E211: End of price base year | G211: date | I211: =EOMONTH(I210,11) -> 2024-12-31
E212: UK CPIH uplift from 2024 term to start of regime | G212: scalar | I212: =INDEX($K$23:$CL$23,MATCH(1,IF(I150>=$K$12:$CL$12,IF(I150<=$K$13:$CL$13,1)),0)) -> 1.104080803
B214: End of sheet

Sheet Data_Sources
A1: Data Sources | H1: Licence | I1: Reference row in
E2: Parameter | G2: Units | H2: Terminology | I2: Inputs sheet | K2: Source | L2: Link
B4: Indexation, currency and base year price term
E6: =Inputs!E6 -> Base year price term | G6: =Inputs!G6 -> £m 2024 prices | I6: =ROW(Inputs!E6) -> 6 | K6: Ofgem input
B8: Variables set after financial close
C10: Actual values
E12: =Inputs!E15 -> Development expenditure (Devex) | G12: =Inputs!G15 -> £m nominal prices | I12: =ROW(Inputs!E15) -> 15 | K12: Developer input
E13: =Inputs!E16 -> Capital expenditure (Capex) | G13: =Inputs!G16 -> £m nominal prices | I13: =ROW(Inputs!E16) -> 16 | K13: Developer input
E14: =Inputs!E17 -> Spares | G14: =Inputs!G17 -> £m nominal prices | I14: =ROW(Inputs!E17) -> 17 | K14: Developer input
E16: =Inputs!E19 -> Base year UK CPIH inflation index value (L522) | G16: =Inputs!G19 -> Jan 2015 = 100 | H16: =Inputs!H19 -> UK CPIH index 2024 | I16: =ROW(Inputs!E19) -> 19 | K16: Office for National Statistics | L16: CPIH Index 00: All Items 2015=100
E17: =Inputs!E21 -> Expected UK CPIH Inflation | G17: % | I17: =ROW(Inputs!E21) -> 21 | K17: Ofgem input
E19: Residual value | G19: =Inputs!G29 -> £m 2024 prices | I19: =ROW(Inputs!E29) -> 29 | K19: Ofgem default assumption (can be replaced by developer)
C21: Ex-ante allowances for the operational period
E23: =Inputs!E35 -> Replacement expenditure (Repex) | G23: =Inputs!G35 -> £m 2024 prices | I23: =ROW(Inputs!E35) -> 35 | K23: Developer inputs from data submission form (DSF)
E24: =Inputs!E36 -> Decommissioning baseline | G24: =Inputs!G36 -> £m 2024 prices | I24: =ROW(Inputs!E36) -> 36 | K24: Developer inputs from data submission form (DSF)
E25: =Inputs!E37 -> Controllable Opex | G25: =Inputs!G37 -> £m 2024 prices | I25: =ROW(Inputs!E37) -> 37 | K25: Developer inputs from data submission form (DSF)
E26: =Inputs!E38 -> Non-controllable Opex baseline | G26: =Inputs!G38 -> £m 2024 prices | I26: =ROW(Inputs!E38) -> 38 | K26: Developer inputs from data submission form (DSF)
B28: Variables set at financial close
C30: Finance
E32: =Inputs!E44 -> Cap return rate | G32: =Inputs!G44 -> real annual % | I32: =ROW(Inputs!E44) -> 44 | K32: Ofgem input
E33: =Inputs!E45 -> Floor return rate | G33: =Inputs!G45 -> real annual % | I33: =ROW(Inputs!E45) -> 45 | K33: Ofgem input
E34: =Inputs!E48 -> Administrative interest during construction (IDC) rate | G34: =Inputs!G48 -> real annual % | I34: =ROW(Inputs!E48) -> 48 | K34: Ofgem input
E36: =Inputs!E50 -> Pre-operational notional gearing | G36: =Inputs!G50 -> % | I36: =ROW(Inputs!E50) -> 50 | K36: Ofgem input
E37: =Inputs!E51 -> Operational notional gearing | G37: =Inputs!G51 -> % | I37: =ROW(Inputs!E51) -> 51 | K37: Ofgem input
E39: =Inputs!E53 -> Equity transaction costs | G39: =Inputs!G53 -> % | I39: =ROW(Inputs!E53) -> 53 | K39: Ofgem input
E40: =Inputs!E54 -> Debt transaction costs | G40: =Inputs!G54 -> % | I40: =ROW(Inputs!E54) -> 54 | K40: Ofgem input
C42: Actual cost of debt
E44: General financing inputs
E46: =Inputs!E60 -> Project finance key input: senior debt amount or gearing | G46: =Inputs!G60 -> 1: Amount (£m) 2: Gearing (%) | I46: =ROW(Inputs!E60) -> 60 | K46: Developer input
E47: =Inputs!E61 -> Project finance senior debt amount (input if 1; empty if 2) | G47: =Inputs!G61 -> £m nominal prices | I47: =ROW(Inputs!E61) -> 61 | K47: Developer input
E48: =Inputs!E62 -> Project finance actual gearing (input if 2; empty if 1) | G48: =Inputs!G62 -> % | I48: =ROW(Inputs!E62) -> 62 | K48: Developer input
E50: =Inputs!E64 -> Proportion of debt fixed-rate | G50: =Inputs!G64 -> % | I50: =ROW(Inputs!E64) -> 64 | K50: Developer input
E52: =Inputs!E66 -> Senior Debt tenor | G52: =Inputs!G66 -> full years | I52: =ROW(Inputs!E66) -> 66 | K52: Developer input
E53: =Inputs!E67 -> Senior Debt tail requirement | G53: =Inputs!G67 -> full years | I53: =ROW(Inputs!E67) -> 67 | K53: Developer input
E54: =Inputs!E68 -> DSCR sizing | G54: =Inputs!G68 -> DSCRx | I54: =ROW(Inputs!E68) -> 68 | K54: Developer input
E56: =Inputs!E70 -> Fixed rate - Construction | G56: =Inputs!G70 -> nominal % | I56: =ROW(Inputs!E70) -> 70 | K56: Developer input
E57: =Inputs!E71 -> Fixed rate - Operation | G57: =Inputs!G71 -> nominal % | I57: =ROW(Inputs!E71) -> 71 | K57: Developer input
E59: =Inputs!E73 -> Senior Debt construction margin | G59: =Inputs!G73 -> nominal % | I59: =ROW(Inputs!E73) -> 73 | K59: Developer input
E60: =Inputs!E74 -> of which: swap margin | G60: =Inputs!G74 -> nominal % | I60: =ROW(Inputs!E74) -> 74 | K60: Developer input
E61: =Inputs!E75 -> Senior Debt upfront fee | G61: =Inputs!G75 -> nominal % | I61: =ROW(Inputs!E75) -> 75 | K61: Developer input
E62: =Inputs!E76 -> Senior Debt commitment fee | G62: =Inputs!G76 -> % of applicable margin | I62: =ROW(Inputs!E76) -> 76 | K62: Developer input
E64: =Inputs!E78 -> Senior Debt drawdown year | G64: =Inputs!G78 -> Year | I64: =ROW(Inputs!E78) -> 78 | K64: Developer input
E65: =Inputs!E79 -> Senior Debt drawdown profile | G65: =Inputs!G79 -> % | I65: =ROW(Inputs!E79) -> 79 | K65: Developer input
E67: Debt service
E69: =Inputs!E87 -> Debt Service Reserve Facility/Account amount | G69: =Inputs!G87 -> £m nominal prices | I69: =ROW(Inputs!E87) -> 87 | K69: Developer input
E70: =Inputs!E88 -> Debt Service Reserve Facility upfront fee | G70: =Inputs!G88 -> nominal % | I70: =ROW(Inputs!E88) -> 88 | K70: Developer input
E71: =Inputs!E89 -> Debt Service Reserve Facility construction margin | G71: =Inputs!G89 -> nominal % | I71: =ROW(Inputs!E89) -> 89 | K71: Developer input
E72: =Inputs!E90 -> Debt Service Reserve Facility commitment fee | G72: =Inputs!G90 -> % of applicable margin | I72: =ROW(Inputs!E90) -> 90 | K72: Developer input
E74: Cap and floor liquidity facility
E76: =Inputs!E94 -> Cap and Floor Liquidity Facility amount | G76: =Inputs!G94 -> £m nominal prices | I76: =ROW(Inputs!E94) -> 94 | K76: Developer input
E77: =Inputs!E96 -> Cap and Floor Liquidity Facility upfront fee | G77: =Inputs!G96 -> nominal % | I77: =ROW(Inputs!E96) -> 96 | K77: Developer input
E78: =Inputs!E97 -> Cap and Floor Liquidity Facility construction margin | G78: =Inputs!G97 -> nominal % | I78: =ROW(Inputs!E97) -> 97 | K78: Developer input
E79: =Inputs!E98 -> Cap and Floor Liquidity Facility commitment fee | G79: =Inputs!G98 -> % of applicable margin | I79: =ROW(Inputs!E98) -> 98 | K79: Developer input
E81: Standby debt facility
E83: =Inputs!E102 -> Standby Debt Facility amount | G83: =Inputs!G102 -> £m nominal prices | I83: =ROW(Inputs!E102) -> 102 | K83: Developer input
E84: =Inputs!E103 -> Standby Debt Facility upfront fee | G84: =Inputs!G103 -> nominal % | I84: =ROW(Inputs!E103) -> 103 | K84: Developer input
E85: =Inputs!E104 -> Standby Debt Facility construction margin | G85: =Inputs!G104 -> nominal % | I85: =ROW(Inputs!E104) -> 104 | K85: Developer input
E86: =Inputs!E105 -> Standby Debt Facility commitment fee | G86: =Inputs!G105 -> % of applicable margin | I86: =ROW(Inputs!E105) -> 105 | K86: Developer input
E88: VAT facility
E90: =Inputs!E109 -> VAT Facility amount | G90: =Inputs!G109 -> £m nominal prices | I90: =ROW(Inputs!E109) -> 109 | K90: Developer input
E91: =Inputs!E110 -> VAT Facility average outstanding loan | G91: =Inputs!G110 -> £m nominal prices | I91: =ROW(Inputs!E110) -> 110 | K91: Developer input
E92: =Inputs!E111 -> VAT Facility upfront fee | G92: =Inputs!G111 -> nominal % | I92: =ROW(Inputs!E111) -> 111 | K92: Developer input
E93: =Inputs!E112 -> VAT Facility construction margin | G93: =Inputs!G112 -> nominal % | I93: =ROW(Inputs!E112) -> 112 | K93: Developer input
E94: =Inputs!E113 -> VAT Facility commitment fee | G94: =Inputs!G113 -> % of applicable margin | I94: =ROW(Inputs!E113) -> 113 | K94: Developer input
E96: Other facilities
E98: =Inputs!E117 -> Other Facilities amount | G98: =Inputs!G117 -> £m nominal prices | I98: =ROW(Inputs!E117) -> 117 | K98: Developer input
E99: =Inputs!E118 -> Other Facilities upfront fee | G99: =Inputs!G118 -> nominal % | I99: =ROW(Inputs!E118) -> 118 | K99: Developer input
E100: =Inputs!E119 -> Other Facilities construction margin | G100: =Inputs!G119 -> nominal % | I100: =ROW(Inputs!E119) -> 119 | K100: Developer input
E101: =Inputs!E120 -> Other Facilities commitment fee | G101: =Inputs!G120 -> % of applicable margin | I101: =ROW(Inputs!E120) -> 120 | K101: Developer input
E103: Switches and flags
E105: =Inputs!E124 -> Debt Service Reserve: Facility or Account | G105: =Inputs!G124 -> 1: DSRF 2: DSRA | I105: =ROW(Inputs!E124) -> 124 | K105: Developer input
E106: =Inputs!E125 -> Switch for transaction costs in taxes | G106: =Inputs!G125 -> 1: notional costs 2: actual costs | I106: =ROW(Inputs!E125) -> 125 | K106: Developer input
E108: Debt repayment schedule and operating margins
E110: =Inputs!E132 -> Senior Debt repayment year | G110: =Inputs!G132 -> Year | I110: =ROW(Inputs!E132) -> 132 | K110: Developer input
E111: =Inputs!E133 -> Senior Debt repayment profile | G111: =Inputs!G133 -> % | I111: =ROW(Inputs!E133) -> 133 | K111: Developer input
E113: =Inputs!E135 -> Senior Debt operation margin (including swap margin) | G113: =Inputs!G135 -> nominal % | I113: =ROW(Inputs!E135) -> 135 | K113: Developer input
E114: =Inputs!E136 -> Debt Service Reserve Facility operation margin | G114: =Inputs!G136 -> nominal % | I114: =ROW(Inputs!E136) -> 136 | K114: Developer input
E115: =Inputs!E137 -> Cap and Floor Liquidity Facility operation margin | G115: =Inputs!G137 -> nominal % | I115: =ROW(Inputs!E137) -> 137 | K115: Developer input
E116: =Inputs!E138 -> Standby Debt Facility operation margin | G116: =Inputs!G138 -> nominal % | I116: =ROW(Inputs!E138) -> 138 | K116: Developer input
E117: =Inputs!E139 -> VAT Facility operation margin | G117: =Inputs!G139 -> nominal % | I117: =ROW(Inputs!E139) -> 139 | K117: Developer input
E118: =Inputs!E140 -> Other facilities operation margin | G118: =Inputs!G140 -> nominal % | I118: =ROW(Inputs!E140) -> 140 | K118: Developer input
C120: Model operation
E122: =Inputs!E147 -> Partial inflation indexation switch | G122: Yes/No | I122: =ROW(Inputs!E147) -> 147 | K122: Ofgem input
E123: =Inputs!E149 -> Model start date | G123: =Inputs!G149 -> date | I123: =ROW(Inputs!E149) -> 149 | K123: Ofgem input
E124: =Inputs!E150 -> Regime start date | G124: =Inputs!G150 -> date | I124: =ROW(Inputs!I150) -> 150 | K124: Developer inputs from data submission form (DSF)
E125: =Inputs!E151 -> End date for IDC | G125: =Inputs!G151 -> date | I125: =ROW(Inputs!I151) -> 151 | K125: Developer inputs from data submission form (DSF)
E126: =Inputs!E152 -> Planned start of operations | G126: =Inputs!G152 -> date | I126: =ROW(Inputs!I152) -> 152 | K126: Developer inputs from data submission form (DSF)
E127: =Inputs!E153 -> Actual start of operations | G127: =Inputs!G153 -> date | I127: =ROW(Inputs!I153) -> 153 | K127: Developer inputs from data submission form (DSF)
E128: =Inputs!E158 -> Regime duration | G128: =Inputs!G158 -> full years | I128: =ROW(Inputs!I158) -> 158 | K128: Ofgem default assumption (can be replaced by developer)
C130: Tax
E132: =Inputs!E181 -> Allocation of Opening RAV to "General" tax pool | G132: =Inputs!G181 -> % | I132: =ROW(Inputs!E181) -> 181 | K132: Developer inputs from data submission form (DSF)
E133: =Inputs!E182 -> Allocation of Opening RAV to "Special Rate" tax pool | G133: =Inputs!G182 -> % | I133: =ROW(Inputs!E182) -> 182 | K133: Developer inputs from data submission form (DSF)
E134: =Inputs!E183 -> Allocation of Opening RAV to "Structures and Buildings" tax pool | G134: =Inputs!G183 -> % | I134: =ROW(Inputs!E183) -> 183 | K134: Developer inputs from data submission form (DSF)
E135: =Inputs!E184 -> Allocation of Opening RAV to "Deferred Revenue" tax pool | G135: =Inputs!G184 -> % | I135: =ROW(Inputs!E184) -> 184 | K135: Developer inputs from data submission form (DSF)
E136: =Inputs!E185 -> Allocation of Opening RAV to "Non-Qualifying" tax pool | G136: =Inputs!G185 -> % | I136: =ROW(Inputs!E185) -> 185 | K136: Ofgem input - Balancing figure
E138: =Inputs!E187 -> Capital pool used for replacement expenditure (repex) | G138: =Inputs!G187 -> Capital pool | I138: =ROW(Inputs!E187) -> 187 | K138: Developer inputs from data submission form (DSF)
E140: =Inputs!E189 -> Corporation tax rate | G140: =Inputs!G189 -> % | I140: =ROW(Inputs!E189) -> 189 | K140: HM Revenue and Customs
E141: =Inputs!E190 -> General pool capital allowance rate | G141: =Inputs!G190 -> % | I141: =ROW(Inputs!E190) -> 190 | K141: HM Revenue and Customs
E142: =Inputs!E191 -> Special Rates capital allowance rate | G142: =Inputs!G191 -> % | I142: =ROW(Inputs!E191) -> 191 | K142: HM Revenue and Customs
E143: =Inputs!E192 -> Structures and buildings capital allowance rate | G143: =Inputs!G192 -> % | I143: =ROW(Inputs!E192) -> 192 | K143: HM Revenue and Customs
E144: =Inputs!E193 -> Deferred Revenue Expenditure capital allowance rate | G144: =Inputs!G193 -> % | I144: =ROW(Inputs!E193) -> 193 | K144: Ofgem default assumption (can be replaced by developer)
E146: =Inputs!E195 -> General pool additions first year allowance | G146: =Inputs!G195 -> % | I146: =ROW(Inputs!E195) -> 195 | K146: HM Revenue and Customs
E147: =Inputs!E196 -> Special rate pool additions first year allowance | G147: =Inputs!G196 -> % | I147: =ROW(Inputs!E196) -> 196 | K147: HM Revenue and Customs
E149: =Inputs!E198 -> General pool additions qualifying for first year allowance | G149: =Inputs!G198 -> % | I149: =ROW(Inputs!E198) -> 198 | K149: HM Revenue and Customs
E150: =Inputs!E199 -> Special rate pool additions qualifying for first year allowance | G150: =Inputs!G199 -> % | I150: =ROW(Inputs!E199) -> 199 | K150: HM Revenue and Customs
E152: =Inputs!E201 -> De-minimis threshold for carried forward tax losses | G152: =Inputs!G201 -> £m nominal | I152: =ROW(Inputs!E201) -> 201 | K152: HM Revenue and Customs
E153: =Inputs!E202 -> Proportion of profits that can be offset by carried forward tax losses | G153: =Inputs!G202 -> % | I153: =ROW(Inputs!E202) -> 202 | K153: HM Revenue and Customs
E155: =Inputs!E209 -> Long-term expected UK CPIH inflation | G155: =Inputs!G209 -> % | I155: =ROW(Inputs!E209) -> 209 | K155: Ofgem input
E156: =Inputs!E210 -> Start of price base year | G156: =Inputs!G210 -> date | I156: =ROW(Inputs!E210) -> 210 | K156: Ofgem input
B158: End of sheet

Sheet Pre_Op_RAV
A1: Pre Op RAV | H1: Licence
E2: Parameter | G2: Units | H2: Terminology | I2: Constant | K2: Annual values
E3: Year commencing | K3: =Inputs!K12 -> 2025-01-01 | L3: =+K4+1 -> 2026-01-01 | M3: 2027-01-01 | N3: 2028-01-01 | O3: 2029-01-01 | P3: 2030-01-01 | Q3: 2031-01-01 | R3: 2032-01-01 | S3: 2033-01-01 | T3: 2034-01-01 | U3: 2035-01-01 | V3: 2036-01-01 | W3: 2037-01-01 | X3: 2038-01-01 | Y3: 2039-01-01 | Z3: 2040-01-01 | AA3: 2041-01-01 | AB3: 2042-01-01 | AC3: 2043-01-01 | AD3: 2044-01-01 | AE3: 2045-01-01 | AF3: 2046-01-01 | AG3: 2047-01-01 | AH3: 2048-01-01 | AI3: 2049-01-01 | AJ3: 2050-01-01 | AK3: 2051-01-01 | AL3: 2052-01-01 | AM3: 2053-01-01 | AN3: 2054-01-01 | AO3: 2055-01-01 | AP3: 2056-01-01 | AQ3: 2057-01-01 | AR3: 2058-01-01 | AS3: 2059-01-01 | AT3: 2060-01-01 | AU3: 2061-01-01 | AV3: 2062-01-01 | AW3: 2063-01-01 | AX3: 2064-01-01 | AY3: =+AX4+1 -> 2065-01-01 | AZ3: =+AY4+1 -> 2066-01-01 | BA3: =+AZ4+1 -> 2067-01-01 | BB3: =+BA4+1 -> 2068-01-01 | BC3: =+BB4+1 -> 2069-01-01 | BD3: =+BC4+1 -> 2070-01-01 | BE3: =+BD4+1 -> 2071-01-01 | BF3: =+BE4+1 -> 2072-01-01 | BG3: =+BF4+1 -> 2073-01-01 | BH3: =+BG4+1 -> 2074-01-01 | BI3: =+BH4+1 -> 2075-01-01 | BJ3: =+BI4+1 -> 2076-01-01 | BK3: =+BJ4+1 -> 2077-01-01 | BL3: =+BK4+1 -> 2078-01-01 | BM3: =+BL4+1 -> 2079-01-01 | BN3: =+BM4+1 -> 2080-01-01 | BO3: =+BN4+1 -> 2081-01-01 | BP3: =+BO4+1 -> 2082-01-01 | BQ3: =+BP4+1 -> 2083-01-01 | BR3: =+BQ4+1 -> 2084-01-01 | BS3: =+BR4+1 -> 2085-01-01 | BT3: =+BS4+1 -> 2086-01-01 | BU3: =+BT4+1 -> 2087-01-01 | BV3: =+BU4+1 -> 2088-01-01 | BW3: =+BV4+1 -> 2089-01-01 | BX3: =+BW4+1 -> 2090-01-01 | BY3: =+BX4+1 -> 2091-01-01 | BZ3: =+BY4+1 -> 2092-01-01 | CA3: =+BZ4+1 -> 2093-01-01 | CB3: =+CA4+1 -> 2094-01-01 | CC3: =+CB4+1 -> 2095-01-01 | CD3: =+CC4+1 -> 2096-01-01 | CE3: =+CD4+1 -> 2097-01-01 | CF3: =+CE4+1 -> 2098-01-01 | CG3: =+CF4+1 -> 2099-01-01 | CH3: =+CG4+1 -> 2100-01-01 | CI3: =+CH4+1 -> 2101-01-01 | CJ3: =+CI4+1 -> 2102-01-01 | CK3: =+CJ4+1 -> 2103-01-01 | CL3: =+CK4+1 -> 2104-01-01
E4: Year ending | K4: =Inputs!K13 -> 2025-12-31 | L4: =DATE(YEAR(K4) + 1, MONTH(K4), DAY(K4)) -> 2026-12-31 | M4: 2027-12-31 | N4: 2028-12-31 | O4: 2029-12-31 | P4: 2030-12-31 | Q4: 2031-12-31 | R4: 2032-12-31 | S4: 2033-12-31 | T4: 2034-12-31 | U4: 2035-12-31 | V4: 2036-12-31 | W4: 2037-12-31 | X4: 2038-12-31 | Y4: 2039-12-31 | Z4: 2040-12-31 | AA4: 2041-12-31 | AB4: 2042-12-31 | AC4: 2043-12-31 | AD4: 2044-12-31 | AE4: 2045-12-31 | AF4: 2046-12-31 | AG4: 2047-12-31 | AH4: 2048-12-31 | AI4: 2049-12-31 | AJ4: 2050-12-31 | AK4: 2051-12-31 | AL4: 2052-12-31 | AM4: 2053-12-31 | AN4: 2054-12-31 | AO4: 2055-12-31 | AP4: 2056-12-31 | AQ4: 2057-12-31 | AR4: 2058-12-31 | AS4: 2059-12-31 | AT4: 2060-12-31 | AU4: 2061-12-31 | AV4: 2062-12-31 | AW4: 2063-12-31 | AX4: 2064-12-31 | AY4: =DATE(YEAR(AX4) + 1, MONTH(AX4), DAY(AX4)) -> 2065-12-31 | AZ4: =DATE(YEAR(AY4) + 1, MONTH(AY4), DAY(AY4)) -> 2066-12-31 | BA4: =DATE(YEAR(AZ4) + 1, MONTH(AZ4), DAY(AZ4)) -> 2067-12-31 | BB4: =DATE(YEAR(BA4) + 1, MONTH(BA4), DAY(BA4)) -> 2068-12-31 | BC4: =DATE(YEAR(BB4) + 1, MONTH(BB4), DAY(BB4)) -> 2069-12-31 | BD4: =DATE(YEAR(BC4) + 1, MONTH(BC4), DAY(BC4)) -> 2070-12-31 | BE4: =DATE(YEAR(BD4) + 1, MONTH(BD4), DAY(BD4)) -> 2071-12-31 | BF4: =DATE(YEAR(BE4) + 1, MONTH(BE4), DAY(BE4)) -> 2072-12-31 | BG4: =DATE(YEAR(BF4) + 1, MONTH(BF4), DAY(BF4)) -> 2073-12-31 | BH4: =DATE(YEAR(BG4) + 1, MONTH(BG4), DAY(BG4)) -> 2074-12-31 | BI4: =DATE(YEAR(BH4) + 1, MONTH(BH4), DAY(BH4)) -> 2075-12-31 | BJ4: =DATE(YEAR(BI4) + 1, MONTH(BI4), DAY(BI4)) -> 2076-12-31 | BK4: =DATE(YEAR(BJ4) + 1, MONTH(BJ4), DAY(BJ4)) -> 2077-12-31 | BL4: =DATE(YEAR(BK4) + 1, MONTH(BK4), DAY(BK4)) -> 2078-12-31 | BM4: =DATE(YEAR(BL4) + 1, MONTH(BL4), DAY(BL4)) -> 2079-12-31 | BN4: =DATE(YEAR(BM4) + 1, MONTH(BM4), DAY(BM4)) -> 2080-12-31 | BO4: =DATE(YEAR(BN4) + 1, MONTH(BN4), DAY(BN4)) -> 2081-12-31 | BP4: =DATE(YEAR(BO4) + 1, MONTH(BO4), DAY(BO4)) -> 2082-12-31 | BQ4: =DATE(YEAR(BP4) + 1, MONTH(BP4), DAY(BP4)) -> 2083-12-31 | BR4: =DATE(YEAR(BQ4) + 1, MONTH(BQ4), DAY(BQ4)) -> 2084-12-31 | BS4: =DATE(YEAR(BR4) + 1, MONTH(BR4), DAY(BR4)) -> 2085-12-31 | BT4: =DATE(YEAR(BS4) + 1, MONTH(BS4), DAY(BS4)) -> 2086-12-31 | BU4: =DATE(YEAR(BT4) + 1, MONTH(BT4), DAY(BT4)) -> 2087-12-31 | BV4: =DATE(YEAR(BU4) + 1, MONTH(BU4), DAY(BU4)) -> 2088-12-31 | BW4: =DATE(YEAR(BV4) + 1, MONTH(BV4), DAY(BV4)) -> 2089-12-31 | BX4: =DATE(YEAR(BW4) + 1, MONTH(BW4), DAY(BW4)) -> 2090-12-31 | BY4: =DATE(YEAR(BX4) + 1, MONTH(BX4), DAY(BX4)) -> 2091-12-31 | BZ4: =DATE(YEAR(BY4) + 1, MONTH(BY4), DAY(BY4)) -> 2092-12-31 | CA4: =DATE(YEAR(BZ4) + 1, MONTH(BZ4), DAY(BZ4)) -> 2093-12-31 | CB4: =DATE(YEAR(CA4) + 1, MONTH(CA4), DAY(CA4)) -> 2094-12-31 | CC4: =DATE(YEAR(CB4) + 1, MONTH(CB4), DAY(CB4)) -> 2095-12-31 | CD4: =DATE(YEAR(CC4) + 1, MONTH(CC4), DAY(CC4)) -> 2096-12-31 | CE4: =DATE(YEAR(CD4) + 1, MONTH(CD4), DAY(CD4)) -> 2097-12-31 | CF4: =DATE(YEAR(CE4) + 1, MONTH(CE4), DAY(CE4)) -> 2098-12-31 | CG4: =DATE(YEAR(CF4) + 1, MONTH(CF4), DAY(CF4)) -> 2099-12-31 | CH4: =DATE(YEAR(CG4) + 1, MONTH(CG4), DAY(CG4)) -> 2100-12-31 | CI4: =DATE(YEAR(CH4) + 1, MONTH(CH4), DAY(CH4)) -> 2101-12-31 | CJ4: =DATE(YEAR(CI4) + 1, MONTH(CI4), DAY(CI4)) -> 2102-12-31 | CK4: =DATE(YEAR(CJ4) + 1, MONTH(CJ4), DAY(CJ4)) -> 2103-12-31 | CL4: =DATE(YEAR(CK4) + 1, MONTH(CK4), DAY(CK4)) -> 2104-12-31
B6: Flags
E8: IDC flag | G8: flag | K8: =Flag_IDC -> 1 | L8: 1 | M8: 1 | N8: 1 | O8: 0 | P8: 0 | Q8: 0 | R8: 0 | S8: 0 | T8: 0 | U8: 0 | V8: 0 | W8: 0 | X8: 0 | Y8: 0 | Z8: 0 | AA8: 0 | AB8: 0 | AC8: 0 | AD8: 0 | AE8: 0 | AF8: 0 | AG8: 0 | AH8: 0 | AI8: 0 | AJ8: 0 | AK8: 0 | AL8: 0 | AM8: 0 | AN8: 0 | AO8: 0 | AP8: 0 | AQ8: 0 | AR8: 0 | AS8: 0 | AT8: 0 | AU8: 0 | AV8: 0 | AW8: 0 | AX8: 0 | AY8: 0 | AZ8: 0 | BA8: 0 | BB8: 0 | BC8: 0 | BD8: 0 | BE8: 0 | BF8: 0 | BG8: 0 | BH8: 0 | BI8: 0 | BJ8: 0 | BK8: 0 | BL8: 0 | BM8: 0 | BN8: 0 | BO8: 0 | BP8: 0 | BQ8: 0 | BR8: 0 | BS8: 0 | BT8: 0 | BU8: 0 | BV8: 0 | BW8: 0 | BX8: 0 | BY8: 0 | BZ8: 0 | CA8: 0 | CB8: 0 | CC8: 0 | CD8: 0 | CE8: 0 | CF8: 0 | CG8: 0 | CH8: 0 | CI8: 0 | CJ8: 0 | CK8: 0 | CL8: 0
E9: Post-IDC and pre-operations flag | G9: flag | K9: =Flag_PostIDCPreOps -> 0 | L9: 0 | M9: 0 | N9: 0 | O9: 1 | P9: 1 | Q9: 0 | R9: 0 | S9: 0 | T9: 0 | U9: 0 | V9: 0 | W9: 0 | X9: 0 | Y9: 0 | Z9: 0 | AA9: 0 | AB9: 0 | AC9: 0 | AD9: 0 | AE9: 0 | AF9: 0 | AG9: 0 | AH9: 0 | AI9: 0 | AJ9: 0 | AK9: 0 | AL9: 0 | AM9: 0 | AN9: 0 | AO9: 0 | AP9: 0 | AQ9: 0 | AR9: 0 | AS9: 0 | AT9: 0 | AU9: 0 | AV9: 0 | AW9: 0 | AX9: 0 | AY9: 0 | AZ9: 0 | BA9: 0 | BB9: 0 | BC9: 0 | BD9: 0 | BE9: 0 | BF9: 0 | BG9: 0 | BH9: 0 | BI9: 0 | BJ9: 0 | BK9: 0 | BL9: 0 | BM9: 0 | BN9: 0 | BO9: 0 | BP9: 0 | BQ9: 0 | BR9: 0 | BS9: 0 | BT9: 0 | BU9: 0 | BV9: 0 | BW9: 0 | BX9: 0 | BY9: 0 | BZ9: 0 | CA9: 0 | CB9: 0 | CC9: 0 | CD9: 0 | CE9: 0 | CF9: 0 | CG9: 0 | CH9: 0 | CI9: 0 | CJ9: 0 | CK9: 0 | CL9: 0
E10: Operations flag | G10: flag | K10: =Flag_Ops -> 0 | L10: 0 | M10: 0 | N10: 0 | O10: 0 | P10: 0 | Q10: 1 | R10: 1 | S10: 1 | T10: 1 | U10: 1 | V10: 1 | W10: 1 | X10: 1 | Y10: 1 | Z10: 1 | AA10: 1 | AB10: 1 | AC10: 1 | AD10: 1 | AE10: 1 | AF10: 1 | AG10: 1 | AH10: 1 | AI10: 1 | AJ10: 1 | AK10: 1 | AL10: 1 | AM10: 1 | AN10: 1 | AO10: 1 | AP10: 1 | AQ10: 1 | AR10: 1 | AS10: 0 | AT10: 0 | AU10: 0 | AV10: 0 | AW10: 0 | AX10: 0 | AY10: 0 | AZ10: 0 | BA10: 0 | BB10: 0 | BC10: 0 | BD10: 0 | BE10: 0 | BF10: 0 | BG10: 0 | BH10: 0 | BI10: 0 | BJ10: 0 | BK10: 0 | BL10: 0 | BM10: 0 | BN10: 0 | BO10: 0 | BP10: 0 | BQ10: 0 | BR10: 0 | BS10: 0 | BT10: 0 | BU10: 0 | BV10: 0 | BW10: 0 | BX10: 0 | BY10: 0 | BZ10: 0 | CA10: 0 | CB10: 0 | CC10: 0 | CD10: 0 | CE10: 0 | CF10: 0 | CG10: 0 | CH10: 0 | CI10: 0 | CJ10: 0 | CK10: 0 | CL10: 0
E11: Transfer construction to operations flag - Notional | G11: flag | K11: =Flag_ConstructionToOpsTransferNotional -> 0 | L11: 0 | M11: 0 | N11: 0 | O11: 1 | P11: 0 | Q11: 0 | R11: 0 | S11: 0 | T11: 0 | U11: 0 | V11: 0 | W11: 0 | X11: 0 | Y11: 0 | Z11: 0 | AA11: 0 | AB11: 0 | AC11: 0 | AD11: 0 | AE11: 0 | AF11: 0 | AG11: 0 | AH11: 0 | AI11: 0 | AJ11: 0 | AK11: 0 | AL11: 0 | AM11: 0 | AN11: 0 | AO11: 0 | AP11: 0 | AQ11: 0 | AR11: 0 | AS11: 0 | AT11: 0 | AU11: 0 | AV11: 0 | AW11: 0 | AX11: 0 | AY11: 0 | AZ11: 0 | BA11: 0 | BB11: 0 | BC11: 0 | BD11: 0 | BE11: 0 | BF11: 0 | BG11: 0 | BH11: 0 | BI11: 0 | BJ11: 0 | BK11: 0 | BL11: 0 | BM11: 0 | BN11: 0 | BO11: 0 | BP11: 0 | BQ11: 0 | BR11: 0 | BS11: 0 | BT11: 0 | BU11: 0 | BV11: 0 | BW11: 0 | BX11: 0 | BY11: 0 | BZ11: 0 | CA11: 0 | CB11: 0 | CC11: 0 | CD11: 0 | CE11: 0 | CF11: 0 | CG11: 0 | CH11: 0 | CI11: 0 | CJ11: 0 | CK11: 0 | CL11: 0
E12: Transfer construction to operations flag - ACOD | G12: flag | K12: =Inputs!L169 -> 0 | L12: 0 | M12: 0 | N12: 0 | O12: 0 | P12: 0 | Q12: 0 | R12: 0 | S12: 0 | T12: 0 | U12: 0 | V12: 0 | W12: 0 | X12: 0 | Y12: 0 | Z12: 0 | AA12: 0 | AB12: 0 | AC12: 0 | AD12: 0 | AE12: 0 | AF12: 0 | AG12: 0 | AH12: 0 | AI12: 0 | AJ12: 0 | AK12: 0 | AL12: 0 | AM12: 0 | AN12: 0 | AO12: 0 | AP12: 0 | AQ12: 0 | AR12: 0 | AS12: 0 | AT12: 0 | AU12: 0 | AV12: 0 | AW12: 0 | AX12: 0 | AY12: 0 | AZ12: 0 | BA12: 0 | BB12: 0 | BC12: 0 | BD12: 0 | BE12: 0 | BF12: 0 | BG12: 0 | BH12: 0 | BI12: 0 | BJ12: 0 | BK12: 0 | BL12: 0 | BM12: 0 | BN12: 0 | BO12: 0 | BP12: 0 | BQ12: 0 | BR12: 0 | BS12: 0 | BT12: 0 | BU12: 0 | BV12: 0 | BW12: 0 | BX12: 0 | BY12: 0 | BZ12: 0 | CA12: 0 | CB12: 0 | CC12: 0 | CD12: 0 | CE12: 0 | CF12: 0 | CG12: 0 | CH12: 0 | CI12: 0 | CJ12: 0 | CK12: 0 | CL12: 0
E13: Financial close flag | G13: flag | K13: =Flag_FinancialClose -> 0 | L13: 1 | M13: 0 | N13: 0 | O13: 0 | P13: 0 | Q13: 0 | R13: 0 | S13: 0 | T13: 0 | U13: 0 | V13: 0 | W13: 0 | X13: 0 | Y13: 0 | Z13: 0 | AA13: 0 | AB13: 0 | AC13: 0 | AD13: 0 | AE13: 0 | AF13: 0 | AG13: 0 | AH13: 0 | AI13: 0 | AJ13: 0 | AK13: 0 | AL13: 0 | AM13: 0 | AN13: 0 | AO13: 0 | AP13: 0 | AQ13: 0 | AR13: 0 | AS13: 0 | AT13: 0 | AU13: 0 | AV13: 0 | AW13: 0 | AX13: 0 | AY13: 0 | AZ13: 0 | BA13: 0 | BB13: 0 | BC13: 0 | BD13: 0 | BE13: 0 | BF13: 0 | BG13: 0 | BH13: 0 | BI13: 0 | BJ13: 0 | BK13: 0 | BL13: 0 | BM13: 0 | BN13: 0 | BO13: 0 | BP13: 0 | BQ13: 0 | BR13: 0 | BS13: 0 | BT13: 0 | BU13: 0 | BV13: 0 | BW13: 0 | BX13: 0 | BY13: 0 | BZ13: 0 | CA13: 0 | CB13: 0 | CC13: 0 | CD13: 0 | CE13: 0 | CF13: 0 | CG13: 0 | CH13: 0 | CI13: 0 | CJ13: 0 | CK13: 0 | CL13: 0
B15: RAV
C17: Pre-operational
E19: Opening pre-operational RAV (before transfers) | G19: =Inputs!$I$6 -> £m 2024 prices | L19: =K26 -> 20.1817173 | M19: 225.1944476 | N19: 424.0249225 | O19: 574.1594488 | P19: 0 | Q19: 0 | R19: 0 | S19: 0 | T19: 0 | U19: 0 | V19: 0 | W19: 0 | X19: 0 | Y19: 0 | Z19: 0 | AA19: 0 | AB19: 0 | AC19: 0 | AD19: 0 | AE19: 0 | AF19: 0 | AG19: 0 | AH19: 0 | AI19: 0 | AJ19: 0 | AK19: 0 | AL19: 0 | AM19: 0 | AN19: 0 | AO19: 0 | AP19: 0 | AQ19: 0 | AR19: 0 | AS19: 0 | AT19: 0 | AU19: 0 | AV19: 0 | AW19: 0 | AX19: 0 | AY19: =AX26 -> 0 | AZ19: =AY26 -> 0 | BA19: =AZ26 -> 0 | BB19: =BA26 -> 0 | BC19: =BB26 -> 0 | BD19: =BC26 -> 0 | BE19: =BD26 -> 0 | BF19: =BE26 -> 0 | BG19: =BF26 -> 0 | BH19: =BG26 -> 0 | BI19: =BH26 -> 0 | BJ19: =BI26 -> 0 | BK19: =BJ26 -> 0 | BL19: =BK26 -> 0 | BM19: =BL26 -> 0 | BN19: =BM26 -> 0 | BO19: =BN26 -> 0 | BP19: =BO26 -> 0 | BQ19: =BP26 -> 0 | BR19: =BQ26 -> 0 | BS19: =BR26 -> 0 | BT19: =BS26 -> 0 | BU19: =BT26 -> 0 | BV19: =BU26 -> 0 | BW19: =BV26 -> 0 | BX19: =BW26 -> 0 | BY19: =BX26 -> 0 | BZ19: =BY26 -> 0 | CA19: =BZ26 -> 0 | CB19: =CA26 -> 0 | CC19: =CB26 -> 0 | CD19: =CC26 -> 0 | CE19: =CD26 -> 0 | CF19: =CE26 -> 0 | CG19: =CF26 -> 0 | CH19: =CG26 -> 0 | CI19: =CH26 -> 0 | CJ19: =CI26 -> 0 | CK19: =CJ26 -> 0 | CL19: =CK26 -> 0
E20: =Inputs!E26 -> Development expenditure (Devex) | G20: =Inputs!$I$6 -> £m 2024 prices | K20: =Inputs!K26 -> 19.60784314 | L20: =Inputs!L26 -> 4.805843906 | M20: =Inputs!M26 -> 0 | N20: =Inputs!N26 -> 0 | O20: =Inputs!O26 -> 0 | P20: =Inputs!P26 -> 0 | Q20: =Inputs!Q26 -> 0 | R20: =Inputs!R26 -> 0 | S20: =Inputs!S26 -> 0 | T20: =Inputs!T26 -> 0 | U20: =Inputs!U26 -> 0 | V20: =Inputs!V26 -> 0 | W20: =Inputs!W26 -> 0 | X20: =Inputs!X26 -> 0 | Y20: =Inputs!Y26 -> 0 | Z20: =Inputs!Z26 -> 0 | AA20: =Inputs!AA26 -> 0 | AB20: =Inputs!AB26 -> 0 | AC20: =Inputs!AC26 -> 0 | AD20: =Inputs!AD26 -> 0 | AE20: =Inputs!AE26 -> 0 | AF20: =Inputs!AF26 -> 0 | AG20: =Inputs!AG26 -> 0 | AH20: =Inputs!AH26 -> 0 | AI20: =Inputs!AI26 -> 0 | AJ20: =Inputs!AJ26 -> 0 | AK20: =Inputs!AK26 -> 0 | AL20: =Inputs!AL26 -> 0 | AM20: =Inputs!AM26 -> 0 | AN20: =Inputs!AN26 -> 0 | AO20: =Inputs!AO26 -> 0 | AP20: =Inputs!AP26 -> 0 | AQ20: =Inputs!AQ26 -> 0 | AR20: =Inputs!AR26 -> 0 | AS20: =Inputs!AS26 -> 0 | AT20: =Inputs!AT26 -> 0 | AU20: =Inputs!AU26 -> 0 | AV20: =Inputs!AV26 -> 0 | AW20: =Inputs!AW26 -> 0 | AX20: =Inputs!AX26 -> 0 | AY20: =Inputs!AY26 -> 0 | AZ20: =Inputs!AZ26 -> 0 | BA20: =Inputs!BA26 -> 0 | BB20: =Inputs!BB26 -> 0 | BC20: =Inputs!BC26 -> 0 | BD20: =Inputs!BD26 -> 0 | BE20: =Inputs!BE26 -> 0 | BF20: =Inputs!BF26 -> 0 | BG20: =Inputs!BG26 -> 0 | BH20: =Inputs!BH26 -> 0 | BI20: =Inputs!BI26 -> 0 | BJ20: =Inputs!BJ26 -> 0 | BK20: =Inputs!BK26 -> 0 | BL20: =Inputs!BL26 -> 0 | BM20: =Inputs!BM26 -> 0 | BN20: =Inputs!BN26 -> 0 | BO20: =Inputs!BO26 -> 0 | BP20: =Inputs!BP26 -> 0 | BQ20: =Inputs!BQ26 -> 0 | BR20: =Inputs!BR26 -> 0 | BS20: =Inputs!BS26 -> 0 | BT20: =Inputs!BT26 -> 0 | BU20: =Inputs!BU26 -> 0 | BV20: =Inputs!BV26 -> 0 | BW20: =Inputs!BW26 -> 0 | BX20: =Inputs!BX26 -> 0 | BY20: =Inputs!BY26 -> 0 | BZ20: =Inputs!BZ26 -> 0 | CA20: =Inputs!CA26 -> 0 | CB20: =Inputs!CB26 -> 0 | CC20: =Inputs!CC26 -> 0 | CD20: =Inputs!CD26 -> 0 | CE20: =Inputs!CE26 -> 0 | CF20: =Inputs!CF26 -> 0 | CG20: =Inputs!CG26 -> 0 | CH20: =Inputs!CH26 -> 0 | CI20: =Inputs!CI26 -> 0 | CJ20: =Inputs!CJ26 -> 0 | CK20: =Inputs!CK26 -> 0 | CL20: =Inputs!CL26 -> 0
E21: =Inputs!E27 -> Capital expenditure (Capex) | G21: =Inputs!$I$6 -> £m 2024 prices | K21: =Inputs!K27 -> 0 | L21: =Inputs!L27 -> 192.2337562 | M21: =Inputs!M27 -> 179.0412436 | N21: =Inputs!N27 -> 120.0999054 | O21: =Inputs!O27 -> 4.528654049 | P21: =Inputs!P27 -> 0 | Q21: =Inputs!Q27 -> 0 | R21: =Inputs!R27 -> 0 | S21: =Inputs!S27 -> 0 | T21: =Inputs!T27 -> 0 | U21: =Inputs!U27 -> 0 | V21: =Inputs!V27 -> 0 | W21: =Inputs!W27 -> 0 | X21: =Inputs!X27 -> 0 | Y21: =Inputs!Y27 -> 0 | Z21: =Inputs!Z27 -> 0 | AA21: =Inputs!AA27 -> 0 | AB21: =Inputs!AB27 -> 0 | AC21: =Inputs!AC27 -> 0 | AD21: =Inputs!AD27 -> 0 | AE21: =Inputs!AE27 -> 0 | AF21: =Inputs!AF27 -> 0 | AG21: =Inputs!AG27 -> 0 | AH21: =Inputs!AH27 -> 0 | AI21: =Inputs!AI27 -> 0 | AJ21: =Inputs!AJ27 -> 0 | AK21: =Inputs!AK27 -> 0 | AL21: =Inputs!AL27 -> 0 | AM21: =Inputs!AM27 -> 0 | AN21: =Inputs!AN27 -> 0 | AO21: =Inputs!AO27 -> 0 | AP21: =Inputs!AP27 -> 0 | AQ21: =Inputs!AQ27 -> 0 | AR21: =Inputs!AR27 -> 0 | AS21: =Inputs!AS27 -> 0 | AT21: =Inputs!AT27 -> 0 | AU21: =Inputs!AU27 -> 0 | AV21: =Inputs!AV27 -> 0 | AW21: =Inputs!AW27 -> 0 | AX21: =Inputs!AX27 -> 0 | AY21: =Inputs!AY27 -> 0 | AZ21: =Inputs!AZ27 -> 0 | BA21: =Inputs!BA27 -> 0 | BB21: =Inputs!BB27 -> 0 | BC21: =Inputs!BC27 -> 0 | BD21: =Inputs!BD27 -> 0 | BE21: =Inputs!BE27 -> 0 | BF21: =Inputs!BF27 -> 0 | BG21: =Inputs!BG27 -> 0 | BH21: =Inputs!BH27 -> 0 | BI21: =Inputs!BI27 -> 0 | BJ21: =Inputs!BJ27 -> 0 | BK21: =Inputs!BK27 -> 0 | BL21: =Inputs!BL27 -> 0 | BM21: =Inputs!BM27 -> 0 | BN21: =Inputs!BN27 -> 0 | BO21: =Inputs!BO27 -> 0 | BP21: =Inputs!BP27 -> 0 | BQ21: =Inputs!BQ27 -> 0 | BR21: =Inputs!BR27 -> 0 | BS21: =Inputs!BS27 -> 0 | BT21: =Inputs!BT27 -> 0 | BU21: =Inputs!BU27 -> 0 | BV21: =Inputs!BV27 -> 0 | BW21: =Inputs!BW27 -> 0 | BX21: =Inputs!BX27 -> 0 | BY21: =Inputs!BY27 -> 0 | BZ21: =Inputs!BZ27 -> 0 | CA21: =Inputs!CA27 -> 0 | CB21: =Inputs!CB27 -> 0 | CC21: =Inputs!CC27 -> 0 | CD21: =Inputs!CD27 -> 0 | CE21: =Inputs!CE27 -> 0 | CF21: =Inputs!CF27 -> 0 | CG21: =Inputs!CG27 -> 0 | CH21: =Inputs!CH27 -> 0 | CI21: =Inputs!CI27 -> 0 | CJ21: =Inputs!CJ27 -> 0 | CK21: =Inputs!CK27 -> 0 | CL21: =Inputs!CL27 -> 0
E22: =Inputs!E28 -> Spares | G22: =Inputs!$I$6 -> £m 2024 prices | K22: =Inputs!K28 -> 0 | L22: =Inputs!L28 -> 0.9611687812 | M22: =Inputs!M28 -> 0.9423223345 | N22: =Inputs!N28 -> 0.923845426 | O22: =Inputs!O28 -> 0.9057308098 | P22: =Inputs!P28 -> 0 | Q22: =Inputs!Q28 -> 0 | R22: =Inputs!R28 -> 0 | S22: =Inputs!S28 -> 0 | T22: =Inputs!T28 -> 0 | U22: =Inputs!U28 -> 0 | V22: =Inputs!V28 -> 0 | W22: =Inputs!W28 -> 0 | X22: =Inputs!X28 -> 0 | Y22: =Inputs!Y28 -> 0 | Z22: =Inputs!Z28 -> 0 | AA22: =Inputs!AA28 -> 0 | AB22: =Inputs!AB28 -> 0 | AC22: =Inputs!AC28 -> 0 | AD22: =Inputs!AD28 -> 0 | AE22: =Inputs!AE28 -> 0 | AF22: =Inputs!AF28 -> 0 | AG22: =Inputs!AG28 -> 0 | AH22: =Inputs!AH28 -> 0 | AI22: =Inputs!AI28 -> 0 | AJ22: =Inputs!AJ28 -> 0 | AK22: =Inputs!AK28 -> 0 | AL22: =Inputs!AL28 -> 0 | AM22: =Inputs!AM28 -> 0 | AN22: =Inputs!AN28 -> 0 | AO22: =Inputs!AO28 -> 0 | AP22: =Inputs!AP28 -> 0 | AQ22: =Inputs!AQ28 -> 0 | AR22: =Inputs!AR28 -> 0 | AS22: =Inputs!AS28 -> 0 | AT22: =Inputs!AT28 -> 0 | AU22: =Inputs!AU28 -> 0 | AV22: =Inputs!AV28 -> 0 | AW22: =Inputs!AW28 -> 0 | AX22: =Inputs!AX28 -> 0 | AY22: =Inputs!AY28 -> 0 | AZ22: =Inputs!AZ28 -> 0 | BA22: =Inputs!BA28 -> 0 | BB22: =Inputs!BB28 -> 0 | BC22: =Inputs!BC28 -> 0 | BD22: =Inputs!BD28 -> 0 | BE22: =Inputs!BE28 -> 0 | BF22: =Inputs!BF28 -> 0 | BG22: =Inputs!BG28 -> 0 | BH22: =Inputs!BH28 -> 0 | BI22: =Inputs!BI28 -> 0 | BJ22: =Inputs!BJ28 -> 0 | BK22: =Inputs!BK28 -> 0 | BL22: =Inputs!BL28 -> 0 | BM22: =Inputs!BM28 -> 0 | BN22: =Inputs!BN28 -> 0 | BO22: =Inputs!BO28 -> 0 | BP22: =Inputs!BP28 -> 0 | BQ22: =Inputs!BQ28 -> 0 | BR22: =Inputs!BR28 -> 0 | BS22: =Inputs!BS28 -> 0 | BT22: =Inputs!BT28 -> 0 | BU22: =Inputs!BU28 -> 0 | BV22: =Inputs!BV28 -> 0 | BW22: =Inputs!BW28 -> 0 | BX22: =Inputs!BX28 -> 0 | BY22: =Inputs!BY28 -> 0 | BZ22: =Inputs!BZ28 -> 0 | CA22: =Inputs!CA28 -> 0 | CB22: =Inputs!CB28 -> 0 | CC22: =Inputs!CC28 -> 0 | CD22: =Inputs!CD28 -> 0 | CE22: =Inputs!CE28 -> 0 | CF22: =Inputs!CF28 -> 0 | CG22: =Inputs!CG28 -> 0 | CH22: =Inputs!CH28 -> 0 | CI22: =Inputs!CI28 -> 0 | CJ22: =Inputs!CJ28 -> 0 | CK22: =Inputs!CK28 -> 0 | CL22: =Inputs!CL28 -> 0
E23: =Finance!E28 -> Capitalised interest during construction | G23: =Inputs!$I$6 -> £m 2024 prices | K23: =Finance!K28 -> 0.5738741645 | L23: =Finance!L28 -> 7.011961372 | M23: =Finance!M28 -> 18.84690903 | N23: =Finance!N28 -> 29.11077543 | O23: =Finance!O28 -> 0 | P23: =Finance!P28 -> 0 | Q23: =Finance!Q28 -> 0 | R23: =Finance!R28 -> 0 | S23: =Finance!S28 -> 0 | T23: =Finance!T28 -> 0 | U23: =Finance!U28 -> 0 | V23: =Finance!V28 -> 0 | W23: =Finance!W28 -> 0 | X23: =Finance!X28 -> 0 | Y23: =Finance!Y28 -> 0 | Z23: =Finance!Z28 -> 0 | AA23: =Finance!AA28 -> 0 | AB23: =Finance!AB28 -> 0 | AC23: =Finance!AC28 -> 0 | AD23: =Finance!AD28 -> 0 | AE23: =Finance!AE28 -> 0 | AF23: =Finance!AF28 -> 0 | AG23: =Finance!AG28 -> 0 | AH23: =Finance!AH28 -> 0 | AI23: =Finance!AI28 -> 0 | AJ23: =Finance!AJ28 -> 0 | AK23: =Finance!AK28 -> 0 | AL23: =Finance!AL28 -> 0 | AM23: =Finance!AM28 -> 0 | AN23: =Finance!AN28 -> 0 | AO23: =Finance!AO28 -> 0 | AP23: =Finance!AP28 -> 0 | AQ23: =Finance!AQ28 -> 0 | AR23: =Finance!AR28 -> 0 | AS23: =Finance!AS28 -> 0 | AT23: =Finance!AT28 -> 0 | AU23: =Finance!AU28 -> 0 | AV23: =Finance!AV28 -> 0 | AW23: =Finance!AW28 -> 0 | AX23: =Finance!AX28 -> 0 | AY23: =Finance!CM28 -> 0 | AZ23: =Finance!CN28 -> 0 | BA23: =Finance!CO28 -> 0 | BB23: =Finance!CP28 -> 0 | BC23: =Finance!CQ28 -> 0 | BD23: =Finance!CR28 -> 0 | BE23: =Finance!CS28 -> 0 | BF23: =Finance!CT28 -> 0 | BG23: =Finance!CU28 -> 0 | BH23: =Finance!CV28 -> 0 | BI23: =Finance!CW28 -> 0 | BJ23: =Finance!CX28 -> 0 | BK23: =Finance!CY28 -> 0 | BL23: =Finance!CZ28 -> 0 | BM23: =Finance!DA28 -> 0 | BN23: =Finance!DB28 -> 0 | BO23: =Finance!DC28 -> 0 | BP23: =Finance!DD28 -> 0 | BQ23: =Finance!DE28 -> 0 | BR23: =Finance!DF28 -> 0 | BS23: =Finance!DG28 -> 0 | BT23: =Finance!DH28 -> 0 | BU23: =Finance!DI28 -> 0 | BV23: =Finance!DJ28 -> 0 | BW23: =Finance!DK28 -> 0 | BX23: =Finance!DL28 -> 0 | BY23: =Finance!DM28 -> 0 | BZ23: =Finance!DN28 -> 0 | CA23: =Finance!DO28 -> 0 | CB23: =Finance!DP28 -> 0 | CC23: =Finance!DQ28 -> 0 | CD23: =Finance!DR28 -> 0 | CE23: =Finance!DS28 -> 0 | CF23: =Finance!DT28 -> 0 | CG23: =Finance!DU28 -> 0 | CH23: =Finance!DV28 -> 0 | CI23: =Finance!DW28 -> 0 | CJ23: =Finance!DX28 -> 0 | CK23: =Finance!DY28 -> 0 | CL23: =Finance!DZ28 -> 0
E24: Closing pre-operational RAV (after IDC) | G24: =Inputs!$I$6 -> £m 2024 prices | K24: =SUM(K19:K23) -> 20.1817173 | L24: 225.1944476 | M24: 424.0249225 | N24: 574.1594488 | O24: 579.5938336 | P24: 0 | Q24: 0 | R24: 0 | S24: 0 | T24: 0 | U24: 0 | V24: 0 | W24: 0 | X24: 0 | Y24: 0 | Z24: 0 | AA24: 0 | AB24: 0 | AC24: 0 | AD24: 0 | AE24: 0 | AF24: 0 | AG24: 0 | AH24: 0 | AI24: 0 | AJ24: 0 | AK24: 0 | AL24: 0 | AM24: 0 | AN24: 0 | AO24: 0 | AP24: 0 | AQ24: 0 | AR24: 0 | AS24: 0 | AT24: 0 | AU24: 0 | AV24: 0 | AW24: 0 | AX24: 0 | AY24: =SUM(AY19:AY23) -> 0 | AZ24: 0 | BA24: 0 | BB24: 0 | BC24: 0 | BD24: 0 | BE24: 0 | BF24: 0 | BG24: 0 | BH24: 0 | BI24: =SUM(BI19:BI23) -> 0 | BJ24: 0 | BK24: 0 | BL24: 0 | BM24: 0 | BN24: 0 | BO24: 0 | BP24: 0 | BQ24: 0 | BR24: 0 | BS24: 0 | BT24: 0 | BU24: 0 | BV24: 0 | BW24: 0 | BX24: 0 | BY24: 0 | BZ24: 0 | CA24: 0 | CB24: 0 | CC24: 0 | CD24: 0 | CE24: 0 | CF24: 0 | CG24: 0 | CH24: 0 | CI24: 0 | CJ24: 0 | CK24: 0 | CL24: 0
E25: Pre-operational RAV transfers | G25: =Inputs!$I$6 -> £m 2024 prices | K25: =-K24*K11 -> 0 | L25: 0 | M25: 0 | N25: 0 | O25: -579.5938336 | P25: 0 | Q25: 0 | R25: 0 | S25: 0 | T25: 0 | U25: 0 | V25: 0 | W25: 0 | X25: 0 | Y25: 0 | Z25: 0 | AA25: 0 | AB25: 0 | AC25: 0 | AD25: 0 | AE25: 0 | AF25: 0 | AG25: 0 | AH25: 0 | AI25: 0 | AJ25: 0 | AK25: 0 | AL25: 0 | AM25: 0 | AN25: 0 | AO25: 0 | AP25: 0 | AQ25: 0 | AR25: 0 | AS25: 0 | AT25: 0 | AU25: 0 | AV25: 0 | AW25: 0 | AX25: 0 | AY25: =-AY24*AY11 -> 0 | AZ25: 0 | BA25: 0 | BB25: 0 | BC25: 0 | BD25: 0 | BE25: 0 | BF25: 0 | BG25: 0 | BH25: 0 | BI25: =-BI24*BI11 -> 0 | BJ25: 0 | BK25: 0 | BL25: 0 | BM25: 0 | BN25: 0 | BO25: 0 | BP25: 0 | BQ25: 0 | BR25: 0 | BS25: 0 | BT25: 0 | BU25: 0 | BV25: 0 | BW25: 0 | BX25: 0 | BY25: 0 | BZ25: 0 | CA25: 0 | CB25: 0 | CC25: 0 | CD25: 0 | CE25: 0 | CF25: 0 | CG25: 0 | CH25: 0 | CI25: 0 | CJ25: 0 | CK25: 0 | CL25: 0
E26: Closing pre-operational RAV (after IDC) - adjusted for RAV transfers | G26: =Inputs!$I$6 -> £m 2024 prices | K26: =SUM(K24:K25) -> 20.1817173 | L26: 225.1944476 | M26: 424.0249225 | N26: 574.1594488 | O26: 0 | P26: 0 | Q26: 0 | R26: 0 | S26: 0 | T26: 0 | U26: 0 | V26: 0 | W26: 0 | X26: 0 | Y26: 0 | Z26: 0 | AA26: 0 | AB26: 0 | AC26: 0 | AD26: 0 | AE26: 0 | AF26: 0 | AG26: 0 | AH26: 0 | AI26: 0 | AJ26: 0 | AK26: 0 | AL26: 0 | AM26: 0 | AN26: 0 | AO26: 0 | AP26: 0 | AQ26: 0 | AR26: 0 | AS26: 0 | AT26: 0 | AU26: 0 | AV26: 0 | AW26: 0 | AX26: 0 | AY26: =SUM(AY24:AY25) -> 0 | AZ26: 0 | BA26: 0 | BB26: 0 | BC26: 0 | BD26: 0 | BE26: 0 | BF26: 0 | BG26: 0 | BH26: 0 | BI26: =SUM(BI24:BI25) -> 0 | BJ26: 0 | BK26: 0 | BL26: 0 | BM26: 0 | BN26: 0 | BO26: 0 | BP26: 0 | BQ26: 0 | BR26: 0 | BS26: 0 | BT26: 0 | BU26: 0 | BV26: 0 | BW26: 0 | BX26: 0 | BY26: 0 | BZ26: 0 | CA26: 0 | CB26: 0 | CC26: 0 | CD26: 0 | CE26: 0 | CF26: 0 | CG26: 0 | CH26: 0 | CI26: 0 | CJ26: 0 | CK26: 0 | CL26: 0
B28: Actual cost of debt
C30: Development costs
E32: Opening development costs (before transfers) | G32: £m nominal prices | L32: =K36 -> 20 | M32: 0 | N32: 0 | O32: 0 | P32: 0 | Q32: 0 | R32: 0 | S32: 0 | T32: 0 | U32: 0 | V32: 0 | W32: 0 | X32: 0 | Y32: 0 | Z32: 0 | AA32: 0 | AB32: 0 | AC32: 0 | AD32: 0 | AE32: 0 | AF32: 0 | AG32: 0 | AH32: 0 | AI32: 0 | AJ32: 0 | AK32: 0 | AL32: 0 | AM32: 0 | AN32: 0 | AO32: 0 | AP32: 0 | AQ32: 0 | AR32: 0 | AS32: 0 | AT32: 0 | AU32: 0 | AV32: 0 | AW32: 0 | AX32: 0 | AY32: =AX36 -> 0 | AZ32: =AY36 -> 0 | BA32: =AZ36 -> 0 | BB32: =BA36 -> 0 | BC32: =BB36 -> 0 | BD32: =BC36 -> 0 | BE32: =BD36 -> 0 | BF32: =BE36 -> 0 | BG32: =BF36 -> 0 | BH32: =BG36 -> 0 | BI32: =BH36 -> 0 | BJ32: =BI36 -> 0 | BK32: =BJ36 -> 0 | BL32: =BK36 -> 0 | BM32: =BL36 -> 0 | BN32: =BM36 -> 0 | BO32: =BN36 -> 0 | BP32: =BO36 -> 0 | BQ32: =BP36 -> 0 | BR32: =BQ36 -> 0 | BS32: =BR36 -> 0 | BT32: =BS36 -> 0 | BU32: =BT36 -> 0 | BV32: =BU36 -> 0 | BW32: =BV36 -> 0 | BX32: =BW36 -> 0 | BY32: =BX36 -> 0 | BZ32: =BY36 -> 0 | CA32: =BZ36 -> 0 | CB32: =CA36 -> 0 | CC32: =CB36 -> 0 | CD32: =CC36 -> 0 | CE32: =CD36 -> 0 | CF32: =CE36 -> 0 | CG32: =CF36 -> 0 | CH32: =CG36 -> 0 | CI32: =CH36 -> 0 | CJ32: =CI36 -> 0 | CK32: =CJ36 -> 0 | CL32: =CK36 -> 0
E33: Development costs | G33: £m nominal prices | K33: =Inputs!K15 -> 20 | L33: =Inputs!L15 -> 5 | M33: =Inputs!M15 -> 0 | N33: =Inputs!N15 -> 0 | O33: =Inputs!O15 -> 0 | P33: =Inputs!P15 -> 0 | Q33: =Inputs!Q15 -> 0 | R33: =Inputs!R15 -> 0 | S33: =Inputs!S15 -> 0 | T33: =Inputs!T15 -> 0 | U33: =Inputs!U15 -> 0 | V33: =Inputs!V15 -> 0 | W33: =Inputs!W15 -> 0 | X33: =Inputs!X15 -> 0 | Y33: =Inputs!Y15 -> 0 | Z33: =Inputs!Z15 -> 0 | AA33: =Inputs!AA15 -> 0 | AB33: =Inputs!AB15 -> 0 | AC33: =Inputs!AC15 -> 0 | AD33: =Inputs!AD15 -> 0 | AE33: =Inputs!AE15 -> 0 | AF33: =Inputs!AF15 -> 0 | AG33: =Inputs!AG15 -> 0 | AH33: =Inputs!AH15 -> 0 | AI33: =Inputs!AI15 -> 0 | AJ33: =Inputs!AJ15 -> 0 | AK33: =Inputs!AK15 -> 0 | AL33: =Inputs!AL15 -> 0 | AM33: =Inputs!AM15 -> 0 | AN33: =Inputs!AN15 -> 0 | AO33: =Inputs!AO15 -> 0 | AP33: =Inputs!AP15 -> 0 | AQ33: =Inputs!AQ15 -> 0 | AR33: =Inputs!AR15 -> 0 | AS33: =Inputs!AS15 -> 0 | AT33: =Inputs!AT15 -> 0 | AU33: =Inputs!AU15 -> 0 | AV33: =Inputs!AV15 -> 0 | AW33: =Inputs!AW15 -> 0 | AX33: =Inputs!AX15 -> 0 | AY33: =Inputs!AY15 -> 0 | AZ33: =Inputs!AZ15 -> 0 | BA33: =Inputs!BA15 -> 0 | BB33: =Inputs!BB15 -> 0 | BC33: =Inputs!BC15 -> 0 | BD33: =Inputs!BD15 -> 0 | BE33: =Inputs!BE15 -> 0 | BF33: =Inputs!BF15 -> 0 | BG33: =Inputs!BG15 -> 0 | BH33: =Inputs!BH15 -> 0 | BI33: =Inputs!BI15 -> 0 | BJ33: =Inputs!BJ15 -> 0 | BK33: =Inputs!BK15 -> 0 | BL33: =Inputs!BL15 -> 0 | BM33: =Inputs!BM15 -> 0 | BN33: =Inputs!BN15 -> 0 | BO33: =Inputs!BO15 -> 0 | BP33: =Inputs!BP15 -> 0 | BQ33: =Inputs!BQ15 -> 0 | BR33: =Inputs!BR15 -> 0 | BS33: =Inputs!BS15 -> 0 | BT33: =Inputs!BT15 -> 0 | BU33: =Inputs!BU15 -> 0 | BV33: =Inputs!BV15 -> 0 | BW33: =Inputs!BW15 -> 0 | BX33: =Inputs!BX15 -> 0 | BY33: =Inputs!BY15 -> 0 | BZ33: =Inputs!BZ15 -> 0 | CA33: =Inputs!CA15 -> 0 | CB33: =Inputs!CB15 -> 0 | CC33: =Inputs!CC15 -> 0 | CD33: =Inputs!CD15 -> 0 | CE33: =Inputs!CE15 -> 0 | CF33: =Inputs!CF15 -> 0 | CG33: =Inputs!CG15 -> 0 | CH33: =Inputs!CH15 -> 0 | CI33: =Inputs!CI15 -> 0 | CJ33: =Inputs!CJ15 -> 0 | CK33: =Inputs!CK15 -> 0 | CL33: =Inputs!CL15 -> 0
E34: Closing development costs (before transfers) | G34: £m nominal prices | K34: =SUM(K32:K33) -> 20 | L34: 25 | M34: 0 | N34: 0 | O34: 0 | P34: 0 | Q34: 0 | R34: 0 | S34: 0 | T34: 0 | U34: 0 | V34: 0 | W34: 0 | X34: 0 | Y34: 0 | Z34: 0 | AA34: 0 | AB34: 0 | AC34: 0 | AD34: 0 | AE34: 0 | AF34: 0 | AG34: 0 | AH34: 0 | AI34: 0 | AJ34: 0 | AK34: 0 | AL34: 0 | AM34: 0 | AN34: 0 | AO34: 0 | AP34: 0 | AQ34: 0 | AR34: 0 | AS34: 0 | AT34: 0 | AU34: 0 | AV34: 0 | AW34: 0 | AX34: 0 | AY34: =SUM(AY32:AY33) -> 0 | AZ34: 0 | BA34: 0 | BB34: 0 | BC34: 0 | BD34: 0 | BE34: 0 | BF34: 0 | BG34: 0 | BH34: 0 | BI34: =SUM(BI32:BI33) -> 0 | BJ34: 0 | BK34: 0 | BL34: 0 | BM34: 0 | BN34: 0 | BO34: 0 | BP34: 0 | BQ34: 0 | BR34: 0 | BS34: 0 | BT34: 0 | BU34: 0 | BV34: 0 | BW34: 0 | BX34: 0 | BY34: 0 | BZ34: 0 | CA34: 0 | CB34: 0 | CC34: 0 | CD34: 0 | CE34: 0 | CF34: 0 | CG34: 0 | CH34: 0 | CI34: 0 | CJ34: 0 | CK34: 0 | CL34: 0
E35: Development costs transfers | G35: £m nominal prices | K35: =-K34*K13 -> 0 | L35: =-L34*L13 -> -25 | M35: 0 | N35: 0 | O35: 0 | P35: 0 | Q35: 0 | R35: 0 | S35: 0 | T35: 0 | U35: 0 | V35: 0 | W35: 0 | X35: 0 | Y35: 0 | Z35: 0 | AA35: 0 | AB35: 0 | AC35: 0 | AD35: 0 | AE35: 0 | AF35: 0 | AG35: 0 | AH35: 0 | AI35: 0 | AJ35: 0 | AK35: 0 | AL35: 0 | AM35: 0 | AN35: 0 | AO35: 0 | AP35: 0 | AQ35: 0 | AR35: 0 | AS35: 0 | AT35: 0 | AU35: 0 | AV35: 0 | AW35: 0 | AX35: 0 | AY35: =-AY34*AY13 -> 0 | AZ35: 0 | BA35: 0 | BB35: 0 | BC35: 0 | BD35: 0 | BE35: 0 | BF35: 0 | BG35: 0 | BH35: 0 | BI35: =-BI34*BI13 -> 0 | BJ35: 0 | BK35: 0 | BL35: 0 | BM35: 0 | BN35: 0 | BO35: 0 | BP35: 0 | BQ35: 0 | BR35: 0 | BS35: 0 | BT35: 0 | BU35: 0 | BV35: 0 | BW35: 0 | BX35: 0 | BY35: 0 | BZ35: 0 | CA35: 0 | CB35: 0 | CC35: 0 | CD35: 0 | CE35: 0 | CF35: 0 | CG35: 0 | CH35: 0 | CI35: 0 | CJ35: 0 | CK35: 0 | CL35: 0
E36: Closing development costs (after transfers) | G36: £m nominal prices | K36: =SUM(K34:K35) -> 20 | L36: 0 | M36: 0 | N36: 0 | O36: 0 | P36: 0 | Q36: 0 | R36: 0 | S36: 0 | T36: 0 | U36: 0 | V36: 0 | W36: 0 | X36: 0 | Y36: 0 | Z36: 0 | AA36: 0 | AB36: 0 | AC36: 0 | AD36: 0 | AE36: 0 | AF36: 0 | AG36: 0 | AH36: 0 | AI36: 0 | AJ36: 0 | AK36: 0 | AL36: 0 | AM36: 0 | AN36: 0 | AO36: 0 | AP36: 0 | AQ36: 0 | AR36: 0 | AS36: 0 | AT36: 0 | AU36: 0 | AV36: 0 | AW36: 0 | AX36: 0 | AY36: =SUM(AY34:AY35) -> 0 | AZ36: 0 | BA36: 0 | BB36: 0 | BC36: 0 | BD36: 0 | BE36: 0 | BF36: 0 | BG36: 0 | BH36: 0 | BI36: =SUM(BI34:BI35) -> 0 | BJ36: 0 | BK36: 0 | BL36: 0 | BM36: 0 | BN36: 0 | BO36: 0 | BP36: 0 | BQ36: 0 | BR36: 0 | BS36: 0 | BT36: 0 | BU36: 0 | BV36: 0 | BW36: 0 | BX36: 0 | BY36: 0 | BZ36: 0 | CA36: 0 | CB36: 0 | CC36: 0 | CD36: 0 | CE36: 0 | CF36: 0 | CG36: 0 | CH36: 0 | CI36: 0 | CJ36: 0 | CK36: 0 | CL36: 0
C38: Pre-operational costs
E40: Opening eligible costs | G40: £m nominal prices | L40: =K48 -> 0 | M40: 245.76505 | N40: 454.9801 | O40: 612.05515 | P40: 648.0602 | Q40: 678.06525 | R40: 678.06525 | S40: 678.06525 | T40: 678.06525 | U40: 678.06525 | V40: 678.06525 | W40: 678.06525 | X40: 678.06525 | Y40: 678.06525 | Z40: 678.06525 | AA40: 678.06525 | AB40: 678.06525 | AC40: 678.06525 | AD40: 678.06525 | AE40: 678.06525 | AF40: 678.06525 | AG40: 678.06525 | AH40: 678.06525 | AI40: 678.06525 | AJ40: 678.06525 | AK40: 678.06525 | AL40: 678.06525 | AM40: 678.06525 | AN40: 678.06525 | AO40: 678.06525 | AP40: 678.06525 | AQ40: 678.06525 | AR40: 678.06525 | AS40: 678.06525 | AT40: 678.06525 | AU40: 678.06525 | AV40: 678.06525 | AW40: 678.06525 | AX40: 678.06525 | AY40: =AX48 -> 678.06525 | AZ40: =AY48 -> 678.06525 | BA40: =AZ48 -> 678.06525 | BB40: =BA48 -> 678.06525 | BC40: =BB48 -> 678.06525 | BD40: =BC48 -> 678.06525 | BE40: =BD48 -> 678.06525 | BF40: =BE48 -> 678.06525 | BG40: =BF48 -> 678.06525 | BH40: =BG48 -> 678.06525 | BI40: =BH48 -> 678.06525 | BJ40: =BI48 -> 678.06525 | BK40: =BJ48 -> 678.06525 | BL40: =BK48 -> 678.06525 | BM40: =BL48 -> 678.06525 | BN40: =BM48 -> 678.06525 | BO40: =BN48 -> 678.06525 | BP40: =BO48 -> 678.06525 | BQ40: =BP48 -> 678.06525 | BR40: =BQ48 -> 678.06525 | BS40: =BR48 -> 678.06525 | BT40: =BS48 -> 678.06525 | BU40: =BT48 -> 678.06525 | BV40: =BU48 -> 678.06525 | BW40: =BV48 -> 678.06525 | BX40: =BW48 -> 678.06525 | BY40: =BX48 -> 678.06525 | BZ40: =BY48 -> 678.06525 | CA40: =BZ48 -> 678.06525 | CB40: =CA48 -> 678.06525 | CC40: =CB48 -> 678.06525 | CD40: =CC48 -> 678.06525 | CE40: =CD48 -> 678.06525 | CF40: =CE48 -> 678.06525 | CG40: =CF48 -> 678.06525 | CH40: =CG48 -> 678.06525 | CI40: =CH48 -> 678.06525 | CJ40: =CI48 -> 678.06525 | CK40: =CJ48 -> 678.06525 | CL40: =CK48 -> 678.06525
E41: Development costs transfers | G41: £m nominal prices | K41: =-K35 -> 0 | L41: 25 | M41: 0 | N41: 0 | O41: 0 | P41: 0 | Q41: 0 | R41: 0 | S41: 0 | T41: 0 | U41: 0 | V41: 0 | W41: 0 | X41: 0 | Y41: 0 | Z41: 0 | AA41: 0 | AB41: 0 | AC41: 0 | AD41: 0 | AE41: 0 | AF41: 0 | AG41: 0 | AH41: 0 | AI41: 0 | AJ41: 0 | AK41: 0 | AL41: 0 | AM41: 0 | AN41: 0 | AO41: 0 | AP41: 0 | AQ41: 0 | AR41: 0 | AS41: 0 | AT41: 0 | AU41: 0 | AV41: 0 | AW41: 0 | AX41: 0 | AY41: =-AY35 -> 0 | AZ41: 0 | BA41: 0 | BB41: 0 | BC41: 0 | BD41: 0 | BE41: 0 | BF41: 0 | BG41: 0 | BH41: 0 | BI41: =-BI35 -> 0 | BJ41: 0 | BK41: 0 | BL41: 0 | BM41: 0 | BN41: 0 | BO41: 0 | BP41: 0 | BQ41: 0 | BR41: 0 | BS41: 0 | BT41: 0 | BU41: 0 | BV41: 0 | BW41: 0 | BX41: 0 | BY41: 0 | BZ41: 0 | CA41: 0 | CB41: 0 | CC41: 0 | CD41: 0 | CE41: 0 | CF41: 0 | CG41: 0 | CH41: 0 | CI41: 0 | CJ41: 0 | CK41: 0 | CL41: 0
E42: Capex | G42: £m nominal prices | K42: =Inputs!K16 -> 0 | L42: =Inputs!L16 -> 200 | M42: =Inputs!M16 -> 190 | N42: =Inputs!N16 -> 130 | O42: =Inputs!O16 -> 5 | P42: =Inputs!P16 -> 0 | Q42: =Inputs!Q16 -> 0 | R42: =Inputs!R16 -> 0 | S42: =Inputs!S16 -> 0 | T42: =Inputs!T16 -> 0 | U42: =Inputs!U16 -> 0 | V42: =Inputs!V16 -> 0 | W42: =Inputs!W16 -> 0 | X42: =Inputs!X16 -> 0 | Y42: =Inputs!Y16 -> 0 | Z42: =Inputs!Z16 -> 0 | AA42: =Inputs!AA16 -> 0 | AB42: =Inputs!AB16 -> 0 | AC42: =Inputs!AC16 -> 0 | AD42: =Inputs!AD16 -> 0 | AE42: =Inputs!AE16 -> 0 | AF42: =Inputs!AF16 -> 0 | AG42: =Inputs!AG16 -> 0 | AH42: =Inputs!AH16 -> 0 | AI42: =Inputs!AI16 -> 0 | AJ42: =Inputs!AJ16 -> 0 | AK42: =Inputs!AK16 -> 0 | AL42: =Inputs!AL16 -> 0 | AM42: =Inputs!AM16 -> 0 | AN42: =Inputs!AN16 -> 0 | AO42: =Inputs!AO16 -> 0 | AP42: =Inputs!AP16 -> 0 | AQ42: =Inputs!AQ16 -> 0 | AR42: =Inputs!AR16 -> 0 | AS42: =Inputs!AS16 -> 0 | AT42: =Inputs!AT16 -> 0 | AU42: =Inputs!AU16 -> 0 | AV42: =Inputs!AV16 -> 0 | AW42: =Inputs!AW16 -> 0 | AX42: =Inputs!AX16 -> 0 | AY42: =Inputs!AY16 -> 0 | AZ42: =Inputs!AZ16 -> 0 | BA42: =Inputs!BA16 -> 0 | BB42: =Inputs!BB16 -> 0 | BC42: =Inputs!BC16 -> 0 | BD42: =Inputs!BD16 -> 0 | BE42: =Inputs!BE16 -> 0 | BF42: =Inputs!BF16 -> 0 | BG42: =Inputs!BG16 -> 0 | BH42: =Inputs!BH16 -> 0 | BI42: =Inputs!BI16 -> 0 | BJ42: =Inputs!BJ16 -> 0 | BK42: =Inputs!BK16 -> 0 | BL42: =Inputs!BL16 -> 0 | BM42: =Inputs!BM16 -> 0 | BN42: =Inputs!BN16 -> 0 | BO42: =Inputs!BO16 -> 0 | BP42: =Inputs!BP16 -> 0 | BQ42: =Inputs!BQ16 -> 0 | BR42: =Inputs!BR16 -> 0 | BS42: =Inputs!BS16 -> 0 | BT42: =Inputs!BT16 -> 0 | BU42: =Inputs!BU16 -> 0 | BV42: =Inputs!BV16 -> 0 | BW42: =Inputs!BW16 -> 0 | BX42: =Inputs!BX16 -> 0 | BY42: =Inputs!BY16 -> 0 | BZ42: =Inputs!BZ16 -> 0 | CA42: =Inputs!CA16 -> 0 | CB42: =Inputs!CB16 -> 0 | CC42: =Inputs!CC16 -> 0 | CD42: =Inputs!CD16 -> 0 | CE42: =Inputs!CE16 -> 0 | CF42: =Inputs!CF16 -> 0 | CG42: =Inputs!CG16 -> 0 | CH42: =Inputs!CH16 -> 0 | CI42: =Inputs!CI16 -> 0 | CJ42: =Inputs!CJ16 -> 0 | CK42: =Inputs!CK16 -> 0 | CL42: =Inputs!CL16 -> 0
E43: Spares | G43: £m nominal prices | K43: =Inputs!K17 -> 0 | L43: =Inputs!L17 -> 1 | M43: =Inputs!M17 -> 1 | N43: =Inputs!N17 -> 1 | O43: =Inputs!O17 -> 1 | P43: =Inputs!P17 -> 0 | Q43: =Inputs!Q17 -> 0 | R43: =Inputs!R17 -> 0 | S43: =Inputs!S17 -> 0 | T43: =Inputs!T17 -> 0 | U43: =Inputs!U17 -> 0 | V43: =Inputs!V17 -> 0 | W43: =Inputs!W17 -> 0 | X43: =Inputs!X17 -> 0 | Y43: =Inputs!Y17 -> 0 | Z43: =Inputs!Z17 -> 0 | AA43: =Inputs!AA17 -> 0 | AB43: =Inputs!AB17 -> 0 | AC43: =Inputs!AC17 -> 0 | AD43: =Inputs!AD17 -> 0 | AE43: =Inputs!AE17 -> 0 | AF43: =Inputs!AF17 -> 0 | AG43: =Inputs!AG17 -> 0 | AH43: =Inputs!AH17 -> 0 | AI43: =Inputs!AI17 -> 0 | AJ43: =Inputs!AJ17 -> 0 | AK43: =Inputs!AK17 -> 0 | AL43: =Inputs!AL17 -> 0 | AM43: =Inputs!AM17 -> 0 | AN43: =Inputs!AN17 -> 0 | AO43: =Inputs!AO17 -> 0 | AP43: =Inputs!AP17 -> 0 | AQ43: =Inputs!AQ17 -> 0 | AR43: =Inputs!AR17 -> 0 | AS43: =Inputs!AS17 -> 0 | AT43: =Inputs!AT17 -> 0 | AU43: =Inputs!AU17 -> 0 | AV43: =Inputs!AV17 -> 0 | AW43: =Inputs!AW17 -> 0 | AX43: =Inputs!AX17 -> 0 | AY43: =Inputs!AY17 -> 0 | AZ43: =Inputs!AZ17 -> 0 | BA43: =Inputs!BA17 -> 0 | BB43: =Inputs!BB17 -> 0 | BC43: =Inputs!BC17 -> 0 | BD43: =Inputs!BD17 -> 0 | BE43: =Inputs!BE17 -> 0 | BF43: =Inputs!BF17 -> 0 | BG43: =Inputs!BG17 -> 0 | BH43: =Inputs!BH17 -> 0 | BI43: =Inputs!BI17 -> 0 | BJ43: =Inputs!BJ17 -> 0 | BK43: =Inputs!BK17 -> 0 | BL43: =Inputs!BL17 -> 0 | BM43: =Inputs!BM17 -> 0 | BN43: =Inputs!BN17 -> 0 | BO43: =Inputs!BO17 -> 0 | BP43: =Inputs!BP17 -> 0 | BQ43: =Inputs!BQ17 -> 0 | BR43: =Inputs!BR17 -> 0 | BS43: =Inputs!BS17 -> 0 | BT43: =Inputs!BT17 -> 0 | BU43: =Inputs!BU17 -> 0 | BV43: =Inputs!BV17 -> 0 | BW43: =Inputs!BW17 -> 0 | BX43: =Inputs!BX17 -> 0 | BY43: =Inputs!BY17 -> 0 | BZ43: =Inputs!BZ17 -> 0 | CA43: =Inputs!CA17 -> 0 | CB43: =Inputs!CB17 -> 0 | CC43: =Inputs!CC17 -> 0 | CD43: =Inputs!CD17 -> 0 | CE43: =Inputs!CE17 -> 0 | CF43: =Inputs!CF17 -> 0 | CG43: =Inputs!CG17 -> 0 | CH43: =Inputs!CH17 -> 0 | CI43: =Inputs!CI17 -> 0 | CJ43: =Inputs!CJ17 -> 0 | CK43: =Inputs!CK17 -> 0 | CL43: =Inputs!CL17 -> 0
E44: DSRA funding | G44: £m nominal prices | K44: =Finance!K160 -> 0 | L44: =Finance!L160 -> 0 | M44: =Finance!M160 -> 0 | N44: =Finance!N160 -> 0 | O44: =Finance!O160 -> 0 | P44: =Finance!P160 -> 0 | Q44: =Finance!Q160 -> 0 | R44: =Finance!R160 -> 0 | S44: =Finance!S160 -> 0 | T44: =Finance!T160 -> 0 | U44: =Finance!U160 -> 0 | V44: =Finance!V160 -> 0 | W44: =Finance!W160 -> 0 | X44: =Finance!X160 -> 0 | Y44: =Finance!Y160 -> 0 | Z44: =Finance!Z160 -> 0 | AA44: =Finance!AA160 -> 0 | AB44: =Finance!AB160 -> 0 | AC44: =Finance!AC160 -> 0 | AD44: =Finance!AD160 -> 0 | AE44: =Finance!AE160 -> 0 | AF44: =Finance!AF160 -> 0 | AG44: =Finance!AG160 -> 0 | AH44: =Finance!AH160 -> 0 | AI44: =Finance!AI160 -> 0 | AJ44: =Finance!AJ160 -> 0 | AK44: =Finance!AK160 -> 0 | AL44: =Finance!AL160 -> 0 | AM44: =Finance!AM160 -> 0 | AN44: =Finance!AN160 -> 0 | AO44: =Finance!AO160 -> 0 | AP44: =Finance!AP160 -> 0 | AQ44: =Finance!AQ160 -> 0 | AR44: =Finance!AR160 -> 0 | AS44: =Finance!AS160 -> 0 | AT44: =Finance!AT160 -> 0 | AU44: =Finance!AU160 -> 0 | AV44: =Finance!AV160 -> 0 | AW44: =Finance!AW160 -> 0 | AX44: =Finance!AX160 -> 0 | AY44: =Finance!CM160 -> 0 | AZ44: =Finance!CN160 -> 0 | BA44: =Finance!CO160 -> 0 | BB44: =Finance!CP160 -> 0 | BC44: =Finance!CQ160 -> 0 | BD44: =Finance!CR160 -> 0 | BE44: =Finance!CS160 -> 0 | BF44: =Finance!CT160 -> 0 | BG44: =Finance!CU160 -> 0 | BH44: =Finance!CV160 -> 0 | BI44: =Finance!CW160 -> 0 | BJ44: =Finance!CX160 -> 0 | BK44: =Finance!CY160 -> 0 | BL44: =Finance!CZ160 -> 0 | BM44: =Finance!DA160 -> 0 | BN44: =Finance!DB160 -> 0 | BO44: =Finance!DC160 -> 0 | BP44: =Finance!DD160 -> 0 | BQ44: =Finance!DE160 -> 0 | BR44: =Finance!DF160 -> 0 | BS44: =Finance!DG160 -> 0 | BT44: =Finance!DH160 -> 0 | BU44: =Finance!DI160 -> 0 | BV44: =Finance!DJ160 -> 0 | BW44: =Finance!DK160 -> 0 | BX44: =Finance!DL160 -> 0 | BY44: =Finance!DM160 -> 0 | BZ44: =Finance!DN160 -> 0 | CA44: =Finance!DO160 -> 0 | CB44: =Finance!DP160 -> 0 | CC44: =Finance!DQ160 -> 0 | CD44: =Finance!DR160 -> 0 | CE44: =Finance!DS160 -> 0 | CF44: =Finance!DT160 -> 0 | CG44: =Finance!DU160 -> 0 | CH44: =Finance!DV160 -> 0 | CI44: =Finance!DW160 -> 0 | CJ44: =Finance!DX160 -> 0 | CK44: =Finance!DY160 -> 0 | CL44: =Finance!DZ160 -> 0
E45: Financial expenses during construction | G45: £m nominal prices | K45: =Finance!K114 -> 0 | L45: =Finance!L114 -> 19.76505 | M45: =Finance!M114 -> 18.21505 | N45: =Finance!N114 -> 26.07505 | O45: =Finance!O114 -> 30.00505 | P45: =Finance!P114 -> 30.00505 | Q45: =Finance!Q114 -> 0 | R45: =Finance!R114 -> 0 | S45: =Finance!S114 -> 0 | T45: =Finance!T114 -> 0 | U45: =Finance!U114 -> 0 | V45: =Finance!V114 -> 0 | W45: =Finance!W114 -> 0 | X45: =Finance!X114 -> 0 | Y45: =Finance!Y114 -> 0 | Z45: =Finance!Z114 -> 0 | AA45: =Finance!AA114 -> 0 | AB45: =Finance!AB114 -> 0 | AC45: =Finance!AC114 -> 0 | AD45: =Finance!AD114 -> 0 | AE45: =Finance!AE114 -> 0 | AF45: =Finance!AF114 -> 0 | AG45: =Finance!AG114 -> 0 | AH45: =Finance!AH114 -> 0 | AI45: =Finance!AI114 -> 0 | AJ45: =Finance!AJ114 -> 0 | AK45: =Finance!AK114 -> 0 | AL45: =Finance!AL114 -> 0 | AM45: =Finance!AM114 -> 0 | AN45: =Finance!AN114 -> 0 | AO45: =Finance!AO114 -> 0 | AP45: =Finance!AP114 -> 0 | AQ45: =Finance!AQ114 -> 0 | AR45: =Finance!AR114 -> 0 | AS45: =Finance!AS114 -> 0 | AT45: =Finance!AT114 -> 0 | AU45: =Finance!AU114 -> 0 | AV45: =Finance!AV114 -> 0 | AW45: =Finance!AW114 -> 0 | AX45: =Finance!AX114 -> 0 | AY45: =Finance!CM114 -> 0 | AZ45: =Finance!CN114 -> 0 | BA45: =Finance!CO114 -> 0 | BB45: =Finance!CP114 -> 0 | BC45: =Finance!CQ114 -> 0 | BD45: =Finance!CR114 -> 0 | BE45: =Finance!CS114 -> 0 | BF45: =Finance!CT114 -> 0 | BG45: =Finance!CU114 -> 0 | BH45: =Finance!CV114 -> 0 | BI45: =Finance!CW114 -> 0 | BJ45: =Finance!CX114 -> 0 | BK45: =Finance!CY114 -> 0 | BL45: =Finance!CZ114 -> 0 | BM45: =Finance!DA114 -> 0 | BN45: =Finance!DB114 -> 0 | BO45: =Finance!DC114 -> 0 | BP45: =Finance!DD114 -> 0 | BQ45: =Finance!DE114 -> 0 | BR45: =Finance!DF114 -> 0 | BS45: =Finance!DG114 -> 0 | BT45: =Finance!DH114 -> 0 | BU45: =Finance!DI114 -> 0 | BV45: =Finance!DJ114 -> 0 | BW45: =Finance!DK114 -> 0 | BX45: =Finance!DL114 -> 0 | BY45: =Finance!DM114 -> 0 | BZ45: =Finance!DN114 -> 0 | CA45: =Finance!DO114 -> 0 | CB45: =Finance!DP114 -> 0 | CC45: =Finance!DQ114 -> 0 | CD45: =Finance!DR114 -> 0 | CE45: =Finance!DS114 -> 0 | CF45: =Finance!DT114 -> 0 | CG45: =Finance!DU114 -> 0 | CH45: =Finance!DV114 -> 0 | CI45: =Finance!DW114 -> 0 | CJ45: =Finance!DX114 -> 0 | CK45: =Finance!DY114 -> 0 | CL45: =Finance!DZ114 -> 0
E46: Closing eligible costs | G46: £m nominal prices | K46: =SUM(K40:K45) -> 0 | L46: 245.76505 | M46: 454.9801 | N46: 612.05515 | O46: 648.0602 | P46: 678.06525 | Q46: 678.06525 | R46: 678.06525 | S46: 678.06525 | T46: 678.06525 | U46: 678.06525 | V46: 678.06525 | W46: 678.06525 | X46: 678.06525 | Y46: 678.06525 | Z46: 678.06525 | AA46: 678.06525 | AB46: 678.06525 | AC46: 678.06525 | AD46: 678.06525 | AE46: 678.06525 | AF46: 678.06525 | AG46: 678.06525 | AH46: 678.06525 | AI46: 678.06525 | AJ46: 678.06525 | AK46: 678.06525 | AL46: 678.06525 | AM46: 678.06525 | AN46: 678.06525 | AO46: 678.06525 | AP46: 678.06525 | AQ46: 678.06525 | AR46: 678.06525 | AS46: 678.06525 | AT46: 678.06525 | AU46: 678.06525 | AV46: 678.06525 | AW46: 678.06525 | AX46: 678.06525 | AY46: =SUM(AY40:AY45) -> 678.06525 | AZ46: 678.06525 | BA46: 678.06525 | BB46: 678.06525 | BC46: 678.06525 | BD46: 678.06525 | BE46: 678.06525 | BF46: 678.06525 | BG46: 678.06525 | BH46: 678.06525 | BI46: =SUM(BI40:BI45) -> 678.06525 | BJ46: 678.06525 | BK46: 678.06525 | BL46: 678.06525 | BM46: 678.06525 | BN46: 678.06525 | BO46: 678.06525 | BP46: 678.06525 | BQ46: 678.06525 | BR46: 678.06525 | BS46: 678.06525 | BT46: 678.06525 | BU46: 678.06525 | BV46: 678.06525 | BW46: 678.06525 | BX46: 678.06525 | BY46: 678.06525 | BZ46: 678.06525 | CA46: 678.06525 | CB46: 678.06525 | CC46: 678.06525 | CD46: 678.06525 | CE46: 678.06525 | CF46: 678.06525 | CG46: 678.06525 | CH46: 678.06525 | CI46: 678.06525 | CJ46: 678.06525 | CK46: 678.06525 | CL46: 678.06525
E47: Eligible costs transfer | G47: £m nominal prices | K47: =-K46*K12 -> 0 | L47: 0 | M47: 0 | N47: 0 | O47: 0 | P47: 0 | Q47: 0 | R47: 0 | S47: 0 | T47: 0 | U47: 0 | V47: 0 | W47: 0 | X47: 0 | Y47: 0 | Z47: 0 | AA47: 0 | AB47: 0 | AC47: 0 | AD47: 0 | AE47: 0 | AF47: 0 | AG47: 0 | AH47: 0 | AI47: 0 | AJ47: 0 | AK47: 0 | AL47: 0 | AM47: 0 | AN47: 0 | AO47: 0 | AP47: 0 | AQ47: 0 | AR47: 0 | AS47: 0 | AT47: 0 | AU47: 0 | AV47: 0 | AW47: 0 | AX47: 0 | AY47: =-AY46*AY12 -> 0 | AZ47: 0 | BA47: 0 | BB47: 0 | BC47: 0 | BD47: 0 | BE47: 0 | BF47: 0 | BG47: 0 | BH47: 0 | BI47: =-BI46*BI12 -> 0 | BJ47: 0 | BK47: 0 | BL47: 0 | BM47: 0 | BN47: 0 | BO47: 0 | BP47: 0 | BQ47: 0 | BR47: 0 | BS47: 0 | BT47: 0 | BU47: 0 | BV47: 0 | BW47: 0 | BX47: 0 | BY47: 0 | BZ47: 0 | CA47: 0 | CB47: 0 | CC47: 0 | CD47: 0 | CE47: 0 | CF47: 0 | CG47: 0 | CH47: 0 | CI47: 0 | CJ47: 0 | CK47: 0 | CL47: 0
E48: Closing eligible costs - adjusted for transfer | G48: £m nominal prices | K48: =SUM(K46:K47) -> 0 | L48: 245.76505 | M48: 454.9801 | N48: 612.05515 | O48: 648.0602 | P48: 678.06525 | Q48: 678.06525 | R48: 678.06525 | S48: 678.06525 | T48: 678.06525 | U48: 678.06525 | V48: 678.06525 | W48: 678.06525 | X48: 678.06525 | Y48: 678.06525 | Z48: 678.06525 | AA48: 678.06525 | AB48: 678.06525 | AC48: 678.06525 | AD48: 678.06525 | AE48: 678.06525 | AF48: 678.06525 | AG48: 678.06525 | AH48: 678.06525 | AI48: 678.06525 | AJ48: 678.06525 | AK48: 678.06525 | AL48: 678.06525 | AM48: 678.06525 | AN48: 678.06525 | AO48: 678.06525 | AP48: 678.06525 | AQ48: 678.06525 | AR48: 678.06525 | AS48: 678.06525 | AT48: 678.06525 | AU48: 678.06525 | AV48: 678.06525 | AW48: 678.06525 | AX48: 678.06525 | AY48: =SUM(AY46:AY47) -> 678.06525 | AZ48: 678.06525 | BA48: 678.06525 | BB48: 678.06525 | BC48: 678.06525 | BD48: 678.06525 | BE48: 678.06525 | BF48: 678.06525 | BG48: 678.06525 | BH48: 678.06525 | BI48: =SUM(BI46:BI47) -> 678.06525 | BJ48: 678.06525 | BK48: 678.06525 | BL48: 678.06525 | BM48: 678.06525 | BN48: 678.06525 | BO48: 678.06525 | BP48: 678.06525 | BQ48: 678.06525 | BR48: 678.06525 | BS48: 678.06525 | BT48: 678.06525 | BU48: 678.06525 | BV48: 678.06525 | BW48: 678.06525 | BX48: 678.06525 | BY48: 678.06525 | BZ48: 678.06525 | CA48: 678.06525 | CB48: 678.06525 | CC48: 678.06525 | CD48: 678.06525 | CE48: 678.06525 | CF48: 678.06525 | CG48: 678.06525 | CH48: 678.06525 | CI48: 678.06525 | CJ48: 678.06525 | CK48: 678.06525 | CL48: 678.06525
C50: Eligible costs
C51: Note: Due to the circularity of the interest calculation, "Copy-PasteValues" must be performed from Row 53 to Row 54 until the circularity check shows 'TRUE'. This can be done by pressing the button on the cover page in cell A36.
E53: Eligible costs - copy | G53: £m nominal prices | K53: =SUM(K41:K45) -> 0 | L53: 245.76505 | M53: 209.21505 | N53: 157.07505 | O53: 36.00505 | P53: 30.00505 | Q53: 0 | R53: =SUM(R41:R45) -> 0 | S53: 0 | T53: 0 | U53: 0 | V53: 0 | W53: 0 | X53: 0 | Y53: 0 | Z53: 0 | AA53: 0 | AB53: 0 | AC53: 0 | AD53: 0 | AE53: 0 | AF53: 0 | AG53: 0 | AH53: 0 | AI53: 0 | AJ53: 0 | AK53: 0 | AL53: 0 | AM53: 0 | AN53: 0 | AO53: 0 | AP53: 0 | AQ53: =SUM(AQ41:AQ45) -> 0 | AR53: 0 | AS53: 0 | AT53: 0 | AU53: 0 | AV53: 0 | AW53: 0 | AX53: 0 | AY53: 0 | AZ53: 0 | BA53: 0 | BB53: 0 | BC53: 0 | BD53: 0 | BE53: 0 | BF53: 0 | BG53: 0 | BH53: 0 | BI53: =SUM(BI41:BI45) -> 0 | BJ53: 0 | BK53: 0 | BL53: 0 | BM53: 0 | BN53: 0 | BO53: 0 | BP53: 0 | BQ53: 0 | BR53: 0 | BS53: 0 | BT53: 0 | BU53: 0 | BV53: 0 | BW53: 0 | BX53: 0 | BY53: 0 | BZ53: 0 | CA53: 0 | CB53: 0 | CC53: 0 | CD53: 0 | CE53: 0 | CF53: 0 | CG53: 0 | CH53: 0 | CI53: 0 | CJ53: 0 | CK53: 0 | CL53: 0
E54: Eligible costs - paste | G54: £m nominal prices | K54: 0 | L54: 245.76505 | M54: 209.21505 | N54: 157.07505 | O54: 36.00505 | P54: 30.00505 | Q54: 0 | R54: 0 | S54: 0 | T54: 0 | U54: 0 | V54: 0 | W54: 0 | X54: 0 | Y54: 0 | Z54: 0 | AA54: 0 | AB54: 0 | AC54: 0 | AD54: 0 | AE54: 0 | AF54: 0 | AG54: 0 | AH54: 0 | AI54: 0 | AJ54: 0 | AK54: 0 | AL54: 0 | AM54: 0 | AN54: 0 | AO54: 0 | AP54: 0 | AQ54: 0 | AR54: 0 | AS54: 0 | AT54: 0 | AU54: 0 | AV54: 0 | AW54: 0 | AX54: 0 | AY54: 0 | AZ54: 0 | BA54: 0 | BB54: 0 | BC54: 0 | BD54: 0 | BE54: 0 | BF54: 0 | BG54: 0 | BH54: 0 | BI54: 0 | BJ54: 0 | BK54: 0 | BL54: 0 | BM54: 0 | BN54: 0 | BO54: 0 | BP54: 0 | BQ54: 0 | BR54: 0 | BS54: 0 | BT54: 0 | BU54: 0 | BV54: 0 | BW54: 0 | BX54: 0 | BY54: 0 | BZ54: 0 | CA54: 0 | CB54: 0 | CC54: 0 | CD54: 0 | CE54: 0 | CF54: 0 | CG54: 0 | CH54: 0 | CI54: 0 | CJ54: 0 | CK54: 0 | CL54: 0
E56: Delta | G56: £m nominal prices | K56: =ABS(K53-K54) -> 0 | L56: 0 | M56: 0 | N56: 0 | O56: 0 | P56: 0 | Q56: 0 | R56: 0 | S56: 0 | T56: 0 | U56: 0 | V56: 0 | W56: 0 | X56: 0 | Y56: 0 | Z56: 0 | AA56: 0 | AB56: 0 | AC56: 0 | AD56: 0 | AE56: 0 | AF56: 0 | AG56: 0 | AH56: 0 | AI56: 0 | AJ56: 0 | AK56: 0 | AL56: 0 | AM56: 0 | AN56: 0 | AO56: 0 | AP56: 0 | AQ56: =ABS(AQ53-AQ54) -> 0 | AR56: 0 | AS56: 0 | AT56: 0 | AU56: 0 | AV56: 0 | AW56: 0 | AX56: 0 | AY56: 0 | AZ56: 0 | BA56: 0 | BB56: 0 | BC56: 0 | BD56: 0 | BE56: 0 | BF56: 0 | BG56: 0 | BH56: 0 | BI56: =ABS(BI53-BI54) -> 0 | BJ56: 0 | BK56: 0 | BL56: 0 | BM56: 0 | BN56: 0 | BO56: 0 | BP56: 0 | BQ56: 0 | BR56: 0 | BS56: 0 | BT56: 0 | BU56: 0 | BV56: 0 | BW56: 0 | BX56: 0 | BY56: 0 | BZ56: 0 | CA56: 0 | CB56: 0 | CC56: 0 | CD56: 0 | CE56: 0 | CF56: 0 | CG56: 0 | CH56: 0 | CI56: 0 | CJ56: 0 | CK56: 0 | CL56: 0
E57: Circularity check | I57: =IF(SUM(K56:AX56)<0.0001,"TRUE","FALSE") -> TRUE
B59: End of sheet

Sheet Finance
A1: Finance | H1: Licence
E2: Parameter | G2: Units | H2: Terminology | I2: Constant | K2: Annual values
E3: Year commencing | K3: =Inputs!K12 -> 2025-01-01 | L3: =+K4+1 -> 2026-01-01 | M3: 2027-01-01 | N3: 2028-01-01 | O3: 2029-01-01 | P3: 2030-01-01 | Q3: 2031-01-01 | R3: 2032-01-01 | S3: 2033-01-01 | T3: 2034-01-01 | U3: 2035-01-01 | V3: 2036-01-01 | W3: 2037-01-01 | X3: 2038-01-01 | Y3: 2039-01-01 | Z3: 2040-01-01 | AA3: 2041-01-01 | AB3: 2042-01-01 | AC3: 2043-01-01 | AD3: 2044-01-01 | AE3: 2045-01-01 | AF3: 2046-01-01 | AG3: 2047-01-01 | AH3: 2048-01-01 | AI3: 2049-01-01 | AJ3: 2050-01-01 | AK3: 2051-01-01 | AL3: 2052-01-01 | AM3: 2053-01-01 | AN3: 2054-01-01 | AO3: 2055-01-01 | AP3: 2056-01-01 | AQ3: 2057-01-01 | AR3: 2058-01-01 | AS3: 2059-01-01 | AT3: 2060-01-01 | AU3: 2061-01-01 | AV3: 2062-01-01 | AW3: 2063-01-01 | AX3: 2064-01-01 | AY3: =+AX4+1 -> 2065-01-01 | AZ3: =+AY4+1 -> 2066-01-01 | BA3: =+AZ4+1 -> 2067-01-01 | BB3: =+BA4+1 -> 2068-01-01 | BC3: =+BB4+1 -> 2069-01-01 | BD3: =+BC4+1 -> 2070-01-01 | BE3: =+BD4+1 -> 2071-01-01 | BF3: =+BE4+1 -> 2072-01-01 | BG3: =+BF4+1 -> 2073-01-01 | BH3: =+BG4+1 -> 2074-01-01 | BI3: =+BH4+1 -> 2075-01-01 | BJ3: =+BI4+1 -> 2076-01-01 | BK3: =+BJ4+1 -> 2077-01-01 | BL3: =+BK4+1 -> 2078-01-01 | BM3: =+BL4+1 -> 2079-01-01 | BN3: =+BM4+1 -> 2080-01-01 | BO3: =+BN4+1 -> 2081-01-01 | BP3: =+BO4+1 -> 2082-01-01 | BQ3: =+BP4+1 -> 2083-01-01 | BR3: =+BQ4+1 -> 2084-01-01 | BS3: =+BR4+1 -> 2085-01-01 | BT3: =+BS4+1 -> 2086-01-01 | BU3: =+BT4+1 -> 2087-01-01 | BV3: =+BU4+1 -> 2088-01-01 | BW3: =+BV4+1 -> 2089-01-01 | BX3: =+BW4+1 -> 2090-01-01 | BY3: =+BX4+1 -> 2091-01-01 | BZ3: =+BY4+1 -> 2092-01-01 | CA3: =+BZ4+1 -> 2093-01-01 | CB3: =+CA4+1 -> 2094-01-01 | CC3: =+CB4+1 -> 2095-01-01 | CD3: =+CC4+1 -> 2096-01-01 | CE3: =+CD4+1 -> 2097-01-01 | CF3: =+CE4+1 -> 2098-01-01 | CG3: =+CF4+1 -> 2099-01-01 | CH3: =+CG4+1 -> 2100-01-01 | CI3: =+CH4+1 -> 2101-01-01 | CJ3: =+CI4+1 -> 2102-01-01 | CK3: =+CJ4+1 -> 2103-01-01 | CL3: =+CK4+1 -> 2104-01-01
E4: Year ending | K4: =Inputs!K13 -> 2025-12-31 | L4: =DATE(YEAR(K4) + 1, MONTH(K4), DAY(K4)) -> 2026-12-31 | M4: 2027-12-31 | N4: 2028-12-31 | O4: 2029-12-31 | P4: 2030-12-31 | Q4: 2031-12-31 | R4: 2032-12-31 | S4: 2033-12-31 | T4: 2034-12-31 | U4: 2035-12-31 | V4: 2036-12-31 | W4: 2037-12-31 | X4: 2038-12-31 | Y4: 2039-12-31 | Z4: 2040-12-31 | AA4: 2041-12-31 | AB4: 2042-12-31 | AC4: 2043-12-31 | AD4: 2044-12-31 | AE4: 2045-12-31 | AF4: 2046-12-31 | AG4: 2047-12-31 | AH4: 2048-12-31 | AI4: 2049-12-31 | AJ4: 2050-12-31 | AK4: 2051-12-31 | AL4: 2052-12-31 | AM4: 2053-12-31 | AN4: 2054-12-31 | AO4: 2055-12-31 | AP4: 2056-12-31 | AQ4: 2057-12-31 | AR4: 2058-12-31 | AS4: 2059-12-31 | AT4: 2060-12-31 | AU4: 2061-12-31 | AV4: 2062-12-31 | AW4: 2063-12-31 | AX4: 2064-12-31 | AY4: =DATE(YEAR(AX4) + 1, MONTH(AX4), DAY(AX4)) -> 2065-12-31 | AZ4: =DATE(YEAR(AY4) + 1, MONTH(AY4), DAY(AY4)) -> 2066-12-31 | BA4: =DATE(YEAR(AZ4) + 1, MONTH(AZ4), DAY(AZ4)) -> 2067-12-31 | BB4: =DATE(YEAR(BA4) + 1, MONTH(BA4), DAY(BA4)) -> 2068-12-31 | BC4: =DATE(YEAR(BB4) + 1, MONTH(BB4), DAY(BB4)) -> 2069-12-31 | BD4: =DATE(YEAR(BC4) + 1, MONTH(BC4), DAY(BC4)) -> 2070-12-31 | BE4: =DATE(YEAR(BD4) + 1, MONTH(BD4), DAY(BD4)) -> 2071-12-31 | BF4: =DATE(YEAR(BE4) + 1, MONTH(BE4), DAY(BE4)) -> 2072-12-31 | BG4: =DATE(YEAR(BF4) + 1, MONTH(BF4), DAY(BF4)) -> 2073-12-31 | BH4: =DATE(YEAR(BG4) + 1, MONTH(BG4), DAY(BG4)) -> 2074-12-31 | BI4: =DATE(YEAR(BH4) + 1, MONTH(BH4), DAY(BH4)) -> 2075-12-31 | BJ4: =DATE(YEAR(BI4) + 1, MONTH(BI4), DAY(BI4)) -> 2076-12-31 | BK4: =DATE(YEAR(BJ4) + 1, MONTH(BJ4), DAY(BJ4)) -> 2077-12-31 | BL4: =DATE(YEAR(BK4) + 1, MONTH(BK4), DAY(BK4)) -> 2078-12-31 | BM4: =DATE(YEAR(BL4) + 1, MONTH(BL4), DAY(BL4)) -> 2079-12-31 | BN4: =DATE(YEAR(BM4) + 1, MONTH(BM4), DAY(BM4)) -> 2080-12-31 | BO4: =DATE(YEAR(BN4) + 1, MONTH(BN4), DAY(BN4)) -> 2081-12-31 | BP4: =DATE(YEAR(BO4) + 1, MONTH(BO4), DAY(BO4)) -> 2082-12-31 | BQ4: =DATE(YEAR(BP4) + 1, MONTH(BP4), DAY(BP4)) -> 2083-12-31 | BR4: =DATE(YEAR(BQ4) + 1, MONTH(BQ4), DAY(BQ4)) -> 2084-12-31 | BS4: =DATE(YEAR(BR4) + 1, MONTH(BR4), DAY(BR4)) -> 2085-12-31 | BT4: =DATE(YEAR(BS4) + 1, MONTH(BS4), DAY(BS4)) -> 2086-12-31 | BU4: =DATE(YEAR(BT4) + 1, MONTH(BT4), DAY(BT4)) -> 2087-12-31 | BV4: =DATE(YEAR(BU4) + 1, MONTH(BU4), DAY(BU4)) -> 2088-12-31 | BW4: =DATE(YEAR(BV4) + 1, MONTH(BV4), DAY(BV4)) -> 2089-12-31 | BX4: =DATE(YEAR(BW4) + 1, MONTH(BW4), DAY(BW4)) -> 2090-12-31 | BY4: =DATE(YEAR(BX4) + 1, MONTH(BX4), DAY(BX4)) -> 2091-12-31 | BZ4: =DATE(YEAR(BY4) + 1, MONTH(BY4), DAY(BY4)) -> 2092-12-31 | CA4: =DATE(YEAR(BZ4) + 1, MONTH(BZ4), DAY(BZ4)) -> 2093-12-31 | CB4: =DATE(YEAR(CA4) + 1, MONTH(CA4), DAY(CA4)) -> 2094-12-31 | CC4: =DATE(YEAR(CB4) + 1, MONTH(CB4), DAY(CB4)) -> 2095-12-31 | CD4: =DATE(YEAR(CC4) + 1, MONTH(CC4), DAY(CC4)) -> 2096-12-31 | CE4: =DATE(YEAR(CD4) + 1, MONTH(CD4), DAY(CD4)) -> 2097-12-31 | CF4: =DATE(YEAR(CE4) + 1, MONTH(CE4), DAY(CE4)) -> 2098-12-31 | CG4: =DATE(YEAR(CF4) + 1, MONTH(CF4), DAY(CF4)) -> 2099-12-31 | CH4: =DATE(YEAR(CG4) + 1, MONTH(CG4), DAY(CG4)) -> 2100-12-31 | CI4: =DATE(YEAR(CH4) + 1, MONTH(CH4), DAY(CH4)) -> 2101-12-31 | CJ4: =DATE(YEAR(CI4) + 1, MONTH(CI4), DAY(CI4)) -> 2102-12-31 | CK4: =DATE(YEAR(CJ4) + 1, MONTH(CJ4), DAY(CJ4)) -> 2103-12-31 | CL4: =DATE(YEAR(CK4) + 1, MONTH(CK4), DAY(CK4)) -> 2104-12-31
B6: Flags
E8: IDC flag | G8: flag | K8: =Flag_IDC -> 1 | L8: 1 | M8: 1 | N8: 1 | O8: 0 | P8: 0 | Q8: 0 | R8: 0 | S8: 0 | T8: 0 | U8: 0 | V8: 0 | W8: 0 | X8: 0 | Y8: 0 | Z8: 0 | AA8: 0 | AB8: 0 | AC8: 0 | AD8: 0 | AE8: 0 | AF8: 0 | AG8: 0 | AH8: 0 | AI8: 0 | AJ8: 0 | AK8: 0 | AL8: 0 | AM8: 0 | AN8: 0 | AO8: 0 | AP8: 0 | AQ8: 0 | AR8: 0 | AS8: 0 | AT8: 0 | AU8: 0 | AV8: 0 | AW8: 0 | AX8: 0 | AY8: 0 | AZ8: 0 | BA8: 0 | BB8: 0 | BC8: 0 | BD8: 0 | BE8: 0 | BF8: 0 | BG8: 0 | BH8: 0 | BI8: 0 | BJ8: 0 | BK8: 0 | BL8: 0 | BM8: 0 | BN8: 0 | BO8: 0 | BP8: 0 | BQ8: 0 | BR8: 0 | BS8: 0 | BT8: 0 | BU8: 0 | BV8: 0 | BW8: 0 | BX8: 0 | BY8: 0 | BZ8: 0 | CA8: 0 | CB8: 0 | CC8: 0 | CD8: 0 | CE8: 0 | CF8: 0 | CG8: 0 | CH8: 0 | CI8: 0 | CJ8: 0 | CK8: 0 | CL8: 0
E9: Operations flag | G9: flag | K9: =Flag_Ops -> 0 | L9: 0 | M9: 0 | N9: 0 | O9: 0 | P9: 0 | Q9: 1 | R9: 1 | S9: 1 | T9: 1 | U9: 1 | V9: 1 | W9: 1 | X9: 1 | Y9: 1 | Z9: 1 | AA9: 1 | AB9: 1 | AC9: 1 | AD9: 1 | AE9: 1 | AF9: 1 | AG9: 1 | AH9: 1 | AI9: 1 | AJ9: 1 | AK9: 1 | AL9: 1 | AM9: 1 | AN9: 1 | AO9: 1 | AP9: 1 | AQ9: 1 | AR9: 1 | AS9: 0 | AT9: 0 | AU9: 0 | AV9: 0 | AW9: 0 | AX9: 0 | AY9: 0 | AZ9: 0 | BA9: 0 | BB9: 0 | BC9: 0 | BD9: 0 | BE9: 0 | BF9: 0 | BG9: 0 | BH9: 0 | BI9: 0 | BJ9: 0 | BK9: 0 | BL9: 0 | BM9: 0 | BN9: 0 | BO9: 0 | BP9: 0 | BQ9: 0 | BR9: 0 | BS9: 0 | BT9: 0 | BU9: 0 | BV9: 0 | BW9: 0 | BX9: 0 | BY9: 0 | BZ9: 0 | CA9: 0 | CB9: 0 | CC9: 0 | CD9: 0 | CE9: 0 | CF9: 0 | CG9: 0 | CH9: 0 | CI9: 0 | CJ9: 0 | CK9: 0 | CL9: 0
E10: Regime years | G10: count | K10: =Count_RegimeYear -> 0 | L10: 0 | M10: 0 | N10: 0 | O10: 1 | P10: 2 | Q10: 3 | R10: 4 | S10: 5 | T10: 6 | U10: 7 | V10: 8 | W10: 9 | X10: 10 | Y10: 11 | Z10: 12 | AA10: 13 | AB10: 14 | AC10: 15 | AD10: 16 | AE10: 17 | AF10: 18 | AG10: 19 | AH10: 20 | AI10: 21 | AJ10: 22 | AK10: 23 | AL10: 24 | AM10: 25 | AN10: 26 | AO10: 27 | AP10: 28 | AQ10: 29 | AR10: 30 | AS10: 0 | AT10: 0 | AU10: 0 | AV10: 0 | AW10: 0 | AX10: 0 | AY10: 0 | AZ10: 0 | BA10: 0 | BB10: 0 | BC10: 0 | BD10: 0 | BE10: 0 | BF10: 0 | BG10: 0 | BH10: 0 | BI10: 0 | BJ10: 0 | BK10: 0 | BL10: 0 | BM10: 0 | BN10: 0 | BO10: 0 | BP10: 0 | BQ10: 0 | BR10: 0 | BS10: 0 | BT10: 0 | BU10: 0 | BV10: 0 | BW10: 0 | BX10: 0 | BY10: 0 | BZ10: 0 | CA10: 0 | CB10: 0 | CC10: 0 | CD10: 0 | CE10: 0 | CF10: 0 | CG10: 0 | CH10: 0 | CI10: 0 | CJ10: 0 | CK10: 0 | CL10: 0
E11: Transfer construction to operations flag - Notional | G11: flag | K11: =Flag_ConstructionToOpsTransferNotional -> 0 | L11: 0 | M11: 0 | N11: 0 | O11: 1 | P11: 0 | Q11: 0 | R11: 0 | S11: 0 | T11: 0 | U11: 0 | V11: 0 | W11: 0 | X11: 0 | Y11: 0 | Z11: 0 | AA11: 0 | AB11: 0 | AC11: 0 | AD11: 0 | AE11: 0 | AF11: 0 | AG11: 0 | AH11: 0 | AI11: 0 | AJ11: 0 | AK11: 0 | AL11: 0 | AM11: 0 | AN11: 0 | AO11: 0 | AP11: 0 | AQ11: 0 | AR11: 0 | AS11: 0 | AT11: 0 | AU11: 0 | AV11: 0 | AW11: 0 | AX11: 0 | AY11: 0 | AZ11: 0 | BA11: 0 | BB11: 0 | BC11: 0 | BD11: 0 | BE11: 0 | BF11: 0 | BG11: 0 | BH11: 0 | BI11: 0 | BJ11: 0 | BK11: 0 | BL11: 0 | BM11: 0 | BN11: 0 | BO11: 0 | BP11: 0 | BQ11: 0 | BR11: 0 | BS11: 0 | BT11: 0 | BU11: 0 | BV11: 0 | BW11: 0 | BX11: 0 | BY11: 0 | BZ11: 0 | CA11: 0 | CB11: 0 | CC11: 0 | CD11: 0 | CE11: 0 | CF11: 0 | CG11: 0 | CH11: 0 | CI11: 0 | CJ11: 0 | CK11: 0 | CL11: 0
E12: Transfer construction to operations flag - ACOD | G12: flag | K12: =Flag_ConstructionToOpsTransferACOD -> 0 | L12: 0 | M12: 0 | N12: 0 | O12: 0 | P12: 0 | Q12: 1 | R12: 0 | S12: 0 | T12: 0 | U12: 0 | V12: 0 | W12: 0 | X12: 0 | Y12: 0 | Z12: 0 | AA12: 0 | AB12: 0 | AC12: 0 | AD12: 0 | AE12: 0 | AF12: 0 | AG12: 0 | AH12: 0 | AI12: 0 | AJ12: 0 | AK12: 0 | AL12: 0 | AM12: 0 | AN12: 0 | AO12: 0 | AP12: 0 | AQ12: 0 | AR12: 0 | AS12: 0 | AT12: 0 | AU12: 0 | AV12: 0 | AW12: 0 | AX12: 0 | AY12: 0 | AZ12: 0 | BA12: 0 | BB12: 0 | BC12: 0 | BD12: 0 | BE12: 0 | BF12: 0 | BG12: 0 | BH12: 0 | BI12: 0 | BJ12: 0 | BK12: 0 | BL12: 0 | BM12: 0 | BN12: 0 | BO12: 0 | BP12: 0 | BQ12: 0 | BR12: 0 | BS12: 0 | BT12: 0 | BU12: 0 | BV12: 0 | BW12: 0 | BX12: 0 | BY12: 0 | BZ12: 0 | CA12: 0 | CB12: 0 | CC12: 0 | CD12: 0 | CE12: 0 | CF12: 0 | CG12: 0 | CH12: 0 | CI12: 0 | CJ12: 0 | CK12: 0 | CL12: 0
E13: Initial transaction costs flag | G13: flag | K13: =Flag_InitialConstructionCosts -> 1 | L13: 0 | M13: 0 | N13: 0 | O13: 0 | P13: 0 | Q13: 0 | R13: 0 | S13: 0 | T13: 0 | U13: 0 | V13: 0 | W13: 0 | X13: 0 | Y13: 0 | Z13: 0 | AA13: 0 | AB13: 0 | AC13: 0 | AD13: 0 | AE13: 0 | AF13: 0 | AG13: 0 | AH13: 0 | AI13: 0 | AJ13: 0 | AK13: 0 | AL13: 0 | AM13: 0 | AN13: 0 | AO13: 0 | AP13: 0 | AQ13: 0 | AR13: 0 | AS13: 0 | AT13: 0 | AU13: 0 | AV13: 0 | AW13: 0 | AX13: 0 | AY13: 0 | AZ13: 0 | BA13: 0 | BB13: 0 | BC13: 0 | BD13: 0 | BE13: 0 | BF13: 0 | BG13: 0 | BH13: 0 | BI13: 0 | BJ13: 0 | BK13: 0 | BL13: 0 | BM13: 0 | BN13: 0 | BO13: 0 | BP13: 0 | BQ13: 0 | BR13: 0 | BS13: 0 | BT13: 0 | BU13: 0 | BV13: 0 | BW13: 0 | BX13: 0 | BY13: 0 | BZ13: 0 | CA13: 0 | CB13: 0 | CC13: 0 | CD13: 0 | CE13: 0 | CF13: 0 | CG13: 0 | CH13: 0 | CI13: 0 | CJ13: 0 | CK13: 0 | CL13: 0
E14: Financial close flag | G14: flag | K14: =Flag_FinancialClose -> 0 | L14: 1 | M14: 0 | N14: 0 | O14: 0 | P14: 0 | Q14: 0 | R14: 0 | S14: 0 | T14: 0 | U14: 0 | V14: 0 | W14: 0 | X14: 0 | Y14: 0 | Z14: 0 | AA14: 0 | AB14: 0 | AC14: 0 | AD14: 0 | AE14: 0 | AF14: 0 | AG14: 0 | AH14: 0 | AI14: 0 | AJ14: 0 | AK14: 0 | AL14: 0 | AM14: 0 | AN14: 0 | AO14: 0 | AP14: 0 | AQ14: 0 | AR14: 0 | AS14: 0 | AT14: 0 | AU14: 0 | AV14: 0 | AW14: 0 | AX14: 0 | AY14: 0 | AZ14: 0 | BA14: 0 | BB14: 0 | BC14: 0 | BD14: 0 | BE14: 0 | BF14: 0 | BG14: 0 | BH14: 0 | BI14: 0 | BJ14: 0 | BK14: 0 | BL14: 0 | BM14: 0 | BN14: 0 | BO14: 0 | BP14: 0 | BQ14: 0 | BR14: 0 | BS14: 0 | BT14: 0 | BU14: 0 | BV14: 0 | BW14: 0 | BX14: 0 | BY14: 0 | BZ14: 0 | CA14: 0 | CB14: 0 | CC14: 0 | CD14: 0 | CE14: 0 | CF14: 0 | CG14: 0 | CH14: 0 | CI14: 0 | CJ14: 0 | CK14: 0 | CL14: 0
E15: Debt drawdown flag | G15: flag | K15: =Flag_DebtDrawdown -> 0 | L15: 1 | M15: 1 | N15: 1 | O15: 1 | P15: 1 | Q15: 0 | R15: 0 | S15: 0 | T15: 0 | U15: 0 | V15: 0 | W15: 0 | X15: 0 | Y15: 0 | Z15: 0 | AA15: 0 | AB15: 0 | AC15: 0 | AD15: 0 | AE15: 0 | AF15: 0 | AG15: 0 | AH15: 0 | AI15: 0 | AJ15: 0 | AK15: 0 | AL15: 0 | AM15: 0 | AN15: 0 | AO15: 0 | AP15: 0 | AQ15: 0 | AR15: 0 | AS15: 0 | AT15: 0 | AU15: 0 | AV15: 0 | AW15: 0 | AX15: 0 | AY15: 0 | AZ15: 0 | BA15: 0 | BB15: 0 | BC15: 0 | BD15: 0 | BE15: 0 | BF15: 0 | BG15: 0 | BH15: 0 | BI15: 0 | BJ15: 0 | BK15: 0 | BL15: 0 | BM15: 0 | BN15: 0 | BO15: 0 | BP15: 0 | BQ15: 0 | BR15: 0 | BS15: 0 | BT15: 0 | BU15: 0 | BV15: 0 | BW15: 0 | BX15: 0 | BY15: 0 | BZ15: 0 | CA15: 0 | CB15: 0 | CC15: 0 | CD15: 0 | CE15: 0 | CF15: 0 | CG15: 0 | CH15: 0 | CI15: 0 | CJ15: 0 | CK15: 0 | CL15: 0
E16: Debt repayment year | G16: count | K16: =Count_DebtRepaymentYears -> 0 | L16: 0 | M16: 0 | N16: 0 | O16: 0 | P16: 0 | Q16: 1 | R16: 2 | S16: 3 | T16: 4 | U16: 5 | V16: 6 | W16: 7 | X16: 8 | Y16: 9 | Z16: 10 | AA16: 11 | AB16: 12 | AC16: 13 | AD16: 14 | AE16: 15 | AF16: 16 | AG16: 17 | AH16: 18 | AI16: 19 | AJ16: 20 | AK16: 21 | AL16: 22 | AM16: 23 | AN16: 24 | AO16: 25 | AP16: 0 | AQ16: 0 | AR16: 0 | AS16: 0 | AT16: 0 | AU16: 0 | AV16: 0 | AW16: 0 | AX16: 0 | AY16: 0 | AZ16: 0 | BA16: 0 | BB16: 0 | BC16: 0 | BD16: 0 | BE16: 0 | BF16: 0 | BG16: 0 | BH16: 0 | BI16: 0 | BJ16: 0 | BK16: 0 | BL16: 0 | BM16: 0 | BN16: 0 | BO16: 0 | BP16: 0 | BQ16: 0 | BR16: 0 | BS16: 0 | BT16: 0 | BU16: 0 | BV16: 0 | BW16: 0 | BX16: 0 | BY16: 0 | BZ16: 0 | CA16: 0 | CB16: 0 | CC16: 0 | CD16: 0 | CE16: 0 | CF16: 0 | CG16: 0 | CH16: 0 | CI16: 0 | CJ16: 0 | CK16: 0 | CL16: 0
B18: Pre-operational interest during construction
C20: Pre-operational interest during construction
E22: Interest during construction rate | G22: =Inputs!G48 -> real annual % | I22: =Inputs!$I$48 -> 0.0603
E24: Opening pre-operational RAV (before transfers) | G24: =Inputs!$I$6 -> £m 2024 prices | K24: =Pre_Op_RAV!K19 -> 0 | L24: =Pre_Op_RAV!L19 -> 20.1817173 | M24: =Pre_Op_RAV!M19 -> 225.1944476 | N24: =Pre_Op_RAV!N19 -> 424.0249225 | O24: =Pre_Op_RAV!O19 -> 574.1594488 | P24: =Pre_Op_RAV!P19 -> 0 | Q24: =Pre_Op_RAV!Q19 -> 0 | R24: =Pre_Op_RAV!R19 -> 0 | S24: =Pre_Op_RAV!S19 -> 0 | T24: =Pre_Op_RAV!T19 -> 0 | U24: =Pre_Op_RAV!U19 -> 0 | V24: =Pre_Op_RAV!V19 -> 0 | W24: =Pre_Op_RAV!W19 -> 0 | X24: =Pre_Op_RAV!X19 -> 0 | Y24: =Pre_Op_RAV!Y19 -> 0 | Z24: =Pre_Op_RAV!Z19 -> 0 | AA24: =Pre_Op_RAV!AA19 -> 0 | AB24: =Pre_Op_RAV!AB19 -> 0 | AC24: =Pre_Op_RAV!AC19 -> 0 | AD24: =Pre_Op_RAV!AD19 -> 0 | AE24: =Pre_Op_RAV!AE19 -> 0 | AF24: =Pre_Op_RAV!AF19 -> 0 | AG24: =Pre_Op_RAV!AG19 -> 0 | AH24: =Pre_Op_RAV!AH19 -> 0 | AI24: =Pre_Op_RAV!AI19 -> 0 | AJ24: =Pre_Op_RAV!AJ19 -> 0 | AK24: =Pre_Op_RAV!AK19 -> 0 | AL24: =Pre_Op_RAV!AL19 -> 0 | AM24: =Pre_Op_RAV!AM19 -> 0 | AN24: =Pre_Op_RAV!AN19 -> 0 | AO24: =Pre_Op_RAV!AO19 -> 0 | AP24: =Pre_Op_RAV!AP19 -> 0 | AQ24: =Pre_Op_RAV!AQ19 -> 0 | AR24: =Pre_Op_RAV!AR19 -> 0 | AS24: =Pre_Op_RAV!AS19 -> 0 | AT24: =Pre_Op_RAV!AT19 -> 0 | AU24: =Pre_Op_RAV!AU19 -> 0 | AV24: =Pre_Op_RAV!AV19 -> 0 | AW24: =Pre_Op_RAV!AW19 -> 0 | AX24: =Pre_Op_RAV!AX19 -> 0 | AY24: =Pre_Op_RAV!AY19 -> 0 | AZ24: =Pre_Op_RAV!AZ19 -> 0 | BA24: =Pre_Op_RAV!BA19 -> 0 | BB24: =Pre_Op_RAV!BB19 -> 0 | BC24: =Pre_Op_RAV!BC19 -> 0 | BD24: =Pre_Op_RAV!BD19 -> 0 | BE24: =Pre_Op_RAV!BE19 -> 0 | BF24: =Pre_Op_RAV!BF19 -> 0 | BG24: =Pre_Op_RAV!BG19 -> 0 | BH24: =Pre_Op_RAV!BH19 -> 0 | BI24: =Pre_Op_RAV!BI19 -> 0 | BJ24: =Pre_Op_RAV!BJ19 -> 0 | BK24: =Pre_Op_RAV!BK19 -> 0 | BL24: =Pre_Op_RAV!BL19 -> 0 | BM24: =Pre_Op_RAV!BM19 -> 0 | BN24: =Pre_Op_RAV!BN19 -> 0 | BO24: =Pre_Op_RAV!BO19 -> 0 | BP24: =Pre_Op_RAV!BP19 -> 0 | BQ24: =Pre_Op_RAV!BQ19 -> 0 | BR24: =Pre_Op_RAV!BR19 -> 0 | BS24: =Pre_Op_RAV!BS19 -> 0 | BT24: =Pre_Op_RAV!BT19 -> 0 | BU24: =Pre_Op_RAV!BU19 -> 0 | BV24: =Pre_Op_RAV!BV19 -> 0 | BW24: =Pre_Op_RAV!BW19 -> 0 | BX24: =Pre_Op_RAV!BX19 -> 0 | BY24: =Pre_Op_RAV!BY19 -> 0 | BZ24: =Pre_Op_RAV!BZ19 -> 0 | CA24: =Pre_Op_RAV!CA19 -> 0 | CB24: =Pre_Op_RAV!CB19 -> 0 | CC24: =Pre_Op_RAV!CC19 -> 0 | CD24: =Pre_Op_RAV!CD19 -> 0 | CE24: =Pre_Op_RAV!CE19 -> 0 | CF24: =Pre_Op_RAV!CF19 -> 0 | CG24: =Pre_Op_RAV!CG19 -> 0 | CH24: =Pre_Op_RAV!CH19 -> 0 | CI24: =Pre_Op_RAV!CI19 -> 0 | CJ24: =Pre_Op_RAV!CJ19 -> 0 | CK24: =Pre_Op_RAV!CK19 -> 0 | CL24: =Pre_Op_RAV!CL19 -> 0
E25: Development costs | G25: =Inputs!$I$6 -> £m 2024 prices | K25: =Inputs!K26 -> 19.60784314 | L25: =Inputs!L26 -> 4.805843906 | M25: =Inputs!M26 -> 0 | N25: =Inputs!N26 -> 0 | O25: =Inputs!O26 -> 0 | P25: =Inputs!P26 -> 0 | Q25: =Inputs!Q26 -> 0 | R25: =Inputs!R26 -> 0 | S25: =Inputs!S26 -> 0 | T25: =Inputs!T26 -> 0 | U25: =Inputs!U26 -> 0 | V25: =Inputs!V26 -> 0 | W25: =Inputs!W26 -> 0 | X25: =Inputs!X26 -> 0 | Y25: =Inputs!Y26 -> 0 | Z25: =Inputs!Z26 -> 0 | AA25: =Inputs!AA26 -> 0 | AB25: =Inputs!AB26 -> 0 | AC25: =Inputs!AC26 -> 0 | AD25: =Inputs!AD26 -> 0 | AE25: =Inputs!AE26 -> 0 | AF25: =Inputs!AF26 -> 0 | AG25: =Inputs!AG26 -> 0 | AH25: =Inputs!AH26 -> 0 | AI25: =Inputs!AI26 -> 0 | AJ25: =Inputs!AJ26 -> 0 | AK25: =Inputs!AK26 -> 0 | AL25: =Inputs!AL26 -> 0 | AM25: =Inputs!AM26 -> 0 | AN25: =Inputs!AN26 -> 0 | AO25: =Inputs!AO26 -> 0 | AP25: =Inputs!AP26 -> 0 | AQ25: =Inputs!AQ26 -> 0 | AR25: =Inputs!AR26 -> 0 | AS25: =Inputs!AS26 -> 0 | AT25: =Inputs!AT26 -> 0 | AU25: =Inputs!AU26 -> 0 | AV25: =Inputs!AV26 -> 0 | AW25: =Inputs!AW26 -> 0 | AX25: =Inputs!AX26 -> 0 | AY25: =Inputs!AY26 -> 0 | AZ25: =Inputs!AZ26 -> 0 | BA25: =Inputs!BA26 -> 0 | BB25: =Inputs!BB26 -> 0 | BC25: =Inputs!BC26 -> 0 | BD25: =Inputs!BD26 -> 0 | BE25: =Inputs!BE26 -> 0 | BF25: =Inputs!BF26 -> 0 | BG25: =Inputs!BG26 -> 0 | BH25: =Inputs!BH26 -> 0 | BI25: =Inputs!BI26 -> 0 | BJ25: =Inputs!BJ26 -> 0 | BK25: =Inputs!BK26 -> 0 | BL25: =Inputs!BL26 -> 0 | BM25: =Inputs!BM26 -> 0 | BN25: =Inputs!BN26 -> 0 | BO25: =Inputs!BO26 -> 0 | BP25: =Inputs!BP26 -> 0 | BQ25: =Inputs!BQ26 -> 0 | BR25: =Inputs!BR26 -> 0 | BS25: =Inputs!BS26 -> 0 | BT25: =Inputs!BT26 -> 0 | BU25: =Inputs!BU26 -> 0 | BV25: =Inputs!BV26 -> 0 | BW25: =Inputs!BW26 -> 0 | BX25: =Inputs!BX26 -> 0 | BY25: =Inputs!BY26 -> 0 | BZ25: =Inputs!BZ26 -> 0 | CA25: =Inputs!CA26 -> 0 | CB25: =Inputs!CB26 -> 0 | CC25: =Inputs!CC26 -> 0 | CD25: =Inputs!CD26 -> 0 | CE25: =Inputs!CE26 -> 0 | CF25: =Inputs!CF26 -> 0 | CG25: =Inputs!CG26 -> 0 | CH25: =Inputs!CH26 -> 0 | CI25: =Inputs!CI26 -> 0 | CJ25: =Inputs!CJ26 -> 0 | CK25: =Inputs!CK26 -> 0 | CL25: =Inputs!CL26 -> 0
E26: Capex | G26: =Inputs!$I$6 -> £m 2024 prices | K26: =Inputs!K27 -> 0 | L26: =Inputs!L27 -> 192.2337562 | M26: =Inputs!M27 -> 179.0412436 | N26: =Inputs!N27 -> 120.0999054 | O26: =Inputs!O27 -> 4.528654049 | P26: =Inputs!P27 -> 0 | Q26: =Inputs!Q27 -> 0 | R26: =Inputs!R27 -> 0 | S26: =Inputs!S27 -> 0 | T26: =Inputs!T27 -> 0 | U26: =Inputs!U27 -> 0 | V26: =Inputs!V27 -> 0 | W26: =Inputs!W27 -> 0 | X26: =Inputs!X27 -> 0 | Y26: =Inputs!Y27 -> 0 | Z26: =Inputs!Z27 -> 0 | AA26: =Inputs!AA27 -> 0 | AB26: =Inputs!AB27 -> 0 | AC26: =Inputs!AC27 -> 0 | AD26: =Inputs!AD27 -> 0 | AE26: =Inputs!AE27 -> 0 | AF26: =Inputs!AF27 -> 0 | AG26: =Inputs!AG27 -> 0 | AH26: =Inputs!AH27 -> 0 | AI26: =Inputs!AI27 -> 0 | AJ26: =Inputs!AJ27 -> 0 | AK26: =Inputs!AK27 -> 0 | AL26: =Inputs!AL27 -> 0 | AM26: =Inputs!AM27 -> 0 | AN26: =Inputs!AN27 -> 0 | AO26: =Inputs!AO27 -> 0 | AP26: =Inputs!AP27 -> 0 | AQ26: =Inputs!AQ27 -> 0 | AR26: =Inputs!AR27 -> 0 | AS26: =Inputs!AS27 -> 0 | AT26: =Inputs!AT27 -> 0 | AU26: =Inputs!AU27 -> 0 | AV26: =Inputs!AV27 -> 0 | AW26: =Inputs!AW27 -> 0 | AX26: =Inputs!AX27 -> 0 | AY26: =Inputs!AY27 -> 0 | AZ26: =Inputs!AZ27 -> 0 | BA26: =Inputs!BA27 -> 0 | BB26: =Inputs!BB27 -> 0 | BC26: =Inputs!BC27 -> 0 | BD26: =Inputs!BD27 -> 0 | BE26: =Inputs!BE27 -> 0 | BF26: =Inputs!BF27 -> 0 | BG26: =Inputs!BG27 -> 0 | BH26: =Inputs!BH27 -> 0 | BI26: =Inputs!BI27 -> 0 | BJ26: =Inputs!BJ27 -> 0 | BK26: =Inputs!BK27 -> 0 | BL26: =Inputs!BL27 -> 0 | BM26: =Inputs!BM27 -> 0 | BN26: =Inputs!BN27 -> 0 | BO26: =Inputs!BO27 -> 0 | BP26: =Inputs!BP27 -> 0 | BQ26: =Inputs!BQ27 -> 0 | BR26: =Inputs!BR27 -> 0 | BS26: =Inputs!BS27 -> 0 | BT26: =Inputs!BT27 -> 0 | BU26: =Inputs!BU27 -> 0 | BV26: =Inputs!BV27 -> 0 | BW26: =Inputs!BW27 -> 0 | BX26: =Inputs!BX27 -> 0 | BY26: =Inputs!BY27 -> 0 | BZ26: =Inputs!BZ27 -> 0 | CA26: =Inputs!CA27 -> 0 | CB26: =Inputs!CB27 -> 0 | CC26: =Inputs!CC27 -> 0 | CD26: =Inputs!CD27 -> 0 | CE26: =Inputs!CE27 -> 0 | CF26: =Inputs!CF27 -> 0 | CG26: =Inputs!CG27 -> 0 | CH26: =Inputs!CH27 -> 0 | CI26: =Inputs!CI27 -> 0 | CJ26: =Inputs!CJ27 -> 0 | CK26: =Inputs!CK27 -> 0 | CL26: =Inputs!CL27 -> 0
E27: Spares | G27: =Inputs!$I$6 -> £m 2024 prices | K27: =Inputs!K28 -> 0 | L27: =Inputs!L28 -> 0.9611687812 | M27: =Inputs!M28 -> 0.9423223345 | N27: =Inputs!N28 -> 0.923845426 | O27: =Inputs!O28 -> 0.9057308098 | P27: =Inputs!P28 -> 0 | Q27: =Inputs!Q28 -> 0 | R27: =Inputs!R28 -> 0 | S27: =Inputs!S28 -> 0 | T27: =Inputs!T28 -> 0 | U27: =Inputs!U28 -> 0 | V27: =Inputs!V28 -> 0 | W27: =Inputs!W28 -> 0 | X27: =Inputs!X28 -> 0 | Y27: =Inputs!Y28 -> 0 | Z27: =Inputs!Z28 -> 0 | AA27: =Inputs!AA28 -> 0 | AB27: =Inputs!AB28 -> 0 | AC27: =Inputs!AC28 -> 0 | AD27: =Inputs!AD28 -> 0 | AE27: =Inputs!AE28 -> 0 | AF27: =Inputs!AF28 -> 0 | AG27: =Inputs!AG28 -> 0 | AH27: =Inputs!AH28 -> 0 | AI27: =Inputs!AI28 -> 0 | AJ27: =Inputs!AJ28 -> 0 | AK27: =Inputs!AK28 -> 0 | AL27: =Inputs!AL28 -> 0 | AM27: =Inputs!AM28 -> 0 | AN27: =Inputs!AN28 -> 0 | AO27: =Inputs!AO28 -> 0 | AP27: =Inputs!AP28 -> 0 | AQ27: =Inputs!AQ28 -> 0 | AR27: =Inputs!AR28 -> 0 | AS27: =Inputs!AS28 -> 0 | AT27: =Inputs!AT28 -> 0 | AU27: =Inputs!AU28 -> 0 | AV27: =Inputs!AV28 -> 0 | AW27: =Inputs!AW28 -> 0 | AX27: =Inputs!AX28 -> 0 | AY27: =Inputs!AY28 -> 0 | AZ27: =Inputs!AZ28 -> 0 | BA27: =Inputs!BA28 -> 0 | BB27: =Inputs!BB28 -> 0 | BC27: =Inputs!BC28 -> 0 | BD27: =Inputs!BD28 -> 0 | BE27: =Inputs!BE28 -> 0 | BF27: =Inputs!BF28 -> 0 | BG27: =Inputs!BG28 -> 0 | BH27: =Inputs!BH28 -> 0 | BI27: =Inputs!BI28 -> 0 | BJ27: =Inputs!BJ28 -> 0 | BK27: =Inputs!BK28 -> 0 | BL27: =Inputs!BL28 -> 0 | BM27: =Inputs!BM28 -> 0 | BN27: =Inputs!BN28 -> 0 | BO27: =Inputs!BO28 -> 0 | BP27: =Inputs!BP28 -> 0 | BQ27: =Inputs!BQ28 -> 0 | BR27: =Inputs!BR28 -> 0 | BS27: =Inputs!BS28 -> 0 | BT27: =Inputs!BT28 -> 0 | BU27: =Inputs!BU28 -> 0 | BV27: =Inputs!BV28 -> 0 | BW27: =Inputs!BW28 -> 0 | BX27: =Inputs!BX28 -> 0 | BY27: =Inputs!BY28 -> 0 | BZ27: =Inputs!BZ28 -> 0 | CA27: =Inputs!CA28 -> 0 | CB27: =Inputs!CB28 -> 0 | CC27: =Inputs!CC28 -> 0 | CD27: =Inputs!CD28 -> 0 | CE27: =Inputs!CE28 -> 0 | CF27: =Inputs!CF28 -> 0 | CG27: =Inputs!CG28 -> 0 | CH27: =Inputs!CH28 -> 0 | CI27: =Inputs!CI28 -> 0 | CJ27: =Inputs!CJ28 -> 0 | CK27: =Inputs!CK28 -> 0 | CL27: =Inputs!CL28 -> 0
E28: Capitalised interest during construction | G28: =Inputs!$I$6 -> £m 2024 prices | K28: =$I22*(K24+(K25+K26+K27)/(2+$I22))*K8 -> 0.5738741645 | L28: =$I22*(L24+(L25+L26+L27)/(2+$I22))*L8 -> 7.011961372 | M28: 18.84690903 | N28: 29.11077543 | O28: 0 | P28: 0 | Q28: 0 | R28: 0 | S28: 0 | T28: 0 | U28: 0 | V28: 0 | W28: 0 | X28: 0 | Y28: 0 | Z28: 0 | AA28: 0 | AB28: 0 | AC28: 0 | AD28: 0 | AE28: 0 | AF28: 0 | AG28: 0 | AH28: 0 | AI28: 0 | AJ28: 0 | AK28: 0 | AL28: 0 | AM28: 0 | AN28: 0 | AO28: 0 | AP28: 0 | AQ28: 0 | AR28: 0 | AS28: 0 | AT28: 0 | AU28: 0 | AV28: 0 | AW28: 0 | AX28: 0 | AY28: =$I22*(AY24+(AY25+AY26+AY27)/(2+$I22))*AY8 -> 0 | AZ28: 0 | BA28: 0 | BB28: 0 | BC28: 0 | BD28: 0 | BE28: 0 | BF28: 0 | BG28: 0 | BH28: =$I22*(BH24+(BH25+BH26+BH27)/(2+$I22))*BH8 -> 0 | BI28: 0 | BJ28: 0 | BK28: 0 | BL28: 0 | BM28: 0 | BN28: 0 | BO28: 0 | BP28: 0 | BQ28: 0 | BR28: 0 | BS28: 0 | BT28: 0 | BU28: 0 | BV28: 0 | BW28: 0 | BX28: 0 | BY28: 0 | BZ28: 0 | CA28: 0 | CB28: 0 | CC28: 0 | CD28: 0 | CE28: 0 | CF28: 0 | CG28: 0 | CH28: 0 | CI28: 0 | CJ28: 0 | CK28: 0 | CL28: 0
B30: Transaction costs
C32: Parameters
E34: Pre-operational notional gearing | I34: =Inputs!I50 -> 0.375
E35: Operational notional gearing | G35: =Inputs!G51 -> % | I35: =Inputs!I51 -> 0.5
E37: Debt transaction costs | G37: =Inputs!G54 -> % | I37: =Inputs!I54 -> 0.025
E38: Equity transaction costs | G38: =Inputs!G53 -> % | I38: =Inputs!I53 -> 0.05
C40: Allowance
E42: Transaction costs - opening | G42: =Inputs!$I$6 -> £m 2024 prices | K42: =J50 -> 0 | L42: 24.23513397 | M42: 25.69651255 | N42: 27.24601226 | O42: 28.8889468 | P42: 0 | Q42: 0 | R42: 0 | S42: 0 | T42: =S50 -> 0 | U42: 0 | V42: 0 | W42: 0 | X42: 0 | Y42: 0 | Z42: 0 | AA42: 0 | AB42: 0 | AC42: 0 | AD42: 0 | AE42: 0 | AF42: 0 | AG42: 0 | AH42: 0 | AI42: 0 | AJ42: 0 | AK42: 0 | AL42: 0 | AM42: 0 | AN42: 0 | AO42: 0 | AP42: 0 | AQ42: 0 | AR42: 0 | AS42: 0 | AT42: 0 | AU42: 0 | AV42: 0 | AW42: 0 | AX42: 0 | AY42: =AX50 -> 0 | AZ42: =AY50 -> 0 | BA42: =AZ50 -> 0 | BB42: =BA50 -> 0 | BC42: =BB50 -> 0 | BD42: =BC50 -> 0 | BE42: =BD50 -> 0 | BF42: =BE50 -> 0 | BG42: =BF50 -> 0 | BH42: =BG50 -> 0 | BI42: =BH50 -> 0 | BJ42: =BI50 -> 0 | BK42: =BJ50 -> 0 | BL42: =BK50 -> 0 | BM42: =BL50 -> 0 | BN42: =BM50 -> 0 | BO42: =BN50 -> 0 | BP42: =BO50 -> 0 | BQ42: =BP50 -> 0 | BR42: =BQ50 -> 0 | BS42: =BR50 -> 0 | BT42: =BS50 -> 0 | BU42: =BT50 -> 0 | BV42: =BU50 -> 0 | BW42: =BV50 -> 0 | BX42: =BW50 -> 0 | BY42: =BX50 -> 0 | BZ42: =BY50 -> 0 | CA42: =BZ50 -> 0 | CB42: =CA50 -> 0 | CC42: =CB50 -> 0 | CD42: =CC50 -> 0 | CE42: =CD50 -> 0 | CF42: =CE50 -> 0 | CG42: =CF50 -> 0 | CH42: =CG50 -> 0 | CI42: =CH50 -> 0 | CJ42: =CI50 -> 0 | CK42: =CJ50 -> 0 | CL42: =CK50 -> 0
E43: Initial debt transaction costs | G43: =Inputs!$I$6 -> £m 2024 prices | K43: =$I34*K$13*$I37*-SUM(Pre_Op_RAV!K25:CL25) -> 5.43369219 | L43: =$I34*L$13*$I37*-SUM(Pre_Op_RAV!K25:CL25) -> 0 | M43: =$I34*M$13*$I37*-SUM(Pre_Op_RAV!K25:CL25) -> 0 | N43: =$I34*N$13*$I37*-SUM(Pre_Op_RAV!K25:CL25) -> 0 | O43: =$I34*O$13*$I37*-SUM(Pre_Op_RAV!K25:CL25) -> 0 | P43: =$I34*P$13*$I37*-SUM(Pre_Op_RAV!K25:CL25) -> 0 | Q43: =$I34*Q$13*$I37*-SUM(Pre_Op_RAV!K25:CL25) -> 0 | R43: =$I34*R$13*$I37*-SUM(Pre_Op_RAV!K25:CL25) -> 0 | S43: =$I34*S$13*$I37*-SUM(Pre_Op_RAV!K25:CL25) -> 0 | T43: =$I34*T$13*$I37*-SUM(Pre_Op_RAV!K25:CL25) -> 0 | U43: =$I34*U$13*$I37*-SUM(Pre_Op_RAV!K25:CL25) -> 0 | V43: =$I34*V$13*$I37*-SUM(Pre_Op_RAV!K25:CL25) -> 0 | W43: =$I34*W$13*$I37*-SUM(Pre_Op_RAV!K25:CL25) -> 0 | X43: =$I34*X$13*$I37*-SUM(Pre_Op_RAV!K25:CL25) -> 0 | Y43: =$I34*Y$13*$I37*-SUM(Pre_Op_RAV!K25:CL25) -> 0 | Z43: =$I34*Z$13*$I37*-SUM(Pre_Op_RAV!K25:CL25) -> 0 | AA43: =$I34*AA$13*$I37*-SUM(Pre_Op_RAV!K25:CL25) -> 0 | AB43: =$I34*AB$13*$I37*-SUM(Pre_Op_RAV!K25:CL25) -> 0 | AC43: =$I34*AC$13*$I37*-SUM(Pre_Op_RAV!K25:CL25) -> 0 | AD43: =$I34*AD$13*$I37*-SUM(Pre_Op_RAV!K25:CL25) -> 0 | AE43: =$I34*AE$13*$I37*-SUM(Pre_Op_RAV!K25:CL25) -> 0 | AF43: =$I34*AF$13*$I37*-SUM(Pre_Op_RAV!K25:CL25) -> 0 | AG43: =$I34*AG$13*$I37*-SUM(Pre_Op_RAV!K25:CL25) -> 0 | AH43: =$I34*AH$13*$I37*-SUM(Pre_Op_RAV!K25:CL25) -> 0 | AI43: =$I34*AI$13*$I37*-SUM(Pre_Op_RAV!K25:CL25) -> 0 | AJ43: =$I34*AJ$13*$I37*-SUM(Pre_Op_RAV!K25:CL25) -> 0 | AK43: =$I34*AK$13*$I37*-SUM(Pre_Op_RAV!K25:CL25) -> 0 | AL43: =$I34*AL$13*$I37*-SUM(Pre_Op_RAV!K25:CL25) -> 0 | AM43: =$I34*AM$13*$I37*-SUM(Pre_Op_RAV!K25:CL25) -> 0 | AN43: =$I34*AN$13*$I37*-SUM(Pre_Op_RAV!K25:CL25) -> 0 | AO43: =$I34*AO$13*$I37*-SUM(Pre_Op_RAV!K25:CL25) -> 0 | AP43: =$I34*AP$13*$I37*-SUM(Pre_Op_RAV!K25:CL25) -> 0 | AQ43: =$I34*AQ$13*$I37*-SUM(Pre_Op_RAV!K25:CL25) -> 0 | AR43: =$I34*AR$13*$I37*-SUM(Pre_Op_RAV!K25:CL25) -> 0 | AS43: =$I34*AS$13*$I37*-SUM(Pre_Op_RAV!K25:CL25) -> 0 | AT43: =$I34*AT$13*$I37*-SUM(Pre_Op_RAV!K25:CL25) -> 0 | AU43: =$I34*AU$13*$I37*-SUM(Pre_Op_RAV!K25:CL25) -> 0 | AV43: =$I34*AV$13*$I37*-SUM(Pre_Op_RAV!K25:CL25) -> 0 | AW43: =$I34*AW$13*$I37*-SUM(Pre_Op_RAV!K25:CL25) -> 0 | AX43: =$I34*AX$13*$I37*-SUM(Pre_Op_RAV!K25:CL25) -> 0 | AY43: =$I34*AY$13*$I37*-SUM(Pre_Op_RAV!K25:CL25) -> 0 | AZ43: =$I34*AZ$13*$I37*-SUM(Pre_Op_RAV!K25:CL25) -> 0 | BA43: =$I34*BA$13*$I37*-SUM(Pre_Op_RAV!K25:CL25) -> 0 | BB43: =$I34*BB$13*$I37*-SUM(Pre_Op_RAV!K25:CL25) -> 0 | BC43: =$I34*BC$13*$I37*-SUM(Pre_Op_RAV!K25:CL25) -> 0 | BD43: =$I34*BD$13*$I37*-SUM(Pre_Op_RAV!K25:CL25) -> 0 | BE43: =$I34*BE$13*$I37*-SUM(Pre_Op_RAV!K25:CL25) -> 0 | BF43: =$I34*BF$13*$I37*-SUM(Pre_Op_RAV!K25:CL25) -> 0 | BG43: =$I34*BG$13*$I37*-SUM(Pre_Op_RAV!K25:CL25) -> 0 | BH43: =$I34*CL$13*$I37*-SUM(Pre_Op_RAV!L25:BI25) -> 0 | BI43: =$I34*BI$13*$I37*-SUM(Pre_Op_RAV!M25:BJ25) -> 0 | BJ43: =$I34*BJ$13*$I37*-SUM(Pre_Op_RAV!N25:BK25) -> 0 | BK43: =$I34*BK$13*$I37*-SUM(Pre_Op_RAV!O25:BL25) -> 0 | BL43: =$I34*BL$13*$I37*-SUM(Pre_Op_RAV!P25:BM25) -> 0 | BM43: =$I34*BM$13*$I37*-SUM(Pre_Op_RAV!Q25:BN25) -> 0 | BN43: =$I34*BN$13*$I37*-SUM(Pre_Op_RAV!R25:BO25) -> 0 | BO43: =$I34*BO$13*$I37*-SUM(Pre_Op_RAV!S25:BP25) -> 0 | BP43: =$I34*BP$13*$I37*-SUM(Pre_Op_RAV!T25:BQ25) -> 0 | BQ43: =$I34*BQ$13*$I37*-SUM(Pre_Op_RAV!U25:BR25) -> 0 | BR43: =$I34*BR$13*$I37*-SUM(Pre_Op_RAV!V25:BS25) -> 0 | BS43: =$I34*BS$13*$I37*-SUM(Pre_Op_RAV!W25:BT25) -> 0 | BT43: =$I34*BT$13*$I37*-SUM(Pre_Op_RAV!X25:BU25) -> 0 | BU43: =$I34*BU$13*$I37*-SUM(Pre_Op_RAV!Y25:BV25) -> 0 | BV43: =$I34*BV$13*$I37*-SUM(Pre_Op_RAV!Z25:BW25) -> 0 | BW43: =$I34*BW$13*$I37*-SUM(Pre_Op_RAV!AA25:BX25) -> 0 | BX43: =$I34*BX$13*$I37*-SUM(Pre_Op_RAV!AB25:BY25) -> 0 | BY43: =$I34*BY$13*$I37*-SUM(Pre_Op_RAV!AC25:BZ25) -> 0 | BZ43: =$I34*BZ$13*$I37*-SUM(Pre_Op_RAV!AD25:CA25) -> 0 | CA43: =$I34*CA$13*$I37*-SUM(Pre_Op_RAV!AE25:CB25) -> 0 | CB43: =$I34*CB$13*$I37*-SUM(Pre_Op_RAV!AF25:CC25) -> 0 | CC43: =$I34*CC$13*$I37*-SUM(Pre_Op_RAV!AG25:CD25) -> 0 | CD43: =$I34*CD$13*$I37*-SUM(Pre_Op_RAV!AH25:CE25) -> 0 | CE43: =$I34*CE$13*$I37*-SUM(Pre_Op_RAV!AI25:CF25) -> 0 | CF43: =$I34*CF$13*$I37*-SUM(Pre_Op_RAV!AJ25:CG25) -> 0 | CG43: =$I34*CG$13*$I37*-SUM(Pre_Op_RAV!AK25:CH25) -> 0 | CH43: =$I34*CH$13*$I37*-SUM(Pre_Op_RAV!AL25:CI25) -> 0 | CI43: =$I34*CI$13*$I37*-SUM(Pre_Op_RAV!AM25:CJ25) -> 0 | CJ43: =$I34*CJ$13*$I37*-SUM(Pre_Op_RAV!AN25:CK25) -> 0 | CK43: =$I34*CK$13*$I37*-SUM(Pre_Op_RAV!AO25:CL25) -> 0 | CL43: =$I34*CL$13*$I37*-SUM(Pre_Op_RAV!AP25:CM25) -> 0
E44: Initial equity transaction costs | G44: =Inputs!$I$6 -> £m 2024 prices | K44: =(1-$I34)*K$13*$I38*-SUM(Pre_Op_RAV!K25:CL25) -> 18.1123073 | L44: =(1-$I34)*L$13*$I38*-SUM(Pre_Op_RAV!K25:CL25) -> 0 | M44: =(1-$I34)*M$13*$I38*-SUM(Pre_Op_RAV!K25:CL25) -> 0 | N44: =(1-$I34)*N$13*$I38*-SUM(Pre_Op_RAV!K25:CL25) -> 0 | O44: =(1-$I34)*O$13*$I38*-SUM(Pre_Op_RAV!K25:CL25) -> 0 | P44: =(1-$I34)*P$13*$I38*-SUM(Pre_Op_RAV!K25:CL25) -> 0 | Q44: =(1-$I34)*Q$13*$I38*-SUM(Pre_Op_RAV!K25:CL25) -> 0 | R44: =(1-$I34)*R$13*$I38*-SUM(Pre_Op_RAV!K25:CL25) -> 0 | S44: =(1-$I34)*S$13*$I38*-SUM(Pre_Op_RAV!K25:CL25) -> 0 | T44: =(1-$I34)*T$13*$I38*-SUM(Pre_Op_RAV!K25:CL25) -> 0 | U44: =(1-$I34)*U$13*$I38*-SUM(Pre_Op_RAV!K25:CL25) -> 0 | V44: =(1-$I34)*V$13*$I38*-SUM(Pre_Op_RAV!K25:CL25) -> 0 | W44: =(1-$I34)*W$13*$I38*-SUM(Pre_Op_RAV!K25:CL25) -> 0 | X44: =(1-$I34)*X$13*$I38*-SUM(Pre_Op_RAV!K25:CL25) -> 0 | Y44: =(1-$I34)*Y$13*$I38*-SUM(Pre_Op_RAV!K25:CL25) -> 0 | Z44: =(1-$I34)*Z$13*$I38*-SUM(Pre_Op_RAV!K25:CL25) -> 0 | AA44: =(1-$I34)*AA$13*$I38*-SUM(Pre_Op_RAV!K25:CL25) -> 0 | AB44: =(1-$I34)*AB$13*$I38*-SUM(Pre_Op_RAV!K25:CL25) -> 0 | AC44: =(1-$I34)*AC$13*$I38*-SUM(Pre_Op_RAV!K25:CL25) -> 0 | AD44: =(1-$I34)*AD$13*$I38*-SUM(Pre_Op_RAV!K25:CL25) -> 0 | AE44: =(1-$I34)*AE$13*$I38*-SUM(Pre_Op_RAV!K25:CL25) -> 0 | AF44: =(1-$I34)*AF$13*$I38*-SUM(Pre_Op_RAV!K25:CL25) -> 0 | AG44: =(1-$I34)*AG$13*$I38*-SUM(Pre_Op_RAV!K25:CL25) -> 0 | AH44: =(1-$I34)*AH$13*$I38*-SUM(Pre_Op_RAV!K25:CL25) -> 0 | AI44: =(1-$I34)*AI$13*$I38*-SUM(Pre_Op_RAV!K25:CL25) -> 0 | AJ44: =(1-$I34)*AJ$13*$I38*-SUM(Pre_Op_RAV!K25:CL25) -> 0 | AK44: =(1-$I34)*AK$13*$I38*-SUM(Pre_Op_RAV!K25:CL25) -> 0 | AL44: =(1-$I34)*AL$13*$I38*-SUM(Pre_Op_RAV!K25:CL25) -> 0 | AM44: =(1-$I34)*AM$13*$I38*-SUM(Pre_Op_RAV!K25:CL25) -> 0 | AN44: =(1-$I34)*AN$13*$I38*-SUM(Pre_Op_RAV!K25:CL25) -> 0 | AO44: =(1-$I34)*AO$13*$I38*-SUM(Pre_Op_RAV!K25:CL25) -> 0 | AP44: =(1-$I34)*AP$13*$I38*-SUM(Pre_Op_RAV!K25:CL25) -> 0 | AQ44: =(1-$I34)*AQ$13*$I38*-SUM(Pre_Op_RAV!K25:CL25) -> 0 | AR44: =(1-$I34)*AR$13*$I38*-SUM(Pre_Op_RAV!K25:CL25) -> 0 | AS44: =(1-$I34)*AS$13*$I38*-SUM(Pre_Op_RAV!K25:CL25) -> 0 | AT44: =(1-$I34)*AT$13*$I38*-SUM(Pre_Op_RAV!K25:CL25) -> 0 | AU44: =(1-$I34)*AU$13*$I38*-SUM(Pre_Op_RAV!K25:CL25) -> 0 | AV44: =(1-$I34)*AV$13*$I38*-SUM(Pre_Op_RAV!K25:CL25) -> 0 | AW44: =(1-$I34)*AW$13*$I38*-SUM(Pre_Op_RAV!K25:CL25) -> 0 | AX44: =(1-$I34)*AX$13*$I38*-SUM(Pre_Op_RAV!K25:CL25) -> 0 | AY44: =(1-$I34)*AY$13*$I38*-SUM(Pre_Op_RAV!K25:CL25) -> 0 | AZ44: =(1-$I34)*AZ$13*$I38*-SUM(Pre_Op_RAV!K25:CL25) -> 0 | BA44: =(1-$I34)*BA$13*$I38*-SUM(Pre_Op_RAV!K25:CL25) -> 0 | BB44: =(1-$I34)*BB$13*$I38*-SUM(Pre_Op_RAV!K25:CL25) -> 0 | BC44: =(1-$I34)*BC$13*$I38*-SUM(Pre_Op_RAV!K25:CL25) -> 0 | BD44: =(1-$I34)*BD$13*$I38*-SUM(Pre_Op_RAV!K25:CL25) -> 0 | BE44: =(1-$I34)*BE$13*$I38*-SUM(Pre_Op_RAV!K25:CL25) -> 0 | BF44: =(1-$I34)*BF$13*$I38*-SUM(Pre_Op_RAV!K25:CL25) -> 0 | BG44: =(1-$I34)*BG$13*$I38*-SUM(Pre_Op_RAV!K25:CL25) -> 0 | BH44: =(1-$I34)*CL$13*$I38*-SUM(Pre_Op_RAV!L25:BI25) -> 0 | BI44: =(1-$I34)*BI$13*$I38*-SUM(Pre_Op_RAV!M25:BJ25) -> 0 | BJ44: =(1-$I34)*BJ$13*$I38*-SUM(Pre_Op_RAV!N25:BK25) -> 0 | BK44: =(1-$I34)*BK$13*$I38*-SUM(Pre_Op_RAV!O25:BL25) -> 0 | BL44: =(1-$I34)*BL$13*$I38*-SUM(Pre_Op_RAV!P25:BM25) -> 0 | BM44: =(1-$I34)*BM$13*$I38*-SUM(Pre_Op_RAV!Q25:BN25) -> 0 | BN44: =(1-$I34)*BN$13*$I38*-SUM(Pre_Op_RAV!R25:BO25) -> 0 | BO44: =(1-$I34)*BO$13*$I38*-SUM(Pre_Op_RAV!S25:BP25) -> 0 | BP44: =(1-$I34)*BP$13*$I38*-SUM(Pre_Op_RAV!T25:BQ25) -> 0 | BQ44: =(1-$I34)*BQ$13*$I38*-SUM(Pre_Op_RAV!U25:BR25) -> 0 | BR44: =(1-$I34)*BR$13*$I38*-SUM(Pre_Op_RAV!V25:BS25) -> 0 | BS44: =(1-$I34)*BS$13*$I38*-SUM(Pre_Op_RAV!W25:BT25) -> 0 | BT44: =(1-$I34)*BT$13*$I38*-SUM(Pre_Op_RAV!X25:BU25) -> 0 | BU44: =(1-$I34)*BU$13*$I38*-SUM(Pre_Op_RAV!Y25:BV25) -> 0 | BV44: =(1-$I34)*BV$13*$I38*-SUM(Pre_Op_RAV!Z25:BW25) -> 0 | BW44: =(1-$I34)*BW$13*$I38*-SUM(Pre_Op_RAV!AA25:BX25) -> 0 | BX44: =(1-$I34)*BX$13*$I38*-SUM(Pre_Op_RAV!AB25:BY25) -> 0 | BY44: =(1-$I34)*BY$13*$I38*-SUM(Pre_Op_RAV!AC25:BZ25) -> 0 | BZ44: =(1-$I34)*BZ$13*$I38*-SUM(Pre_Op_RAV!AD25:CA25) -> 0 | CA44: =(1-$I34)*CA$13*$I38*-SUM(Pre_Op_RAV!AE25:CB25) -> 0 | CB44: =(1-$I34)*CB$13*$I38*-SUM(Pre_Op_RAV!AF25:CC25) -> 0 | CC44: =(1-$I34)*CC$13*$I38*-SUM(Pre_Op_RAV!AG25:CD25) -> 0 | CD44: =(1-$I34)*CD$13*$I38*-SUM(Pre_Op_RAV!AH25:CE25) -> 0 | CE44: =(1-$I34)*CE$13*$I38*-SUM(Pre_Op_RAV!AI25:CF25) -> 0 | CF44: =(1-$I34)*CF$13*$I38*-SUM(Pre_Op_RAV!AJ25:CG25) -> 0 | CG44: =(1-$I34)*CG$13*$I38*-SUM(Pre_Op_RAV!AK25:CH25) -> 0 | CH44: =(1-$I34)*CH$13*$I38*-SUM(Pre_Op_RAV!AL25:CI25) -> 0 | CI44: =(1-$I34)*CI$13*$I38*-SUM(Pre_Op_RAV!AM25:CJ25) -> 0 | CJ44: =(1-$I34)*CJ$13*$I38*-SUM(Pre_Op_RAV!AN25:CK25) -> 0 | CK44: =(1-$I34)*CK$13*$I38*-SUM(Pre_Op_RAV!AO25:CL25) -> 0 | CL44: =(1-$I34)*CL$13*$I38*-SUM(Pre_Op_RAV!AP25:CM25) -> 0
E45: Final debt transaction costs | G45: =Inputs!$I$6 -> £m 2024 prices | K45: =MAX(($I35-$I34)*-SUM(Pre_Op_RAV!K25:CL25)*$I37*K$11,0) -> 0 | L45: =MAX(($I35-$I34)*-SUM(Pre_Op_RAV!L25:CM25)*$I37*L$11,0) -> 0 | M45: =MAX(($I35-$I34)*-SUM(Pre_Op_RAV!M25:CN25)*$I37*M$11,0) -> 0 | N45: =MAX(($I35-$I34)*-SUM(Pre_Op_RAV!N25:CO25)*$I37*N$11,0) -> 0 | O45: =MAX(($I35-$I34)*-SUM(Pre_Op_RAV!O25:CP25)*$I37*O$11,0) -> 1.81123073 | P45: =MAX(($I35-$I34)*-SUM(Pre_Op_RAV!P25:CQ25)*$I37*P$11,0) -> 0 | Q45: =MAX(($I35-$I34)*-SUM(Pre_Op_RAV!Q25:CR25)*$I37*Q$11,0) -> 0 | R45: =MAX(($I35-$I34)*-SUM(Pre_Op_RAV!R25:CS25)*$I37*R$11,0) -> 0 | S45: =MAX(($I35-$I34)*-SUM(Pre_Op_RAV!S25:CT25)*$I37*S$11,0) -> 0 | T45: =MAX(($I35-$I34)*-SUM(Pre_Op_RAV!T25:CU25)*$I37*T$11,0) -> 0 | U45: =MAX(($I35-$I34)*-SUM(Pre_Op_RAV!U25:CV25)*$I37*U$11,0) -> 0 | V45: =MAX(($I35-$I34)*-SUM(Pre_Op_RAV!V25:CW25)*$I37*V$11,0) -> 0 | W45: =MAX(($I35-$I34)*-SUM(Pre_Op_RAV!W25:CX25)*$I37*W$11,0) -> 0 | X45: =MAX(($I35-$I34)*-SUM(Pre_Op_RAV!X25:CY25)*$I37*X$11,0) -> 0 | Y45: =MAX(($I35-$I34)*-SUM(Pre_Op_RAV!Y25:CZ25)*$I37*Y$11,0) -> 0 | Z45: =MAX(($I35-$I34)*-SUM(Pre_Op_RAV!Z25:DA25)*$I37*Z$11,0) -> 0 | AA45: =MAX(($I35-$I34)*-SUM(Pre_Op_RAV!AA25:DB25)*$I37*AA$11,0) -> 0 | AB45: =MAX(($I35-$I34)*-SUM(Pre_Op_RAV!AB25:DC25)*$I37*AB$11,0) -> 0 | AC45: =MAX(($I35-$I34)*-SUM(Pre_Op_RAV!AC25:DD25)*$I37*AC$11,0) -> 0 | AD45: =MAX(($I35-$I34)*-SUM(Pre_Op_RAV!AD25:DE25)*$I37*AD$11,0) -> 0 | AE45: =MAX(($I35-$I34)*-SUM(Pre_Op_RAV!AE25:DF25)*$I37*AE$11,0) -> 0 | AF45: =MAX(($I35-$I34)*-SUM(Pre_Op_RAV!AF25:DG25)*$I37*AF$11,0) -> 0 | AG45: =MAX(($I35-$I34)*-SUM(Pre_Op_RAV!AG25:DH25)*$I37*AG$11,0) -> 0 | AH45: =MAX(($I35-$I34)*-SUM(Pre_Op_RAV!AH25:DI25)*$I37*AH$11,0) -> 0 | AI45: =MAX(($I35-$I34)*-SUM(Pre_Op_RAV!AI25:DJ25)*$I37*AI$11,0) -> 0 | AJ45: =MAX(($I35-$I34)*-SUM(Pre_Op_RAV!AJ25:DK25)*$I37*AJ$11,0) -> 0 | AK45: =MAX(($I35-$I34)*-SUM(Pre_Op_RAV!AK25:DL25)*$I37*AK$11,0) -> 0 | AL45: =MAX(($I35-$I34)*-SUM(Pre_Op_RAV!AL25:DM25)*$I37*AL$11,0) -> 0 | AM45: =MAX(($I35-$I34)*-SUM(Pre_Op_RAV!AM25:DN25)*$I37*AM$11,0) -> 0 | AN45: =MAX(($I35-$I34)*-SUM(Pre_Op_RAV!AN25:DO25)*$I37*AN$11,0) -> 0 | AO45: =MAX(($I35-$I34)*-SUM(Pre_Op_RAV!AO25:DP25)*$I37*AO$11,0) -> 0 | AP45: =MAX(($I35-$I34)*-SUM(Pre_Op_RAV!AP25:DQ25)*$I37*AP$11,0) -> 0 | AQ45: =MAX(($I35-$I34)*-SUM(Pre_Op_RAV!AQ25:DR25)*$I37*AQ$11,0) -> 0 | AR45: =MAX(($I35-$I34)*-SUM(Pre_Op_RAV!AR25:DS25)*$I37*AR$11,0) -> 0 | AS45: =MAX(($I35-$I34)*-SUM(Pre_Op_RAV!AS25:DT25)*$I37*AS$11,0) -> 0 | AT45: =MAX(($I35-$I34)*-SUM(Pre_Op_RAV!AT25:DU25)*$I37*AT$11,0) -> 0 | AU45: =MAX(($I35-$I34)*-SUM(Pre_Op_RAV!AU25:DV25)*$I37*AU$11,0) -> 0 | AV45: =MAX(($I35-$I34)*-SUM(Pre_Op_RAV!AV25:DW25)*$I37*AV$11,0) -> 0 | AW45: =MAX(($I35-$I34)*-SUM(Pre_Op_RAV!AW25:DX25)*$I37*AW$11,0) -> 0 | AX45: =MAX(($I35-$I34)*-SUM(Pre_Op_RAV!AX25:DY25)*$I37*AX$11,0) -> 0 | AY45: =MAX(($I35-$I34)*-SUM(Pre_Op_RAV!AY25:DZ25)*$I37*AY$11,0) -> 0 | AZ45: =MAX(($I35-$I34)*-SUM(Pre_Op_RAV!AZ25:EA25)*$I37*AZ$11,0) -> 0 | BA45: =MAX(($I35-$I34)*-SUM(Pre_Op_RAV!BA25:EB25)*$I37*BA$11,0) -> 0 | BB45: =MAX(($I35-$I34)*-SUM(Pre_Op_RAV!BB25:EC25)*$I37*BB$11,0) -> 0 | BC45: =MAX(($I35-$I34)*-SUM(Pre_Op_RAV!BC25:ED25)*$I37*BC$11,0) -> 0 | BD45: =MAX(($I35-$I34)*-SUM(Pre_Op_RAV!BD25:EE25)*$I37*BD$11,0) -> 0 | BE45: =MAX(($I35-$I34)*-SUM(Pre_Op_RAV!BE25:EF25)*$I37*BE$11,0) -> 0 | BF45: =MAX(($I35-$I34)*-SUM(Pre_Op_RAV!BF25:EG25)*$I37*BF$11,0) -> 0 | BG45: =MAX(($I35-$I34)*-SUM(Pre_Op_RAV!BG25:EH25)*$I37*BG$11,0) -> 0 | BH45: =MAX(($I35-$I34)*-SUM(Pre_Op_RAV!BH25:EI25)*$I37*BH$11,0) -> 0 | BI45: =MAX(($I35-$I34)*-SUM(Pre_Op_RAV!BI25:EJ25)*$I37*BI$11,0) -> 0 | BJ45: =MAX(($I35-$I34)*-SUM(Pre_Op_RAV!BJ25:EK25)*$I37*BJ$11,0) -> 0 | BK45: =MAX(($I35-$I34)*-SUM(Pre_Op_RAV!BK25:EL25)*$I37*BK$11,0) -> 0 | BL45: =MAX(($I35-$I34)*-SUM(Pre_Op_RAV!BL25:EM25)*$I37*BL$11,0) -> 0 | BM45: =MAX(($I35-$I34)*-SUM(Pre_Op_RAV!BM25:EN25)*$I37*BM$11,0) -> 0 | BN45: =MAX(($I35-$I34)*-SUM(Pre_Op_RAV!BN25:EO25)*$I37*BN$11,0) -> 0 | BO45: =MAX(($I35-$I34)*-SUM(Pre_Op_RAV!BO25:EP25)*$I37*BO$11,0) -> 0 | BP45: =MAX(($I35-$I34)*-SUM(Pre_Op_RAV!BP25:EQ25)*$I37*BP$11,0) -> 0 | BQ45: =MAX(($I35-$I34)*-SUM(Pre_Op_RAV!BQ25:ER25)*$I37*BQ$11,0) -> 0 | BR45: =MAX(($I35-$I34)*-SUM(Pre_Op_RAV!BR25:ES25)*$I37*BR$11,0) -> 0 | BS45: =MAX(($I35-$I34)*-SUM(Pre_Op_RAV!BS25:ET25)*$I37*BS$11,0) -> 0 | BT45: =MAX(($I35-$I34)*-SUM(Pre_Op_RAV!BT25:EU25)*$I37*BT$11,0) -> 0 | BU45: =MAX(($I35-$I34)*-SUM(Pre_Op_RAV!BU25:EV25)*$I37*BU$11,0) -> 0 | BV45: =MAX(($I35-$I34)*-SUM(Pre_Op_RAV!BV25:EW25)*$I37*BV$11,0) -> 0 | BW45: =MAX(($I35-$I34)*-SUM(Pre_Op_RAV!BW25:EX25)*$I37*BW$11,0) -> 0 | BX45: =MAX(($I35-$I34)*-SUM(Pre_Op_RAV!BX25:EY25)*$I37*BX$11,0) -> 0 | BY45: =MAX(($I35-$I34)*-SUM(Pre_Op_RAV!BY25:EZ25)*$I37*BY$11,0) -> 0 | BZ45: =MAX(($I35-$I34)*-SUM(Pre_Op_RAV!BZ25:FA25)*$I37*BZ$11,0) -> 0 | CA45: =MAX(($I35-$I34)*-SUM(Pre_Op_RAV!CA25:FB25)*$I37*CA$11,0) -> 0 | CB45: =MAX(($I35-$I34)*-SUM(Pre_Op_RAV!CB25:FC25)*$I37*CB$11,0) -> 0 | CC45: =MAX(($I35-$I34)*-SUM(Pre_Op_RAV!CC25:FD25)*$I37*CC$11,0) -> 0 | CD45: =MAX(($I35-$I34)*-SUM(Pre_Op_RAV!CD25:FE25)*$I37*CD$11,0) -> 0 | CE45: =MAX(($I35-$I34)*-SUM(Pre_Op_RAV!CE25:FF25)*$I37*CE$11,0) -> 0 | CF45: =MAX(($I35-$I34)*-SUM(Pre_Op_RAV!CF25:FG25)*$I37*CF$11,0) -> 0 | CG45: =MAX(($I35-$I34)*-SUM(Pre_Op_RAV!CG25:FH25)*$I37*CG$11,0) -> 0 | CH45: =MAX(($I35-$I34)*-SUM(Pre_Op_RAV!CH25:FI25)*$I37*CH$11,0) -> 0 | CI45: =MAX(($I35-$I34)*-SUM(Pre_Op_RAV!CI25:FJ25)*$I37*CI$11,0) -> 0 | CJ45: =MAX(($I35-$I34)*-SUM(Pre_Op_RAV!CJ25:FK25)*$I37*CJ$11,0) -> 0 | CK45: =MAX(($I35-$I34)*-SUM(Pre_Op_RAV!CK25:FL25)*$I37*CK$11,0) -> 0 | CL45: =MAX(($I35-$I34)*-SUM(Pre_Op_RAV!CL25:FM25)*$I37*CL$11,0) -> 0
E46: Final equity transaction costs | G46: =Inputs!$I$6 -> £m 2024 prices | K46: =MAX(($I36-$I35)*-SUM(Pre_Op_RAV!K26:CL26)*$I38*K$11,0) -> 0 | L46: =MAX(($I36-$I35)*-SUM(Pre_Op_RAV!L26:CM26)*$I38*L$11,0) -> 0 | M46: =MAX(($I36-$I35)*-SUM(Pre_Op_RAV!M26:CN26)*$I38*M$11,0) -> 0 | N46: =MAX(($I36-$I35)*-SUM(Pre_Op_RAV!N26:CO26)*$I38*N$11,0) -> 0 | O46: =MAX(($I36-$I35)*-SUM(Pre_Op_RAV!O26:CP26)*$I38*O$11,0) -> 0 | P46: =MAX(($I36-$I35)*-SUM(Pre_Op_RAV!P26:CQ26)*$I38*P$11,0) -> 0 | Q46: =MAX(($I36-$I35)*-SUM(Pre_Op_RAV!Q26:CR26)*$I38*Q$11,0) -> 0 | R46: =MAX(($I36-$I35)*-SUM(Pre_Op_RAV!R26:CS26)*$I38*R$11,0) -> 0 | S46: =MAX(($I36-$I35)*-SUM(Pre_Op_RAV!S26:CT26)*$I38*S$11,0) -> 0 | T46: =MAX(($I36-$I35)*-SUM(Pre_Op_RAV!T26:CU26)*$I38*T$11,0) -> 0 | U46: =MAX(($I36-$I35)*-SUM(Pre_Op_RAV!U26:CV26)*$I38*U$11,0) -> 0 | V46: =MAX(($I36-$I35)*-SUM(Pre_Op_RAV!V26:CW26)*$I38*V$11,0) -> 0 | W46: =MAX(($I36-$I35)*-SUM(Pre_Op_RAV!W26:CX26)*$I38*W$11,0) -> 0 | X46: =MAX(($I36-$I35)*-SUM(Pre_Op_RAV!X26:CY26)*$I38*X$11,0) -> 0 | Y46: =MAX(($I36-$I35)*-SUM(Pre_Op_RAV!Y26:CZ26)*$I38*Y$11,0) -> 0 | Z46: =MAX(($I36-$I35)*-SUM(Pre_Op_RAV!Z26:DA26)*$I38*Z$11,0) -> 0 | AA46: =MAX(($I36-$I35)*-SUM(Pre_Op_RAV!AA26:DB26)*$I38*AA$11,0) -> 0 | AB46: =MAX(($I36-$I35)*-SUM(Pre_Op_RAV!AB26:DC26)*$I38*AB$11,0) -> 0 | AC46: =MAX(($I36-$I35)*-SUM(Pre_Op_RAV!AC26:DD26)*$I38*AC$11,0) -> 0 | AD46: =MAX(($I36-$I35)*-SUM(Pre_Op_RAV!AD26:DE26)*$I38*AD$11,0) -> 0 | AE46: =MAX(($I36-$I35)*-SUM(Pre_Op_RAV!AE26:DF26)*$I38*AE$11,0) -> 0 | AF46: =MAX(($I36-$I35)*-SUM(Pre_Op_RAV!AF26:DG26)*$I38*AF$11,0) -> 0 | AG46: =MAX(($I36-$I35)*-SUM(Pre_Op_RAV!AG26:DH26)*$I38*AG$11,0) -> 0 | AH46: =MAX(($I36-$I35)*-SUM(Pre_Op_RAV!AH26:DI26)*$I38*AH$11,0) -> 0 | AI46: =MAX(($I36-$I35)*-SUM(Pre_Op_RAV!AI26:DJ26)*$I38*AI$11,0) -> 0 | AJ46: =MAX(($I36-$I35)*-SUM(Pre_Op_RAV!AJ26:DK26)*$I38*AJ$11,0) -> 0 | AK46: =MAX(($I36-$I35)*-SUM(Pre_Op_RAV!AK26:DL26)*$I38*AK$11,0) -> 0 | AL46: =MAX(($I36-$I35)*-SUM(Pre_Op_RAV!AL26:DM26)*$I38*AL$11,0) -> 0 | AM46: =MAX(($I36-$I35)*-SUM(Pre_Op_RAV!AM26:DN26)*$I38*AM$11,0) -> 0 | AN46: =MAX(($I36-$I35)*-SUM(Pre_Op_RAV!AN26:DO26)*$I38*AN$11,0) -> 0 | AO46: =MAX(($I36-$I35)*-SUM(Pre_Op_RAV!AO26:DP26)*$I38*AO$11,0) -> 0 | AP46: =MAX(($I36-$I35)*-SUM(Pre_Op_RAV!AP26:DQ26)*$I38*AP$11,0) -> 0 | AQ46: =MAX(($I36-$I35)*-SUM(Pre_Op_RAV!AQ26:DR26)*$I38*AQ$11,0) -> 0 | AR46: =MAX(($I36-$I35)*-SUM(Pre_Op_RAV!AR26:DS26)*$I38*AR$11,0) -> 0 | AS46: =MAX(($I36-$I35)*-SUM(Pre_Op_RAV!AS26:DT26)*$I38*AS$11,0) -> 0 | AT46: =MAX(($I36-$I35)*-SUM(Pre_Op_RAV!AT26:DU26)*$I38*AT$11,0) -> 0 | AU46: =MAX(($I36-$I35)*-SUM(Pre_Op_RAV!AU26:DV26)*$I38*AU$11,0) -> 0 | AV46: =MAX(($I36-$I35)*-SUM(Pre_Op_RAV!AV26:DW26)*$I38*AV$11,0) -> 0 | AW46: =MAX(($I36-$I35)*-SUM(Pre_Op_RAV!AW26:DX26)*$I38*AW$11,0) -> 0 | AX46: =MAX(($I36-$I35)*-SUM(Pre_Op_RAV!AX26:DY26)*$I38*AX$11,0) -> 0 | AY46: =MAX(($I36-$I35)*-SUM(Pre_Op_RAV!AY26:DZ26)*$I38*AY$11,0) -> 0 | AZ46: =MAX(($I36-$I35)*-SUM(Pre_Op_RAV!AZ26:EA26)*$I38*AZ$11,0) -> 0 | BA46: =MAX(($I36-$I35)*-SUM(Pre_Op_RAV!BA26:EB26)*$I38*BA$11,0) -> 0 | BB46: =MAX(($I36-$I35)*-SUM(Pre_Op_RAV!BB26:EC26)*$I38*BB$11,0) -> 0 | BC46: =MAX(($I36-$I35)*-SUM(Pre_Op_RAV!BC26:ED26)*$I38*BC$11,0) -> 0 | BD46: =MAX(($I36-$I35)*-SUM(Pre_Op_RAV!BD26:EE26)*$I38*BD$11,0) -> 0 | BE46: =MAX(($I36-$I35)*-SUM(Pre_Op_RAV!BE26:EF26)*$I38*BE$11,0) -> 0 | BF46: =MAX(($I36-$I35)*-SUM(Pre_Op_RAV!BF26:EG26)*$I38*BF$11,0) -> 0 | BG46: =MAX(($I36-$I35)*-SUM(Pre_Op_RAV!BG26:EH26)*$I38*BG$11,0) -> 0 | BH46: =MAX(($I36-$I35)*-SUM(Pre_Op_RAV!BH26:EI26)*$I38*BH$11,0) -> 0 | BI46: =MAX(($I36-$I35)*-SUM(Pre_Op_RAV!BI26:EJ26)*$I38*BI$11,0) -> 0 | BJ46: =MAX(($I36-$I35)*-SUM(Pre_Op_RAV!BJ26:EK26)*$I38*BJ$11,0) -> 0 | BK46: =MAX(($I36-$I35)*-SUM(Pre_Op_RAV!BK26:EL26)*$I38*BK$11,0) -> 0 | BL46: =MAX(($I36-$I35)*-SUM(Pre_Op_RAV!BL26:EM26)*$I38*BL$11,0) -> 0 | BM46: =MAX(($I36-$I35)*-SUM(Pre_Op_RAV!BM26:EN26)*$I38*BM$11,0) -> 0 | BN46: =MAX(($I36-$I35)*-SUM(Pre_Op_RAV!BN26:EO26)*$I38*BN$11,0) -> 0 | BO46: =MAX(($I36-$I35)*-SUM(Pre_Op_RAV!BO26:EP26)*$I38*BO$11,0) -> 0 | BP46: =MAX(($I36-$I35)*-SUM(Pre_Op_RAV!BP26:EQ26)*$I38*BP$11,0) -> 0 | BQ46: =MAX(($I36-$I35)*-SUM(Pre_Op_RAV!BQ26:ER26)*$I38*BQ$11,0) -> 0 | BR46: =MAX(($I36-$I35)*-SUM(Pre_Op_RAV!BR26:ES26)*$I38*BR$11,0) -> 0 | BS46: =MAX(($I36-$I35)*-SUM(Pre_Op_RAV!BS26:ET26)*$I38*BS$11,0) -> 0 | BT46: =MAX(($I36-$I35)*-SUM(Pre_Op_RAV!BT26:EU26)*$I38*BT$11,0) -> 0 | BU46: =MAX(($I36-$I35)*-SUM(Pre_Op_RAV!BU26:EV26)*$I38*BU$11,0) -> 0 | BV46: =MAX(($I36-$I35)*-SUM(Pre_Op_RAV!BV26:EW26)*$I38*BV$11,0) -> 0 | BW46: =MAX(($I36-$I35)*-SUM(Pre_Op_RAV!BW26:EX26)*$I38*BW$11,0) -> 0 | BX46: =MAX(($I36-$I35)*-SUM(Pre_Op_RAV!BX26:EY26)*$I38*BX$11,0) -> 0 | BY46: =MAX(($I36-$I35)*-SUM(Pre_Op_RAV!BY26:EZ26)*$I38*BY$11,0) -> 0 | BZ46: =MAX(($I36-$I35)*-SUM(Pre_Op_RAV!BZ26:FA26)*$I38*BZ$11,0) -> 0 | CA46: =MAX(($I36-$I35)*-SUM(Pre_Op_RAV!CA26:FB26)*$I38*CA$11,0) -> 0 | CB46: =MAX(($I36-$I35)*-SUM(Pre_Op_RAV!CB26:FC26)*$I38*CB$11,0) -> 0 | CC46: =MAX(($I36-$I35)*-SUM(Pre_Op_RAV!CC26:FD26)*$I38*CC$11,0) -> 0 | CD46: =MAX(($I36-$I35)*-SUM(Pre_Op_RAV!CD26:FE26)*$I38*CD$11,0) -> 0 | CE46: =MAX(($I36-$I35)*-SUM(Pre_Op_RAV!CE26:FF26)*$I38*CE$11,0) -> 0 | CF46: =MAX(($I36-$I35)*-SUM(Pre_Op_RAV!CF26:FG26)*$I38*CF$11,0) -> 0 | CG46: =MAX(($I36-$I35)*-SUM(Pre_Op_RAV!CG26:FH26)*$I38*CG$11,0) -> 0 | CH46: =MAX(($I36-$I35)*-SUM(Pre_Op_RAV!CH26:FI26)*$I38*CH$11,0) -> 0 | CI46: =MAX(($I36-$I35)*-SUM(Pre_Op_RAV!CI26:FJ26)*$I38*CI$11,0) -> 0 | CJ46: =MAX(($I36-$I35)*-SUM(Pre_Op_RAV!CJ26:FK26)*$I38*CJ$11,0) -> 0 | CK46: =MAX(($I36-$I35)*-SUM(Pre_Op_RAV!CK26:FL26)*$I38*CK$11,0) -> 0 | CL46: =MAX(($I36-$I35)*-SUM(Pre_Op_RAV!CL26:FM26)*$I38*CL$11,0) -> 0
E47: Transaction costs - annual movement | G47: =Inputs!$I$6 -> £m 2024 prices | K47: =SUM(K43:K46) -> 23.54599949 | L47: 0 | M47: 0 | N47: 0 | O47: 1.81123073 | P47: 0 | Q47: 0 | R47: 0 | S47: 0 | T47: 0 | U47: 0 | V47: 0 | W47: 0 | X47: 0 | Y47: 0 | Z47: 0 | AA47: 0 | AB47: 0 | AC47: 0 | AD47: 0 | AE47: 0 | AF47: 0 | AG47: 0 | AH47: 0 | AI47: 0 | AJ47: 0 | AK47: 0 | AL47: 0 | AM47: 0 | AN47: 0 | AO47: 0 | AP47: 0 | AQ47: 0 | AR47: 0 | AS47: 0 | AT47: 0 | AU47: 0 | AV47: 0 | AW47: 0 | AX47: 0 | AY47: =SUM(AY43:AY46) -> 0 | AZ47: 0 | BA47: 0 | BB47: 0 | BC47: 0 | BD47: 0 | BE47: 0 | BF47: 0 | BG47: 0 | BH47: =SUM(BH43:BH46) -> 0 | BI47: 0 | BJ47: 0 | BK47: 0 | BL47: 0 | BM47: 0 | BN47: 0 | BO47: 0 | BP47: 0 | BQ47: 0 | BR47: 0 | BS47: 0 | BT47: 0 | BU47: 0 | BV47: 0 | BW47: 0 | BX47: 0 | BY47: 0 | BZ47: 0 | CA47: 0 | CB47: 0 | CC47: 0 | CD47: 0 | CE47: 0 | CF47: 0 | CG47: 0 | CH47: 0 | CI47: 0 | CJ47: 0 | CK47: 0 | CL47: 0
E48: Capitalised IDC on transaction costs | G48: =Inputs!$I$6 -> £m 2024 prices | K48: =($I22*(K42+(K43+K44+K45+K46)/(2+$I22))*K8) -> 0.6891344801 | L48: 1.461378578 | M48: 1.549499707 | N48: 1.642934539 | O48: 0 | P48: 0 | Q48: 0 | R48: 0 | S48: 0 | T48: 0 | U48: 0 | V48: 0 | W48: 0 | X48: 0 | Y48: 0 | Z48: 0 | AA48: 0 | AB48: 0 | AC48: 0 | AD48: 0 | AE48: 0 | AF48: 0 | AG48: 0 | AH48: 0 | AI48: 0 | AJ48: 0 | AK48: 0 | AL48: 0 | AM48: 0 | AN48: 0 | AO48: 0 | AP48: 0 | AQ48: 0 | AR48: 0 | AS48: 0 | AT48: 0 | AU48: 0 | AV48: 0 | AW48: 0 | AX48: 0 | AY48: =($I22*(AY42+(AY43+AY44+AY45+AY46)/(2+$I22))*AY8) -> 0 | AZ48: 0 | BA48: 0 | BB48: 0 | BC48: 0 | BD48: 0 | BE48: 0 | BF48: 0 | BG48: 0 | BH48: =($I22*(BH42+(BH43+BH44+BH45+BH46)/(2+$I22))*BH8) -> 0 | BI48: 0 | BJ48: 0 | BK48: 0 | BL48: 0 | BM48: 0 | BN48: 0 | BO48: 0 | BP48: 0 | BQ48: 0 | BR48: 0 | BS48: 0 | BT48: 0 | BU48: 0 | BV48: 0 | BW48: 0 | BX48: 0 | BY48: 0 | BZ48: 0 | CA48: 0 | CB48: 0 | CC48: 0 | CD48: 0 | CE48: 0 | CF48: 0 | CG48: 0 | CH48: 0 | CI48: 0 | CJ48: 0 | CK48: 0 | CL48: 0
E49: Transfer to operational RAV | G49: =Inputs!$I$6 -> £m 2024 prices | K49: =-SUM(K42,K47,K48)*K$11 -> 0 | L49: 0 | M49: 0 | N49: 0 | O49: -30.70017753 | P49: 0 | Q49: 0 | R49: 0 | S49: 0 | T49: 0 | U49: 0 | V49: 0 | W49: 0 | X49: 0 | Y49: 0 | Z49: 0 | AA49: 0 | AB49: 0 | AC49: 0 | AD49: 0 | AE49: 0 | AF49: 0 | AG49: 0 | AH49: 0 | AI49: 0 | AJ49: 0 | AK49: 0 | AL49: 0 | AM49: 0 | AN49: 0 | AO49: 0 | AP49: 0 | AQ49: 0 | AR49: 0 | AS49: 0 | AT49: 0 | AU49: 0 | AV49: 0 | AW49: 0 | AX49: 0 | AY49: =-SUM(AY42,AY47,AY48)*AY$11 -> 0 | AZ49: 0 | BA49: 0 | BB49: 0 | BC49: 0 | BD49: 0 | BE49: 0 | BF49: 0 | BG49: 0 | BH49: =-SUM(BH42,BH47,BH48)*BH$11 -> 0 | BI49: 0 | BJ49: 0 | BK49: 0 | BL49: 0 | BM49: 0 | BN49: 0 | BO49: 0 | BP49: 0 | BQ49: 0 | BR49: 0 | BS49: 0 | BT49: 0 | BU49: 0 | BV49: 0 | BW49: 0 | BX49: 0 | BY49: 0 | BZ49: 0 | CA49: 0 | CB49: 0 | CC49: 0 | CD49: 0 | CE49: 0 | CF49: 0 | CG49: 0 | CH49: 0 | CI49: 0 | CJ49: 0 | CK49: 0 | CL49: 0
E50: Transaction costs - closing | G50: =Inputs!$I$6 -> £m 2024 prices | K50: =SUM(K49,K48,K47,K42) -> 24.23513397 | L50: 25.69651255 | M50: 27.24601226 | N50: 28.8889468 | O50: 0 | P50: 0 | Q50: 0 | R50: 0 | S50: 0 | T50: 0 | U50: 0 | V50: 0 | W50: 0 | X50: 0 | Y50: 0 | Z50: 0 | AA50: 0 | AB50: 0 | AC50: 0 | AD50: 0 | AE50: 0 | AF50: 0 | AG50: 0 | AH50: 0 | AI50: 0 | AJ50: 0 | AK50: 0 | AL50: 0 | AM50: 0 | AN50: 0 | AO50: 0 | AP50: 0 | AQ50: 0 | AR50: 0 | AS50: 0 | AT50: 0 | AU50: 0 | AV50: 0 | AW50: 0 | AX50: 0 | AY50: =SUM(AY49,AY48,AY47,AY42) -> 0 | AZ50: 0 | BA50: 0 | BB50: 0 | BC50: 0 | BD50: 0 | BE50: 0 | BF50: 0 | BG50: 0 | BH50: =SUM(BH49,BH48,BH47,BH42) -> 0 | BI50: 0 | BJ50: 0 | BK50: 0 | BL50: 0 | BM50: 0 | BN50: 0 | BO50: 0 | BP50: 0 | BQ50: 0 | BR50: 0 | BS50: 0 | BT50: 0 | BU50: 0 | BV50: 0 | BW50: 0 | BX50: 0 | BY50: 0 | BZ50: 0 | CA50: 0 | CB50: 0 | CC50: 0 | CD50: 0 | CE50: 0 | CF50: 0 | CG50: 0 | CH50: 0 | CI50: 0 | CJ50: 0 | CK50: 0 | CL50: 0
B52: Actual cost of debt
C54: Debt balance and reserves
E56: Eligible costs | G56: £m nominal prices | K56: =Pre_Op_RAV!K54 -> 0 | L56: =Pre_Op_RAV!L54 -> 245.76505 | M56: =Pre_Op_RAV!M54 -> 209.21505 | N56: =Pre_Op_RAV!N54 -> 157.07505 | O56: =Pre_Op_RAV!O54 -> 36.00505 | P56: =Pre_Op_RAV!P54 -> 30.00505 | Q56: =Pre_Op_RAV!Q54 -> 0 | R56: =Pre_Op_RAV!R54 -> 0 | S56: =Pre_Op_RAV!S54 -> 0 | T56: =Pre_Op_RAV!T54 -> 0 | U56: =Pre_Op_RAV!U54 -> 0 | V56: =Pre_Op_RAV!V54 -> 0 | W56: =Pre_Op_RAV!W54 -> 0 | X56: =Pre_Op_RAV!X54 -> 0 | Y56: =Pre_Op_RAV!Y54 -> 0 | Z56: =Pre_Op_RAV!Z54 -> 0 | AA56: =Pre_Op_RAV!AA54 -> 0 | AB56: =Pre_Op_RAV!AB54 -> 0 | AC56: =Pre_Op_RAV!AC54 -> 0 | AD56: =Pre_Op_RAV!AD54 -> 0 | AE56: =Pre_Op_RAV!AE54 -> 0 | AF56: =Pre_Op_RAV!AF54 -> 0 | AG56: =Pre_Op_RAV!AG54 -> 0 | AH56: =Pre_Op_RAV!AH54 -> 0 | AI56: =Pre_Op_RAV!AI54 -> 0 | AJ56: =Pre_Op_RAV!AJ54 -> 0 | AK56: =Pre_Op_RAV!AK54 -> 0 | AL56: =Pre_Op_RAV!AL54 -> 0 | AM56: =Pre_Op_RAV!AM54 -> 0 | AN56: =Pre_Op_RAV!AN54 -> 0 | AO56: =Pre_Op_RAV!AO54 -> 0 | AP56: =Pre_Op_RAV!AP54 -> 0 | AQ56: =Pre_Op_RAV!AQ54 -> 0 | AR56: =Pre_Op_RAV!AR54 -> 0 | AS56: =Pre_Op_RAV!AS54 -> 0 | AT56: =Pre_Op_RAV!AT54 -> 0 | AU56: =Pre_Op_RAV!AU54 -> 0 | AV56: =Pre_Op_RAV!AV54 -> 0 | AW56: =Pre_Op_RAV!AW54 -> 0 | AX56: =Pre_Op_RAV!AX54 -> 0 | AY56: =Pre_Op_RAV!AY54 -> 0 | AZ56: =Pre_Op_RAV!AZ54 -> 0 | BA56: =Pre_Op_RAV!BA54 -> 0 | BB56: =Pre_Op_RAV!BB54 -> 0 | BC56: =Pre_Op_RAV!BC54 -> 0 | BD56: =Pre_Op_RAV!BD54 -> 0 | BE56: =Pre_Op_RAV!BE54 -> 0 | BF56: =Pre_Op_RAV!BF54 -> 0 | BG56: =Pre_Op_RAV!BG54 -> 0 | BH56: =Pre_Op_RAV!BH54 -> 0 | BI56: =Pre_Op_RAV!BI54 -> 0 | BJ56: =Pre_Op_RAV!BJ54 -> 0 | BK56: =Pre_Op_RAV!BK54 -> 0 | BL56: =Pre_Op_RAV!BL54 -> 0 | BM56: =Pre_Op_RAV!BM54 -> 0 | BN56: =Pre_Op_RAV!BN54 -> 0 | BO56: =Pre_Op_RAV!BO54 -> 0 | BP56: =Pre_Op_RAV!BP54 -> 0 | BQ56: =Pre_Op_RAV!BQ54 -> 0 | BR56: =Pre_Op_RAV!BR54 -> 0 | BS56: =Pre_Op_RAV!BS54 -> 0 | BT56: =Pre_Op_RAV!BT54 -> 0 | BU56: =Pre_Op_RAV!BU54 -> 0 | BV56: =Pre_Op_RAV!BV54 -> 0 | BW56: =Pre_Op_RAV!BW54 -> 0 | BX56: =Pre_Op_RAV!BX54 -> 0 | BY56: =Pre_Op_RAV!BY54 -> 0 | BZ56: =Pre_Op_RAV!BZ54 -> 0 | CA56: =Pre_Op_RAV!CA54 -> 0 | CB56: =Pre_Op_RAV!CB54 -> 0 | CC56: =Pre_Op_RAV!CC54 -> 0 | CD56: =Pre_Op_RAV!CD54 -> 0 | CE56: =Pre_Op_RAV!CE54 -> 0 | CF56: =Pre_Op_RAV!CF54 -> 0 | CG56: =Pre_Op_RAV!CG54 -> 0 | CH56: =Pre_Op_RAV!CH54 -> 0 | CI56: =Pre_Op_RAV!CI54 -> 0 | CJ56: =Pre_Op_RAV!CJ54 -> 0 | CK56: =Pre_Op_RAV!CK54 -> 0 | CL56: =Pre_Op_RAV!CL54 -> 0
E58: Project finance senior debt amount | G58: £m nominal prices | I58: =IF(Inputs!I60=1,Inputs!I61,I59*SUM(K56:CL56)) -> 500
E59: Project finance actual gearing on eligible costs | G59: % | I59: =IF(Inputs!I60=2,Inputs!I62,Finance!I58/SUM(Finance!K56:CL56)) -> 0.737392161
E60: Senior debt drawdown profile | G60: % | K60: =IF(Finance!K15>0,INDEX(Inputs!$K$79:$T$79,1,SUM(Finance!$K$15:K15)),0) -> 0 | L60: =IF(Finance!L15>0,INDEX(Inputs!$K$79:$T$79,1,SUM(Finance!$K$15:L15)),0) -> 0.25 | M60: =IF(Finance!M15>0,INDEX(Inputs!$K$79:$T$79,1,SUM(Finance!$K$15:M15)),0) -> 0.3 | N60: =IF(Finance!N15>0,INDEX(Inputs!$K$79:$T$79,1,SUM(Finance!$K$15:N15)),0) -> 0.3 | O60: =IF(Finance!O15>0,INDEX(Inputs!$K$79:$T$79,1,SUM(Finance!$K$15:O15)),0) -> 0.15 | P60: =IF(Finance!P15>0,INDEX(Inputs!$K$79:$T$79,1,SUM(Finance!$K$15:P15)),0) -> 0 | Q60: =IF(Finance!Q15>0,INDEX(Inputs!$K$79:$T$79,1,SUM(Finance!$K$15:Q15)),0) -> 0 | R60: =IF(Finance!R15>0,INDEX(Inputs!$K$79:$T$79,1,SUM(Finance!$K$15:R15)),0) -> 0 | S60: =IF(Finance!S15>0,INDEX(Inputs!$K$79:$T$79,1,SUM(Finance!$K$15:S15)),0) -> 0 | T60: =IF(Finance!T15>0,INDEX(Inputs!$K$79:$T$79,1,SUM(Finance!$K$15:T15)),0) -> 0 | U60: =IF(Finance!U15>0,INDEX(Inputs!$K$79:$T$79,1,SUM(Finance!$K$15:U15)),0) -> 0 | V60: =IF(Finance!V15>0,INDEX(Inputs!$K$79:$T$79,1,SUM(Finance!$K$15:V15)),0) -> 0 | W60: =IF(Finance!W15>0,INDEX(Inputs!$K$79:$T$79,1,SUM(Finance!$K$15:W15)),0) -> 0 | X60: =IF(Finance!X15>0,INDEX(Inputs!$K$79:$T$79,1,SUM(Finance!$K$15:X15)),0) -> 0 | Y60: =IF(Finance!Y15>0,INDEX(Inputs!$K$79:$T$79,1,SUM(Finance!$K$15:Y15)),0) -> 0 | Z60: =IF(Finance!Z15>0,INDEX(Inputs!$K$79:$T$79,1,SUM(Finance!$K$15:Z15)),0) -> 0 | AA60: =IF(Finance!AA15>0,INDEX(Inputs!$K$79:$T$79,1,SUM(Finance!$K$15:AA15)),0) -> 0 | AB60: =IF(Finance!AB15>0,INDEX(Inputs!$K$79:$T$79,1,SUM(Finance!$K$15:AB15)),0) -> 0 | AC60: =IF(Finance!AC15>0,INDEX(Inputs!$K$79:$T$79,1,SUM(Finance!$K$15:AC15)),0) -> 0 | AD60: =IF(Finance!AD15>0,INDEX(Inputs!$K$79:$T$79,1,SUM(Finance!$K$15:AD15)),0) -> 0 | AE60: =IF(Finance!AE15>0,INDEX(Inputs!$K$79:$T$79,1,SUM(Finance!$K$15:AE15)),0) -> 0 | AF60: =IF(Finance!AF15>0,INDEX(Inputs!$K$79:$T$79,1,SUM(Finance!$K$15:AF15)),0) -> 0 | AG60: =IF(Finance!AG15>0,INDEX(Inputs!$K$79:$T$79,1,SUM(Finance!$K$15:AG15)),0) -> 0 | AH60: =IF(Finance!AH15>0,INDEX(Inputs!$K$79:$T$79,1,SUM(Finance!$K$15:AH15)),0) -> 0 | AI60: =IF(Finance!AI15>0,INDEX(Inputs!$K$79:$T$79,1,SUM(Finance!$K$15:AI15)),0) -> 0 | AJ60: =IF(Finance!AJ15>0,INDEX(Inputs!$K$79:$T$79,1,SUM(Finance!$K$15:AJ15)),0) -> 0 | AK60: =IF(Finance!AK15>0,INDEX(Inputs!$K$79:$T$79,1,SUM(Finance!$K$15:AK15)),0) -> 0 | AL60: =IF(Finance!AL15>0,INDEX(Inputs!$K$79:$T$79,1,SUM(Finance!$K$15:AL15)),0) -> 0 | AM60: =IF(Finance!AM15>0,INDEX(Inputs!$K$79:$T$79,1,SUM(Finance!$K$15:AM15)),0) -> 0 | AN60: =IF(Finance!AN15>0,INDEX(Inputs!$K$79:$T$79,1,SUM(Finance!$K$15:AN15)),0) -> 0 | AO60: =IF(Finance!AO15>0,INDEX(Inputs!$K$79:$T$79,1,SUM(Finance!$K$15:AO15)),0) -> 0 | AP60: =IF(Finance!AP15>0,INDEX(Inputs!$K$79:$T$79,1,SUM(Finance!$K$15:AP15)),0) -> 0 | AQ60: =IF(Finance!AQ15>0,INDEX(Inputs!$K$79:$T$79,1,SUM(Finance!$K$15:AQ15)),0) -> 0 | AR60: =IF(Finance!AR15>0,INDEX(Inputs!$K$79:$T$79,1,SUM(Finance!$K$15:AR15)),0) -> 0 | AS60: =IF(Finance!AS15>0,INDEX(Inputs!$K$79:$T$79,1,SUM(Finance!$K$15:AS15)),0) -> 0 | AT60: =IF(Finance!AT15>0,INDEX(Inputs!$K$79:$T$79,1,SUM(Finance!$K$15:AT15)),0) -> 0 | AU60: =IF(Finance!AU15>0,INDEX(Inputs!$K$79:$T$79,1,SUM(Finance!$K$15:AU15)),0) -> 0 | AV60: =IF(Finance!AV15>0,INDEX(Inputs!$K$79:$T$79,1,SUM(Finance!$K$15:AV15)),0) -> 0 | AW60: =IF(Finance!AW15>0,INDEX(Inputs!$K$79:$T$79,1,SUM(Finance!$K$15:AW15)),0) -> 0 | AX60: =IF(Finance!AX15>0,INDEX(Inputs!$K$79:$T$79,1,SUM(Finance!$K$15:AX15)),0) -> 0 | AY60: =IF(Finance!AY15>0,INDEX(Inputs!$K$79:$T$79,1,SUM(Finance!$K$15:AY15)),0) -> 0 | AZ60: =IF(Finance!AZ15>0,INDEX(Inputs!$K$79:$T$79,1,SUM(Finance!$K$15:AZ15)),0) -> 0 | BA60: =IF(Finance!BA15>0,INDEX(Inputs!$K$79:$T$79,1,SUM(Finance!$K$15:BA15)),0) -> 0 | BB60: =IF(Finance!BB15>0,INDEX(Inputs!$K$79:$T$79,1,SUM(Finance!$K$15:BB15)),0) -> 0 | BC60: =IF(Finance!BC15>0,INDEX(Inputs!$K$79:$T$79,1,SUM(Finance!$K$15:BC15)),0) -> 0 | BD60: =IF(Finance!BD15>0,INDEX(Inputs!$K$79:$T$79,1,SUM(Finance!$K$15:BD15)),0) -> 0 | BE60: =IF(Finance!BE15>0,INDEX(Inputs!$K$79:$T$79,1,SUM(Finance!$K$15:BE15)),0) -> 0 | BF60: =IF(Finance!BF15>0,INDEX(Inputs!$K$79:$T$79,1,SUM(Finance!$K$15:BF15)),0) -> 0 | BG60: =IF(Finance!BG15>0,INDEX(Inputs!$K$79:$T$79,1,SUM(Finance!$K$15:BG15)),0) -> 0 | BH60: =IF(Finance!BH15>0,INDEX(Inputs!$K$79:$T$79,1,SUM(Finance!$K$15:BH15)),0) -> 0 | BI60: =IF(Finance!BI15>0,INDEX(Inputs!$K$79:$T$79,1,SUM(Finance!$K$15:BI15)),0) -> 0 | BJ60: =IF(Finance!BJ15>0,INDEX(Inputs!$K$79:$T$79,1,SUM(Finance!$K$15:BJ15)),0) -> 0 | BK60: =IF(Finance!BK15>0,INDEX(Inputs!$K$79:$T$79,1,SUM(Finance!$K$15:BK15)),0) -> 0 | BL60: =IF(Finance!BL15>0,INDEX(Inputs!$K$79:$T$79,1,SUM(Finance!$K$15:BL15)),0) -> 0 | BM60: =IF(Finance!BM15>0,INDEX(Inputs!$K$79:$T$79,1,SUM(Finance!$K$15:BM15)),0) -> 0 | BN60: =IF(Finance!BN15>0,INDEX(Inputs!$K$79:$T$79,1,SUM(Finance!$K$15:BN15)),0) -> 0 | BO60: =IF(Finance!BO15>0,INDEX(Inputs!$K$79:$T$79,1,SUM(Finance!$K$15:BO15)),0) -> 0 | BP60: =IF(Finance!BP15>0,INDEX(Inputs!$K$79:$T$79,1,SUM(Finance!$K$15:BP15)),0) -> 0 | BQ60: =IF(Finance!BQ15>0,INDEX(Inputs!$K$79:$T$79,1,SUM(Finance!$K$15:BQ15)),0) -> 0 | BR60: =IF(Finance!BR15>0,INDEX(Inputs!$K$79:$T$79,1,SUM(Finance!$K$15:BR15)),0) -> 0 | BS60: =IF(Finance!BS15>0,INDEX(Inputs!$K$79:$T$79,1,SUM(Finance!$K$15:BS15)),0) -> 0 | BT60: =IF(Finance!BT15>0,INDEX(Inputs!$K$79:$T$79,1,SUM(Finance!$K$15:BT15)),0) -> 0 | BU60: =IF(Finance!BU15>0,INDEX(Inputs!$K$79:$T$79,1,SUM(Finance!$K$15:BU15)),0) -> 0 | BV60: =IF(Finance!BV15>0,INDEX(Inputs!$K$79:$T$79,1,SUM(Finance!$K$15:BV15)),0) -> 0 | BW60: =IF(Finance!BW15>0,INDEX(Inputs!$K$79:$T$79,1,SUM(Finance!$K$15:BW15)),0) -> 0 | BX60: =IF(Finance!BX15>0,INDEX(Inputs!$K$79:$T$79,1,SUM(Finance!$K$15:BX15)),0) -> 0 | BY60: =IF(Finance!BY15>0,INDEX(Inputs!$K$79:$T$79,1,SUM(Finance!$K$15:BY15)),0) -> 0 | BZ60: =IF(Finance!BZ15>0,INDEX(Inputs!$K$79:$T$79,1,SUM(Finance!$K$15:BZ15)),0) -> 0 | CA60: =IF(Finance!CA15>0,INDEX(Inputs!$K$79:$T$79,1,SUM(Finance!$K$15:CA15)),0) -> 0 | CB60: =IF(Finance!CB15>0,INDEX(Inputs!$K$79:$T$79,1,SUM(Finance!$K$15:CB15)),0) -> 0 | CC60: =IF(Finance!CC15>0,INDEX(Inputs!$K$79:$T$79,1,SUM(Finance!$K$15:CC15)),0) -> 0 | CD60: =IF(Finance!CD15>0,INDEX(Inputs!$K$79:$T$79,1,SUM(Finance!$K$15:CD15)),0) -> 0 | CE60: =IF(Finance!CE15>0,INDEX(Inputs!$K$79:$T$79,1,SUM(Finance!$K$15:CE15)),0) -> 0 | CF60: =IF(Finance!CF15>0,INDEX(Inputs!$K$79:$T$79,1,SUM(Finance!$K$15:CF15)),0) -> 0 | CG60: =IF(Finance!CG15>0,INDEX(Inputs!$K$79:$T$79,1,SUM(Finance!$K$15:CG15)),0) -> 0 | CH60: =IF(Finance!CH15>0,INDEX(Inputs!$K$79:$T$79,1,SUM(Finance!$K$15:CH15)),0) -> 0 | CI60: =IF(Finance!CI15>0,INDEX(Inputs!$K$79:$T$79,1,SUM(Finance!$K$15:CI15)),0) -> 0 | CJ60: =IF(Finance!CJ15>0,INDEX(Inputs!$K$79:$T$79,1,SUM(Finance!$K$15:CJ15)),0) -> 0 | CK60: =IF(Finance!CK15>0,INDEX(Inputs!$K$79:$T$79,1,SUM(Finance!$K$15:CK15)),0) -> 0 | CL60: =IF(Finance!CL15>0,INDEX(Inputs!$K$79:$T$79,1,SUM(Finance!$K$15:CL15)),0) -> 0
E61: Senior debt repayment profile | G61: % | K61: =SUMIF(Inputs!132:132,Finance!K16,Inputs!133:133)*(K16<>0) -> 0 | L61: =SUMIF(Inputs!132:132,Finance!L16,Inputs!133:133)*(L16<>0) -> 0 | M61: =SUMIF(Inputs!132:132,Finance!M16,Inputs!133:133)*(M16<>0) -> 0 | N61: =SUMIF(Inputs!132:132,Finance!N16,Inputs!133:133)*(N16<>0) -> 0 | O61: =SUMIF(Inputs!132:132,Finance!O16,Inputs!133:133)*(O16<>0) -> 0 | P61: =SUMIF(Inputs!132:132,Finance!P16,Inputs!133:133)*(P16<>0) -> 0 | Q61: =SUMIF(Inputs!132:132,Finance!Q16,Inputs!133:133)*(Q16<>0) -> 0.04 | R61: =SUMIF(Inputs!132:132,Finance!R16,Inputs!133:133)*(R16<>0) -> 0.04 | S61: =SUMIF(Inputs!132:132,Finance!S16,Inputs!133:133)*(S16<>0) -> 0.04 | T61: =SUMIF(Inputs!132:132,Finance!T16,Inputs!133:133)*(T16<>0) -> 0.04 | U61: =SUMIF(Inputs!132:132,Finance!U16,Inputs!133:133)*(U16<>0) -> 0.04 | V61: =SUMIF(Inputs!132:132,Finance!V16,Inputs!133:133)*(V16<>0) -> 0.04 | W61: =SUMIF(Inputs!132:132,Finance!W16,Inputs!133:133)*(W16<>0) -> 0.04 | X61: =SUMIF(Inputs!132:132,Finance!X16,Inputs!133:133)*(X16<>0) -> 0.04 | Y61: =SUMIF(Inputs!132:132,Finance!Y16,Inputs!133:133)*(Y16<>0) -> 0.04 | Z61: =SUMIF(Inputs!132:132,Finance!Z16,Inputs!133:133)*(Z16<>0) -> 0.04 | AA61: =SUMIF(Inputs!132:132,Finance!AA16,Inputs!133:133)*(AA16<>0) -> 0.04 | AB61: =SUMIF(Inputs!132:132,Finance!AB16,Inputs!133:133)*(AB16<>0) -> 0.04 | AC61: =SUMIF(Inputs!132:132,Finance!AC16,Inputs!133:133)*(AC16<>0) -> 0.04 | AD61: =SUMIF(Inputs!132:132,Finance!AD16,Inputs!133:133)*(AD16<>0) -> 0.04 | AE61: =SUMIF(Inputs!132:132,Finance!AE16,Inputs!133:133)*(AE16<>0) -> 0.04 | AF61: =SUMIF(Inputs!132:132,Finance!AF16,Inputs!133:133)*(AF16<>0) -> 0.04 | AG61: =SUMIF(Inputs!132:132,Finance!AG16,Inputs!133:133)*(AG16<>0) -> 0.04 | AH61: =SUMIF(Inputs!132:132,Finance!AH16,Inputs!133:133)*(AH16<>0) -> 0.04 | AI61: =SUMIF(Inputs!132:132,Finance!AI16,Inputs!133:133)*(AI16<>0) -> 0.04 | AJ61: =SUMIF(Inputs!132:132,Finance!AJ16,Inputs!133:133)*(AJ16<>0) -> 0.04 | AK61: =SUMIF(Inputs!132:132,Finance!AK16,Inputs!133:133)*(AK16<>0) -> 0.04 | AL61: =SUMIF(Inputs!132:132,Finance!AL16,Inputs!133:133)*(AL16<>0) -> 0.04 | AM61: =SUMIF(Inputs!132:132,Finance!AM16,Inputs!133:133)*(AM16<>0) -> 0.04 | AN61: =SUMIF(Inputs!132:132,Finance!AN16,Inputs!133:133)*(AN16<>0) -> 0.04 | AO61: =SUMIF(Inputs!132:132,Finance!AO16,Inputs!133:133)*(AO16<>0) -> 0 | AP61: =SUMIF(Inputs!132:132,Finance!AP16,Inputs!133:133)*(AP16<>0) -> 0 | AQ61: =SUMIF(Inputs!132:132,Finance!AQ16,Inputs!133:133)*(AQ16<>0) -> 0 | AR61: =SUMIF(Inputs!132:132,Finance!AR16,Inputs!133:133)*(AR16<>0) -> 0 | AS61: =SUMIF(Inputs!132:132,Finance!AS16,Inputs!133:133)*(AS16<>0) -> 0 | AT61: =SUMIF(Inputs!132:132,Finance!AT16,Inputs!133:133)*(AT16<>0) -> 0 | AU61: =SUMIF(Inputs!132:132,Finance!AU16,Inputs!133:133)*(AU16<>0) -> 0 | AV61: =SUMIF(Inputs!132:132,Finance!AV16,Inputs!133:133)*(AV16<>0) -> 0 | AW61: =SUMIF(Inputs!132:132,Finance!AW16,Inputs!133:133)*(AW16<>0) -> 0 | AX61: =SUMIF(Inputs!132:132,Finance!AX16,Inputs!133:133)*(AX16<>0) -> 0 | AY61: =SUMIF(Inputs!132:132,Finance!AY16,Inputs!133:133)*(AY16<>0) -> 0 | AZ61: =SUMIF(Inputs!132:132,Finance!AZ16,Inputs!133:133)*(AZ16<>0) -> 0 | BA61: =SUMIF(Inputs!132:132,Finance!BA16,Inputs!133:133)*(BA16<>0) -> 0 | BB61: =SUMIF(Inputs!132:132,Finance!BB16,Inputs!133:133)*(BB16<>0) -> 0 | BC61: =SUMIF(Inputs!132:132,Finance!BC16,Inputs!133:133)*(BC16<>0) -> 0 | BD61: =SUMIF(Inputs!132:132,Finance!BD16,Inputs!133:133)*(BD16<>0) -> 0 | BE61: =SUMIF(Inputs!132:132,Finance!BE16,Inputs!133:133)*(BE16<>0) -> 0 | BF61: =SUMIF(Inputs!132:132,Finance!BF16,Inputs!133:133)*(BF16<>0) -> 0 | BG61: =SUMIF(Inputs!132:132,Finance!BG16,Inputs!133:133)*(BG16<>0) -> 0 | BH61: =SUMIF(Inputs!132:132,Finance!BH16,Inputs!133:133)*(BH16<>0) -> 0 | BI61: =SUMIF(Inputs!132:132,Finance!BI16,Inputs!133:133)*(BI16<>0) -> 0 | BJ61: =SUMIF(Inputs!132:132,Finance!BJ16,Inputs!133:133)*(BJ16<>0) -> 0 | BK61: =SUMIF(Inputs!132:132,Finance!BK16,Inputs!133:133)*(BK16<>0) -> 0 | BL61: =SUMIF(Inputs!132:132,Finance!BL16,Inputs!133:133)*(BL16<>0) -> 0 | BM61: =SUMIF(Inputs!132:132,Finance!BM16,Inputs!133:133)*(BM16<>0) -> 0 | BN61: =SUMIF(Inputs!132:132,Finance!BN16,Inputs!133:133)*(BN16<>0) -> 0 | BO61: =SUMIF(Inputs!132:132,Finance!BO16,Inputs!133:133)*(BO16<>0) -> 0 | BP61: =SUMIF(Inputs!132:132,Finance!BP16,Inputs!133:133)*(BP16<>0) -> 0 | BQ61: =SUMIF(Inputs!132:132,Finance!BQ16,Inputs!133:133)*(BQ16<>0) -> 0 | BR61: =SUMIF(Inputs!132:132,Finance!BR16,Inputs!133:133)*(BR16<>0) -> 0 | BS61: =SUMIF(Inputs!132:132,Finance!BS16,Inputs!133:133)*(BS16<>0) -> 0 | BT61: =SUMIF(Inputs!132:132,Finance!BT16,Inputs!133:133)*(BT16<>0) -> 0 | BU61: =SUMIF(Inputs!132:132,Finance!BU16,Inputs!133:133)*(BU16<>0) -> 0 | BV61: =SUMIF(Inputs!132:132,Finance!BV16,Inputs!133:133)*(BV16<>0) -> 0 | BW61: =SUMIF(Inputs!132:132,Finance!BW16,Inputs!133:133)*(BW16<>0) -> 0 | BX61: =SUMIF(Inputs!132:132,Finance!BX16,Inputs!133:133)*(BX16<>0) -> 0 | BY61: =SUMIF(Inputs!132:132,Finance!BY16,Inputs!133:133)*(BY16<>0) -> 0 | BZ61: =SUMIF(Inputs!132:132,Finance!BZ16,Inputs!133:133)*(BZ16<>0) -> 0 | CA61: =SUMIF(Inputs!132:132,Finance!CA16,Inputs!133:133)*(CA16<>0) -> 0 | CB61: =SUMIF(Inputs!132:132,Finance!CB16,Inputs!133:133)*(CB16<>0) -> 0 | CC61: =SUMIF(Inputs!132:132,Finance!CC16,Inputs!133:133)*(CC16<>0) -> 0 | CD61: =SUMIF(Inputs!132:132,Finance!CD16,Inputs!133:133)*(CD16<>0) -> 0 | CE61: =SUMIF(Inputs!132:132,Finance!CE16,Inputs!133:133)*(CE16<>0) -> 0 | CF61: =SUMIF(Inputs!132:132,Finance!CF16,Inputs!133:133)*(CF16<>0) -> 0 | CG61: =SUMIF(Inputs!132:132,Finance!CG16,Inputs!133:133)*(CG16<>0) -> 0 | CH61: =SUMIF(Inputs!132:132,Finance!CH16,Inputs!133:133)*(CH16<>0) -> 0 | CI61: =SUMIF(Inputs!132:132,Finance!CI16,Inputs!133:133)*(CI16<>0) -> 0 | CJ61: =SUMIF(Inputs!132:132,Finance!CJ16,Inputs!133:133)*(CJ16<>0) -> 0 | CK61: =SUMIF(Inputs!132:132,Finance!CK16,Inputs!133:133)*(CK16<>0) -> 0 | CL61: =SUMIF(Inputs!132:132,Finance!CL16,Inputs!133:133)*(CL16<>0) -> 0
E63: Opening senior debt balance | G63: £m nominal prices | L63: =K66 -> 0 | M63: 125 | N63: 275 | O63: 425 | P63: 500 | Q63: 500 | R63: 480 | S63: 460 | T63: 440 | U63: 420 | V63: 400 | W63: 380 | X63: 360 | Y63: 340 | Z63: 320 | AA63: 300 | AB63: 280 | AC63: 260 | AD63: 240 | AE63: 220 | AF63: 200 | AG63: 180 | AH63: 160 | AI63: 140 | AJ63: 120 | AK63: 100 | AL63: 80 | AM63: 60 | AN63: 40 | AO63: 20 | AP63: 20 | AQ63: 20 | AR63: 20 | AS63: 20 | AT63: 20 | AU63: 20 | AV63: 20 | AW63: 20 | AX63: 20 | AY63: =AX66 -> 20 | AZ63: =AY66 -> 20 | BA63: =AZ66 -> 20 | BB63: =BA66 -> 20 | BC63: =BB66 -> 20 | BD63: =BC66 -> 20 | BE63: =BD66 -> 20 | BF63: =BE66 -> 20 | BG63: =BF66 -> 20 | BH63: =BG66 -> 20 | BI63: =BH66 -> 20 | BJ63: =BI66 -> 20 | BK63: =BJ66 -> 20 | BL63: =BK66 -> 20 | BM63: =BL66 -> 20 | BN63: =BM66 -> 20 | BO63: =BN66 -> 20 | BP63: =BO66 -> 20 | BQ63: =BP66 -> 20 | BR63: =BQ66 -> 20 | BS63: =BR66 -> 20 | BT63: =BS66 -> 20 | BU63: =BT66 -> 20 | BV63: =BU66 -> 20 | BW63: =BV66 -> 20 | BX63: =BW66 -> 20 | BY63: =BX66 -> 20 | BZ63: =BY66 -> 20 | CA63: =BZ66 -> 20 | CB63: =CA66 -> 20 | CC63: =CB66 -> 20 | CD63: =CC66 -> 20 | CE63: =CD66 -> 20 | CF63: =CE66 -> 20 | CG63: =CF66 -> 20 | CH63: =CG66 -> 20 | CI63: =CH66 -> 20 | CJ63: =CI66 -> 20 | CK63: =CJ66 -> 20 | CL63: =CK66 -> 20
E64: Senior debt drawdowns | G64: £m nominal prices | K64: =K60*$I$58 -> 0 | L64: =L60*$I$58 -> 125 | M64: 150 | N64: 150 | O64: 75 | P64: 0 | Q64: 0 | R64: 0 | S64: 0 | T64: 0 | U64: 0 | V64: 0 | W64: 0 | X64: 0 | Y64: 0 | Z64: 0 | AA64: 0 | AB64: 0 | AC64: 0 | AD64: 0 | AE64: 0 | AF64: 0 | AG64: 0 | AH64: 0 | AI64: 0 | AJ64: 0 | AK64: 0 | AL64: 0 | AM64: 0 | AN64: 0 | AO64: 0 | AP64: 0 | AQ64: 0 | AR64: 0 | AS64: 0 | AT64: 0 | AU64: 0 | AV64: 0 | AW64: 0 | AX64: 0 | AY64: =AY60*$I$58 -> 0 | AZ64: 0 | BA64: 0 | BB64: 0 | BC64: 0 | BD64: 0 | BE64: 0 | BF64: 0 | BG64: 0 | BH64: =BH60*$I$58 -> 0 | BI64: 0 | BJ64: 0 | BK64: 0 | BL64: 0 | BM64: 0 | BN64: 0 | BO64: 0 | BP64: 0 | BQ64: 0 | BR64: 0 | BS64: 0 | BT64: 0 | BU64: 0 | BV64: 0 | BW64: 0 | BX64: 0 | BY64: 0 | BZ64: 0 | CA64: 0 | CB64: 0 | CC64: 0 | CD64: 0 | CE64: 0 | CF64: 0 | CG64: 0 | CH64: 0 | CI64: 0 | CJ64: 0 | CK64: 0 | CL64: 0
E65: Senior debt repayments | G65: £m nominal prices | K65: =-$I$58*K61*SUM($K$60:$CL$60) -> 0 | L65: =-$I$58*L61*SUM($K$60:$CL$60) -> 0 | M65: 0 | N65: 0 | O65: 0 | P65: 0 | Q65: -20 | R65: -20 | S65: -20 | T65: -20 | U65: -20 | V65: -20 | W65: -20 | X65: -20 | Y65: -20 | Z65: -20 | AA65: -20 | AB65: -20 | AC65: -20 | AD65: -20 | AE65: -20 | AF65: -20 | AG65: -20 | AH65: -20 | AI65: -20 | AJ65: -20 | AK65: -20 | AL65: -20 | AM65: -20 | AN65: -20 | AO65: 0 | AP65: 0 | AQ65: 0 | AR65: 0 | AS65: 0 | AT65: 0 | AU65: 0 | AV65: 0 | AW65: 0 | AX65: 0 | AY65: 0 | AZ65: 0 | BA65: 0 | BB65: 0 | BC65: 0 | BD65: 0 | BE65: 0 | BF65: 0 | BG65: 0 | BH65: 0 | BI65: 0 | BJ65: 0 | BK65: 0 | BL65: 0 | BM65: 0 | BN65: 0 | BO65: 0 | BP65: 0 | BQ65: 0 | BR65: 0 | BS65: 0 | BT65: 0 | BU65: 0 | BV65: 0 | BW65: 0 | BX65: =-$I$58*BX61*SUM($K$60:$CL$60) -> 0 | BY65: 0 | BZ65: 0 | CA65: 0 | CB65: 0 | CC65: 0 | CD65: 0 | CE65: 0 | CF65: 0 | CG65: 0 | CH65: 0 | CI65: 0 | CJ65: 0 | CK65: 0 | CL65: 0
E66: Closing senior debt balance | G66: £m nominal prices | K66: =SUM(K63:K65) -> 0 | L66: 125 | M66: 275 | N66: 425 | O66: 500 | P66: 500 | Q66: 480 | R66: 460 | S66: 440 | T66: 420 | U66: 400 | V66: 380 | W66: 360 | X66: 340 | Y66: 320 | Z66: 300 | AA66: 280 | AB66: 260 | AC66: 240 | AD66: 220 | AE66: 200 | AF66: 180 | AG66: 160 | AH66: 140 | AI66: 120 | AJ66: 100 | AK66: 80 | AL66: 60 | AM66: 40 | AN66: 20 | AO66: 20 | AP66: 20 | AQ66: 20 | AR66: 20 | AS66: 20 | AT66: 20 | AU66: 20 | AV66: 20 | AW66: 20 | AX66: 20 | AY66: =SUM(AY63:AY65) -> 20 | AZ66: 20 | BA66: 20 | BB66: 20 | BC66: 20 | BD66: 20 | BE66: 20 | BF66: 20 | BG66: 20 | BH66: =SUM(BH63:BH65) -> 20 | BI66: 20 | BJ66: 20 | BK66: 20 | BL66: 20 | BM66: 20 | BN66: 20 | BO66: 20 | BP66: 20 | BQ66: 20 | BR66: 20 | BS66: 20 | BT66: 20 | BU66: 20 | BV66: 20 | BW66: 20 | BX66: 20 | BY66: 20 | BZ66: 20 | CA66: 20 | CB66: 20 | CC66: 20 | CD66: 20 | CE66: 20 | CF66: 20 | CG66: 20 | CH66: 20 | CI66: 20 | CJ66: 20 | CK66: 20 | CL66: 20
E68: Debt Service Reserve Facility amount | G68: £m nominal prices | I68: =Inputs!I87*(Inputs!I124=1) -> 50
E69: Cap and Floor Liquidity Facility amount | G69: £m nominal prices | I69: =Inputs!I94 -> 30
E70: Cap and Floor Liquidity Facility average outstanding loan | G70: £m nominal prices | I70: =Inputs!I95 -> 5
E71: Standby Debt Facility amount | G71: £m nominal prices | I71: =Inputs!I102 -> 40
E72: VAT Facility amount | G72: £m nominal prices | I72: =Inputs!I109 -> 10
E73: VAT Facility average outstanding loan | G73: £m nominal prices | I73: =Inputs!I110 -> 5
E74: Other facilities amount | G74: £m nominal prices | I74: =Inputs!I117 -> 0
C76: Financial expenses during construction
E78: Upfront fee - Senior Debt | G78: nominal % | I78: =Inputs!I75 -> 0.015
E79: Upfront fee - Debt Service Reserve Facility | G79: nominal % | I79: =Inputs!I88 -> 0.015
E80: Upfront fee - Cap and Floor Liquidity Facility | G80: nominal % | I80: =Inputs!I96 -> 0.015
E81: Upfront fee - Standby Debt Facility | G81: nominal % | I81: =Inputs!I103 -> 0.015
E82: Upfront fee - VAT Facility | G82: nominal % | I82: =Inputs!I111 -> 0.011
E83: Upfront fee - Other facilities | G83: nominal % | I83: =Inputs!I118 -> 0
E85: Fixed rate - Construction | G85: nominal % | I85: =Inputs!I70 -> 0.04
E86: Construction margin - Senior Debt | G86: nominal % | I86: =Inputs!I73 -> 0.018
E87: of which: swap margin | G87: nominal % | I87: =Inputs!I74 -> 0.002
E88: Construction margin - Debt Service Reserve Facility | G88: nominal % | I88: =Inputs!I89 -> 0.018
E89: Construction margin - Cap and Floor Liquidity Facility | G89: nominal % | I89: =Inputs!I97 -> 0.018
E90: Construction margin - Standby Debt Facility | G90: nominal % | I90: =Inputs!I104 -> 0.0162
E91: Construction margin - VAT Facility | G91: nominal % | I91: =Inputs!I112 -> 0.011
E92: Construction margin - Other facilities | G92: nominal % | I92: =Inputs!I119 -> 0
E94: Total interest rate - Senior Debt | G94: nominal % | K94: =($I$85+$I86)*K$15 -> 0 | L94: =($I$85+$I86)*L$15 -> 0.058 | M94: 0.058 | N94: 0.058 | O94: 0.058 | P94: 0.058 | Q94: 0 | R94: 0 | S94: 0 | T94: 0 | U94: 0 | V94: 0 | W94: 0 | X94: 0 | Y94: 0 | Z94: 0 | AA94: 0 | AB94: 0 | AC94: 0 | AD94: 0 | AE94: 0 | AF94: 0 | AG94: 0 | AH94: 0 | AI94: 0 | AJ94: 0 | AK94: 0 | AL94: 0 | AM94: 0 | AN94: 0 | AO94: 0 | AP94: 0 | AQ94: 0 | AR94: 0 | AS94: 0 | AT94: 0 | AU94: 0 | AV94: 0 | AW94: 0 | AX94: 0 | AY94: =($I$85+$I86)*AY$15 -> 0 | AZ94: 0 | BA94: 0 | BB94: 0 | BC94: 0 | BD94: 0 | BE94: 0 | BF94: 0 | BG94: 0 | BH94: =($I$85+$I86)*BH$15 -> 0 | BI94: 0 | BJ94: 0 | BK94: 0 | BL94: 0 | BM94: 0 | BN94: 0 | BO94: 0 | BP94: 0 | BQ94: 0 | BR94: 0 | BS94: 0 | BT94: 0 | BU94: 0 | BV94: 0 | BW94: 0 | BX94: 0 | BY94: 0 | BZ94: 0 | CA94: 0 | CB94: 0 | CC94: 0 | CD94: 0 | CE94: 0 | CF94: 0 | CG94: 0 | CH94: 0 | CI94: 0 | CJ94: 0 | CK94: 0 | CL94: 0
E95: Total interest rate - Debt Service Reserve Facility | G95: nominal % | K95: =($I$85+$I88)*K$15 -> 0 | L95: 0.058 | M95: 0.058 | N95: 0.058 | O95: 0.058 | P95: 0.058 | Q95: 0 | R95: 0 | S95: 0 | T95: 0 | U95: 0 | V95: 0 | W95: 0 | X95: 0 | Y95: 0 | Z95: 0 | AA95: 0 | AB95: 0 | AC95: 0 | AD95: 0 | AE95: 0 | AF95: 0 | AG95: 0 | AH95: 0 | AI95: 0 | AJ95: 0 | AK95: 0 | AL95: 0 | AM95: 0 | AN95: 0 | AO95: 0 | AP95: 0 | AQ95: 0 | AR95: 0 | AS95: 0 | AT95: 0 | AU95: 0 | AV95: 0 | AW95: 0 | AX95: 0 | AY95: =($I$85+$I88)*AY$15 -> 0 | AZ95: 0 | BA95: 0 | BB95: 0 | BC95: 0 | BD95: 0 | BE95: 0 | BF95: 0 | BG95: 0 | BH95: =($I$85+$I88)*BH$15 -> 0 | BI95: 0 | BJ95: 0 | BK95: 0 | BL95: 0 | BM95: 0 | BN95: 0 | BO95: 0 | BP95: 0 | BQ95: 0 | BR95: 0 | BS95: 0 | BT95: 0 | BU95: 0 | BV95: 0 | BW95: 0 | BX95: 0 | BY95: 0 | BZ95: 0 | CA95: 0 | CB95: 0 | CC95: 0 | CD95: 0 | CE95: 0 | CF95: 0 | CG95: 0 | CH95: 0 | CI95: 0 | CJ95: 0 | CK95: 0 | CL95: 0
E96: Total interest rate - Cap and Floor Liquidity Facility | G96: nominal % | K96: =($I$85+$I89)*K$15 -> 0 | L96: 0.058 | M96: 0.058 | N96: 0.058 | O96: 0.058 | P96: 0.058 | Q96: 0 | R96: 0 | S96: 0 | T96: 0 | U96: 0 | V96: 0 | W96: 0 | X96: 0 | Y96: 0 | Z96: 0 | AA96: 0 | AB96: 0 | AC96: 0 | AD96: 0 | AE96: 0 | AF96: 0 | AG96: 0 | AH96: 0 | AI96: 0 | AJ96: 0 | AK96: 0 | AL96: 0 | AM96: 0 | AN96: 0 | AO96: 0 | AP96: 0 | AQ96: 0 | AR96: 0 | AS96: 0 | AT96: 0 | AU96: 0 | AV96: 0 | AW96: 0 | AX96: 0 | AY96: =($I$85+$I89)*AY$15 -> 0 | AZ96: 0 | BA96: 0 | BB96: 0 | BC96: 0 | BD96: 0 | BE96: 0 | BF96: 0 | BG96: 0 | BH96: =($I$85+$I89)*BH$15 -> 0 | BI96: 0 | BJ96: 0 | BK96: 0 | BL96: 0 | BM96: 0 | BN96: 0 | BO96: 0 | BP96: 0 | BQ96: 0 | BR96: 0 | BS96: 0 | BT96: 0 | BU96: 0 | BV96: 0 | BW96: 0 | BX96: 0 | BY96: 0 | BZ96: 0 | CA96: 0 | CB96: 0 | CC96: 0 | CD96: 0 | CE96: 0 | CF96: 0 | CG96: 0 | CH96: 0 | CI96: 0 | CJ96: 0 | CK96: 0 | CL96: 0
E97: Total interest rate - Standby Debt Facility | G97: nominal % | K97: =($I$85+$I90)*K$15 -> 0 | L97: 0.0562 | M97: 0.0562 | N97: 0.0562 | O97: 0.0562 | P97: 0.0562 | Q97: 0 | R97: 0 | S97: 0 | T97: 0 | U97: 0 | V97: 0 | W97: 0 | X97: 0 | Y97: 0 | Z97: 0 | AA97: 0 | AB97: 0 | AC97: 0 | AD97: 0 | AE97: 0 | AF97: 0 | AG97: 0 | AH97: 0 | AI97: 0 | AJ97: 0 | AK97: 0 | AL97: 0 | AM97: 0 | AN97: 0 | AO97: 0 | AP97: 0 | AQ97: 0 | AR97: 0 | AS97: 0 | AT97: 0 | AU97: 0 | AV97: 0 | AW97: 0 | AX97: 0 | AY97: =($I$85+$I90)*AY$15 -> 0 | AZ97: 0 | BA97: 0 | BB97: 0 | BC97: 0 | BD97: 0 | BE97: 0 | BF97: 0 | BG97: 0 | BH97: =($I$85+$I90)*BH$15 -> 0 | BI97: 0 | BJ97: 0 | BK97: 0 | BL97: 0 | BM97: 0 | BN97: 0 | BO97: 0 | BP97: 0 | BQ97: 0 | BR97: 0 | BS97: 0 | BT97: 0 | BU97: 0 | BV97: 0 | BW97: 0 | BX97: 0 | BY97: 0 | BZ97: 0 | CA97: 0 | CB97: 0 | CC97: 0 | CD97: 0 | CE97: 0 | CF97: 0 | CG97: 0 | CH97: 0 | CI97: 0 | CJ97: 0 | CK97: 0 | CL97: 0
E98: Total interest rate - VAT Facility | G98: nominal % | K98: =($I$85+$I91)*K$15 -> 0 | L98: 0.051 | M98: 0.051 | N98: 0.051 | O98: 0.051 | P98: 0.051 | Q98: 0 | R98: 0 | S98: 0 | T98: 0 | U98: 0 | V98: 0 | W98: 0 | X98: 0 | Y98: 0 | Z98: 0 | AA98: 0 | AB98: 0 | AC98: 0 | AD98: 0 | AE98: 0 | AF98: 0 | AG98: 0 | AH98: 0 | AI98: 0 | AJ98: 0 | AK98: 0 | AL98: 0 | AM98: 0 | AN98: 0 | AO98: 0 | AP98: 0 | AQ98: 0 | AR98: 0 | AS98: 0 | AT98: 0 | AU98: 0 | AV98: 0 | AW98: 0 | AX98: 0 | AY98: =($I$85+$I91)*AY$15 -> 0 | AZ98: 0 | BA98: 0 | BB98: 0 | BC98: 0 | BD98: 0 | BE98: 0 | BF98: 0 | BG98: 0 | BH98: =($I$85+$I91)*BH$15 -> 0 | BI98: 0 | BJ98: 0 | BK98: 0 | BL98: 0 | BM98: 0 | BN98: 0 | BO98: 0 | BP98: 0 | BQ98: 0 | BR98: 0 | BS98: 0 | BT98: 0 | BU98: 0 | BV98: 0 | BW98: 0 | BX98: 0 | BY98: 0 | BZ98: 0 | CA98: 0 | CB98: 0 | CC98: 0 | CD98: 0 | CE98: 0 | CF98: 0 | CG98: 0 | CH98: 0 | CI98: 0 | CJ98: 0 | CK98: 0 | CL98: 0
E99: Total interest rate - Other facilities | G99: nominal % | K99: =($I$85+$I92)*K$15 -> 0 | L99: 0.04 | M99: 0.04 | N99: 0.04 | O99: 0.04 | P99: 0.04 | Q99: 0 | R99: 0 | S99: 0 | T99: 0 | U99: 0 | V99: 0 | W99: 0 | X99: 0 | Y99: 0 | Z99: 0 | AA99: 0 | AB99: 0 | AC99: 0 | AD99: 0 | AE99: 0 | AF99: 0 | AG99: 0 | AH99: 0 | AI99: 0 | AJ99: 0 | AK99: 0 | AL99: 0 | AM99: 0 | AN99: 0 | AO99: 0 | AP99: 0 | AQ99: 0 | AR99: 0 | AS99: 0 | AT99: 0 | AU99: 0 | AV99: 0 | AW99: 0 | AX99: 0 | AY99: =($I$85+$I92)*AY$15 -> 0 | AZ99: 0 | BA99: 0 | BB99: 0 | BC99: 0 | BD99: 0 | BE99: 0 | BF99: 0 | BG99: 0 | BH99: =($I$85+$I92)*BH$15 -> 0 | BI99: 0 | BJ99: 0 | BK99: 0 | BL99: 0 | BM99: 0 | BN99: 0 | BO99: 0 | BP99: 0 | BQ99: 0 | BR99: 0 | BS99: 0 | BT99: 0 | BU99: 0 | BV99: 0 | BW99: 0 | BX99: 0 | BY99: 0 | BZ99: 0 | CA99: 0 | CB99: 0 | CC99: 0 | CD99: 0 | CE99: 0 | CF99: 0 | CG99: 0 | CH99: 0 | CI99: 0 | CJ99: 0 | CK99: 0 | CL99: 0
E101: Commitment fee - Senior Debt | G101: % of applicable margin | I101: =Inputs!I76 -> 0.35
E102: Commitment fee - Debt Service Reserve Facility | G102: % of applicable margin | I102: =Inputs!I90 -> 0.35
E103: Commitment fee - Cap and Floor Liquidity Facility | G103: % of applicable margin | I103: =Inputs!I98 -> 0.35
E104: Commitment fee - Standby Debt Facility | G104: % of applicable margin | I104: =Inputs!I105 -> 0.35
E105: Commitment fee - VAT Facility | G105: % of applicable margin | I105: =Inputs!I113 -> 0.35
E106: Commitment fee - Other facilities | G106: % of applicable margin | I106: =Inputs!I120 -> 0
E108: Upfront fee payable - Senior Debt | G108: £m nominal prices | K108: =$I$58*$I$78*K14 -> 0 | L108: =$I$58*$I$78*L14 -> 7.5 | M108: 0 | N108: 0 | O108: 0 | P108: 0 | Q108: 0 | R108: 0 | S108: 0 | T108: 0 | U108: 0 | V108: 0 | W108: 0 | X108: 0 | Y108: 0 | Z108: 0 | AA108: 0 | AB108: 0 | AC108: 0 | AD108: 0 | AE108: 0 | AF108: 0 | AG108: 0 | AH108: 0 | AI108: 0 | AJ108: 0 | AK108: 0 | AL108: 0 | AM108: 0 | AN108: 0 | AO108: 0 | AP108: 0 | AQ108: 0 | AR108: 0 | AS108: 0 | AT108: 0 | AU108: 0 | AV108: 0 | AW108: 0 | AX108: 0 | AY108: =$I$58*$I$78*AY14 -> 0 | AZ108: 0 | BA108: 0 | BB108: 0 | BC108: 0 | BD108: 0 | BE108: 0 | BF108: 0 | BG108: 0 | BH108: =$I$58*$I$78*BH14 -> 0 | BI108: 0 | BJ108: 0 | BK108: 0 | BL108: 0 | BM108: 0 | BN108: 0 | BO108: 0 | BP108: 0 | BQ108: 0 | BR108: 0 | BS108: 0 | BT108: 0 | BU108: 0 | BV108: 0 | BW108: 0 | BX108: 0 | BY108: 0 | BZ108: 0 | CA108: 0 | CB108: 0 | CC108: 0 | CD108: 0 | CE108: 0 | CF108: 0 | CG108: 0 | CH108: 0 | CI108: 0 | CJ108: 0 | CK108: 0 | CL108: 0
E109: Upfront fee payable - Ancillary Facilities | G109: £m nominal prices | K109: =($I$68*$I$79+$I$69*$I$80+$I$71*$I$81+$I$72*$I$82+$I$74*$I$83)*K14 -> 0 | L109: =($I$68*$I$79+$I$69*$I$80+$I$71*$I$81+$I$72*$I$82+$I$74*$I$83)*L14 -> 1.91 | M109: 0 | N109: 0 | O109: 0 | P109: 0 | Q109: 0 | R109: 0 | S109: 0 | T109: 0 | U109: 0 | V109: 0 | W109: 0 | X109: 0 | Y109: 0 | Z109: 0 | AA109: 0 | AB109: 0 | AC109: 0 | AD109: 0 | AE109: 0 | AF109: 0 | AG109: 0 | AH109: 0 | AI109: 0 | AJ109: 0 | AK109: 0 | AL109: 0 | AM109: 0 | AN109: 0 | AO109: 0 | AP109: 0 | AQ109: 0 | AR109: 0 | AS109: 0 | AT109: 0 | AU109: 0 | AV109: 0 | AW109: 0 | AX109: 0 | AY109: =($I$68*$I$79+$I$69*$I$80+$I$71*$I$81+$I$72*$I$82+$I$74*$I$83)*AY14 -> 0 | AZ109: 0 | BA109: 0 | BB109: 0 | BC109: 0 | BD109: 0 | BE109: 0 | BF109: 0 | BG109: 0 | BH109: =($I$68*$I$79+$I$69*$I$80+$I$71*$I$81+$I$72*$I$82+$I$74*$I$83)*BH14 -> 0 | BI109: 0 | BJ109: 0 | BK109: 0 | BL109: 0 | BM109: 0 | BN109: 0 | BO109: 0 | BP109: 0 | BQ109: 0 | BR109: 0 | BS109: 0 | BT109: 0 | BU109: 0 | BV109: 0 | BW109: 0 | BX109: 0 | BY109: 0 | BZ109: 0 | CA109: 0 | CB109: 0 | CC109: 0 | CD109: 0 | CE109: 0 | CF109: 0 | CG109: 0 | CH109: 0 | CI109: 0 | CJ109: 0 | CK109: 0 | CL109: 0
E110: Interest payable - Senior Debt | G110: £m nominal prices | K110: =SUM(K63:K64)*K94*K15 -> 0 | L110: =SUM(L63:L64)*L94*L15 -> 7.25 | M110: 15.95 | N110: 24.65 | O110: 29 | P110: 29 | Q110: 0 | R110: 0 | S110: 0 | T110: 0 | U110: 0 | V110: 0 | W110: 0 | X110: 0 | Y110: 0 | Z110: 0 | AA110: 0 | AB110: 0 | AC110: 0 | AD110: 0 | AE110: 0 | AF110: 0 | AG110: 0 | AH110: 0 | AI110: 0 | AJ110: 0 | AK110: 0 | AL110: 0 | AM110: 0 | AN110: 0 | AO110: 0 | AP110: 0 | AQ110: 0 | AR110: 0 | AS110: 0 | AT110: 0 | AU110: 0 | AV110: 0 | AW110: 0 | AX110: 0 | AY110: =SUM(AY63:AY64)*AY94*AY15 -> 0 | AZ110: 0 | BA110: 0 | BB110: 0 | BC110: 0 | BD110: 0 | BE110: 0 | BF110: 0 | BG110: 0 | BH110: =SUM(BH63:BH64)*BH94*BH15 -> 0 | BI110: 0 | BJ110: 0 | BK110: 0 | BL110: 0 | BM110: 0 | BN110: 0 | BO110: 0 | BP110: 0 | BQ110: 0 | BR110: 0 | BS110: 0 | BT110: 0 | BU110: 0 | BV110: 0 | BW110: 0 | BX110: 0 | BY110: 0 | BZ110: 0 | CA110: 0 | CB110: 0 | CC110: 0 | CD110: 0 | CE110: 0 | CF110: 0 | CG110: 0 | CH110: 0 | CI110: 0 | CJ110: 0 | CK110: 0 | CL110: 0
E111: Interest payable - Ancillary Facilities | G111: £m nominal prices | K111: =$I$73*K98*K15 -> 0 | L111: =$I$73*L98*L15 -> 0.255 | M111: 0.255 | N111: 0.255 | O111: 0.255 | P111: 0.255 | Q111: 0 | R111: 0 | S111: 0 | T111: 0 | U111: 0 | V111: 0 | W111: 0 | X111: 0 | Y111: 0 | Z111: 0 | AA111: 0 | AB111: 0 | AC111: 0 | AD111: 0 | AE111: 0 | AF111: 0 | AG111: 0 | AH111: 0 | AI111: 0 | AJ111: 0 | AK111: 0 | AL111: 0 | AM111: 0 | AN111: 0 | AO111: 0 | AP111: 0 | AQ111: 0 | AR111: 0 | AS111: 0 | AT111: 0 | AU111: 0 | AV111: 0 | AW111: 0 | AX111: 0 | AY111: =$I$73*AY98*AY15 -> 0 | AZ111: 0 | BA111: 0 | BB111: 0 | BC111: 0 | BD111: 0 | BE111: 0 | BF111: 0 | BG111: 0 | BH111: =$I$73*BH98*BH15 -> 0 | BI111: 0 | BJ111: 0 | BK111: 0 | BL111: 0 | BM111: 0 | BN111: 0 | BO111: 0 | BP111: 0 | BQ111: 0 | BR111: 0 | BS111: 0 | BT111: 0 | BU111: 0 | BV111: 0 | BW111: 0 | BX111: 0 | BY111: 0 | BZ111: 0 | CA111: 0 | CB111: 0 | CC111: 0 | CD111: 0 | CE111: 0 | CF111: 0 | CG111: 0 | CH111: 0 | CI111: 0 | CJ111: 0 | CK111: 0 | CL111: 0
E112: Commitment fee payable - Senior Debt | G112: £m nominal prices | K112: =($I$58-SUM(K63:K64))*(K94-$I$85-$I$87)*$I$101*K15 -> 0 | L112: 2.1 | M112: 1.26 | N112: 0.42 | O112: 0 | P112: 0 | Q112: 0 | R112: 0 | S112: 0 | T112: 0 | U112: 0 | V112: 0 | W112: 0 | X112: 0 | Y112: 0 | Z112: 0 | AA112: 0 | AB112: 0 | AC112: 0 | AD112: 0 | AE112: 0 | AF112: 0 | AG112: 0 | AH112: 0 | AI112: 0 | AJ112: 0 | AK112: 0 | AL112: 0 | AM112: 0 | AN112: 0 | AO112: 0 | AP112: 0 | AQ112: 0 | AR112: 0 | AS112: 0 | AT112: 0 | AU112: 0 | AV112: 0 | AW112: 0 | AX112: 0 | AY112: =($I$58-SUM(AY63:AY64))*(AY94-$I$85-$I$87)*$I$101*AY15 -> 0 | AZ112: 0 | BA112: 0 | BB112: 0 | BC112: 0 | BD112: 0 | BE112: 0 | BF112: 0 | BG112: 0 | BH112: =($I$58-SUM(BH63:BH64))*(BH94-$I$85-$I$87)*$I$101*BH15 -> 0 | BI112: 0 | BJ112: 0 | BK112: 0 | BL112: 0 | BM112: 0 | BN112: 0 | BO112: 0 | BP112: 0 | BQ112: 0 | BR112: 0 | BS112: 0 | BT112: 0 | BU112: 0 | BV112: 0 | BW112: 0 | BX112: 0 | BY112: 0 | BZ112: 0 | CA112: 0 | CB112: 0 | CC112: 0 | CD112: 0 | CE112: 0 | CF112: 0 | CG112: 0 | CH112: 0 | CI112: 0 | CJ112: 0 | CK112: 0 | CL112: 0
E113: Commitment fee payable - Ancillary Facilities | G113: £m nominal prices | K113: =($I$68*(K95-$I$85)*$I$102+$I$69*(K96-$I$85)*$I$103+$I$71*(K97-$I$85)*$I$104+($I$72-$I$73)*(K98-$I$85)*$I$105+$I$74*(K99-$I$85)*$I$106)*K15 -> 0 | L113: 0.75005 | M113: 0.75005 | N113: 0.75005 | O113: 0.75005 | P113: 0.75005 | Q113: 0 | R113: 0 | S113: 0 | T113: 0 | U113: 0 | V113: 0 | W113: 0 | X113: 0 | Y113: 0 | Z113: 0 | AA113: 0 | AB113: 0 | AC113: 0 | AD113: 0 | AE113: 0 | AF113: 0 | AG113: 0 | AH113: 0 | AI113: 0 | AJ113: 0 | AK113: 0 | AL113: 0 | AM113: 0 | AN113: 0 | AO113: 0 | AP113: 0 | AQ113: 0 | AR113: 0 | AS113: 0 | AT113: 0 | AU113: 0 | AV113: 0 | AW113: 0 | AX113: 0 | AY113: =($I$68*(AY95-$I$85)*$I$102+$I$69*(AY96-$I$85)*$I$103+$I$71*(AY97-$I$85)*$I$104+($I$72-$I$73)*(AY98-$I$85)*$I$105+$I$74*(AY99-$I$85)*$I$106)*AY15 -> 0 | AZ113: 0 | BA113: 0 | BB113: 0 | BC113: 0 | BD113: 0 | BE113: 0 | BF113: 0 | BG113: 0 | BH113: =($I$68*(BH95-$I$85)*$I$102+$I$69*(BH96-$I$85)*$I$103+$I$71*(BH97-$I$85)*$I$104+($I$72-$I$73)*(BH98-$I$85)*$I$105+$I$74*(BH99-$I$85)*$I$106)*BH15 -> 0 | BI113: 0 | BJ113: 0 | BK113: 0 | BL113: 0 | BM113: 0 | BN113: 0 | BO113: 0 | BP113: 0 | BQ113: 0 | BR113: 0 | BS113: 0 | BT113: 0 | BU113: 0 | BV113: 0 | BW113: 0 | BX113: 0 | BY113: 0 | BZ113: 0 | CA113: 0 | CB113: 0 | CC113: 0 | CD113: 0 | CE113: 0 | CF113: 0 | CG113: 0 | CH113: 0 | CI113: 0 | CJ113: 0 | CK113: 0 | CL113: 0
E114: Financial expenses during construction | G114: £m nominal prices | K114: =SUM(K108:K113) -> 0 | L114: =SUM(L108:L113) -> 19.76505 | M114: 18.21505 | N114: 26.07505 | O114: 30.00505 | P114: 30.00505 | Q114: 0 | R114: 0 | S114: 0 | T114: 0 | U114: 0 | V114: 0 | W114: 0 | X114: 0 | Y114: 0 | Z114: 0 | AA114: 0 | AB114: 0 | AC114: 0 | AD114: 0 | AE114: 0 | AF114: 0 | AG114: 0 | AH114: 0 | AI114: 0 | AJ114: 0 | AK114: 0 | AL114: 0 | AM114: 0 | AN114: 0 | AO114: 0 | AP114: 0 | AQ114: 0 | AR114: 0 | AS114: 0 | AT114: 0 | AU114: 0 | AV114: 0 | AW114: 0 | AX114: 0 | AY114: =SUM(AY108:AY113) -> 0 | AZ114: 0 | BA114: 0 | BB114: 0 | BC114: 0 | BD114: 0 | BE114: 0 | BF114: 0 | BG114: 0 | BH114: =SUM(BH108:BH113) -> 0 | BI114: 0 | BJ114: 0 | BK114: 0 | BL114: 0 | BM114: 0 | BN114: 0 | BO114: 0 | BP114: 0 | BQ114: 0 | BR114: 0 | BS114: 0 | BT114: 0 | BU114: 0 | BV114: 0 | BW114: 0 | BX114: 0 | BY114: 0 | BZ114: 0 | CA114: 0 | CB114: 0 | CC114: 0 | CD114: 0 | CE114: 0 | CF114: 0 | CG114: 0 | CH114: 0 | CI114: 0 | CJ114: 0 | CK114: 0 | CL114: 0
C116: Financial expenses during operation
E118: Fixed rate - Operation | G118: nominal % | I118: =Inputs!I71 -> 0.04
E119: Operation margin (including swap margin) - Senior Debt | G119: nominal % | K119: =SUMIF(Inputs!$132:$132,Finance!K$16,Inputs!135:135) -> 0.048 | L119: =SUMIF(Inputs!$132:$132,Finance!L$16,Inputs!135:135) -> 0.048 | M119: =SUMIF(Inputs!$132:$132,Finance!M$16,Inputs!135:135) -> 0.048 | N119: =SUMIF(Inputs!$132:$132,Finance!N$16,Inputs!135:135) -> 0.048 | O119: =SUMIF(Inputs!$132:$132,Finance!O$16,Inputs!135:135) -> 0.048 | P119: =SUMIF(Inputs!$132:$132,Finance!P$16,Inputs!135:135) -> 0.048 | Q119: =SUMIF(Inputs!$132:$132,Finance!Q$16,Inputs!135:135) -> 0.024 | R119: =SUMIF(Inputs!$132:$132,Finance!R$16,Inputs!135:135) -> 0.024 | S119: =SUMIF(Inputs!$132:$132,Finance!S$16,Inputs!135:135) -> 0.024 | T119: =SUMIF(Inputs!$132:$132,Finance!T$16,Inputs!135:135) -> 0.024 | U119: =SUMIF(Inputs!$132:$132,Finance!U$16,Inputs!135:135) -> 0.024 | V119: =SUMIF(Inputs!$132:$132,Finance!V$16,Inputs!135:135) -> 0.024 | W119: =SUMIF(Inputs!$132:$132,Finance!W$16,Inputs!135:135) -> 0.024 | X119: =SUMIF(Inputs!$132:$132,Finance!X$16,Inputs!135:135) -> 0.024 | Y119: =SUMIF(Inputs!$132:$132,Finance!Y$16,Inputs!135:135) -> 0.024 | Z119: =SUMIF(Inputs!$132:$132,Finance!Z$16,Inputs!135:135) -> 0.024 | AA119: =SUMIF(Inputs!$132:$132,Finance!AA$16,Inputs!135:135) -> 0.024 | AB119: =SUMIF(Inputs!$132:$132,Finance!AB$16,Inputs!135:135) -> 0.024 | AC119: =SUMIF(Inputs!$132:$132,Finance!AC$16,Inputs!135:135) -> 0.024 | AD119: =SUMIF(Inputs!$132:$132,Finance!AD$16,Inputs!135:135) -> 0.024 | AE119: =SUMIF(Inputs!$132:$132,Finance!AE$16,Inputs!135:135) -> 0.024 | AF119: =SUMIF(Inputs!$132:$132,Finance!AF$16,Inputs!135:135) -> 0.024 | AG119: =SUMIF(Inputs!$132:$132,Finance!AG$16,Inputs!135:135) -> 0.024 | AH119: =SUMIF(Inputs!$132:$132,Finance!AH$16,Inputs!135:135) -> 0.024 | AI119: =SUMIF(Inputs!$132:$132,Finance!AI$16,Inputs!135:135) -> 0.024 | AJ119: =SUMIF(Inputs!$132:$132,Finance!AJ$16,Inputs!135:135) -> 0.024 | AK119: =SUMIF(Inputs!$132:$132,Finance!AK$16,Inputs!135:135) -> 0.024 | AL119: =SUMIF(Inputs!$132:$132,Finance!AL$16,Inputs!135:135) -> 0.024 | AM119: =SUMIF(Inputs!$132:$132,Finance!AM$16,Inputs!135:135) -> 0.024 | AN119: =SUMIF(Inputs!$132:$132,Finance!AN$16,Inputs!135:135) -> 0.024 | AO119: =SUMIF(Inputs!$132:$132,Finance!AO$16,Inputs!135:135) -> 0 | AP119: =SUMIF(Inputs!$132:$132,Finance!AP$16,Inputs!135:135) -> 0.048 | AQ119: =SUMIF(Inputs!$132:$132,Finance!AQ$16,Inputs!135:135) -> 0.048 | AR119: =SUMIF(Inputs!$132:$132,Finance!AR$16,Inputs!135:135) -> 0.048 | AS119: =SUMIF(Inputs!$132:$132,Finance!AS$16,Inputs!135:135) -> 0.048 | AT119: =SUMIF(Inputs!$132:$132,Finance!AT$16,Inputs!135:135) -> 0.048 | AU119: =SUMIF(Inputs!$132:$132,Finance!AU$16,Inputs!135:135) -> 0.048 | AV119: =SUMIF(Inputs!$132:$132,Finance!AV$16,Inputs!135:135) -> 0.048 | AW119: =SUMIF(Inputs!$132:$132,Finance!AW$16,Inputs!135:135) -> 0.048 | AX119: =SUMIF(Inputs!$132:$132,Finance!AX$16,Inputs!135:135) -> 0.048 | AY119: =SUMIF(Inputs!$132:$132,Finance!AY$16,Inputs!135:135) -> 0.048 | AZ119: =SUMIF(Inputs!$132:$132,Finance!AZ$16,Inputs!135:135) -> 0.048 | BA119: =SUMIF(Inputs!$132:$132,Finance!BA$16,Inputs!135:135) -> 0.048 | BB119: =SUMIF(Inputs!$132:$132,Finance!BB$16,Inputs!135:135) -> 0.048 | BC119: =SUMIF(Inputs!$132:$132,Finance!BC$16,Inputs!135:135) -> 0.048 | BD119: =SUMIF(Inputs!$132:$132,Finance!BD$16,Inputs!135:135) -> 0.048 | BE119: =SUMIF(Inputs!$132:$132,Finance!BE$16,Inputs!135:135) -> 0.048 | BF119: =SUMIF(Inputs!$132:$132,Finance!BF$16,Inputs!135:135) -> 0.048 | BG119: =SUMIF(Inputs!$132:$132,Finance!BG$16,Inputs!135:135) -> 0.048 | BH119: =SUMIF(Inputs!$132:$132,Finance!BH$16,Inputs!135:135) -> 0.048 | BI119: =SUMIF(Inputs!$132:$132,Finance!BI$16,Inputs!135:135) -> 0.048 | BJ119: =SUMIF(Inputs!$132:$132,Finance!BJ$16,Inputs!135:135) -> 0.048 | BK119: =SUMIF(Inputs!$132:$132,Finance!BK$16,Inputs!135:135) -> 0.048 | BL119: =SUMIF(Inputs!$132:$132,Finance!BL$16,Inputs!135:135) -> 0.048 | BM119: =SUMIF(Inputs!$132:$132,Finance!BM$16,Inputs!135:135) -> 0.048 | BN119: =SUMIF(Inputs!$132:$132,Finance!BN$16,Inputs!135:135) -> 0.048 | BO119: =SUMIF(Inputs!$132:$132,Finance!BO$16,Inputs!135:135) -> 0.048 | BP119: =SUMIF(Inputs!$132:$132,Finance!BP$16,Inputs!135:135) -> 0.048 | BQ119: =SUMIF(Inputs!$132:$132,Finance!BQ$16,Inputs!135:135) -> 0.048 | BR119: =SUMIF(Inputs!$132:$132,Finance!BR$16,Inputs!135:135) -> 0.048 | BS119: =SUMIF(Inputs!$132:$132,Finance!BS$16,Inputs!135:135) -> 0.048 | BT119: =SUMIF(Inputs!$132:$132,Finance!BT$16,Inputs!135:135) -> 0.048 | BU119: =SUMIF(Inputs!$132:$132,Finance!BU$16,Inputs!135:135) -> 0.048 | BV119: =SUMIF(Inputs!$132:$132,Finance!BV$16,Inputs!135:135) -> 0.048 | BW119: =SUMIF(Inputs!$132:$132,Finance!BW$16,Inputs!135:135) -> 0.048 | BX119: =SUMIF(Inputs!$132:$132,Finance!BX$16,Inputs!135:135) -> 0.048 | BY119: =SUMIF(Inputs!$132:$132,Finance!BY$16,Inputs!135:135) -> 0.048 | BZ119: =SUMIF(Inputs!$132:$132,Finance!BZ$16,Inputs!135:135) -> 0.048 | CA119: =SUMIF(Inputs!$132:$132,Finance!CA$16,Inputs!135:135) -> 0.048 | CB119: =SUMIF(Inputs!$132:$132,Finance!CB$16,Inputs!135:135) -> 0.048 | CC119: =SUMIF(Inputs!$132:$132,Finance!CC$16,Inputs!135:135) -> 0.048 | CD119: =SUMIF(Inputs!$132:$132,Finance!CD$16,Inputs!135:135) -> 0.048 | CE119: =SUMIF(Inputs!$132:$132,Finance!CE$16,Inputs!135:135) -> 0.048 | CF119: =SUMIF(Inputs!$132:$132,Finance!CF$16,Inputs!135:135) -> 0.048 | CG119: =SUMIF(Inputs!$132:$132,Finance!CG$16,Inputs!135:135) -> 0.048 | CH119: =SUMIF(Inputs!$132:$132,Finance!CH$16,Inputs!135:135) -> 0.048 | CI119: =SUMIF(Inputs!$132:$132,Finance!CI$16,Inputs!135:135) -> 0.048 | CJ119: =SUMIF(Inputs!$132:$132,Finance!CJ$16,Inputs!135:135) -> 0.048 | CK119: =SUMIF(Inputs!$132:$132,Finance!CK$16,Inputs!135:135) -> 0.048 | CL119: =SUMIF(Inputs!$132:$132,Finance!CL$16,Inputs!135:135) -> 0.048
E120: Operation margin - Debt Service Reserve Facility | G120: nominal % | K120: =SUMIF(Inputs!$132:$132,Finance!K$16,Inputs!136:136) -> 0.048 | L120: =SUMIF(Inputs!$132:$132,Finance!L$16,Inputs!136:136) -> 0.048 | M120: =SUMIF(Inputs!$132:$132,Finance!M$16,Inputs!136:136) -> 0.048 | N120: =SUMIF(Inputs!$132:$132,Finance!N$16,Inputs!136:136) -> 0.048 | O120: =SUMIF(Inputs!$132:$132,Finance!O$16,Inputs!136:136) -> 0.048 | P120: =SUMIF(Inputs!$132:$132,Finance!P$16,Inputs!136:136) -> 0.048 | Q120: =SUMIF(Inputs!$132:$132,Finance!Q$16,Inputs!136:136) -> 0.024 | R120: =SUMIF(Inputs!$132:$132,Finance!R$16,Inputs!136:136) -> 0.024 | S120: =SUMIF(Inputs!$132:$132,Finance!S$16,Inputs!136:136) -> 0.024 | T120: =SUMIF(Inputs!$132:$132,Finance!T$16,Inputs!136:136) -> 0.024 | U120: =SUMIF(Inputs!$132:$132,Finance!U$16,Inputs!136:136) -> 0.024 | V120: =SUMIF(Inputs!$132:$132,Finance!V$16,Inputs!136:136) -> 0.024 | W120: =SUMIF(Inputs!$132:$132,Finance!W$16,Inputs!136:136) -> 0.024 | X120: =SUMIF(Inputs!$132:$132,Finance!X$16,Inputs!136:136) -> 0.024 | Y120: =SUMIF(Inputs!$132:$132,Finance!Y$16,Inputs!136:136) -> 0.024 | Z120: =SUMIF(Inputs!$132:$132,Finance!Z$16,Inputs!136:136) -> 0.024 | AA120: =SUMIF(Inputs!$132:$132,Finance!AA$16,Inputs!136:136) -> 0.024 | AB120: =SUMIF(Inputs!$132:$132,Finance!AB$16,Inputs!136:136) -> 0.024 | AC120: =SUMIF(Inputs!$132:$132,Finance!AC$16,Inputs!136:136) -> 0.024 | AD120: =SUMIF(Inputs!$132:$132,Finance!AD$16,Inputs!136:136) -> 0.024 | AE120: =SUMIF(Inputs!$132:$132,Finance!AE$16,Inputs!136:136) -> 0.024 | AF120: =SUMIF(Inputs!$132:$132,Finance!AF$16,Inputs!136:136) -> 0.024 | AG120: =SUMIF(Inputs!$132:$132,Finance!AG$16,Inputs!136:136) -> 0.024 | AH120: =SUMIF(Inputs!$132:$132,Finance!AH$16,Inputs!136:136) -> 0.024 | AI120: =SUMIF(Inputs!$132:$132,Finance!AI$16,Inputs!136:136) -> 0.024 | AJ120: =SUMIF(Inputs!$132:$132,Finance!AJ$16,Inputs!136:136) -> 0.024 | AK120: =SUMIF(Inputs!$132:$132,Finance!AK$16,Inputs!136:136) -> 0.024 | AL120: =SUMIF(Inputs!$132:$132,Finance!AL$16,Inputs!136:136) -> 0.024 | AM120: =SUMIF(Inputs!$132:$132,Finance!AM$16,Inputs!136:136) -> 0.024 | AN120: =SUMIF(Inputs!$132:$132,Finance!AN$16,Inputs!136:136) -> 0.024 | AO120: =SUMIF(Inputs!$132:$132,Finance!AO$16,Inputs!136:136) -> 0 | AP120: =SUMIF(Inputs!$132:$132,Finance!AP$16,Inputs!136:136) -> 0.048 | AQ120: =SUMIF(Inputs!$132:$132,Finance!AQ$16,Inputs!136:136) -> 0.048 | AR120: =SUMIF(Inputs!$132:$132,Finance!AR$16,Inputs!136:136) -> 0.048 | AS120: =SUMIF(Inputs!$132:$132,Finance!AS$16,Inputs!136:136) -> 0.048 | AT120: =SUMIF(Inputs!$132:$132,Finance!AT$16,Inputs!136:136) -> 0.048 | AU120: =SUMIF(Inputs!$132:$132,Finance!AU$16,Inputs!136:136) -> 0.048 | AV120: =SUMIF(Inputs!$132:$132,Finance!AV$16,Inputs!136:136) -> 0.048 | AW120: =SUMIF(Inputs!$132:$132,Finance!AW$16,Inputs!136:136) -> 0.048 | AX120: =SUMIF(Inputs!$132:$132,Finance!AX$16,Inputs!136:136) -> 0.048 | AY120: =SUMIF(Inputs!$132:$132,Finance!AY$16,Inputs!136:136) -> 0.048 | AZ120: =SUMIF(Inputs!$132:$132,Finance!AZ$16,Inputs!136:136) -> 0.048 | BA120: =SUMIF(Inputs!$132:$132,Finance!BA$16,Inputs!136:136) -> 0.048 | BB120: =SUMIF(Inputs!$132:$132,Finance!BB$16,Inputs!136:136) -> 0.048 | BC120: =SUMIF(Inputs!$132:$132,Finance!BC$16,Inputs!136:136) -> 0.048 | BD120: =SUMIF(Inputs!$132:$132,Finance!BD$16,Inputs!136:136) -> 0.048 | BE120: =SUMIF(Inputs!$132:$132,Finance!BE$16,Inputs!136:136) -> 0.048 | BF120: =SUMIF(Inputs!$132:$132,Finance!BF$16,Inputs!136:136) -> 0.048 | BG120: =SUMIF(Inputs!$132:$132,Finance!BG$16,Inputs!136:136) -> 0.048 | BH120: =SUMIF(Inputs!$132:$132,Finance!BH$16,Inputs!136:136) -> 0.048 | BI120: =SUMIF(Inputs!$132:$132,Finance!BI$16,Inputs!136:136) -> 0.048 | BJ120: =SUMIF(Inputs!$132:$132,Finance!BJ$16,Inputs!136:136) -> 0.048 | BK120: =SUMIF(Inputs!$132:$132,Finance!BK$16,Inputs!136:136) -> 0.048 | BL120: =SUMIF(Inputs!$132:$132,Finance!BL$16,Inputs!136:136) -> 0.048 | BM120: =SUMIF(Inputs!$132:$132,Finance!BM$16,Inputs!136:136) -> 0.048 | BN120: =SUMIF(Inputs!$132:$132,Finance!BN$16,Inputs!136:136) -> 0.048 | BO120: =SUMIF(Inputs!$132:$132,Finance!BO$16,Inputs!136:136) -> 0.048 | BP120: =SUMIF(Inputs!$132:$132,Finance!BP$16,Inputs!136:136) -> 0.048 | BQ120: =SUMIF(Inputs!$132:$132,Finance!BQ$16,Inputs!136:136) -> 0.048 | BR120: =SUMIF(Inputs!$132:$132,Finance!BR$16,Inputs!136:136) -> 0.048 | BS120: =SUMIF(Inputs!$132:$132,Finance!BS$16,Inputs!136:136) -> 0.048 | BT120: =SUMIF(Inputs!$132:$132,Finance!BT$16,Inputs!136:136) -> 0.048 | BU120: =SUMIF(Inputs!$132:$132,Finance!BU$16,Inputs!136:136) -> 0.048 | BV120: =SUMIF(Inputs!$132:$132,Finance!BV$16,Inputs!136:136) -> 0.048 | BW120: =SUMIF(Inputs!$132:$132,Finance!BW$16,Inputs!136:136) -> 0.048 | BX120: =SUMIF(Inputs!$132:$132,Finance!BX$16,Inputs!136:136) -> 0.048 | BY120: =SUMIF(Inputs!$132:$132,Finance!BY$16,Inputs!136:136) -> 0.048 | BZ120: =SUMIF(Inputs!$132:$132,Finance!BZ$16,Inputs!136:136) -> 0.048 | CA120: =SUMIF(Inputs!$132:$132,Finance!CA$16,Inputs!136:136) -> 0.048 | CB120: =SUMIF(Inputs!$132:$132,Finance!CB$16,Inputs!136:136) -> 0.048 | CC120: =SUMIF(Inputs!$132:$132,Finance!CC$16,Inputs!136:136) -> 0.048 | CD120: =SUMIF(Inputs!$132:$132,Finance!CD$16,Inputs!136:136) -> 0.048 | CE120: =SUMIF(Inputs!$132:$132,Finance!CE$16,Inputs!136:136) -> 0.048 | CF120: =SUMIF(Inputs!$132:$132,Finance!CF$16,Inputs!136:136) -> 0.048 | CG120: =SUMIF(Inputs!$132:$132,Finance!CG$16,Inputs!136:136) -> 0.048 | CH120: =SUMIF(Inputs!$132:$132,Finance!CH$16,Inputs!136:136) -> 0.048 | CI120: =SUMIF(Inputs!$132:$132,Finance!CI$16,Inputs!136:136) -> 0.048 | CJ120: =SUMIF(Inputs!$132:$132,Finance!CJ$16,Inputs!136:136) -> 0.048 | CK120: =SUMIF(Inputs!$132:$132,Finance!CK$16,Inputs!136:136) -> 0.048 | CL120: =SUMIF(Inputs!$132:$132,Finance!CL$16,Inputs!136:136) -> 0.048
E121: Operation margin - Cap and Floor Liquidity Facility | G121: nominal % | K121: =SUMIF(Inputs!$132:$132,Finance!K$16,Inputs!137:137) -> 0.048 | L121: =SUMIF(Inputs!$132:$132,Finance!L$16,Inputs!137:137) -> 0.048 | M121: =SUMIF(Inputs!$132:$132,Finance!M$16,Inputs!137:137) -> 0.048 | N121: =SUMIF(Inputs!$132:$132,Finance!N$16,Inputs!137:137) -> 0.048 | O121: =SUMIF(Inputs!$132:$132,Finance!O$16,Inputs!137:137) -> 0.048 | P121: =SUMIF(Inputs!$132:$132,Finance!P$16,Inputs!137:137) -> 0.048 | Q121: =SUMIF(Inputs!$132:$132,Finance!Q$16,Inputs!137:137) -> 0.024 | R121: =SUMIF(Inputs!$132:$132,Finance!R$16,Inputs!137:137) -> 0.024 | S121: =SUMIF(Inputs!$132:$132,Finance!S$16,Inputs!137:137) -> 0.024 | T121: =SUMIF(Inputs!$132:$132,Finance!T$16,Inputs!137:137) -> 0.024 | U121: =SUMIF(Inputs!$132:$132,Finance!U$16,Inputs!137:137) -> 0.024 | V121: =SUMIF(Inputs!$132:$132,Finance!V$16,Inputs!137:137) -> 0.024 | W121: =SUMIF(Inputs!$132:$132,Finance!W$16,Inputs!137:137) -> 0.024 | X121: =SUMIF(Inputs!$132:$132,Finance!X$16,Inputs!137:137) -> 0.024 | Y121: =SUMIF(Inputs!$132:$132,Finance!Y$16,Inputs!137:137) -> 0.024 | Z121: =SUMIF(Inputs!$132:$132,Finance!Z$16,Inputs!137:137) -> 0.024 | AA121: =SUMIF(Inputs!$132:$132,Finance!AA$16,Inputs!137:137) -> 0.024 | AB121: =SUMIF(Inputs!$132:$132,Finance!AB$16,Inputs!137:137) -> 0.024 | AC121: =SUMIF(Inputs!$132:$132,Finance!AC$16,Inputs!137:137) -> 0.024 | AD121: =SUMIF(Inputs!$132:$132,Finance!AD$16,Inputs!137:137) -> 0.024 | AE121: =SUMIF(Inputs!$132:$132,Finance!AE$16,Inputs!137:137) -> 0.024 | AF121: =SUMIF(Inputs!$132:$132,Finance!AF$16,Inputs!137:137) -> 0.024 | AG121: =SUMIF(Inputs!$132:$132,Finance!AG$16,Inputs!137:137) -> 0.024 | AH121: =SUMIF(Inputs!$132:$132,Finance!AH$16,Inputs!137:137) -> 0.024 | AI121: =SUMIF(Inputs!$132:$132,Finance!AI$16,Inputs!137:137) -> 0.024 | AJ121: =SUMIF(Inputs!$132:$132,Finance!AJ$16,Inputs!137:137) -> 0.024 | AK121: =SUMIF(Inputs!$132:$132,Finance!AK$16,Inputs!137:137) -> 0.024 | AL121: =SUMIF(Inputs!$132:$132,Finance!AL$16,Inputs!137:137) -> 0.024 | AM121: =SUMIF(Inputs!$132:$132,Finance!AM$16,Inputs!137:137) -> 0.024 | AN121: =SUMIF(Inputs!$132:$132,Finance!AN$16,Inputs!137:137) -> 0.024 | AO121: =SUMIF(Inputs!$132:$132,Finance!AO$16,Inputs!137:137) -> 0 | AP121: =SUMIF(Inputs!$132:$132,Finance!AP$16,Inputs!137:137) -> 0.048 | AQ121: =SUMIF(Inputs!$132:$132,Finance!AQ$16,Inputs!137:137) -> 0.048 | AR121: =SUMIF(Inputs!$132:$132,Finance!AR$16,Inputs!137:137) -> 0.048 | AS121: =SUMIF(Inputs!$132:$132,Finance!AS$16,Inputs!137:137) -> 0.048 | AT121: =SUMIF(Inputs!$132:$132,Finance!AT$16,Inputs!137:137) -> 0.048 | AU121: =SUMIF(Inputs!$132:$132,Finance!AU$16,Inputs!137:137) -> 0.048 | AV121: =SUMIF(Inputs!$132:$132,Finance!AV$16,Inputs!137:137) -> 0.048 | AW121: =SUMIF(Inputs!$132:$132,Finance!AW$16,Inputs!137:137) -> 0.048 | AX121: =SUMIF(Inputs!$132:$132,Finance!AX$16,Inputs!137:137) -> 0.048 | AY121: =SUMIF(Inputs!$132:$132,Finance!AY$16,Inputs!137:137) -> 0.048 | AZ121: =SUMIF(Inputs!$132:$132,Finance!AZ$16,Inputs!137:137) -> 0.048 | BA121: =SUMIF(Inputs!$132:$132,Finance!BA$16,Inputs!137:137) -> 0.048 | BB121: =SUMIF(Inputs!$132:$132,Finance!BB$16,Inputs!137:137) -> 0.048 | BC121: =SUMIF(Inputs!$132:$132,Finance!BC$16,Inputs!137:137) -> 0.048 | BD121: =SUMIF(Inputs!$132:$132,Finance!BD$16,Inputs!137:137) -> 0.048 | BE121: =SUMIF(Inputs!$132:$132,Finance!BE$16,Inputs!137:137) -> 0.048 | BF121: =SUMIF(Inputs!$132:$132,Finance!BF$16,Inputs!137:137) -> 0.048 | BG121: =SUMIF(Inputs!$132:$132,Finance!BG$16,Inputs!137:137) -> 0.048 | BH121: =SUMIF(Inputs!$132:$132,Finance!BH$16,Inputs!137:137) -> 0.048 | BI121: =SUMIF(Inputs!$132:$132,Finance!BI$16,Inputs!137:137) -> 0.048 | BJ121: =SUMIF(Inputs!$132:$132,Finance!BJ$16,Inputs!137:137) -> 0.048 | BK121: =SUMIF(Inputs!$132:$132,Finance!BK$16,Inputs!137:137) -> 0.048 | BL121: =SUMIF(Inputs!$132:$132,Finance!BL$16,Inputs!137:137) -> 0.048 | BM121: =SUMIF(Inputs!$132:$132,Finance!BM$16,Inputs!137:137) -> 0.048 | BN121: =SUMIF(Inputs!$132:$132,Finance!BN$16,Inputs!137:137) -> 0.048 | BO121: =SUMIF(Inputs!$132:$132,Finance!BO$16,Inputs!137:137) -> 0.048 | BP121: =SUMIF(Inputs!$132:$132,Finance!BP$16,Inputs!137:137) -> 0.048 | BQ121: =SUMIF(Inputs!$132:$132,Finance!BQ$16,Inputs!137:137) -> 0.048 | BR121: =SUMIF(Inputs!$132:$132,Finance!BR$16,Inputs!137:137) -> 0.048 | BS121: =SUMIF(Inputs!$132:$132,Finance!BS$16,Inputs!137:137) -> 0.048 | BT121: =SUMIF(Inputs!$132:$132,Finance!BT$16,Inputs!137:137) -> 0.048 | BU121: =SUMIF(Inputs!$132:$132,Finance!BU$16,Inputs!137:137) -> 0.048 | BV121: =SUMIF(Inputs!$132:$132,Finance!BV$16,Inputs!137:137) -> 0.048 | BW121: =SUMIF(Inputs!$132:$132,Finance!BW$16,Inputs!137:137) -> 0.048 | BX121: =SUMIF(Inputs!$132:$132,Finance!BX$16,Inputs!137:137) -> 0.048 | BY121: =SUMIF(Inputs!$132:$132,Finance!BY$16,Inputs!137:137) -> 0.048 | BZ121: =SUMIF(Inputs!$132:$132,Finance!BZ$16,Inputs!137:137) -> 0.048 | CA121: =SUMIF(Inputs!$132:$132,Finance!CA$16,Inputs!137:137) -> 0.048 | CB121: =SUMIF(Inputs!$132:$132,Finance!CB$16,Inputs!137:137) -> 0.048 | CC121: =SUMIF(Inputs!$132:$132,Finance!CC$16,Inputs!137:137) -> 0.048 | CD121: =SUMIF(Inputs!$132:$132,Finance!CD$16,Inputs!137:137) -> 0.048 | CE121: =SUMIF(Inputs!$132:$132,Finance!CE$16,Inputs!137:137) -> 0.048 | CF121: =SUMIF(Inputs!$132:$132,Finance!CF$16,Inputs!137:137) -> 0.048 | CG121: =SUMIF(Inputs!$132:$132,Finance!CG$16,Inputs!137:137) -> 0.048 | CH121: =SUMIF(Inputs!$132:$132,Finance!CH$16,Inputs!137:137) -> 0.048 | CI121: =SUMIF(Inputs!$132:$132,Finance!CI$16,Inputs!137:137) -> 0.048 | CJ121: =SUMIF(Inputs!$132:$132,Finance!CJ$16,Inputs!137:137) -> 0.048 | CK121: =SUMIF(Inputs!$132:$132,Finance!CK$16,Inputs!137:137) -> 0.048 | CL121: =SUMIF(Inputs!$132:$132,Finance!CL$16,Inputs!137:137) -> 0.048
E122: Operation margin - Standby Debt Facility | G122: nominal % | K122: =SUMIF(Inputs!$132:$132,Finance!K$16,Inputs!138:138) -> 0.048 | L122: =SUMIF(Inputs!$132:$132,Finance!L$16,Inputs!138:138) -> 0.048 | M122: =SUMIF(Inputs!$132:$132,Finance!M$16,Inputs!138:138) -> 0.048 | N122: =SUMIF(Inputs!$132:$132,Finance!N$16,Inputs!138:138) -> 0.048 | O122: =SUMIF(Inputs!$132:$132,Finance!O$16,Inputs!138:138) -> 0.048 | P122: =SUMIF(Inputs!$132:$132,Finance!P$16,Inputs!138:138) -> 0.048 | Q122: =SUMIF(Inputs!$132:$132,Finance!Q$16,Inputs!138:138) -> 0.024 | R122: =SUMIF(Inputs!$132:$132,Finance!R$16,Inputs!138:138) -> 0.024 | S122: =SUMIF(Inputs!$132:$132,Finance!S$16,Inputs!138:138) -> 0.024 | T122: =SUMIF(Inputs!$132:$132,Finance!T$16,Inputs!138:138) -> 0.024 | U122: =SUMIF(Inputs!$132:$132,Finance!U$16,Inputs!138:138) -> 0.024 | V122: =SUMIF(Inputs!$132:$132,Finance!V$16,Inputs!138:138) -> 0.024 | W122: =SUMIF(Inputs!$132:$132,Finance!W$16,Inputs!138:138) -> 0.024 | X122: =SUMIF(Inputs!$132:$132,Finance!X$16,Inputs!138:138) -> 0.024 | Y122: =SUMIF(Inputs!$132:$132,Finance!Y$16,Inputs!138:138) -> 0.024 | Z122: =SUMIF(Inputs!$132:$132,Finance!Z$16,Inputs!138:138) -> 0.024 | AA122: =SUMIF(Inputs!$132:$132,Finance!AA$16,Inputs!138:138) -> 0.024 | AB122: =SUMIF(Inputs!$132:$132,Finance!AB$16,Inputs!138:138) -> 0.024 | AC122: =SUMIF(Inputs!$132:$132,Finance!AC$16,Inputs!138:138) -> 0.024 | AD122: =SUMIF(Inputs!$132:$132,Finance!AD$16,Inputs!138:138) -> 0.024 | AE122: =SUMIF(Inputs!$132:$132,Finance!AE$16,Inputs!138:138) -> 0.024 | AF122: =SUMIF(Inputs!$132:$132,Finance!AF$16,Inputs!138:138) -> 0.024 | AG122: =SUMIF(Inputs!$132:$132,Finance!AG$16,Inputs!138:138) -> 0.024 | AH122: =SUMIF(Inputs!$132:$132,Finance!AH$16,Inputs!138:138) -> 0.024 | AI122: =SUMIF(Inputs!$132:$132,Finance!AI$16,Inputs!138:138) -> 0.024 | AJ122: =SUMIF(Inputs!$132:$132,Finance!AJ$16,Inputs!138:138) -> 0.024 | AK122: =SUMIF(Inputs!$132:$132,Finance!AK$16,Inputs!138:138) -> 0.024 | AL122: =SUMIF(Inputs!$132:$132,Finance!AL$16,Inputs!138:138) -> 0.024 | AM122: =SUMIF(Inputs!$132:$132,Finance!AM$16,Inputs!138:138) -> 0.024 | AN122: =SUMIF(Inputs!$132:$132,Finance!AN$16,Inputs!138:138) -> 0.024 | AO122: =SUMIF(Inputs!$132:$132,Finance!AO$16,Inputs!138:138) -> 0 | AP122: =SUMIF(Inputs!$132:$132,Finance!AP$16,Inputs!138:138) -> 0.048 | AQ122: =SUMIF(Inputs!$132:$132,Finance!AQ$16,Inputs!138:138) -> 0.048 | AR122: =SUMIF(Inputs!$132:$132,Finance!AR$16,Inputs!138:138) -> 0.048 | AS122: =SUMIF(Inputs!$132:$132,Finance!AS$16,Inputs!138:138) -> 0.048 | AT122: =SUMIF(Inputs!$132:$132,Finance!AT$16,Inputs!138:138) -> 0.048 | AU122: =SUMIF(Inputs!$132:$132,Finance!AU$16,Inputs!138:138) -> 0.048 | AV122: =SUMIF(Inputs!$132:$132,Finance!AV$16,Inputs!138:138) -> 0.048 | AW122: =SUMIF(Inputs!$132:$132,Finance!AW$16,Inputs!138:138) -> 0.048 | AX122: =SUMIF(Inputs!$132:$132,Finance!AX$16,Inputs!138:138) -> 0.048 | AY122: =SUMIF(Inputs!$132:$132,Finance!AY$16,Inputs!138:138) -> 0.048 | AZ122: =SUMIF(Inputs!$132:$132,Finance!AZ$16,Inputs!138:138) -> 0.048 | BA122: =SUMIF(Inputs!$132:$132,Finance!BA$16,Inputs!138:138) -> 0.048 | BB122: =SUMIF(Inputs!$132:$132,Finance!BB$16,Inputs!138:138) -> 0.048 | BC122: =SUMIF(Inputs!$132:$132,Finance!BC$16,Inputs!138:138) -> 0.048 | BD122: =SUMIF(Inputs!$132:$132,Finance!BD$16,Inputs!138:138) -> 0.048 | BE122: =SUMIF(Inputs!$132:$132,Finance!BE$16,Inputs!138:138) -> 0.048 | BF122: =SUMIF(Inputs!$132:$132,Finance!BF$16,Inputs!138:138) -> 0.048 | BG122: =SUMIF(Inputs!$132:$132,Finance!BG$16,Inputs!138:138) -> 0.048 | BH122: =SUMIF(Inputs!$132:$132,Finance!BH$16,Inputs!138:138) -> 0.048 | BI122: =SUMIF(Inputs!$132:$132,Finance!BI$16,Inputs!138:138) -> 0.048 | BJ122: =SUMIF(Inputs!$132:$132,Finance!BJ$16,Inputs!138:138) -> 0.048 | BK122: =SUMIF(Inputs!$132:$132,Finance!BK$16,Inputs!138:138) -> 0.048 | BL122: =SUMIF(Inputs!$132:$132,Finance!BL$16,Inputs!138:138) -> 0.048 | BM122: =SUMIF(Inputs!$132:$132,Finance!BM$16,Inputs!138:138) -> 0.048 | BN122: =SUMIF(Inputs!$132:$132,Finance!BN$16,Inputs!138:138) -> 0.048 | BO122: =SUMIF(Inputs!$132:$132,Finance!BO$16,Inputs!138:138) -> 0.048 | BP122: =SUMIF(Inputs!$132:$132,Finance!BP$16,Inputs!138:138) -> 0.048 | BQ122: =SUMIF(Inputs!$132:$132,Finance!BQ$16,Inputs!138:138) -> 0.048 | BR122: =SUMIF(Inputs!$132:$132,Finance!BR$16,Inputs!138:138) -> 0.048 | BS122: =SUMIF(Inputs!$132:$132,Finance!BS$16,Inputs!138:138) -> 0.048 | BT122: =SUMIF(Inputs!$132:$132,Finance!BT$16,Inputs!138:138) -> 0.048 | BU122: =SUMIF(Inputs!$132:$132,Finance!BU$16,Inputs!138:138) -> 0.048 | BV122: =SUMIF(Inputs!$132:$132,Finance!BV$16,Inputs!138:138) -> 0.048 | BW122: =SUMIF(Inputs!$132:$132,Finance!BW$16,Inputs!138:138) -> 0.048 | BX122: =SUMIF(Inputs!$132:$132,Finance!BX$16,Inputs!138:138) -> 0.048 | BY122: =SUMIF(Inputs!$132:$132,Finance!BY$16,Inputs!138:138) -> 0.048 | BZ122: =SUMIF(Inputs!$132:$132,Finance!BZ$16,Inputs!138:138) -> 0.048 | CA122: =SUMIF(Inputs!$132:$132,Finance!CA$16,Inputs!138:138) -> 0.048 | CB122: =SUMIF(Inputs!$132:$132,Finance!CB$16,Inputs!138:138) -> 0.048 | CC122: =SUMIF(Inputs!$132:$132,Finance!CC$16,Inputs!138:138) -> 0.048 | CD122: =SUMIF(Inputs!$132:$132,Finance!CD$16,Inputs!138:138) -> 0.048 | CE122: =SUMIF(Inputs!$132:$132,Finance!CE$16,Inputs!138:138) -> 0.048 | CF122: =SUMIF(Inputs!$132:$132,Finance!CF$16,Inputs!138:138) -> 0.048 | CG122: =SUMIF(Inputs!$132:$132,Finance!CG$16,Inputs!138:138) -> 0.048 | CH122: =SUMIF(Inputs!$132:$132,Finance!CH$16,Inputs!138:138) -> 0.048 | CI122: =SUMIF(Inputs!$132:$132,Finance!CI$16,Inputs!138:138) -> 0.048 | CJ122: =SUMIF(Inputs!$132:$132,Finance!CJ$16,Inputs!138:138) -> 0.048 | CK122: =SUMIF(Inputs!$132:$132,Finance!CK$16,Inputs!138:138) -> 0.048 | CL122: =SUMIF(Inputs!$132:$132,Finance!CL$16,Inputs!138:138) -> 0.048
E123: Operation margin - Other facilities | G123: nominal % | K123: =SUMIF(Inputs!$132:$132,Finance!K$16,Inputs!140:140) -> 0.026 | L123: =SUMIF(Inputs!$132:$132,Finance!L$16,Inputs!140:140) -> 0.026 | M123: =SUMIF(Inputs!$132:$132,Finance!M$16,Inputs!140:140) -> 0.026 | N123: =SUMIF(Inputs!$132:$132,Finance!N$16,Inputs!140:140) -> 0.026 | O123: =SUMIF(Inputs!$132:$132,Finance!O$16,Inputs!140:140) -> 0.026 | P123: =SUMIF(Inputs!$132:$132,Finance!P$16,Inputs!140:140) -> 0.026 | Q123: =SUMIF(Inputs!$132:$132,Finance!Q$16,Inputs!140:140) -> 0.013 | R123: =SUMIF(Inputs!$132:$132,Finance!R$16,Inputs!140:140) -> 0.013 | S123: =SUMIF(Inputs!$132:$132,Finance!S$16,Inputs!140:140) -> 0.013 | T123: =SUMIF(Inputs!$132:$132,Finance!T$16,Inputs!140:140) -> 0.013 | U123: =SUMIF(Inputs!$132:$132,Finance!U$16,Inputs!140:140) -> 0.013 | V123: =SUMIF(Inputs!$132:$132,Finance!V$16,Inputs!140:140) -> 0.013 | W123: =SUMIF(Inputs!$132:$132,Finance!W$16,Inputs!140:140) -> 0.013 | X123: =SUMIF(Inputs!$132:$132,Finance!X$16,Inputs!140:140) -> 0.013 | Y123: =SUMIF(Inputs!$132:$132,Finance!Y$16,Inputs!140:140) -> 0.013 | Z123: =SUMIF(Inputs!$132:$132,Finance!Z$16,Inputs!140:140) -> 0.013 | AA123: =SUMIF(Inputs!$132:$132,Finance!AA$16,Inputs!140:140) -> 0.013 | AB123: =SUMIF(Inputs!$132:$132,Finance!AB$16,Inputs!140:140) -> 0.013 | AC123: =SUMIF(Inputs!$132:$132,Finance!AC$16,Inputs!140:140) -> 0.013 | AD123: =SUMIF(Inputs!$132:$132,Finance!AD$16,Inputs!140:140) -> 0.013 | AE123: =SUMIF(Inputs!$132:$132,Finance!AE$16,Inputs!140:140) -> 0.013 | AF123: =SUMIF(Inputs!$132:$132,Finance!AF$16,Inputs!140:140) -> 0.013 | AG123: =SUMIF(Inputs!$132:$132,Finance!AG$16,Inputs!140:140) -> 0.013 | AH123: =SUMIF(Inputs!$132:$132,Finance!AH$16,Inputs!140:140) -> 0.013 | AI123: =SUMIF(Inputs!$132:$132,Finance!AI$16,Inputs!140:140) -> 0.013 | AJ123: =SUMIF(Inputs!$132:$132,Finance!AJ$16,Inputs!140:140) -> 0.013 | AK123: =SUMIF(Inputs!$132:$132,Finance!AK$16,Inputs!140:140) -> 0.013 | AL123: =SUMIF(Inputs!$132:$132,Finance!AL$16,Inputs!140:140) -> 0.013 | AM123: =SUMIF(Inputs!$132:$132,Finance!AM$16,Inputs!140:140) -> 0.013 | AN123: =SUMIF(Inputs!$132:$132,Finance!AN$16,Inputs!140:140) -> 0.013 | AO123: =SUMIF(Inputs!$132:$132,Finance!AO$16,Inputs!140:140) -> 0 | AP123: =SUMIF(Inputs!$132:$132,Finance!AP$16,Inputs!140:140) -> 0.026 | AQ123: =SUMIF(Inputs!$132:$132,Finance!AQ$16,Inputs!140:140) -> 0.026 | AR123: =SUMIF(Inputs!$132:$132,Finance!AR$16,Inputs!140:140) -> 0.026 | AS123: =SUMIF(Inputs!$132:$132,Finance!AS$16,Inputs!140:140) -> 0.026 | AT123: =SUMIF(Inputs!$132:$132,Finance!AT$16,Inputs!140:140) -> 0.026 | AU123: =SUMIF(Inputs!$132:$132,Finance!AU$16,Inputs!140:140) -> 0.026 | AV123: =SUMIF(Inputs!$132:$132,Finance!AV$16,Inputs!140:140) -> 0.026 | AW123: =SUMIF(Inputs!$132:$132,Finance!AW$16,Inputs!140:140) -> 0.026 | AX123: =SUMIF(Inputs!$132:$132,Finance!AX$16,Inputs!140:140) -> 0.026 | AY123: =SUMIF(Inputs!$132:$132,Finance!AY$16,Inputs!140:140) -> 0.026 | AZ123: =SUMIF(Inputs!$132:$132,Finance!AZ$16,Inputs!140:140) -> 0.026 | BA123: =SUMIF(Inputs!$132:$132,Finance!BA$16,Inputs!140:140) -> 0.026 | BB123: =SUMIF(Inputs!$132:$132,Finance!BB$16,Inputs!140:140) -> 0.026 | BC123: =SUMIF(Inputs!$132:$132,Finance!BC$16,Inputs!140:140) -> 0.026 | BD123: =SUMIF(Inputs!$132:$132,Finance!BD$16,Inputs!140:140) -> 0.026 | BE123: =SUMIF(Inputs!$132:$132,Finance!BE$16,Inputs!140:140) -> 0.026 | BF123: =SUMIF(Inputs!$132:$132,Finance!BF$16,Inputs!140:140) -> 0.026 | BG123: =SUMIF(Inputs!$132:$132,Finance!BG$16,Inputs!140:140) -> 0.026 | BH123: =SUMIF(Inputs!$132:$132,Finance!BH$16,Inputs!140:140) -> 0.026 | BI123: =SUMIF(Inputs!$132:$132,Finance!BI$16,Inputs!140:140) -> 0.026 | BJ123: =SUMIF(Inputs!$132:$132,Finance!BJ$16,Inputs!140:140) -> 0.026 | BK123: =SUMIF(Inputs!$132:$132,Finance!BK$16,Inputs!140:140) -> 0.026 | BL123: =SUMIF(Inputs!$132:$132,Finance!BL$16,Inputs!140:140) -> 0.026 | BM123: =SUMIF(Inputs!$132:$132,Finance!BM$16,Inputs!140:140) -> 0.026 | BN123: =SUMIF(Inputs!$132:$132,Finance!BN$16,Inputs!140:140) -> 0.026 | BO123: =SUMIF(Inputs!$132:$132,Finance!BO$16,Inputs!140:140) -> 0.026 | BP123: =SUMIF(Inputs!$132:$132,Finance!BP$16,Inputs!140:140) -> 0.026 | BQ123: =SUMIF(Inputs!$132:$132,Finance!BQ$16,Inputs!140:140) -> 0.026 | BR123: =SUMIF(Inputs!$132:$132,Finance!BR$16,Inputs!140:140) -> 0.026 | BS123: =SUMIF(Inputs!$132:$132,Finance!BS$16,Inputs!140:140) -> 0.026 | BT123: =SUMIF(Inputs!$132:$132,Finance!BT$16,Inputs!140:140) -> 0.026 | BU123: =SUMIF(Inputs!$132:$132,Finance!BU$16,Inputs!140:140) -> 0.026 | BV123: =SUMIF(Inputs!$132:$132,Finance!BV$16,Inputs!140:140) -> 0.026 | BW123: =SUMIF(Inputs!$132:$132,Finance!BW$16,Inputs!140:140) -> 0.026 | BX123: =SUMIF(Inputs!$132:$132,Finance!BX$16,Inputs!140:140) -> 0.026 | BY123: =SUMIF(Inputs!$132:$132,Finance!BY$16,Inputs!140:140) -> 0.026 | BZ123: =SUMIF(Inputs!$132:$132,Finance!BZ$16,Inputs!140:140) -> 0.026 | CA123: =SUMIF(Inputs!$132:$132,Finance!CA$16,Inputs!140:140) -> 0.026 | CB123: =SUMIF(Inputs!$132:$132,Finance!CB$16,Inputs!140:140) -> 0.026 | CC123: =SUMIF(Inputs!$132:$132,Finance!CC$16,Inputs!140:140) -> 0.026 | CD123: =SUMIF(Inputs!$132:$132,Finance!CD$16,Inputs!140:140) -> 0.026 | CE123: =SUMIF(Inputs!$132:$132,Finance!CE$16,Inputs!140:140) -> 0.026 | CF123: =SUMIF(Inputs!$132:$132,Finance!CF$16,Inputs!140:140) -> 0.026 | CG123: =SUMIF(Inputs!$132:$132,Finance!CG$16,Inputs!140:140) -> 0.026 | CH123: =SUMIF(Inputs!$132:$132,Finance!CH$16,Inputs!140:140) -> 0.026 | CI123: =SUMIF(Inputs!$132:$132,Finance!CI$16,Inputs!140:140) -> 0.026 | CJ123: =SUMIF(Inputs!$132:$132,Finance!CJ$16,Inputs!140:140) -> 0.026 | CK123: =SUMIF(Inputs!$132:$132,Finance!CK$16,Inputs!140:140) -> 0.026 | CL123: =SUMIF(Inputs!$132:$132,Finance!CL$16,Inputs!140:140) -> 0.026
E125: Total interest rate - Senior Debt | G125: nominal % | K125: =($I$118+K119)*(K$16<>0) -> 0 | L125: 0 | M125: 0 | N125: 0 | O125: 0 | P125: 0 | Q125: 0.064 | R125: 0.064 | S125: 0.064 | T125: 0.064 | U125: 0.064 | V125: 0.064 | W125: 0.064 | X125: 0.064 | Y125: 0.064 | Z125: 0.064 | AA125: 0.064 | AB125: 0.064 | AC125: 0.064 | AD125: 0.064 | AE125: 0.064 | AF125: 0.064 | AG125: 0.064 | AH125: 0.064 | AI125: 0.064 | AJ125: 0.064 | AK125: 0.064 | AL125: 0.064 | AM125: 0.064 | AN125: 0.064 | AO125: 0.04 | AP125: 0 | AQ125: 0 | AR125: 0 | AS125: 0 | AT125: 0 | AU125: 0 | AV125: 0 | AW125: 0 | AX125: 0 | AY125: =($I$118+AY119)*(AY$16<>0) -> 0 | AZ125: 0 | BA125: 0 | BB125: 0 | BC125: 0 | BD125: 0 | BE125: 0 | BF125: 0 | BG125: 0 | BH125: =($I$118+BH119)*(BH$16<>0) -> 0 | BI125: 0 | BJ125: 0 | BK125: 0 | BL125: 0 | BM125: 0 | BN125: 0 | BO125: 0 | BP125: 0 | BQ125: 0 | BR125: 0 | BS125: 0 | BT125: 0 | BU125: 0 | BV125: 0 | BW125: 0 | BX125: 0 | BY125: 0 | BZ125: 0 | CA125: 0 | CB125: 0 | CC125: 0 | CD125: 0 | CE125: 0 | CF125: 0 | CG125: 0 | CH125: 0 | CI125: 0 | CJ125: 0 | CK125: 0 | CL125: 0
E126: Total interest rate - Debt Service Reserve Facility | G126: nominal % | K126: =($I$118+K120)*(K$16<>0) -> 0 | L126: 0 | M126: 0 | N126: 0 | O126: 0 | P126: 0 | Q126: 0.064 | R126: 0.064 | S126: 0.064 | T126: 0.064 | U126: 0.064 | V126: 0.064 | W126: 0.064 | X126: 0.064 | Y126: 0.064 | Z126: 0.064 | AA126: 0.064 | AB126: 0.064 | AC126: 0.064 | AD126: 0.064 | AE126: 0.064 | AF126: 0.064 | AG126: 0.064 | AH126: 0.064 | AI126: 0.064 | AJ126: 0.064 | AK126: 0.064 | AL126: 0.064 | AM126: 0.064 | AN126: 0.064 | AO126: 0.04 | AP126: 0 | AQ126: 0 | AR126: 0 | AS126: 0 | AT126: 0 | AU126: 0 | AV126: 0 | AW126: 0 | AX126: 0 | AY126: =($I$118+AY120)*(AY$16<>0) -> 0 | AZ126: 0 | BA126: 0 | BB126: 0 | BC126: 0 | BD126: 0 | BE126: 0 | BF126: 0 | BG126: 0 | BH126: =($I$118+BH120)*(BH$16<>0) -> 0 | BI126: 0 | BJ126: 0 | BK126: 0 | BL126: 0 | BM126: 0 | BN126: 0 | BO126: 0 | BP126: 0 | BQ126: 0 | BR126: 0 | BS126: 0 | BT126: 0 | BU126: 0 | BV126: 0 | BW126: 0 | BX126: 0 | BY126: 0 | BZ126: 0 | CA126: 0 | CB126: 0 | CC126: 0 | CD126: 0 | CE126: 0 | CF126: 0 | CG126: 0 | CH126: 0 | CI126: 0 | CJ126: 0 | CK126: 0 | CL126: 0
E127: Total interest rate - Cap and Floor Liquidity Facility | G127: nominal % | K127: =($I$118+K121)*(K$16<>0) -> 0 | L127: 0 | M127: 0 | N127: 0 | O127: 0 | P127: 0 | Q127: 0.064 | R127: 0.064 | S127: 0.064 | T127: 0.064 | U127: 0.064 | V127: 0.064 | W127: 0.064 | X127: 0.064 | Y127: 0.064 | Z127: 0.064 | AA127: 0.064 | AB127: 0.064 | AC127: 0.064 | AD127: 0.064 | AE127: 0.064 | AF127: 0.064 | AG127: 0.064 | AH127: 0.064 | AI127: 0.064 | AJ127: 0.064 | AK127: 0.064 | AL127: 0.064 | AM127: 0.064 | AN127: 0.064 | AO127: 0.04 | AP127: 0 | AQ127: 0 | AR127: 0 | AS127: 0 | AT127: 0 | AU127: 0 | AV127: 0 | AW127: 0 | AX127: 0 | AY127: =($I$118+AY121)*(AY$16<>0) -> 0 | AZ127: 0 | BA127: 0 | BB127: 0 | BC127: 0 | BD127: 0 | BE127: 0 | BF127: 0 | BG127: 0 | BH127: =($I$118+BH121)*(BH$16<>0) -> 0 | BI127: 0 | BJ127: 0 | BK127: 0 | BL127: 0 | BM127: 0 | BN127: 0 | BO127: 0 | BP127: 0 | BQ127: 0 | BR127: 0 | BS127: 0 | BT127: 0 | BU127: 0 | BV127: 0 | BW127: 0 | BX127: 0 | BY127: 0 | BZ127: 0 | CA127: 0 | CB127: 0 | CC127: 0 | CD127: 0 | CE127: 0 | CF127: 0 | CG127: 0 | CH127: 0 | CI127: 0 | CJ127: 0 | CK127: 0 | CL127: 0
E128: Total interest rate - Standby Debt Facility | G128: nominal % | K128: =($I$118+K122)*(K$16<>0) -> 0 | L128: 0 | M128: 0 | N128: 0 | O128: 0 | P128: 0 | Q128: 0.064 | R128: 0.064 | S128: 0.064 | T128: 0.064 | U128: 0.064 | V128: 0.064 | W128: 0.064 | X128: 0.064 | Y128: 0.064 | Z128: 0.064 | AA128: 0.064 | AB128: 0.064 | AC128: 0.064 | AD128: 0.064 | AE128: 0.064 | AF128: 0.064 | AG128: 0.064 | AH128: 0.064 | AI128: 0.064 | AJ128: 0.064 | AK128: 0.064 | AL128: 0.064 | AM128: 0.064 | AN128: 0.064 | AO128: 0.04 | AP128: 0 | AQ128: 0 | AR128: 0 | AS128: 0 | AT128: 0 | AU128: 0 | AV128: 0 | AW128: 0 | AX128: 0 | AY128: =($I$118+AY122)*(AY$16<>0) -> 0 | AZ128: 0 | BA128: 0 | BB128: 0 | BC128: 0 | BD128: 0 | BE128: 0 | BF128: 0 | BG128: 0 | BH128: =($I$118+BH122)*(BH$16<>0) -> 0 | BI128: 0 | BJ128: 0 | BK128: 0 | BL128: 0 | BM128: 0 | BN128: 0 | BO128: 0 | BP128: 0 | BQ128: 0 | BR128: 0 | BS128: 0 | BT128: 0 | BU128: 0 | BV128: 0 | BW128: 0 | BX128: 0 | BY128: 0 | BZ128: 0 | CA128: 0 | CB128: 0 | CC128: 0 | CD128: 0 | CE128: 0 | CF128: 0 | CG128: 0 | CH128: 0 | CI128: 0 | CJ128: 0 | CK128: 0 | CL128: 0
E129: Total interest rate - Other facilities | G129: nominal % | K129: =($I$118+K123)*(K$16<>0) -> 0 | L129: 0 | M129: 0 | N129: 0 | O129: 0 | P129: 0 | Q129: 0.053 | R129: 0.053 | S129: 0.053 | T129: 0.053 | U129: 0.053 | V129: 0.053 | W129: 0.053 | X129: 0.053 | Y129: 0.053 | Z129: 0.053 | AA129: 0.053 | AB129: 0.053 | AC129: 0.053 | AD129: 0.053 | AE129: 0.053 | AF129: 0.053 | AG129: 0.053 | AH129: 0.053 | AI129: 0.053 | AJ129: 0.053 | AK129: 0.053 | AL129: 0.053 | AM129: 0.053 | AN129: 0.053 | AO129: 0.04 | AP129: 0 | AQ129: 0 | AR129: 0 | AS129: 0 | AT129: 0 | AU129: 0 | AV129: 0 | AW129: 0 | AX129: 0 | AY129: =($I$118+AY123)*(AY$16<>0) -> 0 | AZ129: 0 | BA129: 0 | BB129: 0 | BC129: 0 | BD129: 0 | BE129: 0 | BF129: 0 | BG129: 0 | BH129: =($I$118+BH123)*(BH$16<>0) -> 0 | BI129: 0 | BJ129: 0 | BK129: 0 | BL129: 0 | BM129: 0 | BN129: 0 | BO129: 0 | BP129: 0 | BQ129: 0 | BR129: 0 | BS129: 0 | BT129: 0 | BU129: 0 | BV129: 0 | BW129: 0 | BX129: 0 | BY129: 0 | BZ129: 0 | CA129: 0 | CB129: 0 | CC129: 0 | CD129: 0 | CE129: 0 | CF129: 0 | CG129: 0 | CH129: 0 | CI129: 0 | CJ129: 0 | CK129: 0 | CL129: 0
E131: Commitment fee - Senior Debt | G131: % of applicable margin | I131: =Inputs!I76 -> 0.35
E132: Commitment fee - Debt Service Reserve Facility | G132: % of applicable margin | I132: =Inputs!I90 -> 0.35
E133: Commitment fee - Cap and Floor Liquidity Facility | G133: % of applicable margin | I133: =Inputs!I98 -> 0.35
E134: Commitment fee - Standby Debt Facility | G134: % of applicable margin | I134: =Inputs!I105 -> 0.35
E135: Commitment fee - Other facilities | G135: % of applicable margin | I135: =Inputs!I120 -> 0
E137: Interest payable - Senior Debt | G137: £m nominal prices | K137: =SUM(K63:K64)*K125 -> 0 | L137: =SUM(L63:L64)*L125 -> 0 | M137: 0 | N137: 0 | O137: =SUM(O63:O64)*O125 -> 0 | P137: 0 | Q137: 32 | R137: 30.72 | S137: 29.44 | T137: 28.16 | U137: 26.88 | V137: 25.6 | W137: 24.32 | X137: 23.04 | Y137: 21.76 | Z137: 20.48 | AA137: 19.2 | AB137: 17.92 | AC137: 16.64 | AD137: 15.36 | AE137: 14.08 | AF137: 12.8 | AG137: 11.52 | AH137: 10.24 | AI137: 8.96 | AJ137: 7.68 | AK137: 6.4 | AL137: 5.12 | AM137: 3.84 | AN137: 2.56 | AO137: 0.8 | AP137: 0 | AQ137: 0 | AR137: 0 | AS137: 0 | AT137: 0 | AU137: 0 | AV137: 0 | AW137: 0 | AX137: 0 | AY137: =SUM(AY63:AY64)*AY125 -> 0 | AZ137: 0 | BA137: 0 | BB137: 0 | BC137: 0 | BD137: 0 | BE137: 0 | BF137: 0 | BG137: 0 | BH137: =SUM(BH63:BH64)*BH125 -> 0 | BI137: 0 | BJ137: 0 | BK137: 0 | BL137: 0 | BM137: 0 | BN137: 0 | BO137: 0 | BP137: 0 | BQ137: 0 | BR137: 0 | BS137: 0 | BT137: 0 | BU137: 0 | BV137: 0 | BW137: 0 | BX137: 0 | BY137: 0 | BZ137: 0 | CA137: 0 | CB137: 0 | CC137: 0 | CD137: 0 | CE137: 0 | CF137: 0 | CG137: 0 | CH137: 0 | CI137: 0 | CJ137: 0 | CK137: 0 | CL137: 0
E138: Interest payable - Ancillary Facilities | G138: £m nominal prices | K138: =$I$70*K127 -> 0 | L138: 0 | M138: 0 | N138: 0 | O138: 0 | P138: 0 | Q138: 0.32 | R138: 0.32 | S138: 0.32 | T138: 0.32 | U138: 0.32 | V138: 0.32 | W138: 0.32 | X138: 0.32 | Y138: 0.32 | Z138: 0.32 | AA138: 0.32 | AB138: 0.32 | AC138: 0.32 | AD138: 0.32 | AE138: 0.32 | AF138: 0.32 | AG138: 0.32 | AH138: 0.32 | AI138: 0.32 | AJ138: 0.32 | AK138: 0.32 | AL138: 0.32 | AM138: 0.32 | AN138: 0.32 | AO138: 0.2 | AP138: 0 | AQ138: 0 | AR138: 0 | AS138: 0 | AT138: 0 | AU138: 0 | AV138: 0 | AW138: 0 | AX138: 0 | AY138: =$I$70*AY127 -> 0 | AZ138: 0 | BA138: 0 | BB138: 0 | BC138: 0 | BD138: 0 | BE138: 0 | BF138: 0 | BG138: 0 | BH138: =$I$70*BH127 -> 0 | BI138: 0 | BJ138: 0 | BK138: 0 | BL138: 0 | BM138: 0 | BN138: 0 | BO138: 0 | BP138: 0 | BQ138: 0 | BR138: 0 | BS138: 0 | BT138: 0 | BU138: 0 | BV138: 0 | BW138: 0 | BX138: 0 | BY138: 0 | BZ138: 0 | CA138: 0 | CB138: 0 | CC138: 0 | CD138: 0 | CE138: 0 | CF138: 0 | CG138: 0 | CH138: 0 | CI138: 0 | CJ138: 0 | CK138: 0 | CL138: 0
E139: Commitment fee payable - Ancillary Facilities | G139: £m nominal prices | K139: =($I$68*(K126-$I$118)*$I$132+($I$69-$I$70)*(K127-$I$118)*$I$133+$I$74*(K129-$I$118)*$I$135)*(K$16<>0) -> 0 | L139: 0 | M139: 0 | N139: 0 | O139: 0 | P139: 0 | Q139: 0.63 | R139: 0.63 | S139: 0.63 | T139: 0.63 | U139: 0.63 | V139: 0.63 | W139: 0.63 | X139: 0.63 | Y139: 0.63 | Z139: 0.63 | AA139: 0.63 | AB139: 0.63 | AC139: 0.63 | AD139: 0.63 | AE139: 0.63 | AF139: 0.63 | AG139: 0.63 | AH139: 0.63 | AI139: 0.63 | AJ139: 0.63 | AK139: 0.63 | AL139: 0.63 | AM139: 0.63 | AN139: 0.63 | AO139: 0 | AP139: 0 | AQ139: 0 | AR139: 0 | AS139: 0 | AT139: 0 | AU139: 0 | AV139: 0 | AW139: 0 | AX139: 0 | AY139: =($I$68*(AY126-$I$118)*$I$132+($I$69-$I$70)*(AY127-$I$118)*$I$133+$I$74*(AY129-$I$118)*$I$135)*(AY$16<>0) -> 0 | AZ139: 0 | BA139: 0 | BB139: 0 | BC139: 0 | BD139: 0 | BE139: 0 | BF139: 0 | BG139: 0 | BH139: =($I$68*(BH126-$I$118)*$I$132+($I$69-$I$70)*(BH127-$I$118)*$I$133+$I$74*(BH129-$I$118)*$I$135)*(BH$16<>0) -> 0 | BI139: 0 | BJ139: 0 | BK139: 0 | BL139: 0 | BM139: 0 | BN139: 0 | BO139: 0 | BP139: 0 | BQ139: 0 | BR139: 0 | BS139: 0 | BT139: 0 | BU139: 0 | BV139: 0 | BW139: 0 | BX139: 0 | BY139: 0 | BZ139: 0 | CA139: 0 | CB139: 0 | CC139: 0 | CD139: 0 | CE139: 0 | CF139: 0 | CG139: 0 | CH139: 0 | CI139: 0 | CJ139: 0 | CK139: 0 | CL139: 0
E140: Financial expenses during operation | G140: £m nominal prices | K140: =SUM(K137:K139) -> 0 | L140: 0 | M140: 0 | N140: 0 | O140: =SUM(O137:O139) -> 0 | P140: 0 | Q140: 32.95 | R140: 31.67 | S140: 30.39 | T140: 29.11 | U140: 27.83 | V140: 26.55 | W140: 25.27 | X140: 23.99 | Y140: 22.71 | Z140: 21.43 | AA140: 20.15 | AB140: 18.87 | AC140: 17.59 | AD140: 16.31 | AE140: 15.03 | AF140: 13.75 | AG140: 12.47 | AH140: 11.19 | AI140: 9.91 | AJ140: 8.63 | AK140: 7.35 | AL140: 6.07 | AM140: 4.79 | AN140: 3.51 | AO140: 1 | AP140: 0 | AQ140: 0 | AR140: 0 | AS140: 0 | AT140: 0 | AU140: 0 | AV140: 0 | AW140: 0 | AX140: 0 | AY140: =SUM(AY137:AY139) -> 0 | AZ140: 0 | BA140: 0 | BB140: 0 | BC140: 0 | BD140: 0 | BE140: 0 | BF140: 0 | BG140: 0 | BH140: =SUM(BH137:BH139) -> 0 | BI140: 0 | BJ140: 0 | BK140: 0 | BL140: 0 | BM140: 0 | BN140: 0 | BO140: 0 | BP140: 0 | BQ140: 0 | BR140: 0 | BS140: 0 | BT140: 0 | BU140: 0 | BV140: 0 | BW140: 0 | BX140: 0 | BY140: 0 | BZ140: 0 | CA140: 0 | CB140: 0 | CC140: 0 | CD140: 0 | CE140: 0 | CF140: 0 | CG140: 0 | CH140: 0 | CI140: 0 | CJ140: 0 | CK140: 0 | CL140: 0
C142: Debt service
E144: Principal repayment | G144: £m nominal prices | K144: =-K65 -> 0 | L144: 0 | M144: 0 | N144: 0 | O144: 0 | P144: 0 | Q144: 20 | R144: 20 | S144: 20 | T144: 20 | U144: 20 | V144: 20 | W144: 20 | X144: 20 | Y144: 20 | Z144: 20 | AA144: 20 | AB144: 20 | AC144: 20 | AD144: 20 | AE144: 20 | AF144: 20 | AG144: 20 | AH144: 20 | AI144: 20 | AJ144: 20 | AK144: 20 | AL144: 20 | AM144: 20 | AN144: 20 | AO144: 0 | AP144: 0 | AQ144: 0 | AR144: 0 | AS144: 0 | AT144: 0 | AU144: 0 | AV144: 0 | AW144: 0 | AX144: 0 | AY144: =-AY65 -> 0 | AZ144: 0 | BA144: 0 | BB144: 0 | BC144: 0 | BD144: 0 | BE144: 0 | BF144: 0 | BG144: 0 | BH144: =-BH65 -> 0 | BI144: 0 | BJ144: 0 | BK144: 0 | BL144: 0 | BM144: 0 | BN144: 0 | BO144: 0 | BP144: 0 | BQ144: 0 | BR144: 0 | BS144: 0 | BT144: 0 | BU144: 0 | BV144: 0 | BW144: 0 | BX144: 0 | BY144: 0 | BZ144: 0 | CA144: 0 | CB144: 0 | CC144: 0 | CD144: 0 | CE144: 0 | CF144: 0 | CG144: 0 | CH144: 0 | CI144: 0 | CJ144: 0 | CK144: 0 | CL144: 0
E145: Financial expenses during operation | G145: £m nominal prices | K145: =K140 -> 0 | L145: 0 | M145: 0 | N145: 0 | O145: 0 | P145: 0 | Q145: 32.95 | R145: 31.67 | S145: 30.39 | T145: 29.11 | U145: 27.83 | V145: 26.55 | W145: 25.27 | X145: 23.99 | Y145: 22.71 | Z145: 21.43 | AA145: 20.15 | AB145: 18.87 | AC145: 17.59 | AD145: 16.31 | AE145: 15.03 | AF145: 13.75 | AG145: 12.47 | AH145: 11.19 | AI145: 9.91 | AJ145: 8.63 | AK145: 7.35 | AL145: 6.07 | AM145: 4.79 | AN145: 3.51 | AO145: 1 | AP145: 0 | AQ145: 0 | AR145: 0 | AS145: 0 | AT145: 0 | AU145: 0 | AV145: 0 | AW145: 0 | AX145: 0 | AY145: =AY140 -> 0 | AZ145: 0 | BA145: 0 | BB145: 0 | BC145: 0 | BD145: 0 | BE145: 0 | BF145: 0 | BG145: 0 | BH145: =BH140 -> 0 | BI145: 0 | BJ145: 0 | BK145: 0 | BL145: 0 | BM145: 0 | BN145: 0 | BO145: 0 | BP145: 0 | BQ145: 0 | BR145: 0 | BS145: 0 | BT145: 0 | BU145: 0 | BV145: 0 | BW145: 0 | BX145: 0 | BY145: 0 | BZ145: 0 | CA145: 0 | CB145: 0 | CC145: 0 | CD145: 0 | CE145: 0 | CF145: 0 | CG145: 0 | CH145: 0 | CI145: 0 | CJ145: 0 | CK145: 0 | CL145: 0
E146: Total debt service | G146: £m nominal prices | K146: =SUM(K144:K145) -> 0 | L146: 0 | M146: 0 | N146: 0 | O146: 0 | P146: 0 | Q146: 52.95 | R146: 51.67 | S146: 50.39 | T146: 49.11 | U146: 47.83 | V146: 46.55 | W146: 45.27 | X146: 43.99 | Y146: 42.71 | Z146: 41.43 | AA146: 40.15 | AB146: 38.87 | AC146: 37.59 | AD146: 36.31 | AE146: 35.03 | AF146: 33.75 | AG146: 32.47 | AH146: 31.19 | AI146: 29.91 | AJ146: 28.63 | AK146: 27.35 | AL146: 26.07 | AM146: 24.79 | AN146: 23.51 | AO146: 1 | AP146: 0 | AQ146: 0 | AR146: 0 | AS146: 0 | AT146: 0 | AU146: 0 | AV146: 0 | AW146: 0 | AX146: 0 | AY146: =SUM(AY144:AY145) -> 0 | AZ146: 0 | BA146: 0 | BB146: 0 | BC146: 0 | BD146: 0 | BE146: 0 | BF146: 0 | BG146: 0 | BH146: =SUM(BH144:BH145) -> 0 | BI146: 0 | BJ146: 0 | BK146: 0 | BL146: 0 | BM146: 0 | BN146: 0 | BO146: 0 | BP146: 0 | BQ146: 0 | BR146: 0 | BS146: 0 | BT146: 0 | BU146: 0 | BV146: 0 | BW146: 0 | BX146: 0 | BY146: 0 | BZ146: 0 | CA146: 0 | CB146: 0 | CC146: 0 | CD146: 0 | CE146: 0 | CF146: 0 | CG146: 0 | CH146: 0 | CI146: 0 | CJ146: 0 | CK146: 0 | CL146: 0
E148: DSCR sizing | G148: =Inputs!G68 -> DSCRx | I148: =Inputs!I68 -> 1.2
E150: Total debt service including buffer | G150: £m nominal prices | K150: =K146*$I$148 -> 0 | L150: 0 | M150: 0 | N150: 0 | O150: =O146*$I$148 -> 0 | P150: 0 | Q150: 63.54 | R150: 62.004 | S150: 60.468 | T150: 58.932 | U150: 57.396 | V150: 55.86 | W150: 54.324 | X150: 52.788 | Y150: 51.252 | Z150: 49.716 | AA150: 48.18 | AB150: 46.644 | AC150: 45.108 | AD150: 43.572 | AE150: 42.036 | AF150: 40.5 | AG150: 38.964 | AH150: 37.428 | AI150: 35.892 | AJ150: 34.356 | AK150: 32.82 | AL150: 31.284 | AM150: 29.748 | AN150: 28.212 | AO150: 1.2 | AP150: 0 | AQ150: 0 | AR150: 0 | AS150: 0 | AT150: 0 | AU150: 0 | AV150: 0 | AW150: 0 | AX150: 0 | AY150: =AY146*$I$148 -> 0 | AZ150: 0 | BA150: 0 | BB150: 0 | BC150: 0 | BD150: 0 | BE150: 0 | BF150: 0 | BG150: 0 | BH150: =BH146*$I$148 -> 0 | BI150: 0 | BJ150: 0 | BK150: 0 | BL150: 0 | BM150: 0 | BN150: 0 | BO150: 0 | BP150: 0 | BQ150: 0 | BR150: 0 | BS150: 0 | BT150: 0 | BU150: 0 | BV150: 0 | BW150: 0 | BX150: 0 | BY150: 0 | BZ150: 0 | CA150: 0 | CB150: 0 | CC150: 0 | CD150: 0 | CE150: 0 | CF150: 0 | CG150: 0 | CH150: 0 | CI150: 0 | CJ150: 0 | CK150: 0 | CL150: 0
E151: Total debt service including buffer | G151: =Inputs!$I$6 -> £m 2024 prices | K151: =K150:CL150/Input_IndexationFactor -> 0 | L151: 0 | M151: 0 | N151: 0 | O151: 0 | P151: 0 | Q151: 55.31539375 | R151: 52.91981698 | S151: 50.59691742 | T151: 48.34476601 | U151: 46.16148139 | V151: 44.04522879 | W151: 41.99421889 | X151: 40.0067068 | Y151: 38.08099094 | Z151: 36.21541207 | AA151: 34.40835226 | AB151: 32.65823389 | AC151: 30.96351871 | AD151: 29.32270693 | AE151: 27.73433623 | AF151: 26.19698096 | AG151: 24.70925118 | AH151: 23.26979185 | AI151: 21.87728201 | AJ151: 20.53043391 | AK151: 19.22799228 | AL151: 17.96873351 | AM151: 16.7514649 | AN151: 15.57502392 | AO151: 0.6494951635 | AP151: 0 | AQ151: 0 | AR151: 0 | AS151: 0 | AT151: 0 | AU151: 0 | AV151: 0 | AW151: 0 | AX151: 0 | AY151: 0 | AZ151: 0 | BA151: 0 | BB151: 0 | BC151: 0 | BD151: 0 | BE151: 0 | BF151: 0 | BG151: 0 | BH151: 0 | BI151: 0 | BJ151: 0 | BK151: 0 | BL151: 0 | BM151: 0 | BN151: 0 | BO151: 0 | BP151: 0 | BQ151: 0 | BR151: 0 | BS151: 0 | BT151: 0 | BU151: 0 | BV151: 0 | BW151: 0 | BX151: 0 | BY151: 0 | BZ151: 0 | CA151: 0 | CB151: 0 | CC151: 0 | CD151: 0 | CE151: 0 | CF151: 0 | CG151: 0 | CH151: 0 | CI151: 0 | CJ151: 0 | CK151: 0 | CL151: 0
E153: Proportion of debt fixed-rate | G153: nominal % | I153: =Inputs!I64 -> 1
E155: Total fixed-rate debt service including buffer | G155: £m nominal prices | K155: =K150*$I$153 -> 0 | L155: =L150*$I$153 -> 0 | M155: 0 | N155: =N150*$I$153 -> 0 | O155: =O150*$I$153 -> 0 | P155: 0 | Q155: 63.54 | R155: 62.004 | S155: 60.468 | T155: 58.932 | U155: 57.396 | V155: 55.86 | W155: 54.324 | X155: 52.788 | Y155: 51.252 | Z155: 49.716 | AA155: 48.18 | AB155: 46.644 | AC155: 45.108 | AD155: 43.572 | AE155: 42.036 | AF155: 40.5 | AG155: 38.964 | AH155: 37.428 | AI155: 35.892 | AJ155: 34.356 | AK155: 32.82 | AL155: 31.284 | AM155: 29.748 | AN155: 28.212 | AO155: 1.2 | AP155: 0 | AQ155: 0 | AR155: 0 | AS155: 0 | AT155: 0 | AU155: 0 | AV155: 0 | AW155: 0 | AX155: 0 | AY155: =AY150*$I$153 -> 0 | AZ155: 0 | BA155: 0 | BB155: 0 | BC155: 0 | BD155: 0 | BE155: 0 | BF155: 0 | BG155: 0 | BH155: =BH150*$I$153 -> 0 | BI155: 0 | BJ155: 0 | BK155: 0 | BL155: 0 | BM155: 0 | BN155: 0 | BO155: 0 | BP155: 0 | BQ155: 0 | BR155: 0 | BS155: 0 | BT155: 0 | BU155: 0 | BV155: 0 | BW155: 0 | BX155: 0 | BY155: 0 | BZ155: 0 | CA155: 0 | CB155: 0 | CC155: 0 | CD155: 0 | CE155: 0 | CF155: 0 | CG155: 0 | CH155: 0 | CI155: 0 | CJ155: 0 | CK155: 0 | CL155: 0
E156: Total fixed-rate debt service including buffer | G156: =Inputs!$I$6 -> £m 2024 prices | K156: =K155:CL155/Input_IndexationFactor -> 0 | L156: 0 | M156: 0 | N156: 0 | O156: 0 | P156: 0 | Q156: 55.31539375 | R156: 52.91981698 | S156: 50.59691742 | T156: 48.34476601 | U156: 46.16148139 | V156: 44.04522879 | W156: 41.99421889 | X156: 40.0067068 | Y156: 38.08099094 | Z156: 36.21541207 | AA156: 34.40835226 | AB156: 32.65823389 | AC156: 30.96351871 | AD156: 29.32270693 | AE156: 27.73433623 | AF156: 26.19698096 | AG156: 24.70925118 | AH156: 23.26979185 | AI156: 21.87728201 | AJ156: 20.53043391 | AK156: 19.22799228 | AL156: 17.96873351 | AM156: 16.7514649 | AN156: 15.57502392 | AO156: 0.6494951635 | AP156: 0 | AQ156: 0 | AR156: 0 | AS156: 0 | AT156: 0 | AU156: 0 | AV156: 0 | AW156: 0 | AX156: 0 | AY156: 0 | AZ156: 0 | BA156: 0 | BB156: 0 | BC156: 0 | BD156: 0 | BE156: 0 | BF156: 0 | BG156: 0 | BH156: 0 | BI156: 0 | BJ156: 0 | BK156: 0 | BL156: 0 | BM156: 0 | BN156: 0 | BO156: 0 | BP156: 0 | BQ156: 0 | BR156: 0 | BS156: 0 | BT156: 0 | BU156: 0 | BV156: 0 | BW156: 0 | BX156: 0 | BY156: 0 | BZ156: 0 | CA156: 0 | CB156: 0 | CC156: 0 | CD156: 0 | CE156: 0 | CF156: 0 | CG156: 0 | CH156: 0 | CI156: 0 | CJ156: 0 | CK156: 0 | CL156: 0
C158: DSRA calculation
E160: DSRA pre-funding | K160: =Inputs!$I$87*Finance!K12*(Inputs!$I$124=2) -> 0 | L160: =Inputs!$I$87*Finance!L12*(Inputs!$I$124=2) -> 0 | M160: =Inputs!$I$87*Finance!M12*(Inputs!$I$124=2) -> 0 | N160: =Inputs!$I$87*Finance!N12*(Inputs!$I$124=2) -> 0 | O160: =Inputs!$I$87*Finance!O12*(Inputs!$I$124=2) -> 0 | P160: =Inputs!$I$87*Finance!P12*(Inputs!$I$124=2) -> 0 | Q160: =Inputs!$I$87*Finance!Q12*(Inputs!$I$124=2) -> 0 | R160: =Inputs!$I$87*Finance!R12*(Inputs!$I$124=2) -> 0 | S160: =Inputs!$I$87*Finance!S12*(Inputs!$I$124=2) -> 0 | T160: =Inputs!$I$87*Finance!T12*(Inputs!$I$124=2) -> 0 | U160: =Inputs!$I$87*Finance!U12*(Inputs!$I$124=2) -> 0 | V160: =Inputs!$I$87*Finance!V12*(Inputs!$I$124=2) -> 0 | W160: =Inputs!$I$87*Finance!W12*(Inputs!$I$124=2) -> 0 | X160: =Inputs!$I$87*Finance!X12*(Inputs!$I$124=2) -> 0 | Y160: =Inputs!$I$87*Finance!Y12*(Inputs!$I$124=2) -> 0 | Z160: =Inputs!$I$87*Finance!Z12*(Inputs!$I$124=2) -> 0 | AA160: =Inputs!$I$87*Finance!AA12*(Inputs!$I$124=2) -> 0 | AB160: =Inputs!$I$87*Finance!AB12*(Inputs!$I$124=2) -> 0 | AC160: =Inputs!$I$87*Finance!AC12*(Inputs!$I$124=2) -> 0 | AD160: =Inputs!$I$87*Finance!AD12*(Inputs!$I$124=2) -> 0 | AE160: =Inputs!$I$87*Finance!AE12*(Inputs!$I$124=2) -> 0 | AF160: =Inputs!$I$87*Finance!AF12*(Inputs!$I$124=2) -> 0 | AG160: =Inputs!$I$87*Finance!AG12*(Inputs!$I$124=2) -> 0 | AH160: =Inputs!$I$87*Finance!AH12*(Inputs!$I$124=2) -> 0 | AI160: =Inputs!$I$87*Finance!AI12*(Inputs!$I$124=2) -> 0 | AJ160: =Inputs!$I$87*Finance!AJ12*(Inputs!$I$124=2) -> 0 | AK160: =Inputs!$I$87*Finance!AK12*(Inputs!$I$124=2) -> 0 | AL160: =Inputs!$I$87*Finance!AL12*(Inputs!$I$124=2) -> 0 | AM160: =Inputs!$I$87*Finance!AM12*(Inputs!$I$124=2) -> 0 | AN160: =Inputs!$I$87*Finance!AN12*(Inputs!$I$124=2) -> 0 | AO160: =Inputs!$I$87*Finance!AO12*(Inputs!$I$124=2) -> 0 | AP160: =Inputs!$I$87*Finance!AP12*(Inputs!$I$124=2) -> 0 | AQ160: =Inputs!$I$87*Finance!AQ12*(Inputs!$I$124=2) -> 0 | AR160: =Inputs!$I$87*Finance!AR12*(Inputs!$I$124=2) -> 0 | AS160: =Inputs!$I$87*Finance!AS12*(Inputs!$I$124=2) -> 0 | AT160: =Inputs!$I$87*Finance!AT12*(Inputs!$I$124=2) -> 0 | AU160: =Inputs!$I$87*Finance!AU12*(Inputs!$I$124=2) -> 0 | AV160: =Inputs!$I$87*Finance!AV12*(Inputs!$I$124=2) -> 0 | AW160: =Inputs!$I$87*Finance!AW12*(Inputs!$I$124=2) -> 0 | AX160: =Inputs!$I$87*Finance!AX12*(Inputs!$I$124=2) -> 0 | AY160: =Inputs!$I$87*Finance!AY12*(Inputs!$I$124=2) -> 0 | AZ160: =Inputs!$I$87*Finance!AZ12*(Inputs!$I$124=2) -> 0 | BA160: =Inputs!$I$87*Finance!BA12*(Inputs!$I$124=2) -> 0 | BB160: =Inputs!$I$87*Finance!BB12*(Inputs!$I$124=2) -> 0 | BC160: =Inputs!$I$87*Finance!BC12*(Inputs!$I$124=2) -> 0 | BD160: =Inputs!$I$87*Finance!BD12*(Inputs!$I$124=2) -> 0 | BE160: =Inputs!$I$87*Finance!BE12*(Inputs!$I$124=2) -> 0 | BF160: =Inputs!$I$87*Finance!BF12*(Inputs!$I$124=2) -> 0 | BG160: =Inputs!$I$87*Finance!BG12*(Inputs!$I$124=2) -> 0 | BH160: =Inputs!$I$87*Finance!BH12*(Inputs!$I$124=2) -> 0 | BI160: =Inputs!$I$87*Finance!BI12*(Inputs!$I$124=2) -> 0 | BJ160: =Inputs!$I$87*Finance!BJ12*(Inputs!$I$124=2) -> 0 | BK160: =Inputs!$I$87*Finance!BK12*(Inputs!$I$124=2) -> 0 | BL160: =Inputs!$I$87*Finance!BL12*(Inputs!$I$124=2) -> 0 | BM160: =Inputs!$I$87*Finance!BM12*(Inputs!$I$124=2) -> 0 | BN160: =Inputs!$I$87*Finance!BN12*(Inputs!$I$124=2) -> 0 | BO160: =Inputs!$I$87*Finance!BO12*(Inputs!$I$124=2) -> 0 | BP160: =Inputs!$I$87*Finance!BP12*(Inputs!$I$124=2) -> 0 | BQ160: =Inputs!$I$87*Finance!BQ12*(Inputs!$I$124=2) -> 0 | BR160: =Inputs!$I$87*Finance!BR12*(Inputs!$I$124=2) -> 0 | BS160: =Inputs!$I$87*Finance!BS12*(Inputs!$I$124=2) -> 0 | BT160: =Inputs!$I$87*Finance!BT12*(Inputs!$I$124=2) -> 0 | BU160: =Inputs!$I$87*Finance!BU12*(Inputs!$I$124=2) -> 0 | BV160: =Inputs!$I$87*Finance!BV12*(Inputs!$I$124=2) -> 0 | BW160: =Inputs!$I$87*Finance!BW12*(Inputs!$I$124=2) -> 0 | BX160: =Inputs!$I$87*Finance!BX12*(Inputs!$I$124=2) -> 0 | BY160: =Inputs!$I$87*Finance!BY12*(Inputs!$I$124=2) -> 0 | BZ160: =Inputs!$I$87*Finance!BZ12*(Inputs!$I$124=2) -> 0 | CA160: =Inputs!$I$87*Finance!CA12*(Inputs!$I$124=2) -> 0 | CB160: =Inputs!$I$87*Finance!CB12*(Inputs!$I$124=2) -> 0 | CC160: =Inputs!$I$87*Finance!CC12*(Inputs!$I$124=2) -> 0 | CD160: =Inputs!$I$87*Finance!CD12*(Inputs!$I$124=2) -> 0 | CE160: =Inputs!$I$87*Finance!CE12*(Inputs!$I$124=2) -> 0 | CF160: =Inputs!$I$87*Finance!CF12*(Inputs!$I$124=2) -> 0 | CG160: =Inputs!$I$87*Finance!CG12*(Inputs!$I$124=2) -> 0 | CH160: =Inputs!$I$87*Finance!CH12*(Inputs!$I$124=2) -> 0 | CI160: =Inputs!$I$87*Finance!CI12*(Inputs!$I$124=2) -> 0 | CJ160: =Inputs!$I$87*Finance!CJ12*(Inputs!$I$124=2) -> 0 | CK160: =Inputs!$I$87*Finance!CK12*(Inputs!$I$124=2) -> 0 | CL160: =Inputs!$I$87*Finance!CL12*(Inputs!$I$124=2) -> 0
B162: End of sheet

Sheet Op_Rav
A1: Op RAV | H1: Licence
E2: Parameter | G2: Units | H2: Terminology | I2: Constant | K2: Annual values
E3: Project year | K3: Year 1 | L3: Year 2 | M3: Year 3 | N3: Year 4 | O3: Year 5 | P3: Year 6 | Q3: Year 7 | R3: Year 8 | S3: Year 9 | T3: Year 10 | U3: Year 11 | V3: Year 12 | W3: Year 13 | X3: Year 14 | Y3: Year 15 | Z3: Year 16 | AA3: Year 17 | AB3: Year 18 | AC3: Year 19 | AD3: Year 20 | AE3: Year 21 | AF3: Year 22 | AG3: Year 23 | AH3: Year 24 | AI3: Year 25 | AJ3: Year 26 | AK3: Year 27 | AL3: Year 28 | AM3: Year 29 | AN3: Year 30 | AO3: Year 31 | AP3: Year 32 | AQ3: Year 33 | AR3: Year 34 | AS3: Year 35 | AT3: Year 36 | AU3: Year 37 | AV3: Year 38 | AW3: Year 39 | AX3: Year 40 | AY3: Year 41 | AZ3: Year 42 | BA3: Year 43 | BB3: Year 44 | BC3: Year 45 | BD3: Year 46 | BE3: Year 47 | BF3: Year 48 | BG3: Year 49 | BH3: Year 50 | BI3: Year 51 | BJ3: Year 52 | BK3: Year 53 | BL3: Year 54 | BM3: Year 55 | BN3: Year 56 | BO3: Year 57 | BP3: Year 58 | BQ3: Year 59 | BR3: Year 60 | BS3: Year 61 | BT3: Year 62 | BU3: Year 63 | BV3: Year 64 | BW3: Year 65 | BX3: Year 66 | BY3: Year 67 | BZ3: Year 68 | CA3: Year 69 | CB3: Year 70 | CC3: Year 71 | CD3: Year 72 | CE3: Year 73 | CF3: Year 74 | CG3: Year 75 | CH3: Year 76 | CI3: Year 77 | CJ3: Year 78 | CK3: Year 79 | CL3: Year 80
B5: RAV
C7: Operational
E9: Opening operational RAV (before transfers) | G9: =Inputs!$I$6 -> £m 2024 prices | K9: =J16 -> 0 | L9: 589.9508775 | M9: 569.6077438 | N9: 549.26461 | O9: 528.9214763 | P9: 508.5783426 | Q9: 488.2352089 | R9: 467.8920752 | S9: 448.255303 | T9: 428.2586898 | U9: 408.0605807 | V9: 388.0399538 | W9: 368.374837 | X9: 349.3047803 | Y9: 329.0486012 | Z9: 308.7732677 | AA9: 289.8054908 | AB9: 269.3953027 | AC9: 248.963748 | AD9: 228.5069731 | AE9: 208.0706952 | AF9: 188.1192494 | AG9: 168.2574655 | AH9: 147.5154864 | AI9: 126.7664915 | AJ9: =AI16 -> 106.6493548 | AK9: =AJ16 -> 85.31948383 | AL9: =AK16 -> 63.98961287 | AM9: =AL16 -> 42.65974191 | AN9: =AM16 -> 21.32987096 | AO9: =AN16 -> 0 | AP9: =AO16 -> 0 | AQ9: =AP16 -> 0 | AR9: =AQ16 -> 0 | AS9: =AR16 -> 0 | AT9: =AS16 -> 0 | AU9: =AT16 -> 0 | AV9: =AU16 -> 0 | AW9: =AV16 -> 0 | AX9: 0 | AY9: =AX16 -> 0 | AZ9: =AY16 -> 0 | BA9: =AZ16 -> 0 | BB9: =BA16 -> 0 | BC9: =BB16 -> 0 | BD9: =BC16 -> 0 | BE9: =BD16 -> 0 | BF9: =BE16 -> 0 | BG9: =BF16 -> 0 | BH9: =BG16 -> 0 | BI9: =BH16 -> 0 | BJ9: =BI16 -> 0 | BK9: =BJ16 -> 0 | BL9: =BK16 -> 0 | BM9: =BL16 -> 0 | BN9: =BM16 -> 0 | BO9: =BN16 -> 0 | BP9: =BO16 -> 0 | BQ9: =BP16 -> 0 | BR9: =BQ16 -> 0 | BS9: =BR16 -> 0 | BT9: =BS16 -> 0 | BU9: =BT16 -> 0 | BV9: =BU16 -> 0 | BW9: =BV16 -> 0 | BX9: =BW16 -> 0 | BY9: =BX16 -> 0 | BZ9: =BY16 -> 0 | CA9: =BZ16 -> 0 | CB9: =CA16 -> 0 | CC9: =CB16 -> 0 | CD9: =CC16 -> 0 | CE9: =CD16 -> 0 | CF9: =CE16 -> 0 | CG9: =CF16 -> 0 | CH9: =CG16 -> 0 | CI9: =CH16 -> 0 | CJ9: =CI16 -> 0 | CK9: =CJ16 -> 0 | CL9: =CK16 -> 0
E10: Transfers of transaction costs | G10: =Inputs!$I$6 -> £m 2024 prices | K10: =-SUM(Finance!K49:CL49) -> 30.70017753
E11: Transfers of pre-operational RAV | G11: =Inputs!$I$6 -> £m 2024 prices | K11: =-SUM(Pre_Op_RAV!K25:CL25) -> 579.5938336
E12: Residual value at end of regime | G12: =Inputs!$I$6 -> £m 2024 prices | K12: =- Inputs!I29 -> 0
E13: Opening operational RAV (after transfers) | G13: =Inputs!$I$6 -> £m 2024 prices | K13: =SUM(K9:K12) -> 610.2940112 | L13: =SUM(L9:L12) -> 589.9508775 | M13: 569.6077438 | N13: 549.26461 | O13: 528.9214763 | P13: 508.5783426 | Q13: 488.2352089 | R13: 467.8920752 | S13: 448.255303 | T13: 428.2586898 | U13: 408.0605807 | V13: 388.0399538 | W13: 368.374837 | X13: 349.3047803 | Y13: 329.0486012 | Z13: 308.7732677 | AA13: 289.8054908 | AB13: 269.3953027 | AC13: 248.963748 | AD13: 228.5069731 | AE13: 208.0706952 | AF13: 188.1192494 | AG13: 168.2574655 | AH13: 147.5154864 | AI13: 126.7664915 | AJ13: 106.6493548 | AK13: 85.31948383 | AL13: 63.98961287 | AM13: 42.65974191 | AN13: 21.32987096 | AO13: 0 | AP13: 0 | AQ13: 0 | AR13: 0 | AS13: 0 | AT13: 0 | AU13: 0 | AV13: 0 | AW13: 0 | AX13: 0 | AY13: =SUM(AY9:AY12) -> 0 | AZ13: 0 | BA13: 0 | BB13: 0 | BC13: 0 | BD13: 0 | BE13: 0 | BF13: 0 | BG13: 0 | BH13: 0 | BI13: =SUM(BI9:BI12) -> 0 | BJ13: 0 | BK13: 0 | BL13: 0 | BM13: 0 | BN13: 0 | BO13: 0 | BP13: 0 | BQ13: 0 | BR13: 0 | BS13: 0 | BT13: 0 | BU13: 0 | BV13: 0 | BW13: 0 | BX13: 0 | BY13: 0 | BZ13: 0 | CA13: 0 | CB13: 0 | CC13: 0 | CD13: 0 | CE13: 0 | CF13: 0 | CG13: 0 | CH13: 0 | CI13: 0 | CJ13: 0 | CK13: 0 | CL13: 0
